Workbook

Sheet Welcome
A1: EPA GHG Emission Reductions Calculator for Pollution Prevention (P2) Projects
B3: Purpose The purpose of this Calculator is threefold: (1) to help EPA P2 Program grantees convert individual P2 action metrics into quantified reductions of greenhouse gases (GHG), measured in units of metric tons of carbon dioxide equivalent (MTCO2e); (2) to provide thorough coverage of P2 action categories that have GHG impacts; and, (3) to track and aggregate entries for reading in the Aggregate Tab. The scope of data-entry categories is displayed in the colored tabs below. This Calculator is ideal for P2 program grantees to use in calculating their facility-level implementation results for reporting to EPA's P2 Program. Grantees can, if desired, use this calculator to estimate prospective annual GHG reductions from recommended P2 actions. While similar in scope to EPA’s Simplified GHG Emissions Calculator, this P2 GHG Calculator helps an entity calculate the GHG reductions associated with a P2 action, whereas the Simplified GHG Emissions Calculator helps an entity conduct an inventory of their annual GHG emissions. The general public is welcome to use this calculator.
B4: Functionality Basic conversions. This calculator converts P2 activity metrics into MTCO2e reductions. For quick conversions, a user can choose a tab for the action type of interest -- electricity conservation, green energy purchases, fuel use, green chemistry, water management, or solvent remanufacturing -- and choose from activity metrics in a row to see the conversion to MTCO2e reductions. For a recordkeeping approach, a user can start on the Aggregate MTCO2e tab and replace "Row 1," "Row 2," and so on with descriptions (such as a P2 action) to populate those row descriptions in the other action tabs.
B5: Two Aggregation Tabs. 1) The Aggregate MTCO2e Tab displays total reductions by action-category tab and by row (captioned or not). 2) The Aggregate Cost Savings Tab uses data from the Aggregate MTCO2e Tab and formulas from the P2 Cost Savings Calculator to display formula-based cost savings for the Aggregate MTCO2e Tab data points. The Aggregate Cost Savings Tab spares the user from going back and forth with an activity metric between the Cost Savings and GHG Calculators for certain activity metrics.
B6: Using the Calculator in support of EPA Grant Reporting. Grantees are encouraged to use this P2 GHG Calculator to report the GHG reductions from P2 implementation actions to EPA. This Calculator plays a supportive role for grant reporting. If you are reporting to EPA and using this Calculator, you would engage in a three-step process: (1) enter a description of each P2 activity implemented in EPA's reporting templates or something equivalent; (2) use this calculator as needed for calculating annual reductions in MTCO2e per activity implemented; and, (3) record the annual MTCO2e reductions for each P2 activity implemented in your EPA reporting template or equivalent format. Reporting MTCO2e reductions per action is important because conversions to MTCO2e vary by action. This Calculator does not provide fields for entering the facility data, recommendations, or implemented actions that are required for P2 Program grant reporting. The examples provided on action tabs include a P2 activity description to portray a real scenario, but there is nowhere to enter a P2 activity description in this Calculator.
B7: Notes CO2e is a unit of GHGs whose global warming potential (GWP) is standardized to that of CO2, assigned a value of 1. This tool uses standard United Nations GWPs for greenhouse gases.
B8: For those keeping track of GHG Protocol scopes of emissions, the Calculator covers Scope 1, Scope 2, and Scope 3 sources. Fuel burned onsite or in a company-owned plane or vehicle and onsite chemical engineering changes relate to Scope 1. Electricity management, purchases of green energy and renewable energy certificates, and water management relate to Scope 2. Purchases of lower-GWP chemicals and fuel for transit and other equipment not owned by the company relate to Scope 3.
B10: Throughout this calculator, the following color key is used.
B11: Color Key
B12: Enter value
B13: Use drop-down menu
B14: Do not change - calculation

Sheet Aggregate_MTCO2e
B1: Aggregated GHG Reductions from All Tabs
B2: This tab is a parent tab for the calculator. It aggregates the GHG reductions from all tabs and organizes them by category and by row.
A4: How to use this tab | B4: Use this tab as a read-only tab for aggregate MTCO2e values and as an entry tab for labeling rows. To label a row, enter a caption of your choice in the first column. This step will populate the caption for that row in all action tabs. Continue labeling rows as desired. To get more rows, click the "Click to add row" button here or on any tab and a row will be added to all tabs.
B5: Electricity Conservation | C5: Fuel Use | D5: Green Energy | E5: Greening Chemistry | F5: Water Management | G5: Solvent Remanufacturing | H5: Total by row | I5: Total by row
B6: Reduction in Metric Tons of Carbon Dioxide Equivalent (MTCO2e) | C6: Reduction in MTCO2e | D6: Reduction in MTCO2e | E6: Reduction in MTCO2e | F6: Reduction in MTCO2e | G6: Reduction in MTCO2e | H6: Reduction in MTCO2e* | I6: Reduction in Million Metric Tons of Carbon Dioxide Equivalent (MMTCO2e)**
A7: Aggregate (All rows) | B7: =SUM(B9:B19) -> 0 | C7: =SUM(C9:C19) -> 0 | D7: =SUM(D9:D19) -> 0 | E7: 0 | F7: 0 | G7: 0 | H7: 0 | I7: 0
A9: Row 1 | B9: ='Electricity Conservation'!D12+'Electricity Conservation'!F12+'Electricity Conservation'!H12 -> 0 | C9: ='Fuel Use'!F12+'Fuel Use'!Z12+'Fuel Use'!V12+'Fuel Use'!AB12+'Fuel Use'!C12+'Fuel Use'!P12+'Fuel Use'!R12+'Fuel Use'!H12+'Fuel Use'!J12+'Fuel Use'!M12+'Fuel Use'!AE12+'Fuel Use'!AG12+'Fuel Use'!AI12+'Fuel Use'!AK12+'Fuel Use'!AM12 -> 0 | D9: =('Green Electricity'!D12) -> 0 | E9: =INDEX('Greening Chemistry'!$10:$10,ROW()) -> 0 | F9: ='Water Management'!D12+'Water Management'!F12 -> 0 | G9: ='Solvent Remanufacturing'!G12 -> 0 | H9: =SUM(B9:G9) -> 0 | I9: =H9/1000000 -> 0
A10: Row 2 | B10: ='Electricity Conservation'!D13+'Electricity Conservation'!F13+'Electricity Conservation'!H13 -> 0 | C10: ='Fuel Use'!F13+'Fuel Use'!Z13+'Fuel Use'!V13+'Fuel Use'!AB13+'Fuel Use'!C13+'Fuel Use'!P13+'Fuel Use'!R13+'Fuel Use'!H13+'Fuel Use'!J13+'Fuel Use'!M13+'Fuel Use'!AE13+'Fuel Use'!AG13+'Fuel Use'!AI13+'Fuel Use'!AK13+'Fuel Use'!AM13 -> 0 | D10: =('Green Electricity'!D13) -> 0 | E10: =INDEX('Greening Chemistry'!$10:$10,ROW()) -> 0 | F10: ='Water Management'!D13+'Water Management'!F13 -> 0 | G10: ='Solvent Remanufacturing'!G13 -> 0 | H10: 0 | I10: =H10/1000000 -> 0
A11: Row 3 | B11: ='Electricity Conservation'!D14+'Electricity Conservation'!F14+'Electricity Conservation'!H14 -> 0 | C11: ='Fuel Use'!F14+'Fuel Use'!Z14+'Fuel Use'!V14+'Fuel Use'!AB14+'Fuel Use'!C14+'Fuel Use'!P14+'Fuel Use'!R14+'Fuel Use'!H14+'Fuel Use'!J14+'Fuel Use'!M14+'Fuel Use'!AE14+'Fuel Use'!AG14+'Fuel Use'!AI14+'Fuel Use'!AK14+'Fuel Use'!AM14 -> 0 | D11: =('Green Electricity'!D14) -> 0 | E11: =INDEX('Greening Chemistry'!$10:$10,ROW()) -> 0 | F11: ='Water Management'!D14+'Water Management'!F14 -> 0 | G11: ='Solvent Remanufacturing'!G14 -> 0 | H11: 0 | I11: 0
A12: Row 4 | B12: ='Electricity Conservation'!D15+'Electricity Conservation'!F15+'Electricity Conservation'!H15 -> 0 | C12: ='Fuel Use'!F15+'Fuel Use'!Z15+'Fuel Use'!V15+'Fuel Use'!AB15+'Fuel Use'!C15+'Fuel Use'!P15+'Fuel Use'!R15+'Fuel Use'!H15+'Fuel Use'!J15+'Fuel Use'!M15+'Fuel Use'!AE15+'Fuel Use'!AG15+'Fuel Use'!AI15+'Fuel Use'!AK15+'Fuel Use'!AM15 -> 0 | D12: =('Green Electricity'!D15) -> 0 | E12: =INDEX('Greening Chemistry'!$10:$10,ROW()) -> 0 | F12: ='Water Management'!D15+'Water Management'!F15 -> 0 | G12: ='Solvent Remanufacturing'!G15 -> 0 | H12: 0 | I12: 0
A13: Row 5 | B13: ='Electricity Conservation'!D16+'Electricity Conservation'!F16+'Electricity Conservation'!H16 -> 0 | C13: ='Fuel Use'!F16+'Fuel Use'!Z16+'Fuel Use'!V16+'Fuel Use'!AB16+'Fuel Use'!C16+'Fuel Use'!P16+'Fuel Use'!R16+'Fuel Use'!H16+'Fuel Use'!J16+'Fuel Use'!M16+'Fuel Use'!AE16+'Fuel Use'!AG16+'Fuel Use'!AI16+'Fuel Use'!AK16+'Fuel Use'!AM16 -> 0 | D13: =('Green Electricity'!D16) -> 0 | E13: =INDEX('Greening Chemistry'!$10:$10,ROW()) -> 0 | F13: ='Water Management'!D16+'Water Management'!F16 -> 0 | G13: ='Solvent Remanufacturing'!G16 -> 0 | H13: 0 | I13: 0
A14: Row 6 | B14: ='Electricity Conservation'!D17+'Electricity Conservation'!F17+'Electricity Conservation'!H17 -> 0 | C14: ='Fuel Use'!F17+'Fuel Use'!Z17+'Fuel Use'!V17+'Fuel Use'!AB17+'Fuel Use'!C17+'Fuel Use'!P17+'Fuel Use'!R17+'Fuel Use'!H17+'Fuel Use'!J17+'Fuel Use'!M17+'Fuel Use'!AE17+'Fuel Use'!AG17+'Fuel Use'!AI17+'Fuel Use'!AK17+'Fuel Use'!AM17 -> 0 | D14: =('Green Electricity'!D17) -> 0 | E14: =INDEX('Greening Chemistry'!$10:$10,ROW()) -> 0 | F14: ='Water Management'!D17+'Water Management'!F17 -> 0 | G14: ='Solvent Remanufacturing'!G17 -> 0 | H14: 0 | I14: 0
A15: Row 7 | B15: ='Electricity Conservation'!D18+'Electricity Conservation'!F18+'Electricity Conservation'!H18 -> 0 | C15: ='Fuel Use'!F18+'Fuel Use'!Z18+'Fuel Use'!V18+'Fuel Use'!AB18+'Fuel Use'!C18+'Fuel Use'!P18+'Fuel Use'!R18+'Fuel Use'!H18+'Fuel Use'!J18+'Fuel Use'!M18+'Fuel Use'!AE18+'Fuel Use'!AG18+'Fuel Use'!AI18+'Fuel Use'!AK18+'Fuel Use'!AM18 -> 0 | D15: =('Green Electricity'!D18) -> 0 | E15: =INDEX('Greening Chemistry'!$10:$10,ROW()) -> 0 | F15: ='Water Management'!D18+'Water Management'!F18 -> 0 | G15: ='Solvent Remanufacturing'!G18 -> 0 | H15: 0 | I15: 0
A16: Row 8 | B16: ='Electricity Conservation'!D19+'Electricity Conservation'!F19+'Electricity Conservation'!H19 -> 0 | C16: ='Fuel Use'!F19+'Fuel Use'!Z19+'Fuel Use'!V19+'Fuel Use'!AB19+'Fuel Use'!C19+'Fuel Use'!P19+'Fuel Use'!R19+'Fuel Use'!H19+'Fuel Use'!J19+'Fuel Use'!M19+'Fuel Use'!AE19+'Fuel Use'!AG19+'Fuel Use'!AI19+'Fuel Use'!AK19+'Fuel Use'!AM19 -> 0 | D16: =('Green Electricity'!D19) -> 0 | E16: =INDEX('Greening Chemistry'!$10:$10,ROW()) -> 0 | F16: ='Water Management'!D19+'Water Management'!F19 -> 0 | G16: ='Solvent Remanufacturing'!G19 -> 0 | H16: 0 | I16: 0
A17: Row 9 | B17: ='Electricity Conservation'!D20+'Electricity Conservation'!F20+'Electricity Conservation'!H20 -> 0 | C17: ='Fuel Use'!F20+'Fuel Use'!Z20+'Fuel Use'!V20+'Fuel Use'!AB20+'Fuel Use'!C20+'Fuel Use'!P20+'Fuel Use'!R20+'Fuel Use'!H20+'Fuel Use'!J20+'Fuel Use'!M20+'Fuel Use'!AE20+'Fuel Use'!AG20+'Fuel Use'!AI20+'Fuel Use'!AK20+'Fuel Use'!AM20 -> 0 | D17: =('Green Electricity'!D20) -> 0 | E17: =INDEX('Greening Chemistry'!$10:$10,ROW()) -> 0 | F17: ='Water Management'!D20+'Water Management'!F20 -> 0 | G17: ='Solvent Remanufacturing'!G20 -> 0 | H17: 0 | I17: 0
A18: Row 10 | B18: ='Electricity Conservation'!D21+'Electricity Conservation'!F21+'Electricity Conservation'!H21 -> 0 | C18: ='Fuel Use'!F21+'Fuel Use'!Z21+'Fuel Use'!V21+'Fuel Use'!AB21+'Fuel Use'!C21+'Fuel Use'!P21+'Fuel Use'!R21+'Fuel Use'!H21+'Fuel Use'!J21+'Fuel Use'!M21+'Fuel Use'!AE21+'Fuel Use'!AG21+'Fuel Use'!AI21+'Fuel Use'!AK21+'Fuel Use'!AM21 -> 0 | D18: =('Green Electricity'!D21) -> 0 | E18: =INDEX('Greening Chemistry'!$10:$10,ROW()) -> 0 | F18: ='Water Management'!D21+'Water Management'!F21 -> 0 | G18: ='Solvent Remanufacturing'!G21 -> 0 | H18: 0 | I18: 0
A19: ="Row "&(ROW(A19)-8) -> Row 11 | B19: ='Electricity Conservation'!D22+'Electricity Conservation'!F22+'Electricity Conservation'!H22 -> 0 | C19: ='Fuel Use'!F22+'Fuel Use'!Z22+'Fuel Use'!V22+'Fuel Use'!AB22+'Fuel Use'!C22+'Fuel Use'!P22+'Fuel Use'!R22+'Fuel Use'!H22+'Fuel Use'!J22+'Fuel Use'!M22+'Fuel Use'!AE22+'Fuel Use'!AG22+'Fuel Use'!AI22+'Fuel Use'!AK22+'Fuel Use'!AM22 -> 0 | D19: =('Green Electricity'!D22) -> 0 | E19: =INDEX('Greening Chemistry'!$10:$10,ROW()) -> 0 | F19: ='Water Management'!D22+'Water Management'!F22 -> 0 | G19: ='Solvent Remanufacturing'!G22 -> 0 | H19: 0 | I19: =H19/1000000 -> 0
A22: Category | B22: Description
A23: Electricity Conservation | B23: GHG reductions from electricity conservation or reduced use of energy.
A24: Fuel Use | B24: GHG reductions from reduced fuel use or substitution to greener fuels in stationary, mobile, or transportation sources.
A25: Green Energy | B25: GHG reductions from switching to greener or renewable energy sources.
A26: Greening Chemistry | B26: GHG reductions from reduced use of high global-warming-potential (GWP) chemicals.
A27: Water Management | B27: GHG reductions from reduced water use.
A28: Solvent Remanufacturing | B28: GHG reductions from considering the lifecycle GHG impact of materials used.
A30: Notes:
A31: * Reporting units for Regional ACS (Annual Commitment System) P2 performance measure (Column H) are Metric Tons of Carbon Dioxide Equivalent (MTCO2e)
A32: ** Reporting units for National P2 program performance measure (Column I) are Million Metric Tons of Carbon Dioxide Equivalent (MMTCO2e)

Sheet Aggregate_CostSavings
B1: Aggregate P2 Cost Savings Associated with Aggregate MTCO2e Reductions
B2: This tab is a second parent tab for the GHG Calculator. It applies default formulas from the P2 Cost Savings Calculator to populate formula-based cost savings for all rows in three action-category tabs. For tracking cost savings not calculated by formula, please read the section below, "How to use this tab."
A4: How to use this tab | B4: Use this tab as a read-only tab for formula-based cost-saving values related to GHG emissions. Grantees reporting on EPA P2 Program grants may report the cost-saving values for electricity conservation, water management, and fuel reductions from this tab OR from the P2 Cost Saving Calculator if they entered their own unit costs there. Grantees will always need to look beyond this tab to report air travel costs saved (the P2 Cost Savings Calculator tracks user-entered unit costs for air travel). Grantees and other users will also need to look beyond the P2 GHG and P2 Cost Savings Calculators to compute any cost savings from electric vehicles, reduced LPG or ethanol use, landfill-gas energy projects, solvent remanufacturing, or green chemistry substitutions.
B5: Electricity Conservation and Green Electricity | C5: Fuel Use (P2 Cost Saving Calculator default values for any-blend gasoline, diesel, biodiesel, heating oil, jet fuel, and coal only. Cost savings not included for air travel, electric vehicles, LPG, landfill gas, ethanol, or electric vehicles.) | D5: Water Management | E5: Total by Row
B6: cost savings ($) | C6: cost savings ($) | D6: cost savings ($) | E6: cost savings ($)
A7: Aggregate (All Rows) | B7: =SUM(B9:B19) -> 0 | C7: 0 | D7: 0 | E7: 0
A9: =Aggregate_MTCO2e!A9 -> Row 1 | B9: =IFERROR('C_Electricity Use'!E14+'C_Electricity Use'!H14+'C_Electricity Use'!K14, 0) -> 0 | C9: ='C_Fuel Use'!F14+'C_Fuel Use'!I14+'C_Fuel Use'!L14+'C_Fuel Use'!O14+'C_Fuel Use'!R14+'C_Fuel Use'!U14+'C_Fuel Use'!X14+'C_Fuel Use'!AA14+'C_Fuel Use'!AD14 -> 0 | D9: ='C_Water Use'!D12 -> 0 | E9: =SUM(B9, C9, D9) -> 0
A10: =Aggregate_MTCO2e!A10 -> Row 2 | B10: =IFERROR('C_Electricity Use'!E15+'C_Electricity Use'!H15+'C_Electricity Use'!K15, 0) -> 0 | C10: ='C_Fuel Use'!F15+'C_Fuel Use'!I15+'C_Fuel Use'!L15+'C_Fuel Use'!O15+'C_Fuel Use'!R15+'C_Fuel Use'!U15+'C_Fuel Use'!X15+'C_Fuel Use'!AA15+'C_Fuel Use'!AD15 -> 0 | D10: ='C_Water Use'!D13 -> 0 | E10: 0
A11: =Aggregate_MTCO2e!A11 -> Row 3 | B11: =IFERROR('C_Electricity Use'!E16+'C_Electricity Use'!H16+'C_Electricity Use'!K16, 0) -> 0 | C11: ='C_Fuel Use'!F16+'C_Fuel Use'!I16+'C_Fuel Use'!L16+'C_Fuel Use'!O16+'C_Fuel Use'!R16+'C_Fuel Use'!U16+'C_Fuel Use'!X16+'C_Fuel Use'!AA16+'C_Fuel Use'!AD16 -> 0 | D11: ='C_Water Use'!D14 -> 0 | E11: 0
A12: =Aggregate_MTCO2e!A12 -> Row 4 | B12: =IFERROR('C_Electricity Use'!E17+'C_Electricity Use'!H17+'C_Electricity Use'!K17, 0) -> 0 | C12: ='C_Fuel Use'!F17+'C_Fuel Use'!I17+'C_Fuel Use'!L17+'C_Fuel Use'!O17+'C_Fuel Use'!R17+'C_Fuel Use'!U17+'C_Fuel Use'!X17+'C_Fuel Use'!AA17+'C_Fuel Use'!AD17 -> 0 | D12: ='C_Water Use'!D15 -> 0 | E12: 0
A13: =Aggregate_MTCO2e!A13 -> Row 5 | B13: =IFERROR('C_Electricity Use'!E18+'C_Electricity Use'!H18+'C_Electricity Use'!K18, 0) -> 0 | C13: ='C_Fuel Use'!F18+'C_Fuel Use'!I18+'C_Fuel Use'!L18+'C_Fuel Use'!O18+'C_Fuel Use'!R18+'C_Fuel Use'!U18+'C_Fuel Use'!X18+'C_Fuel Use'!AA18+'C_Fuel Use'!AD18 -> 0 | D13: ='C_Water Use'!D16 -> 0 | E13: 0
A14: =Aggregate_MTCO2e!A14 -> Row 6 | B14: =IFERROR('C_Electricity Use'!E19+'C_Electricity Use'!H19+'C_Electricity Use'!K19, 0) -> 0 | C14: ='C_Fuel Use'!F19+'C_Fuel Use'!I19+'C_Fuel Use'!L19+'C_Fuel Use'!O19+'C_Fuel Use'!R19+'C_Fuel Use'!U19+'C_Fuel Use'!X19+'C_Fuel Use'!AA19+'C_Fuel Use'!AD19 -> 0 | D14: ='C_Water Use'!D17 -> 0 | E14: 0
A15: =Aggregate_MTCO2e!A15 -> Row 7 | B15: =IFERROR('C_Electricity Use'!E20+'C_Electricity Use'!H20+'C_Electricity Use'!K20, 0) -> 0 | C15: ='C_Fuel Use'!F20+'C_Fuel Use'!I20+'C_Fuel Use'!L20+'C_Fuel Use'!O20+'C_Fuel Use'!R20+'C_Fuel Use'!U20+'C_Fuel Use'!X20+'C_Fuel Use'!AA20+'C_Fuel Use'!AD20 -> 0 | D15: ='C_Water Use'!D18 -> 0 | E15: 0
A16: =Aggregate_MTCO2e!A16 -> Row 8 | B16: =IFERROR('C_Electricity Use'!E21+'C_Electricity Use'!H21+'C_Electricity Use'!K21, 0) -> 0 | C16: ='C_Fuel Use'!F21+'C_Fuel Use'!I21+'C_Fuel Use'!L21+'C_Fuel Use'!O21+'C_Fuel Use'!R21+'C_Fuel Use'!U21+'C_Fuel Use'!X21+'C_Fuel Use'!AA21+'C_Fuel Use'!AD21 -> 0 | D16: ='C_Water Use'!D19 -> 0 | E16: 0
A17: =Aggregate_MTCO2e!A17 -> Row 9 | B17: =IFERROR('C_Electricity Use'!E22+'C_Electricity Use'!H22+'C_Electricity Use'!K22, 0) -> 0 | C17: ='C_Fuel Use'!F22+'C_Fuel Use'!I22+'C_Fuel Use'!L22+'C_Fuel Use'!O22+'C_Fuel Use'!R22+'C_Fuel Use'!U22+'C_Fuel Use'!X22+'C_Fuel Use'!AA22+'C_Fuel Use'!AD22 -> 0 | D17: ='C_Water Use'!D20 -> 0 | E17: 0
A18: =Aggregate_MTCO2e!A18 -> Row 10 | B18: =IFERROR('C_Electricity Use'!E23+'C_Electricity Use'!H23+'C_Electricity Use'!K23, 0) -> 0 | C18: ='C_Fuel Use'!F23+'C_Fuel Use'!I23+'C_Fuel Use'!L23+'C_Fuel Use'!O23+'C_Fuel Use'!R23+'C_Fuel Use'!U23+'C_Fuel Use'!X23+'C_Fuel Use'!AA23+'C_Fuel Use'!AD23 -> 0 | D18: ='C_Water Use'!D21 -> 0 | E18: 0
A19: =Aggregate_MTCO2e!A19 -> Row 11 | B19: =IFERROR('C_Electricity Use'!E24+'C_Electricity Use'!H24+'C_Electricity Use'!K24, 0) -> 0 | C19: ='C_Fuel Use'!F24+'C_Fuel Use'!I24+'C_Fuel Use'!L24+'C_Fuel Use'!O24+'C_Fuel Use'!R24+'C_Fuel Use'!U24+'C_Fuel Use'!X24+'C_Fuel Use'!AA24+'C_Fuel Use'!AD24 -> 0 | D19: ='C_Water Use'!D22 -> 0 | E19: 0
A21: Category | B21: Description
A22: Electricity Conservation and Green Energy | B22: Aggregate cost savings from electricity conservation and green energy activities resulting in GHG reductions. Note: Cost savings associated with LED bulbs are not included in this tab. Please work directly in the P2 Cost Savings Calculator to calculate cost savings associated with these activities.
A23: Fuel Use | B23: Aggregate cost savings from fuel use. Note: Cost savings from reduced LPG, propane, landfill gas, air travel, ethanol, and use of electric vehicles are not included in this tab. Please work directly in the P2 Cost Savings Calculator to calculate cost savings associated with these activities.
A24: Water Conservation | B24: Aggregate cost savings from water conservation, including water use and wastewater discharge. Note: Cost savings from reduced TSS, BOD, COD, and other pollutants are not included in this tab. Please work directly in the P2 Cost Savings Calculator to calculate cost savings associated with these activities.

Sheet Electricity Conservation
C1: Electricity Conservation
C2: This tab computes GHG emission reductions from reducing electricity use. The emission rates are from eGRID (EPA’s Emission and Generation Resource Integrated Database).
A4: Type of Electricity Management | C4: Electricity Conservation | E4: LED Bulbs | G4: Other
A5: How to use this tab: | C5: Choose the emission rate -- either your state's or the U.S. national average. Enter the annual amount of electricity conserved in kWh. The second column shows the MTCO2e reductions. | E5: Same directions as for the Electricity Conservation columns. | G5: If using another calculator to provide results, please provide your methodology and source in this section and enter in your values below.
A6: Calculation Description: | C6: MTCO2e = Electricity conserved * (national or state value of the eGRID non-baseload output emission rate [MTCO2e/kWh]) National rate: 0.000653 MTCO2e/kWh State rates differs by state All eGRID rates cover emissions from three gases: CO2 + CH4 + N2O. See Notes below for more details on eGRID rates. | E6: MTCO2e = Number of bulbs * (56 kwh per year/ bulb) * (national or state value of the eGRID non-baseload output emission rate, expressed in MTCO2e/kWh) The rest of the description is the same as for Electricity Conservation.
B7: State or U.S. (Select) | C7: Electricity Conserved (kwh) | D7: GHG Reduction (MTCO2e) | E7: Number of LED bulbs replacing conventional bulbs | F7: GHG Reduction (MTCO2e) | G7: Input | H7: GHG Reduction (MTCO2e)
A8: Example | C8: A North Carolina facility of ABC, Inc. reduced its electricity use by 10,000 kwh of electricity through new controls and repairing systems equipment. | E8: ABC Inc. replaced 1,000 conventional lightbulbs with LED bulbs in 8 NC facilities during one year.
B9: NC | C9: 10000 | D9: =IF($B9<>0, ($C9*VLOOKUP($B9, ElectricityEFs!$B$5:$L$56, 11, FALSE)), 0) -> 6.833719872 | E9: 1000 | F9: =IF($B9<>0, (($E9*56)*VLOOKUP($B9, ElectricityEFs!$B$5:$L$56, 11, FALSE)), 0) -> 38.26883128
A10: Totals - All Rows | C10: =SUM(C12:C22) -> 0 | D10: =SUM(D12:D21) -> 0 | E10: =SUM(E12:E21) -> 0 | F10: =SUM(F12:F21) -> 0 | G10: =SUM(G12:G21) -> 0 | H10: =SUM(H12:H21) -> 0
A12: =Aggregate_MTCO2e!A9 -> Row 1 | B12: (select) | D12: =IFERROR(IF($B12<>0,($C12*VLOOKUP($B12, ElectricityEFs!$B$5:$L$56, 11, FALSE)),0),0) -> 0 | F12: =IFERROR(IF($B12<>0, (($E12*56)*VLOOKUP($B12, ElectricityEFs!$B$5:$L$56, 11, FALSE)), 0),0) -> 0
A13: =Aggregate_MTCO2e!A10 -> Row 2 | B13: (select) | D13: =IFERROR(IF($B13<>0,($C13*VLOOKUP($B13, ElectricityEFs!$B$5:$L$56, 11, FALSE)),0),0) -> 0 | F13: =IFERROR(IF($B13<>0, (($E13*56)*VLOOKUP($B13, ElectricityEFs!$B$5:$L$56, 11, FALSE)), 0),0) -> 0
A14: =Aggregate_MTCO2e!A11 -> Row 3 | B14: (select) | D14: =IFERROR(IF($B14<>0,($C14*VLOOKUP($B14, ElectricityEFs!$B$5:$L$56, 11, FALSE)),0),0) -> 0 | F14: =IFERROR(IF($B14<>0, (($E14*56)*VLOOKUP($B14, ElectricityEFs!$B$5:$L$56, 11, FALSE)), 0),0) -> 0
A15: =Aggregate_MTCO2e!A12 -> Row 4 | B15: (select) | D15: =IFERROR(IF($B15<>0,($C15*VLOOKUP($B15, ElectricityEFs!$B$5:$L$56, 11, FALSE)),0),0) -> 0 | F15: =IFERROR(IF($B15<>0, (($E15*56)*VLOOKUP($B15, ElectricityEFs!$B$5:$L$56, 11, FALSE)), 0),0) -> 0
A16: =Aggregate_MTCO2e!A13 -> Row 5 | B16: (select) | D16: =IFERROR(IF($B16<>0,($C16*VLOOKUP($B16, ElectricityEFs!$B$5:$L$56, 11, FALSE)),0),0) -> 0 | F16: =IFERROR(IF($B16<>0, (($E16*56)*VLOOKUP($B16, ElectricityEFs!$B$5:$L$56, 11, FALSE)), 0),0) -> 0
A17: =Aggregate_MTCO2e!A14 -> Row 6 | B17: (select) | D17: =IFERROR(IF($B17<>0,($C17*VLOOKUP($B17, ElectricityEFs!$B$5:$L$56, 11, FALSE)),0),0) -> 0 | F17: =IFERROR(IF($B17<>0, (($E17*56)*VLOOKUP($B17, ElectricityEFs!$B$5:$L$56, 11, FALSE)), 0),0) -> 0
A18: =Aggregate_MTCO2e!A15 -> Row 7 | B18: (select) | D18: =IFERROR(IF($B18<>0,($C18*VLOOKUP($B18, ElectricityEFs!$B$5:$L$56, 11, FALSE)),0),0) -> 0 | F18: =IFERROR(IF($B18<>0, (($E18*56)*VLOOKUP($B18, ElectricityEFs!$B$5:$L$56, 11, FALSE)), 0),0) -> 0
A19: =Aggregate_MTCO2e!A16 -> Row 8 | B19: (select) | D19: =IFERROR(IF($B19<>0,($C19*VLOOKUP($B19, ElectricityEFs!$B$5:$L$56, 11, FALSE)),0),0) -> 0 | F19: =IFERROR(IF($B19<>0, (($E19*56)*VLOOKUP($B19, ElectricityEFs!$B$5:$L$56, 11, FALSE)), 0),0) -> 0
A20: =Aggregate_MTCO2e!A17 -> Row 9 | B20: (select) | D20: =IFERROR(IF($B20<>0,($C20*VLOOKUP($B20, ElectricityEFs!$B$5:$L$56, 11, FALSE)),0),0) -> 0 | F20: =IFERROR(IF($B20<>0, (($E20*56)*VLOOKUP($B20, ElectricityEFs!$B$5:$L$56, 11, FALSE)), 0),0) -> 0
A21: =Aggregate_MTCO2e!A18 -> Row 10 | B21: (select) | D21: =IFERROR(IF($B21<>0,($C21*VLOOKUP($B21, ElectricityEFs!$B$5:$L$56, 11, FALSE)),0),0) -> 0 | F21: =IFERROR(IF($B21<>0, (($E21*56)*VLOOKUP($B21, ElectricityEFs!$B$5:$L$56, 11, FALSE)), 0),0) -> 0
A22: =Aggregate_MTCO2e!A19 -> Row 11 | B22: (select) | D22: =IFERROR(IF($B22<>0,($C22*VLOOKUP($B22, ElectricityEFs!$B$5:$L$56, 11, FALSE)),0),0) -> 0 | F22: =IFERROR(IF($B22<>0, (($E22*56)*VLOOKUP($B22, ElectricityEFs!$B$5:$L$56, 11, FALSE)), 0),0) -> 0
A24: Color Key
A25: User enters value
A26: User selects option from drop-down menu
A27: Do not change- calculation
A29: Notes and Sources
A31: Electricity Conservation | C31: NOTES | F31: SOURCE (refer to Reference & Justification tab)
C32: eGRID uses a non-baseload output emission rate of GHG gases (CO2, CH4, and N2O) from combustion generators to simulate the mix of generation sources that are displaced due to changes in energy demand and that account for seasonal and daily variations in energy use. The non-baseload rate is weighted towards generators that operate during peak demand because energy efficiency and green energy affect peak demand. Baseload generators (nuclear, hydro, geothermal, solar, and wind) are left out because they operate at full capacity even during low (baseload) demand. The non-baseload output emissions rate does not account for the 7-9% loss of electricity that occurs during transmission. | F32: (a) Source 1: U.S. EPA, eGRID2018v2
C33: See tab "ElectricityEFs" for national or state non-baseload emissions factors from eGRID
A35: LED Bulbs | C35: NOTES | F35: SOURCE (refer to Reference & Justification tab)
C36: Assumes conventional 60w incandescent bulb is used 3 hours per day. | F36: (a) Source 1: U.S. EPA, eGRID2018v2 (b) Source 2: Energy Star Program, 'Savings Calculator,' 2019.

Sheet Fuel Use
B1: Reducing Fuel Use and Substituting Greener Fuels
B2: This tab computes GHG reductions associated with actions to reduce fuel use or substitute greener fuels. For fuel substitution, enter a negative value for the substitute fuel amount and a positive value for the discontinued fuel amount. For GHG reductions associated with reduced travel, choose between reduced miles traveled or reduced fuel use (don't use both).
A4: PLACE CURSOR OVER CELL FOR MORE INFORMATION → | B4: Diesel (#2 Distillate) and other Distillate Oils (#1, #4) | D4: Biodiesel | G4: Gasoline | I4: Vehicle Miles | K4: Electric Vehicles | N4: Air Miles | Q4: Jet Fuel | S4: Natural Gas or Compressed Natural Gas (CNG) | W4: Landfill Gas | AA4: Liquefied Petroleum Gas (LPG) or Propane | AC4: Ethanol | AF4: Bituminous Coal | AH4: Lignite Coal | AJ4: Sub-Bituminous Coal | AL4: Anthracite Coal
A5: How to use this tab: | B5: Enter number of gallons of distillate fuel oil or diesel conserved. An emission rate is then applied to calculate the "GHG Reduction" in MTCO2e. | D5: Select biodiesel blend from drop-down: B5 (5% biodiesel), B20 (20% biodiesel), B100 (100% biodiesel) or Blend Unknown (uses conservative B5). Enter gallons of biodiesel blend. An emission rate is then applied to calculate the "GHG Reduction" in MTCO2e. | G5: Enter number of gallons of gasoline reduced. An emission rate is then applied to calculate the "GHG Reduction" in MTCO2e. If gasoline reductions are unknown, click the button below to enter vehicle miles traveled instead. | I5: Enter the number of vehicle miles reduced. An emission rate is then applied to calculate the "GHG Reduction" in MTCO2e. | K5: Enter total number of miles driven by the electric vehicles and the average fuel efficiency of the gasoline vehicles replaced. Emission rates are applied considering reduced gasoline consumption and increased electricity consumption. | N5: Enter flight miles reduced and flight type. An emission rate is then applied to calculate the "GHG Reduction" in MTCO2e. For flights on private aircraft, click the button below to enter jet fuel reductions. | Q5: Enter number of gallons of jet fuel conserved. An emission rate is then applied to calculate the "GHG Reduction" in MTCO2e. | S5: Enter the volume of natural gas or CNG reduced. Select from drop-down menu to indicate units. Next column converts the units into BTUs, and an emission rate is then applied to calculate the "GHG Reduction" in MTCO2e. | W5: Enter the volume of landfill gas reduced. Select from drop-down menu to indicate units. An emission rate is then applied to calculate the "GHG Reduction" in MTCO2e. | AA5: Enter number of gallons of LPG reduced. An emission rate is then applied to calculate the "GHG Reduction" in MTCO2e. | AC5: Select ethanol blend from drop-down: E10 (10% ethanol, 90% gasoline), E85 (85% ethanol, 15% gasoline), or E100 (100% ethanol). If blend unknown, select "Blend Unknown" (selects E10). Enter gallons of ethanol blend. An emission rate is then applied to calculate the "GHG Reduction" in MTCO2e. | AF5: Enter number of tons of bituminous coal reduced. An emission rate is then applied to calculate the "GHG Reduction" in MTCO2e. | AH5: Enter number of tons of lignite coal conserved. An emission rate is then applied to calculate the "GHG Reduction" in MTCO2e. | AJ5: Enter number of tons of sub-bituminous coal conserved. An emission rate is then applied to calculate the "GHG Reduction" in MTCO2e. | AL5: Enter number of tons of anthracite coal reduced. An emission rate is then applied to calculate the "GHG Reduction" in MTCO2e.
A6: Calculation Description: See notes below for emission factor (EF) derivation | B6: MTCO2e = Diesel (gal) * (EF in kg CO2e/gal) * (1 MTCO2e/1,000 kg CO2e) | D6: MTCO2e (B5) = Volume (gal.) * [0.05 *(EF in kg CO2e/gal biodiesel) +0.95 *(EF in kg CO2e/gal. diesel)] * (1 MTCO2e/1,000 kg CO2e) MTCO2e (B20) = Volume (gal.) * [0.20*(EF in kg CO2e/gal biodiesel) +0.80*(EF in kg CO2e/gal. diesel)] * (1 MTCO2e/1,000 kg CO2e) MTCO2e (B100 )= Volume (gal.) * (EF in kg CO2e/gal. biodiesel) * (1 MTCO2e/1,000 kg CO2e) | G6: MTCO2e = Gasoline (gal.) * (Emission Factor in kg CO2e/gal) * (1 MTCO2e/1,000 kg CO2e) | I6: MTCO2e = Distance (miles) * (EF in kg CO2e/mi) * (1 MTCO2e/1,000 kg CO2e) | K6: MTCO2e = Distance driven (miles) * Fuel efficiency (MPG) * (EF in kg CO2e/gal) + distance driven (miles) * average EV electricity usage (kWh/mi) * national non-baseload output emission rate (MTCO2e/kWh) | N6: MTCO2e = Distance (air miles traveled) * (EF in kg CO2e/mi) * (1 MTCO2e/1,000 kg CO2e) | Q6: MTCO2e = Jet fuel (gal.) * (EF in kg CO2e/gal) * (1 MTCO2e/1,000 kg CO2e) | S6: MTCO2e = Landfill gas (BTU) * (Emission Factor in kg CO2e/ BTU) * (1 MTCO2e/1,000 kg CO2e) | W6: MTCO2e = Natural gas (BTU) * (EF in kg CO2e/ BTU) * (1 MTCO2e/1,000 kg CO2e) | AA6: MTCO2e = LPG (gal) * (EF in kg CO2e/gal) * (1 MTCO2e/1,000 kg CO2 | AC6: MTCO2e (E10) = Volume (gal.) * [0.10*(EF in kg CO2e/gal. ethanol) + 0.90*(EF in kg CO2e/gal. gasoline)] * (1 MTCO2e/1,000 kg CO2e) MTCO2e (E85) = Volume (gal.) * [0.85*(EF in kg CO2e/gal. ethanol) + 0.15*(EF in kg CO2e/gal. gasoline)] * (1 MTCO2e/1,000 kg CO2e) MTCO2e (E100) = Volume (gal.) *(EF in kg CO2e gal. ethanol) * (1 MTCO2e/1,000 kg CO2e) | AF6: MTCO2e = Quantity of coal (metric tons) * (EF in kg CO2e /metric ton) * (1 MTCO2e/1,000 kg CO2e) | AH6: MTCO2e = Quantity of coal (metric tons) * (EF in kg CO2e/metric ton) * (1 MTCO2e/1,000 kg CO2e) | AJ6: MTCO2e = Quantity of coal (metric tons) * (EF in kg CO2e/metric ton) * (1 MTCO2e/1,000 kg CO2e) | AL6: MTCO2e = Quantity of coal (metric tons) * (EF in kg CO2e/metric ton) * (1 MTCO2e/1,000 kg CO2e)
B7: Distillate Fuel or Diesel Reduced (gal) | C7: GHG Reduction (MTCO2e) | D7: Blend (Select) | E7: Biodiesel Reduced (gal) | F7: GHG Reduction (MTCO2e) | G7: Gasoline Reduced (gal) | H7: GHG Reduction (MTCO2e) | I7: Vehicle Miles Reduced (miles) | J7: GHG Reduction (MTCO2e) | K7: Miles Driven | L7: Fuel Efficiency of replaced vehicle (average MPG) | M7: GHG Reduction (MTCO2e) | N7: Air Miles Reduced (miles) | O7: Flight Type | P7: GHG Reduction (MTCO2e) | Q7: Jet Fuel Reduced (gal) | R7: GHG Reduction (MTCO2e) | S7: Natural Gas or CNG Reduced (Input value) | T7: Units (Select) | U7: Natural Gas or CNG Reduced (BTU) | V7: GHG Reduction (MTCO2e) | W7: Landfill Gas Reduced (input value) | X7: Units (Select) | Y7: Landfill Gas Reduced (BTU) | Z7: GHG Reduction (MTCO2e) | AA7: LPG Reduced (gal) | AB7: GHG Reduction (MTCO2e) | AC7: Blend (Select) | AD7: Ethanol Reduced (gal) | AE7: GHG Reduction (MTCO2e) | AF7: Bituminous Coal Reduced (metric tons) | AG7: GHG Reduction (MTCO2e) | AH7: Lignite Coal Reduced (metric tons) | AI7: GHG Reduction (MTCO2e) | AJ7: Sub-Bituminous Coal Reduced (metric tons) | AK7: GHG Reduction (MTCO2e) | AL7: Anthracite Coal Reduced (metric tons) | AM7: GHG Reduction (MTCO2e)
A8: Example | B8: EZ Energy Co. replaced 20,000 gallons of distillate fuel oil in a turbine with 20,000 gallons of biodiesel. (STEP 1 of 2. See "Biodiesel" for Step 2.) | D8: EZ Energy Co. replaced 20,000 gallons of distillate fuel oil in a combustion turbine generator with 20,000 gallons of biodiesel. Enter negative 20,000 in the Biodiesel Reduced (gal) column. (STEP 2 of 2. For STEP 1, see fuel type "Diesel and other Distillate Oils"). | K8: New company policy replaces 5 company cars, each driven 20,000 miles per year and averaging 25 miles per gallon, with electric cars. | N8: New company policy on videoconferencing saved International Associates 100,000 air miles traveled on short flights over 3 years. | W8: ABC, Inc. replaced solvent bonding of plastic parts with ultrasonic bonding, thus reducing incineration of spent solvents and saving 10,000 therms of natural gas annually.
B9: 20000 | C9: =IF(B9>0,B9*$B$100/'Glossary & Conversions'!$D$29,0) -> 204.80028 | D9: B100 | E9: -20000 | F9: =IF((D9="B5"),E9*(0.95*$H$100+0.05*$B$157)/'Glossary & Conversions'!$D$29,IF(D9="B20",E9*(0.8*$H$100+0.2*$B$157)/'Glossary & Conversions'!$D$29,IF(D9="B100",E9*$B$157/'Glossary & Conversions'!$D$29,0))) -> -189.183872 | K9: 100000 | L9: 25 | M9: =(K9/L9)*$B$204/'Glossary & Conversions'!$D$29-K9*$B$233*ElectricityEFs!$L$5 -> 14.34496397 | N9: 100000 | O9: Short (<300 mi) | P9: 21.70176 | W9: 10000 | X9: therms | Y9: =IF(X9>0,VLOOKUP(X9,'Glossary & Conversions'!$B$36:$D$40,3,FALSE)*W9,"") -> 1000000000 | Z9: =IF(W9<>"",Y9*$B$128/'Glossary & Conversions'!$D$29,0) -> 24.73299294
A10: Totals - All Rows | B10: =SUM(B12:B22) -> 0 | C10: =SUM(C12:C22) -> 0 | E10: =SUM(E12:E22) -> 0 | F10: 0 | G10: 0 | H10: 0 | I10: 0 | J10: 0 | K10: 0 | M10: =SUM(M12:M22) -> 0 | N10: =SUM(N12:N22) -> 0 | P10: =SUM(P12:P22) -> 0 | Q10: 0 | R10: 0 | U10: =SUM(U12:U22) -> 0 | V10: 0 | Y10: =SUM(Y12:Y22) -> 0 | Z10: =SUM(Z12:Z22) -> 0 | AA10: 0 | AB10: 0 | AD10: =SUM(AD12:AD22) -> 0 | AE10: 0 | AF10: 0 | AG10: 0 | AH10: 0 | AI10: 0 | AJ10: 0 | AK10: 0 | AL10: =SUM(AL12:AL22) -> 0 | AM10: 0
A12: =Aggregate_MTCO2e!A9 -> Row 1 | C12: =IF(B12<>"",B12*$B$100/'Glossary & Conversions'!$D$29,0) -> 0 | F12: =IF(OR(D12="B5",D12="Blend Unknown"),E12*(0.95*$B$100+0.05*$B$157)/'Glossary & Conversions'!$D$29,IF(D12="B20",E12*(0.8*$B$100+0.2*$B$157)/'Glossary & Conversions'!$D$29,IF(D12="B100",E12*$B$157/'Glossary & Conversions'!$D$29,0))) -> 0 | H12: =IF(G12<>"",G12*$B$204/'Glossary & Conversions'!$D$29,0) -> 0 | J12: =IF(I12<>"",I12*$B$212/'Glossary & Conversions'!$D$29,0) -> 0 | M12: =IFERROR(K12/L12*$B$204/'Glossary & Conversions'!$D$29-K12*B$233*ElectricityEFs!$L$5,0) -> 0 | P12: =(N12/'Glossary & Conversions'!$D$29)*IF(O12="Short (<300 mi)",$B$180,IF(O12="Medium (300 to 2300mi)",$B$186,IF(O12="Long (>2300 mi)",$B$192,0))) -> 0 | R12: =IF(Q12<>"",Q12*$B$171/'Glossary & Conversions'!$D$29,0) -> 0 | U12: =IF(T12>0,VLOOKUP(T12,'Glossary & Conversions'!$B$36:$D$40,3,FALSE)*S12,"") ->  | V12: =IF(S12<>"",U12*$B$143/'Glossary & Conversions'!$D$29,0) -> 0 | Y12: =IF(X12>0,VLOOKUP(X12,'Glossary & Conversions'!$B$36:$D$40,3,FALSE)*W12,"") ->  | Z12: =IF(W12<>"",Y12*$B$128/'Glossary & Conversions'!$D$29,0) -> 0 | AB12: =IF(AA12<>"",AA12*$B$114/'Glossary & Conversions'!$D$29,0) -> 0 | AE12: =IF(OR(AC12="Blend Unknown",AC12="E10"),AD12*$B$229/'Glossary & Conversions'!$D$29,IF(AC12="E85",AD12*$B$228/'Glossary & Conversions'!$D$29,IF(AC12="E100",AD12*$B$227/'Glossary & Conversions'!$D$29,0))) -> 0 | AG12: =IF(AF12<>"",AF12*$B$59/'Glossary & Conversions'!$D$29,0) -> 0 | AI12: =IF(AH12<>"",AH12*$B$87/'Glossary & Conversions'!$D$29,0) -> 0 | AK12: =IF(AJ12<>"",AJ12*$B$73/'Glossary & Conversions'!$D$29,0) -> 0 | AM12: =IF(AL12<>"",AL12*$B$45/'Glossary & Conversions'!$D$29,0) -> 0
A13: =Aggregate_MTCO2e!A10 -> Row 2 | C13: =IF(B13<>"",B13*$B$100/'Glossary & Conversions'!$D$29,0) -> 0 | F13: =IF(OR(D13="B5",D13="Blend Unknown"),E13*(0.95*$B$100+0.05*$B$157)/'Glossary & Conversions'!$D$29,IF(D13="B20",E13*(0.8*$B$100+0.2*$B$157)/'Glossary & Conversions'!$D$29,IF(D13="B100",E13*$B$157/'Glossary & Conversions'!$D$29,0))) -> 0 | H13: =IF(G13<>"",G13*$B$204/'Glossary & Conversions'!$D$29,0) -> 0 | J13: =IF(I13<>"",I13*$B$212/'Glossary & Conversions'!$D$29,0) -> 0 | M13: =IFERROR(K13/L13*$B$204/'Glossary & Conversions'!$D$29-K13*B$233*ElectricityEFs!$L$5,0) -> 0 | P13: =(N13/'Glossary & Conversions'!$D$29)*IF(O13="Short (<300 mi)",$B$63,IF(O13="Medium (300 to 2300mi)",$B$69,IF(O13="Long (>2300 mi)",$B$75,0))) -> 0 | R13: =IF(Q13<>"",Q13*$B$171/'Glossary & Conversions'!$D$29,0) -> 0 | U13: =IF(T13>0,VLOOKUP(T13,'Glossary & Conversions'!$B$36:$D$40,3,FALSE)*S13,"") ->  | V13: =IF(S13<>"",U13*$B$143/'Glossary & Conversions'!$D$29,0) -> 0 | Y13: =IF(X13>0,VLOOKUP(X13,'Glossary & Conversions'!$B$36:$D$40,3,FALSE)*W13,"") ->  | Z13: =IF(W13<>"",Y13*$B$128/'Glossary & Conversions'!$D$29,0) -> 0 | AB13: =IF(AA13<>"",AA13*$B$114/'Glossary & Conversions'!$D$29,0) -> 0 | AE13: =IF(OR(AC13="Blend Unknown",AC13="E10"),AD13*$B$229/'Glossary & Conversions'!$D$29,IF(AC13="E85",AD13*$B$228/'Glossary & Conversions'!$D$29,IF(AC13="E100",AD13*$B$227/'Glossary & Conversions'!$D$29,0))) -> 0 | AG13: =IF(AF13<>"",AF13*$B$59/'Glossary & Conversions'!$D$29,0) -> 0 | AI13: =IF(AH13<>"",AH13*$B$87/'Glossary & Conversions'!$D$29,0) -> 0 | AK13: =IF(AJ13<>"",AJ13*$B$73/'Glossary & Conversions'!$D$29,0) -> 0 | AM13: =IF(AL13<>"",AL13*$B$45/'Glossary & Conversions'!$D$29,0) -> 0
A14: =Aggregate_MTCO2e!A11 -> Row 3 | C14: =IF(B14<>"",B14*$B$100/'Glossary & Conversions'!$D$29,0) -> 0 | F14: =IF(OR(D14="B5",D14="Blend Unknown"),E14*(0.95*$B$100+0.05*$B$157)/'Glossary & Conversions'!$D$29,IF(D14="B20",E14*(0.8*$B$100+0.2*$B$157)/'Glossary & Conversions'!$D$29,IF(D14="B100",E14*$B$157/'Glossary & Conversions'!$D$29,0))) -> 0 | H14: =IF(G14<>"",G14*$B$204/'Glossary & Conversions'!$D$29,0) -> 0 | J14: =IF(I14<>"",I14*$B$212/'Glossary & Conversions'!$D$29,0) -> 0 | M14: =IFERROR(K14/L14*$B$204/'Glossary & Conversions'!$D$29-K14*B$233*ElectricityEFs!$L$5,0) -> 0 | P14: =(N14/'Glossary & Conversions'!$D$29)*IF(O14="Short (<300 mi)",$B$63,IF(O14="Medium (300 to 2300mi)",$B$69,IF(O14="Long (>2300 mi)",$B$75,0))) -> 0 | R14: =IF(Q14<>"",Q14*$B$171/'Glossary & Conversions'!$D$29,0) -> 0 | U14: =IF(T14>0,VLOOKUP(T14,'Glossary & Conversions'!$B$36:$D$40,3,FALSE)*S14,"") ->  | V14: =IF(S14<>"",U14*$B$143/'Glossary & Conversions'!$D$29,0) -> 0 | Y14: =IF(X14>0,VLOOKUP(X14,'Glossary & Conversions'!$B$36:$D$40,3,FALSE)*W14,"") ->  | Z14: =IF(W14<>"",Y14*$B$128/'Glossary & Conversions'!$D$29,0) -> 0 | AB14: =IF(AA14<>"",AA14*$B$114/'Glossary & Conversions'!$D$29,0) -> 0 | AE14: =IF(OR(AC14="Blend Unknown",AC14="E10"),AD14*$B$229/'Glossary & Conversions'!$D$29,IF(AC14="E85",AD14*$B$228/'Glossary & Conversions'!$D$29,IF(AC14="E100",AD14*$B$227/'Glossary & Conversions'!$D$29,0))) -> 0 | AG14: =IF(AF14<>"",AF14*$B$59/'Glossary & Conversions'!$D$29,0) -> 0 | AI14: =IF(AH14<>"",AH14*$B$87/'Glossary & Conversions'!$D$29,0) -> 0 | AK14: =IF(AJ14<>"",AJ14*$B$73/'Glossary & Conversions'!$D$29,0) -> 0 | AM14: =IF(AL14<>"",AL14*$B$45/'Glossary & Conversions'!$D$29,0) -> 0
A15: =Aggregate_MTCO2e!A12 -> Row 4 | C15: =IF(B15<>"",B15*$B$100/'Glossary & Conversions'!$D$29,0) -> 0 | F15: =IF(OR(D15="B5",D15="Blend Unknown"),E15*(0.95*$B$100+0.05*$B$157)/'Glossary & Conversions'!$D$29,IF(D15="B20",E15*(0.8*$B$100+0.2*$B$157)/'Glossary & Conversions'!$D$29,IF(D15="B100",E15*$B$157/'Glossary & Conversions'!$D$29,0))) -> 0 | H15: =IF(G15<>"",G15*$B$204/'Glossary & Conversions'!$D$29,0) -> 0 | J15: =IF(I15<>"",I15*$B$212/'Glossary & Conversions'!$D$29,0) -> 0 | M15: =IFERROR(K15/L15*$B$204/'Glossary & Conversions'!$D$29-K15*B$233*ElectricityEFs!$L$5,0) -> 0 | P15: =(N15/'Glossary & Conversions'!$D$29)*IF(O15="Short (<300 mi)",$B$63,IF(O15="Medium (300 to 2300mi)",$B$69,IF(O15="Long (>2300 mi)",$B$75,0))) -> 0 | R15: =IF(Q15<>"",Q15*$B$171/'Glossary & Conversions'!$D$29,0) -> 0 | U15: =IF(T15>0,VLOOKUP(T15,'Glossary & Conversions'!$B$36:$D$40,3,FALSE)*S15,"") ->  | V15: =IF(S15<>"",U15*$B$143/'Glossary & Conversions'!$D$29,0) -> 0 | Y15: =IF(X15>0,VLOOKUP(X15,'Glossary & Conversions'!$B$36:$D$40,3,FALSE)*W15,"") ->  | Z15: =IF(W15<>"",Y15*$B$128/'Glossary & Conversions'!$D$29,0) -> 0 | AB15: =IF(AA15<>"",AA15*$B$114/'Glossary & Conversions'!$D$29,0) -> 0 | AE15: =IF(OR(AC15="Blend Unknown",AC15="E10"),AD15*$B$229/'Glossary & Conversions'!$D$29,IF(AC15="E85",AD15*$B$228/'Glossary & Conversions'!$D$29,IF(AC15="E100",AD15*$B$227/'Glossary & Conversions'!$D$29,0))) -> 0 | AG15: =IF(AF15<>"",AF15*$B$59/'Glossary & Conversions'!$D$29,0) -> 0 | AI15: =IF(AH15<>"",AH15*$B$87/'Glossary & Conversions'!$D$29,0) -> 0 | AK15: =IF(AJ15<>"",AJ15*$B$73/'Glossary & Conversions'!$D$29,0) -> 0 | AM15: =IF(AL15<>"",AL15*$B$45/'Glossary & Conversions'!$D$29,0) -> 0
A16: =Aggregate_MTCO2e!A13 -> Row 5 | C16: =IF(B16<>"",B16*$B$100/'Glossary & Conversions'!$D$29,0) -> 0 | F16: =IF(OR(D16="B5",D16="Blend Unknown"),E16*(0.95*$B$100+0.05*$B$157)/'Glossary & Conversions'!$D$29,IF(D16="B20",E16*(0.8*$B$100+0.2*$B$157)/'Glossary & Conversions'!$D$29,IF(D16="B100",E16*$B$157/'Glossary & Conversions'!$D$29,0))) -> 0 | H16: =IF(G16<>"",G16*$B$204/'Glossary & Conversions'!$D$29,0) -> 0 | J16: =IF(I16<>"",I16*$B$212/'Glossary & Conversions'!$D$29,0) -> 0 | M16: =IFERROR(K16/L16*$B$204/'Glossary & Conversions'!$D$29-K16*B$233*ElectricityEFs!$L$5,0) -> 0 | P16: =(N16/'Glossary & Conversions'!$D$29)*IF(O16="Short (<300 mi)",$B$63,IF(O16="Medium (300 to 2300mi)",$B$69,IF(O16="Long (>2300 mi)",$B$75,0))) -> 0 | R16: =IF(Q16<>"",Q16*$B$171/'Glossary & Conversions'!$D$29,0) -> 0 | U16: =IF(T16>0,VLOOKUP(T16,'Glossary & Conversions'!$B$36:$D$40,3,FALSE)*S16,"") ->  | V16: =IF(S16<>"",U16*$B$143/'Glossary & Conversions'!$D$29,0) -> 0 | Y16: =IF(X16>0,VLOOKUP(X16,'Glossary & Conversions'!$B$36:$D$40,3,FALSE)*W16,"") ->  | Z16: =IF(W16<>"",Y16*$B$128/'Glossary & Conversions'!$D$29,0) -> 0 | AB16: =IF(AA16<>"",AA16*$B$114/'Glossary & Conversions'!$D$29,0) -> 0 | AE16: =IF(OR(AC16="Blend Unknown",AC16="E10"),AD16*$B$229/'Glossary & Conversions'!$D$29,IF(AC16="E85",AD16*$B$228/'Glossary & Conversions'!$D$29,IF(AC16="E100",AD16*$B$227/'Glossary & Conversions'!$D$29,0))) -> 0 | AG16: =IF(AF16<>"",AF16*$B$59/'Glossary & Conversions'!$D$29,0) -> 0 | AI16: =IF(AH16<>"",AH16*$B$87/'Glossary & Conversions'!$D$29,0) -> 0 | AK16: =IF(AJ16<>"",AJ16*$B$73/'Glossary & Conversions'!$D$29,0) -> 0 | AM16: =IF(AL16<>"",AL16*$B$45/'Glossary & Conversions'!$D$29,0) -> 0
A17: =Aggregate_MTCO2e!A14 -> Row 6 | C17: =IF(B17<>"",B17*$B$100/'Glossary & Conversions'!$D$29,0) -> 0 | F17: =IF(OR(D17="B5",D17="Blend Unknown"),E17*(0.95*$B$100+0.05*$B$157)/'Glossary & Conversions'!$D$29,IF(D17="B20",E17*(0.8*$B$100+0.2*$B$157)/'Glossary & Conversions'!$D$29,IF(D17="B100",E17*$B$157/'Glossary & Conversions'!$D$29,0))) -> 0 | H17: =IF(G17<>"",G17*$B$204/'Glossary & Conversions'!$D$29,0) -> 0 | J17: =IF(I17<>"",I17*$B$212/'Glossary & Conversions'!$D$29,0) -> 0 | M17: =IFERROR(K17/L17*$B$204/'Glossary & Conversions'!$D$29-K17*B$233*ElectricityEFs!$L$5,0) -> 0 | P17: =(N17/'Glossary & Conversions'!$D$29)*IF(O17="Short (<300 mi)",$B$63,IF(O17="Medium (300 to 2300mi)",$B$69,IF(O17="Long (>2300 mi)",$B$75,0))) -> 0 | R17: =IF(Q17<>"",Q17*$B$171/'Glossary & Conversions'!$D$29,0) -> 0 | U17: =IF(T17>0,VLOOKUP(T17,'Glossary & Conversions'!$B$36:$D$40,3,FALSE)*S17,"") ->  | V17: =IF(S17<>"",U17*$B$143/'Glossary & Conversions'!$D$29,0) -> 0 | Y17: =IF(X17>0,VLOOKUP(X17,'Glossary & Conversions'!$B$36:$D$40,3,FALSE)*W17,"") ->  | Z17: =IF(W17<>"",Y17*$B$128/'Glossary & Conversions'!$D$29,0) -> 0 | AB17: =IF(AA17<>"",AA17*$B$114/'Glossary & Conversions'!$D$29,0) -> 0 | AE17: =IF(OR(AC17="Blend Unknown",AC17="E10"),AD17*$B$229/'Glossary & Conversions'!$D$29,IF(AC17="E85",AD17*$B$228/'Glossary & Conversions'!$D$29,IF(AC17="E100",AD17*$B$227/'Glossary & Conversions'!$D$29,0))) -> 0 | AG17: =IF(AF17<>"",AF17*$B$59/'Glossary & Conversions'!$D$29,0) -> 0 | AI17: =IF(AH17<>"",AH17*$B$87/'Glossary & Conversions'!$D$29,0) -> 0 | AK17: =IF(AJ17<>"",AJ17*$B$73/'Glossary & Conversions'!$D$29,0) -> 0 | AM17: =IF(AL17<>"",AL17*$B$45/'Glossary & Conversions'!$D$29,0) -> 0
A18: =Aggregate_MTCO2e!A15 -> Row 7 | C18: =IF(B18<>"",B18*$B$100/'Glossary & Conversions'!$D$29,0) -> 0 | F18: =IF(OR(D18="B5",D18="Blend Unknown"),E18*(0.95*$B$100+0.05*$B$157)/'Glossary & Conversions'!$D$29,IF(D18="B20",E18*(0.8*$B$100+0.2*$B$157)/'Glossary & Conversions'!$D$29,IF(D18="B100",E18*$B$157/'Glossary & Conversions'!$D$29,0))) -> 0 | H18: =IF(G18<>"",G18*$B$204/'Glossary & Conversions'!$D$29,0) -> 0 | J18: =IF(I18<>"",I18*$B$212/'Glossary & Conversions'!$D$29,0) -> 0 | M18: =IFERROR(K18/L18*$B$204/'Glossary & Conversions'!$D$29-K18*B$233*ElectricityEFs!$L$5,0) -> 0 | P18: =(N18/'Glossary & Conversions'!$D$29)*IF(O18="Short (<300 mi)",$B$63,IF(O18="Medium (300 to 2300mi)",$B$69,IF(O18="Long (>2300 mi)",$B$75,0))) -> 0 | R18: =IF(Q18<>"",Q18*$B$171/'Glossary & Conversions'!$D$29,0) -> 0 | U18: =IF(T18>0,VLOOKUP(T18,'Glossary & Conversions'!$B$36:$D$40,3,FALSE)*S18,"") ->  | V18: =IF(S18<>"",U18*$B$143/'Glossary & Conversions'!$D$29,0) -> 0 | Y18: =IF(X18>0,VLOOKUP(X18,'Glossary & Conversions'!$B$36:$D$40,3,FALSE)*W18,"") ->  | Z18: =IF(W18<>"",Y18*$B$128/'Glossary & Conversions'!$D$29,0) -> 0 | AB18: =IF(AA18<>"",AA18*$B$114/'Glossary & Conversions'!$D$29,0) -> 0 | AE18: =IF(OR(AC18="Blend Unknown",AC18="E10"),AD18*$B$229/'Glossary & Conversions'!$D$29,IF(AC18="E85",AD18*$B$228/'Glossary & Conversions'!$D$29,IF(AC18="E100",AD18*$B$227/'Glossary & Conversions'!$D$29,0))) -> 0 | AG18: =IF(AF18<>"",AF18*$B$59/'Glossary & Conversions'!$D$29,0) -> 0 | AI18: =IF(AH18<>"",AH18*$B$87/'Glossary & Conversions'!$D$29,0) -> 0 | AK18: =IF(AJ18<>"",AJ18*$B$73/'Glossary & Conversions'!$D$29,0) -> 0 | AM18: =IF(AL18<>"",AL18*$B$45/'Glossary & Conversions'!$D$29,0) -> 0
A19: =Aggregate_MTCO2e!A16 -> Row 8 | C19: =IF(B19<>"",B19*$B$100/'Glossary & Conversions'!$D$29,0) -> 0 | F19: =IF(OR(D19="B5",D19="Blend Unknown"),E19*(0.95*$B$100+0.05*$B$157)/'Glossary & Conversions'!$D$29,IF(D19="B20",E19*(0.8*$B$100+0.2*$B$157)/'Glossary & Conversions'!$D$29,IF(D19="B100",E19*$B$157/'Glossary & Conversions'!$D$29,0))) -> 0 | H19: =IF(G19<>"",G19*$B$204/'Glossary & Conversions'!$D$29,0) -> 0 | J19: =IF(I19<>"",I19*$B$212/'Glossary & Conversions'!$D$29,0) -> 0 | M19: =IFERROR(K19/L19*$B$204/'Glossary & Conversions'!$D$29-K19*B$233*ElectricityEFs!$L$5,0) -> 0 | P19: =(N19/'Glossary & Conversions'!$D$29)*IF(O19="Short (<300 mi)",$B$63,IF(O19="Medium (300 to 2300mi)",$B$69,IF(O19="Long (>2300 mi)",$B$75,0))) -> 0 | R19: =IF(Q19<>"",Q19*$B$171/'Glossary & Conversions'!$D$29,0) -> 0 | U19: =IF(T19>0,VLOOKUP(T19,'Glossary & Conversions'!$B$36:$D$40,3,FALSE)*S19,"") ->  | V19: =IF(S19<>"",U19*$B$143/'Glossary & Conversions'!$D$29,0) -> 0 | Y19: =IF(X19>0,VLOOKUP(X19,'Glossary & Conversions'!$B$36:$D$40,3,FALSE)*W19,"") ->  | Z19: =IF(W19<>"",Y19*$B$128/'Glossary & Conversions'!$D$29,0) -> 0 | AB19: =IF(AA19<>"",AA19*$B$114/'Glossary & Conversions'!$D$29,0) -> 0 | AE19: =IF(OR(AC19="Blend Unknown",AC19="E10"),AD19*$B$229/'Glossary & Conversions'!$D$29,IF(AC19="E85",AD19*$B$228/'Glossary & Conversions'!$D$29,IF(AC19="E100",AD19*$B$227/'Glossary & Conversions'!$D$29,0))) -> 0 | AG19: =IF(AF19<>"",AF19*$B$59/'Glossary & Conversions'!$D$29,0) -> 0 | AI19: =IF(AH19<>"",AH19*$B$87/'Glossary & Conversions'!$D$29,0) -> 0 | AK19: =IF(AJ19<>"",AJ19*$B$73/'Glossary & Conversions'!$D$29,0) -> 0 | AM19: =IF(AL19<>"",AL19*$B$45/'Glossary & Conversions'!$D$29,0) -> 0
A20: =Aggregate_MTCO2e!A17 -> Row 9 | C20: =IF(B20<>"",B20*$B$100/'Glossary & Conversions'!$D$29,0) -> 0 | F20: =IF(OR(D20="B5",D20="Blend Unknown"),E20*(0.95*$B$100+0.05*$B$157)/'Glossary & Conversions'!$D$29,IF(D20="B20",E20*(0.8*$B$100+0.2*$B$157)/'Glossary & Conversions'!$D$29,IF(D20="B100",E20*$B$157/'Glossary & Conversions'!$D$29,0))) -> 0 | H20: =IF(G20<>"",G20*$B$204/'Glossary & Conversions'!$D$29,0) -> 0 | J20: =IF(I20<>"",I20*$B$212/'Glossary & Conversions'!$D$29,0) -> 0 | M20: =IFERROR(K20/L20*$B$204/'Glossary & Conversions'!$D$29-K20*B$233*ElectricityEFs!$L$5,0) -> 0 | P20: =(N20/'Glossary & Conversions'!$D$29)*IF(O20="Short (<300 mi)",$B$63,IF(O20="Medium (300 to 2300mi)",$B$69,IF(O20="Long (>2300 mi)",$B$75,0))) -> 0 | R20: =IF(Q20<>"",Q20*$B$171/'Glossary & Conversions'!$D$29,0) -> 0 | U20: =IF(T20>0,VLOOKUP(T20,'Glossary & Conversions'!$B$36:$D$40,3,FALSE)*S20,"") ->  | V20: =IF(S20<>"",U20*$B$143/'Glossary & Conversions'!$D$29,0) -> 0 | Y20: =IF(X20>0,VLOOKUP(X20,'Glossary & Conversions'!$B$36:$D$40,3,FALSE)*W20,"") ->  | Z20: =IF(W20<>"",Y20*$B$128/'Glossary & Conversions'!$D$29,0) -> 0 | AB20: =IF(AA20<>"",AA20*$B$114/'Glossary & Conversions'!$D$29,0) -> 0 | AE20: =IF(OR(AC20="Blend Unknown",AC20="E10"),AD20*$B$229/'Glossary & Conversions'!$D$29,IF(AC20="E85",AD20*$B$228/'Glossary & Conversions'!$D$29,IF(AC20="E100",AD20*$B$227/'Glossary & Conversions'!$D$29,0))) -> 0 | AG20: =IF(AF20<>"",AF20*$B$59/'Glossary & Conversions'!$D$29,0) -> 0 | AI20: =IF(AH20<>"",AH20*$B$87/'Glossary & Conversions'!$D$29,0) -> 0 | AK20: =IF(AJ20<>"",AJ20*$B$73/'Glossary & Conversions'!$D$29,0) -> 0 | AM20: =IF(AL20<>"",AL20*$B$45/'Glossary & Conversions'!$D$29,0) -> 0
A21: =Aggregate_MTCO2e!A18 -> Row 10 | C21: =IF(B21<>"",B21*$B$100/'Glossary & Conversions'!$D$29,0) -> 0 | F21: =IF(OR(D21="B5",D21="Blend Unknown"),E21*(0.95*$B$100+0.05*$B$157)/'Glossary & Conversions'!$D$29,IF(D21="B20",E21*(0.8*$B$100+0.2*$B$157)/'Glossary & Conversions'!$D$29,IF(D21="B100",E21*$B$157/'Glossary & Conversions'!$D$29,0))) -> 0 | H21: =IF(G21<>"",G21*$B$204/'Glossary & Conversions'!$D$29,0) -> 0 | J21: =IF(I21<>"",I21*$B$212/'Glossary & Conversions'!$D$29,0) -> 0 | M21: =IFERROR(K21/L21*$B$204/'Glossary & Conversions'!$D$29-K21*B$233*ElectricityEFs!$L$5,0) -> 0 | P21: =(N21/'Glossary & Conversions'!$D$29)*IF(O21="Short (<300 mi)",$B$63,IF(O21="Medium (300 to 2300mi)",$B$69,IF(O21="Long (>2300 mi)",$B$75,0))) -> 0 | R21: =IF(Q21<>"",Q21*$B$171/'Glossary & Conversions'!$D$29,0) -> 0 | U21: =IF(T21>0,VLOOKUP(T21,'Glossary & Conversions'!$B$36:$D$40,3,FALSE)*S21,"") ->  | V21: =IF(S21<>"",U21*$B$143/'Glossary & Conversions'!$D$29,0) -> 0 | Y21: =IF(X21>0,VLOOKUP(X21,'Glossary & Conversions'!$B$36:$D$40,3,FALSE)*W21,"") ->  | Z21: =IF(W21<>"",Y21*$B$128/'Glossary & Conversions'!$D$29,0) -> 0 | AB21: =IF(AA21<>"",AA21*$B$114/'Glossary & Conversions'!$D$29,0) -> 0 | AE21: =IF(OR(AC21="Blend Unknown",AC21="E10"),AD21*$B$229/'Glossary & Conversions'!$D$29,IF(AC21="E85",AD21*$B$228/'Glossary & Conversions'!$D$29,IF(AC21="E100",AD21*$B$227/'Glossary & Conversions'!$D$29,0))) -> 0 | AG21: =IF(AF21<>"",AF21*$B$59/'Glossary & Conversions'!$D$29,0) -> 0 | AI21: =IF(AH21<>"",AH21*$B$87/'Glossary & Conversions'!$D$29,0) -> 0 | AK21: =IF(AJ21<>"",AJ21*$B$73/'Glossary & Conversions'!$D$29,0) -> 0 | AM21: =IF(AL21<>"",AL21*$B$45/'Glossary & Conversions'!$D$29,0) -> 0
A22: =Aggregate_MTCO2e!A19 -> Row 11 | C22: =IF(B22<>"",B22*$B$100/'Glossary & Conversions'!$D$29,0) -> 0 | F22: =IF(OR(D22="B5",D22="Blend Unknown"),E22*(0.95*$B$100+0.05*$B$157)/'Glossary & Conversions'!$D$29,IF(D22="B20",E22*(0.8*$B$100+0.2*$B$157)/'Glossary & Conversions'!$D$29,IF(D22="B100",E22*$B$157/'Glossary & Conversions'!$D$29,0))) -> 0 | H22: =IF(G22<>"",G22*$B$204/'Glossary & Conversions'!$D$29,0) -> 0 | J22: =IF(I22<>"",I22*$B$212/'Glossary & Conversions'!$D$29,0) -> 0 | M22: =IFERROR(K22/L22*$B$204/'Glossary & Conversions'!$D$29-K22*B$233*ElectricityEFs!$L$5,0) -> 0 | P22: =(N22/'Glossary & Conversions'!$D$29)*IF(O22="Short (<300 mi)",$B$63,IF(O22="Medium (300 to 2300mi)",$B$69,IF(O22="Long (>2300 mi)",$B$75,0))) -> 0 | R22: =IF(Q22<>"",Q22*$B$171/'Glossary & Conversions'!$D$29,0) -> 0 | U22: =IF(T22>0,VLOOKUP(T22,'Glossary & Conversions'!$B$36:$D$40,3,FALSE)*S22,"") ->  | V22: =IF(S22<>"",U22*$B$143/'Glossary & Conversions'!$D$29,0) -> 0 | Y22: =IF(X22>0,VLOOKUP(X22,'Glossary & Conversions'!$B$36:$D$40,3,FALSE)*W22,"") ->  | Z22: =IF(W22<>"",Y22*$B$128/'Glossary & Conversions'!$D$29,0) -> 0 | AB22: =IF(AA22<>"",AA22*$B$114/'Glossary & Conversions'!$D$29,0) -> 0 | AE22: =IF(OR(AC22="Blend Unknown",AC22="E10"),AD22*$B$229/'Glossary & Conversions'!$D$29,IF(AC22="E85",AD22*$B$228/'Glossary & Conversions'!$D$29,IF(AC22="E100",AD22*$B$227/'Glossary & Conversions'!$D$29,0))) -> 0 | AG22: =IF(AF22<>"",AF22*$B$59/'Glossary & Conversions'!$D$29,0) -> 0 | AI22: =IF(AH22<>"",AH22*$B$87/'Glossary & Conversions'!$D$29,0) -> 0 | AK22: =IF(AJ22<>"",AJ22*$B$73/'Glossary & Conversions'!$D$29,0) -> 0 | AM22: =IF(AL22<>"",AL22*$B$45/'Glossary & Conversions'!$D$29,0) -> 0
A24: Color Key
A25: User enters value | P25: Blend Unknown
A26: User selects option from drop-down menu | C26: Blend Unknown | P26: E10
A27: Do not change- calculation | C27: B5 | P27: E85
C28: B20 | P28: E100
C29: B100
A30: Notes and Sources
A31: The following notes show the calculations used to derive emission factors for this worksheet. In general, CO2 emission rates are combined with emission rates for CH4 and N2O to obtain the CO2e emission rate of a fuel. Some basic conversions between energy units may also be included (e.g., BTU to therms) in the calculations.
A32: FUEL
A33: ANTHRACITE COAL | B33: EMISSIONS FACTOR DERIVATION | F33: SOURCE INFO
B34: Units | D34: Global Warming Potentials | F34: (a) Source 4: 2020 Climate Registry Default Emission Factors. Table 1.1 and 1.10. (b) Source 7: IPCC, Fifth Assessment Report, 2013.
B35: 25.09 | C35: Heat Content HHV (mmBtu/ton)
B36: 103.69 | C36: CO2 Content Coefficient (kg CO2/mmBtu)
B38: 10 | C38: Commercial Sector Emissions Factor (g CH4/mmBtu)
B39: 1.5 | C39: Commercial Sector Emissions Factor (g N2O/mmBtu)
B41: =B35*B36 -> 2601.5821 | C41: CO2 emission rate (kg /ton) | D41: ='Glossary & Conversions'!$D$42 -> 1 | E41: CO2
B42: =B35*B38*0.001 -> 0.2509 | C42: CH4 emission rate (kg/ton) | D42: ='Glossary & Conversions'!$D$43 -> 28 | E42: CH4
B43: =B35*B39*0.001 -> 0.037635 | C43: N2O emission rate (kg/ton) | D43: ='Glossary & Conversions'!$D$44 -> 265 | E43: N2O
B45: =((B41*D41)+(B42*D42)+(B43*D43))*'Glossary & Conversions'!$D$32 -> 2375.576298 | C45: CO2e emission rate (kg/metric ton)
A47: BITUMINOUS COAL | B47: EMISSIONS FACTOR DERIVATION | F47: SOURCE INFO
B48: Units | D48: Global Warming Potentials | F48: (a) Source 4: 2020 Climate Registry Default Emission Factors. Table 1.1 and 1.10. (b) Source 7: IPCC, Fifth Assessment Report, 2013.
B49: 24.93 | C49: Heat Content HHV (mmBtu/ton)
B50: 93.28 | C50: CO2 Content Coefficient (kg CO2/mmBtu)
B52: 10 | C52: Commercial Sector Emissions Factor (g CH4/mmBtu)
B53: 1.5 | C53: Commercial Sector Emissions Factor (g N2O/mmBtu)
B55: =B49*B50 -> 2325.4704 | C55: CO2 emission rate (kg/ton) | D55: ='Glossary & Conversions'!$D$42 -> 1 | E55: CO2
B56: =B49*B52*0.001 -> 0.2493 | C56: CH4 emission rate (kg/ton) | D56: ='Glossary & Conversions'!$D$43 -> 28 | E56: CH4
B57: =B49*B53*0.001 -> 0.037395 | C57: N2O emission rate (kg/ton) | D57: ='Glossary & Conversions'!$D$44 -> 265 | E57: N2O
B59: =((B55*D55)+(B56*D56)+(B57*D57))*'Glossary & Conversions'!$D$32 -> 2124.989423 | C59: CO2e emission rate (kg/metric ton)
A61: SUB-BITUMINOUS COAL | B61: EMISSIONS FACTOR DERIVATION | F61: SOURCE INFO
B62: Units | D62: Global Warming Potentials | F62: (a) Source 4: 2020 Climate Registry Default Emission Factors. Table 1.1 and 1.10. (b) Source 7: IPCC, Fifth Assessment Report, 2013.
B63: 17.25 | C63: Heat Content HHV (mmBtu/ton)
B64: 97.17 | C64: CO2 Content Coefficient (kg CO2/mmBtu)
B66: 10 | C66: Commercial Sector Emissions Factor (g CH4/mmBtu)
B67: 1.5 | C67: Commercial Sector Emissions Factor (g N2O/mmBtu)
B69: =B63*B64 -> 1676.1825 | C69: CO2 emission rate (kg/ton) | D69: ='Glossary & Conversions'!$D$42 -> 1 | E69: CO2
B70: =B63*B66*0.001 -> 0.1725 | C70: CH4 emission rate (kg/ton) | D70: ='Glossary & Conversions'!$D$43 -> 28 | E70: CH4
B71: =B63*B67*0.001 -> 0.025875 | C71: N2O emission rate (kg/ton) | D71: ='Glossary & Conversions'!$D$44 -> 265 | E71: N2O
B73: =((B69*D69)+(B70*D70)+(B71*D71))*'Glossary & Conversions'!$D$32 -> 1531.235097 | C73: CO2e emission rate (kg/metric ton)
A75: LIGNITE COAL | B75: EMISSIONS FACTOR DERIVATION | F75: SOURCE INFO
B76: Units | D76: Global Warming Potentials | F76: (a) Source 4: 2020 Climate Registry Default Emission Factors. Table 1.1 and 1.10. (b) Source 7: IPCC, Fifth Assessment Report, 2013.
B77: 14.21 | C77: Heat Content HHV (mmBtu/ton)
B78: 97.72 | C78: CO2 Content Coefficient (kg CO2/mmBtu)
B80: 10 | C80: Commercial Sector Emissions Factor (g CH4/mmBtu)
B81: 1.5 | C81: Commercial Sector Emissions Factor (g N2O/mmBtu)
B83: =B77*B78 -> 1388.6012 | C83: CO2 emission rate (kg/ton) | D83: ='Glossary & Conversions'!$D$42 -> 1 | E83: CO2
B84: =B77*B80*0.001 -> 0.1421 | C84: CH4 emission rate (kg/ton) | D84: ='Glossary & Conversions'!$D$43 -> 28 | E84: CH4
B85: =B77*B81*0.001 -> 0.021315 | C85: N2O emission rate (kg/ton) | D85: ='Glossary & Conversions'!$D$44 -> 265 | E85: N2O
B87: =((B83*D83)+(B84*D84)+(B85*D85))*'Glossary & Conversions'!$D$32 -> 1268.472873 | C87: CO2e emission rate (kg/metric ton)
A89: DIESEL (#2 DISTILLATE) and other DISTILLATE OILS (#1, #4) | B89: EMISSIONS FACTOR DERIVATION | F89: SOURCE INFO
B90: Units | D90: Global Warming Potentials | F90: (a) Source 6: EPA Climate Leaders. "Emission Factors for Greenhouse Gas Inventories." March 2020. (b) Source 7: IPCC, Fifth Assessment Report, 2013.
B91: 0.138 | C91: Heat Content HHV (mmBtu/gal)
B92: 73.96 | C92: CO2 Content Coefficient (kg CO2/mmBtu)
B93: 3 | C93: Commercial Sector Emissions Factor (g CH4/mmBtu)
B94: 0.6 | C94: Commercial Sector Emissions Factor (g N2O/mmBtu)
B96: =(B91*B92) -> 10.20648 | C96: CO2 emission rate (kg/gal) | D96: ='Glossary & Conversions'!$D$42 -> 1 | E96: CO2
B97: =(B91*B93)*0.001 -> 0.000414 | C97: CH4 emission rate (kg/gal) | D97: ='Glossary & Conversions'!$D$43 -> 28 | E97: CH4
B98: =(B91*B94)*0.001 -> 8.28e-05 | C98: N2O emission rate (kg/gal) | D98: ='Glossary & Conversions'!$D$44 -> 265 | E98: N2O
B100: =((B96*D96)+(B97*D97)+(B98*D98)) -> 10.240014 | C100: CO2e emission rate (kg/gal)
A102: Liquefied Petroleum Gas (LPG) or Propane | B102: EMISSIONS FACTOR DERIVATION | F102: SOURCE INFO
B103: Units | D103: Global Warming Potentials | F103: (a) Source 4: 2020 Climate Registry Default Emission Factors. Table 1.1 and 1.10. (b) Source 7: IPCC, Fifth Assessment Report, 2013.
B104: 0.092 | C104: Heat Content HHV (mmBtu/gal)
B105: 61.71 | C105: CO2 Content Coefficient (kg CO2/mmBtu)
B107: 10 | C107: Commercial Sector Emissions Factor (g CH4/mmBtu)
B108: 0.6 | C108: Commercial Sector Emissions Factor (g N2O/mmBtu)
B110: =B104*B105 -> 5.67732 | C110: CO2 emission rate (kg /gal) | D110: ='Glossary & Conversions'!$D$42 -> 1 | E110: CO2
B111: =B107*B104*0.001 -> 0.00092 | C111: CH4 emission rate (kg /gal) | D111: ='Glossary & Conversions'!$D$43 -> 28 | E111: CH4
B112: =B108*B104*0.001 -> 5.52e-05 | C112: N2O emission rate (kg /gal) | D112: ='Glossary & Conversions'!$D$44 -> 265 | E112: N2O
B114: =((B110*D110)+(B111*D111)+(B112*D112)) -> 5.717708 | C114: CO2e emission rate (kg/gal)
A116: LANDFILL GAS | B116: EMISSIONS FACTOR DERIVATION | F116: SOURCE INFO
B117: Units | D117: Global Warming Potentials | F117: (a) Source 6: EPA Climate Leaders. "Emission Factors for Greenhouse Gas Inventories." March 2020. (b) Source 7: IPCC, Fifth Assessment Report, 2013.
B118: 0.000485 | C118: Heat Content HHV (mmBtu/scf)
B119: 52.07 | C119: CO2 Content Coefficient (kg CO2/mmBtu)
B121: 0.00485 | C121: Commercial Sector Emissions Factor (kg CH4/mmBtu)
B122: 0.00063 | C122: Commercial Sector Emissions Factor (kg N2O/mmBtu)
B124: =B118*B119 -> 0.02525395 | C124: CO2 emission rate (kg /scf) | D124: ='Glossary & Conversions'!$D$42 -> 1 | E124: CO2
B125: =B118*B121 -> 2.35225e-06 | C125: CH4 emission rate (kg /scf) | D125: ='Glossary & Conversions'!$D$43 -> 28 | E125: CH4
B126: =B118*B122 -> 3.0555e-07 | C126: N2O emission rate (kg /scf) | D126: ='Glossary & Conversions'!$D$44 -> 265 | E126: N2O
B128: =B129/1027 -> 2.473299294e-05 | C128: CO2e emission rate (kg/BTU)
B129: =(B124*D124)+(B125*D125)+(B126*D126) -> 0.02540078375 | C129: CO2e emission rate (kg/scf)
A131: NATURAL GAS or COMPRESSED NATURAL GAS (CNG) | B131: EMISSIONS FACTOR DERIVATION | F131: SOURCE INFO
B132: Units | D132: Global Warming Potentials | F132: (a) Source 4: 2020 Climate Registry Default Emission Factors. Table 1.1 and 1.10. (b) Source 7: IPCC, Fifth Assessment Report, 2013.
B133: 1026 | C133: Heat Content HHV (Btu/scf)
B134: 53.06 | C134: CO2 Content Coefficient (kg CO2/mmBtu)
B136: 0.0047 | C136: Commercial Sector Emissions Factor (kg CH4/mmBtu)
B137: 0.0001 | C137: Commercial Sector Emissions Factor (kg N2O/mmBtu)
B139: 0.05444 | C139: CO2 emission rate (kg /scf) | D139: ='Glossary & Conversions'!$D$42 -> 1 | E139: CO2
B140: =B133*B136/1000000 -> 4.8222e-06 | C140: CH4 emission rate (kg /scf) | D140: ='Glossary & Conversions'!$D$43 -> 28 | E140: CH4
B141: =B133*B137/1000000 -> 1.026e-07 | C141: N2O emission rate (kg /scf) | D141: ='Glossary & Conversions'!$D$44 -> 265 | E141: N2O
B143: =B144/1027 -> 5.316670944e-05 | C143: CO2e emission rate (kg/BTU)
B144: =(B139*D139)+(B140*D140)+(B141*D141) -> 0.0546022106 | C144: CO2e emission rate (kg/scf)
A146: BIODIESEL | B146: EMISSIONS FACTOR DERIVATION | F146: SOURCE INFO
B147: Units | F147: (a) Source 6: EPA Climate Leaders. "Emission Factors for Greenhouse Gas Inventories." March 2020. (b) Source 7: IPCC, Fifth Assessment Report, 2013.
B148: 0.128 | C148: Heat Content HHV (mmBtu/gal)
B149: 73.84 | C149: CO2 Content Coefficient (kg CO2/mmBtu)
B150: 1.1 | C150: Commercial Sector Emissions Factor (g CH4/mmBtu)
B151: 0.11 | C151: Commercial Sector Emissions Factor (g N2O/mmBtu)
B153: =(B148*B149) -> 9.45152 | C153: CO2 emission rate (kg/gal) | D153: ='Glossary & Conversions'!$D$42 -> 1 | E153: CO2
B154: =(B148*B150)/1000 -> 0.0001408 | C154: CH4 emission rate (kg/gal) | D154: ='Glossary & Conversions'!$D$43 -> 28 | E154: CH4
B155: =(B148*B151)/1000 -> 1.408e-05 | C155: N2O emission rate (kg/gal) | D155: ='Glossary & Conversions'!$D$44 -> 265 | E155: N2O
B157: =SUMPRODUCT(B153:B155,D153:D155) -> 9.4591936 | C157: Biodiesel CO2e emission rate (kg/gal)
B158: Emissions Factor (kg/gal) | C158: Blend | D158: Percent Diesel | E158: Percent Biodiesel
B159: =D159*$B$100+E159*$B$157 -> 9.4591936 | C159: B100 | D159: 0 | E159: 1
B160: =D160*$B$100+E160*$B$157 -> 10.08384992 | C160: B20 | D160: 0.8 | E160: 0.2
B161: =D161*$B$100+E161*$B$157 -> 10.20097298 | C161: B5 | D161: 0.95 | E161: 0.05
A163: JET FUEL (Jet A or A-1) | B163: EMISSIONS FACTOR DERIVATION | F163: SOURCE INFO
B164: Units | D164: Global Warming Potentials | F164: (a) Source 4: 2020 Climate Registry Default Emission Factors. Table 2.1 and Table 2.7. (b) Source 7: IPCC, Fifth Assessment Report, 2013.
B165: 5.67 | C165: Heat Content (mmBtu/Barrel)
B167: 9.75 | C167: CO2 emission rate (kg/gal) | D167: ='Glossary & Conversions'!$D$42 -> 1 | E167: CO2
B168: =0/1000 -> 0 | C168: CH4 emission rate (kg/gal) | D168: ='Glossary & Conversions'!$D$43 -> 28 | E168: CH4
B169: =0.3/1000 -> 0.0003 | C169: N2O emission rate (kg/gal) | D169: ='Glossary & Conversions'!$D$44 -> 265 | E169: N2O
B171: =(B167*D167)+(B168*D168)+(B169*D169) -> 9.8295 | C171: CO2e emission rate (kg/gal)
A173: AIR MILES TRAVELED | B173: EMISSIONS FACTOR DERIVATION | F173: SOURCE INFO
B174: Units | C174: Global Warming Potentials | F174: (a) Source 6: EPA Climate Leaders. "Emission Factors for Greenhouse Gas Inventories." March 2020.
B175: Short Haul (<300 miles)
B176: 0.215 | C176: CO2 emission rate (kg CO2/passenger mile) | D176: ='Glossary & Conversions'!$D$42 -> 1 | E176: CO2
B177: =0.0077/1000 -> 7.7e-06 | C177: CH4 emission rate (kg CH4 /passenger mile) | D177: ='Glossary & Conversions'!$D$43 -> 28 | E177: CH4
B178: =0.0068/1000 -> 6.8e-06 | C178: N2O emission rate (kg N2O/passenger mile) | D178: ='Glossary & Conversions'!$D$44 -> 265 | E178: N2O
B180: =B176*D176+B177*D177+B178*D178 -> 0.2170176 | C180: CO2e emission rate (kg/mile)
B181: Medium Haul (≥300 to <2,300 miles)
B182: 0.133 | C182: CO2 emission rate (kg CO2e/passenger mile) | D182: ='Glossary & Conversions'!$D$42 -> 1 | E182: CO2
B183: =0.0006/1000 -> 6e-07 | C183: CH4 emission rate (kg CO2e/passenger mile) | D183: ='Glossary & Conversions'!$D$43 -> 28 | E183: CH4
B184: =0.0042/1000 -> 4.2e-06 | C184: N2O emission rate (kg CO2e/passenger mile) | D184: ='Glossary & Conversions'!$D$44 -> 265 | E184: N2O
B186: =B182*D182+B183*D183+B184*D184 -> 0.1341298 | C186: CO2e emission rate (kg/mile)
B187: Long Haul (≥2,300 miles)
B188: 0.165 | C188: CO2 emission rate (kg CO2e/passenger mile) | D188: ='Glossary & Conversions'!$D$42 -> 1 | E188: CO2
B189: =0.0006/1000 -> 6e-07 | C189: CH4 emission rate (kg CO2e/passenger mile) | D189: ='Glossary & Conversions'!$D$43 -> 28 | E189: CH4
B190: =0.0052/1000 -> 5.2e-06 | C190: N2O emission rate (kg CO2e/passenger mile) | D190: ='Glossary & Conversions'!$D$44 -> 265 | E190: N2O
B192: =B188*D188+B189*D189+B190*D190 -> 0.1663948 | C192: CO2e emission rate (kg/mile)
A194: MOTOR GASOLINE | B194: EMISSIONS FACTOR DERIVATION | F194: SOURCE INFO
B195: Units | D195: Global Warming Potentials | F195: (a) Source 4: 2020 Climate Registry Default Emission Factors. Table 2.1. (b) Source 7: IPCC, Fifth Assessment Report, 2013.
B196: 5.25 | C196: Heat Content HHV (mmBtu/Barrel)
B197: 42 | C197: Gallons/Barrel
B198: =B196/B197 -> 0.125 | C198: MMBtu/gal
B200: 8.78 | C200: CO2 emission rate (kg/gal) | D200: ='Glossary & Conversions'!$D$42 -> 1 | E200: CO2
B201: =0.38/1000 -> 0.00038 | C201: CH4 emission rate (kg/gal) | D201: ='Glossary & Conversions'!$D$43 -> 28 | E201: CH4
B202: =0.08/1000 -> 8e-05 | C202: N2O emission rate (kg/gal) | D202: ='Glossary & Conversions'!$D$44 -> 265 | E202: N2O
B204: =(B200*D200)+(B201*D201)+(B202*D202) -> 8.81184 | C204: CO2e emission rate (kg/gal)
A206: VEHICLE MILES TRAVELED | B206: EMISSIONS FACTOR DERIVATION | F206: SOURCE INFO
B207: Units | D207: Global Warming Potentials | F207: (a) Source 4: 2020 Climate Registry Default Emission Factors. Table 2.4. (b) Source 7: IPCC, Fifth Assessment Report, 2013. (c) Source 9: EPA Climate Leaders GHG Inventory Protocol report "Direct Emissions from Mobile Combustion Sources." Table B-3.
B208: 0.368 | C208: CO2 emission rate (kg/mi) | D208: ='Glossary & Conversions'!$D$42 -> 1 | E208: CO2
B209: =0.0078/1000 -> 7.8e-06 | C209: Emission rate of kg CH4/mi | D209: ='Glossary & Conversions'!$D$43 -> 28 | E209: CH4
B210: =0.0082/1000 -> 8.2e-06 | C210: Emission rate of kg N2O/mi | D210: ='Glossary & Conversions'!$D$44 -> 265 | E210: N2O
B212: =SUMPRODUCT(B208:B210,D208:D210) -> 0.3703914 | C212: Average of kg CO2e/mi
A214: ETHANOL | B214: EMISSIONS FACTOR DERIVATION | F214: SOURCE INFO
B215: Units | F215: (a) Source 6: EPA Climate Leaders. "Emission Factors for Greenhouse Gas Inventories." March 2020. (b) Source 7: IPCC, Fifth Assessment Report, 2013.
B216: 0.084 | C216: Heat Content HHV (mmBtu/gal)
B217: 68.44 | C217: CO2 Content Coefficient (kg CO2/mmBtu)
B218: 1.1 | C218: Commercial Sector Emissions Factor (g CH4/mmBtu)
B219: 0.11 | C219: Commercial Sector Emissions Factor (g N2O/mmBtu)
B221: =(B216*B217) -> 5.74896 | C221: CO2 emission rate (kg/gal) | D221: ='Glossary & Conversions'!$D$42 -> 1 | E221: CO2
B222: =(B216*B218)/1000 -> 9.24e-05 | C222: CH4 emission rate (kg/gal) | D222: ='Glossary & Conversions'!$D$43 -> 28 | E222: CH4
B223: =(B216*B219)/1000 -> 9.24e-06 | C223: N2O emission rate (kg/gal) | D223: ='Glossary & Conversions'!$D$44 -> 265 | E223: N2O
B225: =SUMPRODUCT(B221:B223,D221:D223) -> 5.7539958 | C225: Corn-Derived Ethanol CO2e emission rate (kg/gal)
B226: Emissions Factor (kg/gal) | C226: Blend | D226: Percent Gasoline | E226: Percent Ethanol
B227: =D227*$B$204+E227*$B$225 -> 5.7539958 | C227: E100 | D227: 0 | E227: 1
B228: =D228*$B$204+E228*$B$225 -> 6.21267243 | C228: E85 | D228: 0.15 | E228: 0.85
B229: 8.50605558 | C229: E10 | D229: 0.9 | E229: 0.1
A231: ELECTRIC VEHICLES | B231: EMISSIONS FACTOR DERIVATION | F231: SOURCE INFO
B232: Units | F232: (a) Source 10: U.S. Department of Energy. Alternative Fuels Data Center: Data Sources and Assumptions for the Electricity Sources and Emissions Tool.
B233: 0.32 | C233: Electricity Usage (kWh/mi)

Sheet Green Electricity
B1: Shifting to Green Electricity Sources
B2: This tab computes the GHG emissions avoided when a purchaser switches to green power. Green power is electricity produced from solar, wind, geothermal, biogas, eligible biomass, and low-impact small hydroelectric sources. Green power includes utility green power products, renewable energy certificates (RECs), and power purchase agreements, among other options. For more information on the available types of green power supply options, visit: https://www.epa.gov/greenpower/green-power-supply-options.
A4: Green Energy | C4: Green Electricity
A5: How to use this tab: | C5: Enter the annual amount of green electricity purchased in kilowatt-hours (kWh). The column "GHG Avoided" converts the kWh into MTCO2e.
A6: Calculation Description: | C6: MTCO2e = Green electricity purchased in kWh * (national or state value of the eGRID non-baseload output emission rate, expressed as MTCO2e/kWh) National average rate: 0.000653 MTCO2e/kWh. State rates differ by state. Emission rates include emissions from three gases: CO2 + CH4 + N2O.
B7: State or U.S. (Select) | C7: Green Electricity (kWh) | D7: GHG Avoided (MTCO2e)
A8: Example | C8: EZ Energy Co. installed 2 wind turbines in NY producing 10,000 kWh per turbine annually.
B9: NY | C9: 20000 | D9: =IFERROR(IF($C9<>0,($C9*VLOOKUP($B9, ElectricityEFs!$B$5:$L$56, 11, FALSE)),0),0) -> 9.662015664
A10: Totals - All Rows | C10: =SUM(C12:C22) -> 0 | D10: =SUM(D12:D22) -> 0
A12: =Aggregate_MTCO2e!A9 -> Row 1 | B12: (select) | D12: =IFERROR(IF($C12<>0,($C12*VLOOKUP($B12, ElectricityEFs!$B$5:$L$56, 11, FALSE)),0),0) -> 0
A13: =Aggregate_MTCO2e!A10 -> Row 2 | B13: (select) | D13: =IFERROR(IF($C13<>0,($C13*VLOOKUP($B13, ElectricityEFs!$B$5:$L$56, 11, FALSE)),0),0) -> 0
A14: =Aggregate_MTCO2e!A11 -> Row 3 | B14: (select) | D14: =IFERROR(IF($C14<>0,($C14*VLOOKUP($B14, ElectricityEFs!$B$5:$L$56, 11, FALSE)),0),0) -> 0
A15: =Aggregate_MTCO2e!A12 -> Row 4 | B15: (select) | D15: =IFERROR(IF($C15<>0,($C15*VLOOKUP($B15, ElectricityEFs!$B$5:$L$56, 11, FALSE)),0),0) -> 0
A16: =Aggregate_MTCO2e!A13 -> Row 5 | B16: (select) | D16: =IFERROR(IF($C16<>0,($C16*VLOOKUP($B16, ElectricityEFs!$B$5:$L$56, 11, FALSE)),0),0) -> 0
A17: =Aggregate_MTCO2e!A14 -> Row 6 | B17: (select) | D17: =IFERROR(IF($C17<>0,($C17*VLOOKUP($B17, ElectricityEFs!$B$5:$L$56, 11, FALSE)),0),0) -> 0
A18: =Aggregate_MTCO2e!A15 -> Row 7 | B18: (select) | D18: =IFERROR(IF($C18<>0,($C18*VLOOKUP($B18, ElectricityEFs!$B$5:$L$56, 11, FALSE)),0),0) -> 0
A19: =Aggregate_MTCO2e!A16 -> Row 8 | B19: (select) | D19: =IFERROR(IF($C19<>0,($C19*VLOOKUP($B19, ElectricityEFs!$B$5:$L$56, 11, FALSE)),0),0) -> 0
A20: =Aggregate_MTCO2e!A17 -> Row 9 | B20: (select) | D20: =IFERROR(IF($C20<>0,($C20*VLOOKUP($B20, ElectricityEFs!$B$5:$L$56, 11, FALSE)),0),0) -> 0
A21: =Aggregate_MTCO2e!A18 -> Row 10 | B21: (select) | D21: =IFERROR(IF($C21<>0,($C21*VLOOKUP($B21, ElectricityEFs!$B$5:$L$56, 11, FALSE)),0),0) -> 0
A22: =Aggregate_MTCO2e!A19 -> Row 11 | B22: (select) | D22: =IFERROR(IF($C22<>0,($C22*VLOOKUP($B22, ElectricityEFs!$B$5:$L$56, 11, FALSE)),0),0) -> 0
A24: Color Key
A25: User enters value
A26: User selects option from drop-down menu
A27: Do not change- calculation
A29: Notes and Sources
A31: Electricity emission rates (National and State) | B31: NOTES | D31: SOURCE INFO
B32: See tab "Electricity EFs" for national or state non-baseload emissions factors from eGRID. | D32: Source 1: U.S. EPA, eGRID2018v2

Sheet Greening Chemistry
B1: Greening Chemistry: GHG Savings from Reduced Emission of GHG Chemicals Directly
B2: This tab calculates GHG reductions from reducing the use of high global warming potential (GWP) chemicals or by substituting chemicals with less global warming impact. The Greening Chemistry tab includes the CO2 equivalency of more than 200 chemicals listed by the International Panel on Climate Change as well as chemicals listed by EPA’s GHG Reporting Program.
B4: How to use this tab: | D4: Enter the mass of each chemical avoided for a project in the column "lbs. Chemical Avoided." Total MTCO2e reduced will be displayed for each project in the "ALL CHEMICALS" row.
B5: Calculation Description | D5: MTCO2e = lbs. Chemical Avoided * (100-year Global Warming Potential) * (0.4536 kg / lbs.) * (1 MTCO2e / 1,000 kg CO2)
B6: Example | D6: ABC, Inc., improved leak detection for their use of sulphur hexafluoride in their own electrical distribution equipment, saving 600 pounds of SF6 for the year. [Input 600 lbs into cell I96 and see Output of 6,396 MTCO2e in cell I9]
A8: Industrial Chemical Reduced | B8: Reporting Program (IPCC or EPA) | C8: Chemical Formula | D8: CAS # | E8: Global Warming Potential (100 year) | G8: Totals - All Columns | I8: =INDEX(Aggregate_MTCO2e!$A:$A,COLUMN()) -> Row 1 | J8: =INDEX(Aggregate_MTCO2e!$A:$A,COLUMN()) -> Row 2 | K8: =INDEX(Aggregate_MTCO2e!$A:$A,COLUMN()) -> Row 3 | L8: =INDEX(Aggregate_MTCO2e!$A:$A,COLUMN()) -> Row 4 | M8: =INDEX(Aggregate_MTCO2e!$A:$A,COLUMN()) -> Row 5 | N8: =INDEX(Aggregate_MTCO2e!$A:$A,COLUMN()) -> Row 6 | O8: =INDEX(Aggregate_MTCO2e!$A:$A,COLUMN()) -> Row 7 | P8: =INDEX(Aggregate_MTCO2e!$A:$A,COLUMN()) -> Row 8 | Q8: =INDEX(Aggregate_MTCO2e!$A:$A,COLUMN()) -> Row 9 | R8: =INDEX(Aggregate_MTCO2e!$A:$A,COLUMN()) -> Row 10 | S8: =INDEX(Aggregate_MTCO2e!$A:$A,COLUMN()) -> Row 11
G9: Total GHG Reduction (MTCO2e) | I9: GHG Reduction (MTCO2e) | J9: GHG Reduction (MTCO2e) | K9: GHG Reduction (MTCO2e) | L9: GHG Reduction (MTCO2e) | M9: GHG Reduction (MTCO2e) | N9: GHG Reduction (MTCO2e) | O9: GHG Reduction (MTCO2e) | P9: GHG Reduction (MTCO2e) | Q9: GHG Reduction (MTCO2e) | R9: GHG Reduction (MTCO2e) | S9: GHG Reduction (MTCO2e)
A10: ALL CHEMICALS | G10: =SUMPRODUCT($E12:$E229,G12:G229)*('Glossary & Conversions'!$D$24/1000) -> 0 | I10: =SUMPRODUCT($E12:$E229,I12:I229)*('Glossary & Conversions'!$D$24/1000) -> 0 | J10: =SUMPRODUCT($E12:$E229,J12:J229)*('Glossary & Conversions'!$D$24/1000) -> 0 | K10: =SUMPRODUCT($E12:$E229,K12:K229)*('Glossary & Conversions'!$D$24/1000) -> 0 | L10: =SUMPRODUCT($E12:$E229,L12:L229)*('Glossary & Conversions'!$D$24/1000) -> 0 | M10: =SUMPRODUCT($E12:$E229,M12:M229)*('Glossary & Conversions'!$D$24/1000) -> 0 | N10: =SUMPRODUCT($E12:$E229,N12:N229)*('Glossary & Conversions'!$D$24/1000) -> 0 | O10: =SUMPRODUCT($E12:$E229,O12:O229)*('Glossary & Conversions'!$D$24/1000) -> 0 | P10: =SUMPRODUCT($E12:$E229,P12:P229)*('Glossary & Conversions'!$D$24/1000) -> 0 | Q10: =SUMPRODUCT($E12:$E229,Q12:Q229)*('Glossary & Conversions'!$D$24/1000) -> 0 | R10: =SUMPRODUCT($E12:$E229,R12:R229)*('Glossary & Conversions'!$D$24/1000) -> 0 | S10: =SUMPRODUCT($E12:$E229,S12:S229)*('Glossary & Conversions'!$D$24/1000) -> 0
G11: lbs. Chemical Avoided | I11: lbs. Chemical Avoided | J11: lbs. Chemical Avoided | K11: lbs. Chemical Avoided | L11: lbs. Chemical Avoided | M11: lbs. Chemical Avoided | N11: lbs. Chemical Avoided | O11: lbs. Chemical Avoided | P11: lbs. Chemical Avoided | Q11: lbs. Chemical Avoided | R11: lbs. Chemical Avoided | S11: lbs. Chemical Avoided
A12: Carbon dioxide | B12: Both | C12: CO2 | D12: 124389 | E12: 1 | G12: =SUM(I12:S12) -> 0
A13: Methane | B13: Both | C13: CH4 | D13: 74828 | E13: 28 | G13: 0
A14: Fossil methane | B14: IPCC | C14: CH4 | E14: 30 | G14: 0
A15: Nitrous oxide | B15: Both | C15: N2O | D15: 10024972 | E15: 265 | G15: 0
A16: Chloroflourocarbons | G16: 0
A17: CFC-11 | B17: IPCC | C17: CCl3F | D17: 75694 | E17: 4660 | G17: 0
A18: CFC-12 | B18: IPCC | C18: CCl2F2 | D18: 75718 | E18: 10200 | G18: 0
A19: CFC-13 | B19: IPCC | C19: CClF3 | D19: 75729 | E19: 13900 | G19: 0
A20: CFC-113 | B20: IPCC | C20: CCl2FCClF2 | D20: 76131 | E20: 5820 | G20: 0
A21: CFC-114 | B21: IPCC | C21: CClF2CClF2 | D21: 76142 | E21: 8590 | G21: 0
A22: CFC-115 | B22: IPCC | C22: CClF2CF3 | D22: 76153 | E22: 7670 | G22: 0
A23: Hydrochloroflourocarbons | G23: 0
A24: HCFC-21 | B24: IPCC | C24: CHCl2F | E24: 148 | G24: 0
A25: HCFC-22 | B25: IPCC | C25: CHClF2 | D25: 75456 | E25: 1760 | G25: 0
A26: HCFC-122 | B26: IPCC | C26: CHCl2CF2Cl | E26: 59 | G26: 0
A27: HCFC-122a | B27: IPCC | C27: CHFClCFCl2 | E27: 258 | G27: 0
A28: HCFC-123 | B28: IPCC | C28: CHCl2CF3 | D28: 306832 | E28: 79 | G28: 0
A29: HCFC-123a | B29: IPCC | C29: CHClFCF2Cl | E29: 370 | G29: 0
A30: HCFC-124 | B30: IPCC | C30: CHClFCF3 | D30: 2837890 | E30: 527 | G30: 0
A31: HCFC-132c | B31: IPCC | C31: CH2FCFCl2 | E31: 338 | G31: 0
A32: HCFC-141b | B32: IPCC | C32: CH3CCl2F | D32: 1717006 | E32: 782 | G32: 0
A33: HCFC-142b | B33: IPCC | C33: CH3CClF2 | D33: 75683 | E33: 1980 | G33: 0
A34: HCFC-225ca | B34: IPCC | C34: CHCl2CF2CF3 | D34: 422560 | E34: 127 | G34: 0
A35: HCFC-225cb | B35: IPCC | C35: CHClFCF2CClF2 | D35: 507551 | E35: 525 | G35: 0
A36: (E)-1-Chloro-3,3,3-trifluoroprop-1-ene | B36: IPCC | C36: trans-CF3CH=CHCl | E36: 1 | G36: 0
A37: HFC-23 (Trifluoromethane) | B37: Both | C37: CHF3 | D37: 75467 | E37: 12400 | G37: 0
A38: HFC-32 | B38: Both | C38: CH2F2 | D38: 75105 | E38: 677 | G38: 0
A39: HFC–41 | B39: Both | C39: CH3F | D39: 593533 | E39: 116 | G39: 0
A40: HFC-125 | B40: Both | C40: CHF2CF3 | D40: 354336 | E40: 3170 | G40: 0
A41: HFC–134 | B41: Both | C41: C2H2F4 | D41: 359353 | E41: 1120 | G41: 0
A42: HFC-134a | B42: Both | C42: CH2FCF3 | D42: 811972 | E42: 1300 | G42: 0
A43: HFC–143 | B43: Both | C43: C2H3F3 | D43: 430660 | E43: 328 | G43: 0
A44: HFC-143a | B44: Both | C44: CH3CF3 | D44: 420462 | E44: 4800 | G44: =SUM(I44:S44) -> 0
A45: HFC–152 | B45: Both | C45: CH2FCH2F | D45: 624726 | E45: 16 | G45: 0
A46: HFC-152a | B46: Both | C46: CH3CHF2 | D46: 75376 | E46: 138 | G46: 0
A47: HFC–161 | B47: Both | C47: CH3CH2F | D47: 353366 | E47: 4 | G47: 0
A48: HFC-227ca | B48: IPCC | C48: CF3CF2CHF2 | E48: 2640 | G48: 0
A49: HFC-227ea | B49: Both | C49: CF3CHFCF3 | D49: 431890 | E49: 3350 | G49: 0
A50: HFC–236cb | B50: Both | C50: CH2FCF2CF3 | D50: 677565 | E50: 1210 | G50: 0
A51: HFC–236ea | B51: Both | C51: CHF2CHFCF3 | D51: 431630 | E51: 1330 | G51: 0
A52: HFC-236fa | B52: Both | C52: CF3CH2CF3 | D52: 690391 | E52: 8060 | G52: 0
A53: HFC–245ca | B53: Both | C53: C3H3F5 | D53: 679867 | E53: 716 | G53: 0
A54: HFC-245cb | B54: IPCC | C54: CF3CF2CH3 | E54: 4620 | G54: 0
A55: HFC-245ea | B55: IPCC | C55: CHF2CHFCHF2 | E55: 235 | G55: 0
A56: HFC-245eb | B56: IPCC | C56: CH2FCHFCF3 | E56: 290 | G56: 0
A57: HFC-245fa | B57: Both | C57: CHF2CH2CF3 | D57: 460731 | E57: 858 | G57: 0
A58: HFC-263fb | B58: IPCC | C58: CH3CH2CF3 | E58: 76 | G58: 0
A59: HFC-272ca | B59: IPCC | C59: CH3CF2CH3 | E59: 144 | G59: 0
A60: HFC-329p | B60: IPCC | C60: CHF2CF2CF2CF3 | E60: 2360 | G60: 0
A61: HFC-365mfc | B61: Both | C61: CH3CF2CH2CF3 | D61: 406586 | E61: 804 | G61: 0
A62: HFC-43-10mee | B62: Both | C62: CF3CHFCHFCF2CF3 | D62: 138495428 | E62: 1650 | G62: 0
A63: HFC-1132a | B63: IPCC | C63: CH2=CF2 | E63: <1 | G63: 0
A64: HFC-1141 | B64: IPCC | C64: CH2=CHF | E64: <1 | G64: 0
A65: (Z)-HFC-1225ye | B65: IPCC | C65: CF3CF=CHF(Z) | E65: <1 | G65: 0
A66: (E)-HFC-1225ye | B66: IPCC | C66: CF3CF=CHF(E) | E66: <1 | G66: 0
A67: (Z)-HFC-1234ze | B67: IPCC | C67: CF3CH=CHF(Z) | E67: <1 | G67: 0
A68: HFC-1234yf | B68: IPCC | C68: CF3CF=CH2 | E68: <1 | G68: 0
A69: (E)-HFC-1234ze | B69: IPCC | C69: trans-CF3CH=CHF | E69: <1 | G69: 0
A70: (Z)-HFC-1336 | B70: IPCC | C70: CF3CH=CHCF3(Z) | E70: 2 | G70: 0
A71: HFC-1243zf | B71: IPCC | C71: CF3CH=CH2 | E71: <1 | G71: 0
A72: HFC-1345zfc | B72: IPCC | C72: C2F5CH=CH2 | E72: <1 | G72: 0
A73: 3,3,4,4,5,5,6,6-Nonafluorohex-1-ene | B73: IPCC | C73: C4F9CH=CH2 | E73: <1 | G73: 0
A74: 3,3,4,4,5,5,6,6,7,7,8,8,8-Tridecafluorooct-1-ene | B74: IPCC | C74: C6F13CH=CH2 | E74: <1 | G74: 0
A75: 3,3,4,4,5,5,6,6,7,7,8,8,9,9,10,10-Heptadecafluorodec-1-ene | B75: IPCC | C75: C8F17CH=CH2 | E75: <1 | G75: 0
A76: Chlorocarbons and Hydrochlorocarbons | G76: =SUM(I76:S76) -> 0
A77: Methyl chloroform | B77: IPCC | C77: CH3CCl3 | D77: 71556 | E77: 160 | G77: 0
A78: Carbon tetrachloride | B78: IPCC | C78: CCl4 | D78: 56235 | E78: 1730 | G78: 0
A79: Methyl chloride | B79: IPCC | C79: CH3Cl | D79: 74873 | E79: 12 | G79: 0
A80: Methylene chloride | B80: IPCC | C80: CH2Cl2 | D80: 75092 | E80: 9 | G80: 0
A81: Chloroform | B81: IPCC | C81: CHCl3 | E81: 16 | G81: 0
A82: 1,2-Dichloroethane | B82: IPCC | C82: CH2ClH2Cl | E82: <1 | G82: 0
A83: Bromocarbons, Hydrobromocarbons and Halons | G83: 0
A84: Methyl bromide | B84: IPCC | C84: CH3Br | D84: 74839 | E84: 2 | G84: 0
A85: Methylene bromide | B85: IPCC | C85: CH2Br2 | E85: 1 | G85: 0
A86: Halon-1201 | B86: IPCC | C86: CHBrF2 | E86: 376 | G86: 0
A87: Halon-1202 | B87: IPCC | C87: CBr2F2 | E87: 231 | G87: 0
A88: Halon-1211 | B88: IPCC | C88: CBrClF2 | D88: 353593 | E88: 1750 | G88: 0
A89: Halon-1301 | B89: IPCC | C89: CBrF3 | D89: 75638 | E89: 6290 | G89: 0
A90: Halon-2301 | B90: IPCC | C90: CH2BrCF3 | E90: 173 | G90: 0
A91: Halon-2311/Halothane | B91: IPCC | C91: CHBrClCF3 | E91: 41 | G91: 0
A92: Halon-2401 | B92: IPCC | C92: CHFBrCF3 | E92: 184 | G92: 0
A93: Halon-2402 | B93: IPCC | C93: CBrF2CBrF2 | D93: 124732 | E93: 1470 | G93: 0
A94: Fully Fluorinated Species | G94: 0
A95: Nitrogen trifluoride | B95: Both | C95: NF3 | D95: 7783542 | E95: 16100 | G95: 0
A96: Sulphur hexafluoride | B96: Both | C96: SF6 | D96: 2551624 | E96: 23500 | G96: 0
A97: (Trifluoromethyl) sulphur pentafluoride | B97: Both | C97: SF5CF3 | D97: 373808 | E97: 17400 | G97: 0
A98: Sulphuryl fluoride | B98: IPCC | C98: SO2F2 | E98: 4090 | G98: 0
A99: PFC–14 (Perfluoromethane) | B99: Both | C99: CF4 | D99: 75730 | E99: 6630 | G99: 0
A100: PFC–116 (Perfluoroethane) | B100: Both | C100: C2F6 | D100: 76164 | E100: 11100 | G100: 0
A101: PFC-c216 (Perfluorocycloproprane) | B101: Both | C101: CC3F6 | D101: 931919 | E101: 9200 | G101: 0
A102: PFC–218 (Perfluoropropane) | B102: Both | C102: C3F8 | D102: 76197 | E102: 8900 | G102: 0
A103: PFC-318 (Perfluorocyclobutane) | B103: Both | C103: c-C4F8 | E103: 9540 | G103: 0
A104: PFC-31-10 | B104: Both | C104: C4F10 | E104: 9200 | G104: 0
A105: Perfluorocyclopentene | B105: IPCC | C105: c-C5F8 | E105: 2 | G105: 0
A106: PFC-41-12 | B106: Both | C106: n-C5F12 | E106: 8550 | G106: 0
A107: PFC-51-14 | B107: Both | C107: n-C6F14 | E107: 7910 | G107: 0
A108: PFC-61-16 | B108: IPCC | C108: n-C7F16 | E108: 7820 | G108: =SUM(I108:S108) -> 0
A109: PFC-71-18 | B109: IPCC | C109: C8F18 | E109: 7620 | G109: 0
A110: PFC-91-18 | B110: Both | C110: C10F18 | E110: 7190 | G110: 0
A111: Perfluorodecalin (cis) | B111: IPCC | C111: Z-C10F18 | E111: 7240 | G111: 0
A112: Perfluorodecalin (trans) | B112: IPCC | C112: E-C10F18 | E112: 6290 | G112: 0
A113: PFC-1114 | B113: IPCC | C113: CF2=CF2 | E113: <1 | G113: 0
A114: PFC-1216 | B114: IPCC | C114: CF3CF=CF2 | E114: <1 | G114: 0
A115: Perfluorobuta-1,3-diene | B115: IPCC | C115: CF2=CFCF=CF2 | E115: <1 | G115: 0
A116: Perfluorobut-1-ene | B116: IPCC | C116: CF3CF2CF=CF2 | E116: <1 | G116: 0
A117: Perfluorobut-2-ene | B117: IPCC | C117: CF3CF=CFCF3 | E117: 2 | G117: 0
A118: Halogenated Alcohols and Ethers | G118: 0
A119: HFE-125 | B119: Both | C119: CHF2OCF3 | D119: 3822682 | E119: 12400 | G119: 0
A120: HFE-134 (HG-00) | B120: Both | C120: CHF2OCHF2 | D120: 1691174 | E120: 5560 | G120: 0
A121: HFE-143a | B121: Both | C121: CH3OCF3 | D121: 421147 | E121: 523 | G121: 0
A122: HFE-227ea | B122: Both | C122: CF3CHFOCF3 | D122: 2356629 | E122: 6450 | G122: 0
A123: HCFE-235ca2 (enflurane) | B123: IPCC | C123: CHF2OCF2CHFCl | E123: 583 | G123: 0
A124: HCFE–235da2 (isoflurane) | B124: Both | C124: CHF2OCHClCF3 | D124: 26675467 | E124: 491 | G124: 0
A125: HFE-263ca | B125: IPCC | C125: CHF2OCF2CHF2 | E125: 4240 | G125: 0
A126: HFE–236ea2 (desflurane) | B126: Both | C126: CHF2OCHFCF3 | D126: 57041675 | E126: 1790 | G126: 0
A127: HFE 236fa | B127: Both | C127: CF3CH2OCF3 | D127: 20193673 | E127: 979 | G127: 0
A128: HFE-245cb2 | B128: Both | C128: CF3CF2OCH3 | D128: 22410442 | E128: 654 | G128: 0
A129: HFE-245fa1 | B129: Both | C129: CHF2CH2OCF3 | D129: 84011154 | E129: 828 | G129: 0
A130: HFE-245fa2 | B130: Both | C130: CHF2OCH2CF3 | D130: 1885489 | E130: 812 | G130: 0
A131: 2,2,3,3,3,-Pentafluoropropan-1-ol | B131: Both | C131: CF3CF2CH2OH | D131: 422059 | E131: 19 | G131: 0
A132: HFE-254cb1 | B132: IPCC | C132: CH3OCF2CHF2 | E132: 301 | G132: 0
A133: HFE-254cb2 | B133: EPA Rep. Program | C133: CH3OCF2CHF2 | D133: 425887 | E133: 359 | G133: 0
A134: HFE 263fb2 | B134: Both | C134: CF3CH2OCH3 | D134: 460435 | E134: 1 | G134: 0
A135: HFE-263m1 | B135: IPCC | C135: CF3OCH2CH3 | E135: 29 | G135: 0
A136: 3,3,3-Trifluoropropan-1-ol | B136: IPCC | C136: CF3CH2CH2OH | E136: <1 | G136: 0
A137: HFE-329mcc2 | B137: Both | C137: CF3CF2OCF2CHF2 | D137: 67490362 | E137: 3070 | G137: 0
A138: HFE–338mmz1 | B138: Both | C138: CHF2OCH(CF3)2 | D138: 26103082 | E138: 2620 | G138: 0
A139: HFE 338mcf2 | B139: Both | C139: CF3CF2OCH2CF3 | D139: 156053882 | E139: 929 | G139: 0
A140: Sevoflurane (HFE-347mmz1) | B140: Both | C140: CH2FOCH(CF3)2 | D140: 28523866 | E140: 216 | G140: =SUM(I140:S140) -> 0
A141: HFE-347mcc3 (HFE-7000) | B141: Both | C141: CH3OCF2CF2CF3 | D141: 28523866 | E141: 530 | G141: 0
A142: HFE-347mcf2 | B142: Both | C142: CF3CF2OCH2CHF2 | D142: E1730135 | E142: 854 | G142: 0
A143: HFE-347pcf2 | B143: Both | C143: CHF2CF2OCH2CF3 | D143: 406780 | E143: 889 | G143: 0
A144: HFE–356mm1 | B144: EPA Rep. Program | C144: (CF3)2CHOCH3 | D144: 13171181 | E144: 27 | G144: 0
A145: HFE–347mmy1 | B145: Both | C145: CH3OCF(CF3)2 | D145: 22052842 | E145: 363 | G145: 0
A146: HFE-356mec3 | B146: Both | C146: CH3OCF2CHFCF3 | D146: 382343 | E146: 387 | G146: 0
A147: HFE-356mff2 | B147: IPCC | C147: CF3CH2OCH2CF3 | E147: 17 | G147: 0
A148: HFE-356pcf2 | B148: Both | C148: CHF2CH2OCF2CHF2 | D148: E1730137 | E148: 719 | G148: 0
A149: HFE-356pcf3b | B149: Both | C149: CHF2OCH2CF2CHF2 | D149: 35042990 | E149: 446 | G149: 0
A150: HFE-356pcc3 | B150: Both | C150: CH3OCF2CF2CHF2 | E150: 413 | G150: 0
A151: HFE-356mmz1 | B151: IPCC | C151: (CF3)2CHOCH3 | E151: 14 | G151: 0
A152: HFE–365mcf3 | B152: Both | C152: CF3CF2CH2OCH3 | D152: 378165 | E152: <1 | G152: 0
A153: HFE-365mcf2 | B153: IPCC | C153: CF3CF2OCH2CH3 | E153: 58 | G153: 0
A154: HFE-374pc2 | B154: Both | C154: CH3CH2OCF2CHF2 | D154: 512516 | E154: 627 | G154: 0
A155: 4,4,4-Trifluorobutan-1-ol | B155: IPCC | C155: CF3(CH2)2CH2OH | E155: <1 | G155: 0
A156: 2,2,3,3,4,4,5,5-octafluorocyclopentanol | B156: IPCC | C156: -(CF2)4CH(OH)- | E156: 13 | G156: 0
A157: (Octafluorotetramethy lene)hydroxymethyl group | B157: EPA Rep. Program | C157: X(CF2)4CH(OH)X | D157: NA | E157: 73 | G157: 0
A158: HFE-43-10pccc124 (H-Galden 1040x, HG-11) | B158: Both | C158: CHF2OCF2OC2F4OCHF2 | D158: E1730133 | E158: 2820 | G158: 0
A159: HFE–449s1 (HFE–7100) | B159: IPCC | C159: C4F9OCH3 | D159: 163702076 | E159: 421 | G159: 0
A160: HFE–449sl (HFE–7100) Chemical blend | B160: EPA Rep. Program | C160: (CF3)2CFCF2OCH3 | D160: 163702087 | E160: 297 | G160: 0
A161: n-HFE-7100 | B161: IPCC | C161: n-C4F9OCH3 | E161: 486 | G161: 0
A162: i-HFE-7100 | B162: IPCC | C162: i-C4F9OCH3 | E162: 407 | G162: 0
A163: HFE–569sf2 (HFE–7200) | B163: IPCC | C163: C4F9OC2H5 | D163: 163702054 | E163: 57 | G163: 0
A164: HFE–569sf2 (HFE–7200) Chemical blend | B164: EPA Rep. Program | C164: (CF3)2CFCF2OCH3 | D164: 163702065 | E164: 59 | G164: 0
A165: n-HFE-7200 | B165: IPCC | C165: n-C4F9OC2H5 | E165: 65 | G165: 0
A166: i-HFE-7200 | B166: IPCC | C166: i-C4F9OC2H5 | E166: 44 | G166: 0
A167: HFE-236ca12 (HG-10) | B167: Both | C167: CHF2OCF2OCHF2 | D167: 78522471 | E167: 5350 | G167: 0
A168: HFE-338pcc13 (HG-01) | B168: Both | C168: CHF2OCF2CF2OCHF2 | D168: 188690780 | E168: 2910 | G168: 0
A169: 1,1,1,3,3,3-hexafluoropropan-2-ol; Bis(trifluoromethyl)methanol | B169: Both | C169: (CF3)2CHOH | E169: 182 | G169: 0
A170: HG-02 | B170: IPCC | C170: HF2C-(OCF2CF2)2-OCF2H | E170: 2730 | G170: 0
A171: HG-03 | B171: IPCC | C171: HF2C-(OCF2CF2)3-OCF2H | E171: 2850 | G171: 0
A172: HG-20 | B172: IPCC | C172: HF2C-(OCF2)2-OCF2H | E172: 5300 | G172: =SUM(I172:S172) -> 0
A173: HG-21 | B173: IPCC | C173: HF2C-OCF2CF2OC-F2OCF2O-CF2H | E173: 3890 | G173: 0
A174: HG-30 | B174: IPCC | C174: HF2C-(OCF2)3-OCF2H | E174: 7330 | G174: 0
A175: 1-Ethoxy-1,1,2,2,3,3,3-heptafluoropropane | B175: IPCC | C175: CF3CF2CF2OCH2CH3 | E175: 61 | G175: 0
A176: Fluoroxene | B176: IPCC | C176: CF3CH2OCH=CH2 | E176: <1 | G176: 0
A177: 1,1,2,2-Tetrafluoro-1-(fluoromethoxy)ethane | B177: IPCC | C177: CH2FOCF2CF2H | E177: 871 | G177: 0
A178: 2-Ethoxy-3,3,4,4,5-pentafluorotetrahydro-2,5,-bis[1,2,2,2-tetrafluoro-1-(trifluoromethyl)ethyl]-furan | B178: IPCC | C178: C12H5F19O2 | E178: 56 | G178: 0
A179: Fluoro(methoxy)methane | B179: IPCC | C179: CH3OCH2F | E179: 13 | G179: 0
A180: Difluoro(methoxy)methane | B180: IPCC | C180: CH3OCHF2 | E180: 144 | G180: 0
A181: Fluoro(fluoromethoxy)methane | B181: IPCC | C181: CH2FOCH2F | E181: 130 | G181: 0
A182: Difluoro(fluoromethoxy)methane | B182: IPCC | C182: CH2FOCHF2 | E182: 617 | G182: 0
A183: Trifluoro(fluoromethoxy)methane | B183: IPCC | C183: CH2FOCF3 | E183: 751 | G183: 0
A184: HG'-01 | B184: IPCC | C184: CH3OCF2CF2OCH3 | E184: 222 | G184: 0
A185: HG'-02 | B185: IPCC | C185: CH30(CF2CF2O)2CH3 | E185: 236 | G185: 0
A186: HG'-03 | B186: IPCC | C186: CH30(CF2CF2O)3CH3 | E186: 221 | G186: 0
A187: HFE-329me3 | B187: IPCC | C187: CF3CFHCF2OCF3 | E187: 4550 | G187: 0
A188: 3,3,4,4,5,5,6,6,7,7,7-Undecafluoroheptan-1-ol | B188: IPCC | C188: CF3(CF2)4CH2CH2OH | E188: <1 | G188: 0
A189: 3,3,4,4,5,5,6,6,7,7,8,8,9,9,9-Pentadecafluorononan-1-ol | B189: IPCC | C189: CF3(CF2)6CH2CH2OH | E189: <1 | G189: 0
A190: 3,3,4,4,5,5,6,6,7,7,8,8,9,9,10,10,11,11,11-nonadecafluoroundecan-1-ol | B190: IPCC | C190: CF3(CF2)8CH2CH2OH | E190: <1 | G190: 0
A191: 2-Chloro-1,1,2-trifluoro-1-methoxyethane | B191: IPCC | C191: CH3OCF2CHFCl | E191: 112 | G191: 0
A192: PFPMIE (perfluoropolymethylisopropyl ether) | B192: Both | C192: CF3OCF(CF3)CF2OCF2OCF3 | E192: 9710 | G192: 0
A193: HFE-216 | B193: IPCC | C193: CF3OCF=CF2 | E193: <1 | G193: 0
A194: Trifluoromethyl formate | B194: IPCC | C194: HCOOCF3 | E194: 588 | G194: 0
A195: Perfluoroethyl formate | B195: IPCC | C195: HCOOCF2CF3 | E195: 580 | G195: 0
A196: Perfluoropropyl formate | B196: IPCC | C196: HCOOCF2CF2CF3 | E196: 376 | G196: 0
A197: Perfluorobutyl formate | B197: IPCC | C197: HCOOCF2CF2CF2CF3 | E197: 392 | G197: 0
A198: 2,2,2-Trifluoroethyl formate | B198: IPCC | C198: HCOOCH2CF3 | E198: 33 | G198: 0
A199: 3,3,3-Trifluoropropyl formate | B199: IPCC | C199: HCOOCH2CH2CF3 | E199: 17 | G199: 0
A200: 1,2,2,2-tetrafluoroethyl formate | B200: IPCC | C200: HCOOCHFCF3 | E200: 470 | G200: 0
A201: 1,1,1,3,3,3-Hexafluoropropan-2-yl formate | B201: IPCC | C201: HCOOCH(CF3)2 | E201: 333 | G201: 0
A202: Perfluorobutyl acetate | B202: IPCC | C202: CH3COOCF2CF2CF2CF3 | E202: 2 | G202: 0
... 34 more rows

Sheet Water Management
C1: Water Management: GHG Savings from Reduced Water Use
C2: Conserving water reduces the energy used to pump and heat water, which reduces GHG emissions. The energy used to pump water is usually invisible to consumers, so this tab provides a national survey average of the water-utility energy used to pump water to treatment plants and through distribution pipes. Note that the Electricity Management and Fuel Use tabs will capture MTCO2e reductions from reduced heating of water.
C4: Water Conservation (non-heated water) | E4: Other Calculator
A5: How to use this tab: | C5: Select a state or U.S. National to designate where water was conserved. Enter gallons of non-heated water conserved. "GHG Reduction" calculates the reduction in MTCO2e. | E5: Please describe your methodology and source if you are using an alternate calculator. Enter your input and MTCO2e values on the rows.
A6: Calculation Description: | C6: MTCO2e = Water Conserved (gal.) * (6,139 kwh/1,000,000 gal. water used)* [either National or Regional emissions factor] National Conversion factor: 0.000692 MTCO2e/kwh Regional Conversion factor: (0.000498 to 0.00090 MTCO2e/kwh)
B7: State or U.S. (Select) | C7: Non-heated Water Reduced (gallons) | D7: GHG Reduction (MTCO2e) | E7: Input | F7: GHG Reduction (MTCO2e)
A8: Example | C8: CleanBIO reduced blow-down losses in boilers at NY plants through acidification of water, saving 30 million gals of water.
B9: NY | C9: 30000000 | D9: 102.411
A10: Totals - All Rows | C10: =SUM(C12:C22) -> 0 | D10: =SUM(D12:D22) -> 0 | E10: =SUM(E12:E22) -> 0 | F10: =SUM(F12:F22) -> 0
A12: =Aggregate_MTCO2e!A9 -> Row 1 | B12: (select) | D12: =IFERROR(C12*(6139/1000000)*VLOOKUP(B12,ElectricityEFs!$B$5:$L$56,11,FALSE),0) -> 0
A13: =Aggregate_MTCO2e!A10 -> Row 2 | B13: (select) | D13: =IFERROR(C13*(6139/1000000)*VLOOKUP(B13,ElectricityEFs!$B$5:$L$56,11,FALSE),0) -> 0
A14: =Aggregate_MTCO2e!A11 -> Row 3 | B14: (select) | D14: =IFERROR(C14*(6139/1000000)*VLOOKUP(B14,ElectricityEFs!$B$5:$L$56,11,FALSE),0) -> 0
A15: =Aggregate_MTCO2e!A12 -> Row 4 | B15: (select) | D15: =IFERROR(C15*(6139/1000000)*VLOOKUP(B15,ElectricityEFs!$B$5:$L$56,11,FALSE),0) -> 0
A16: =Aggregate_MTCO2e!A13 -> Row 5 | B16: (select) | D16: =IFERROR(C16*(6139/1000000)*VLOOKUP(B16,ElectricityEFs!$B$5:$L$56,11,FALSE),0) -> 0
A17: =Aggregate_MTCO2e!A14 -> Row 6 | B17: (select) | D17: =IFERROR(C17*(6139/1000000)*VLOOKUP(B17,ElectricityEFs!$B$5:$L$56,11,FALSE),0) -> 0
A18: =Aggregate_MTCO2e!A15 -> Row 7 | B18: (select) | D18: =IFERROR(C18*(6139/1000000)*VLOOKUP(B18,ElectricityEFs!$B$5:$L$56,11,FALSE),0) -> 0
A19: =Aggregate_MTCO2e!A16 -> Row 8 | B19: (select) | D19: =IFERROR(C19*(6139/1000000)*VLOOKUP(B19,ElectricityEFs!$B$5:$L$56,11,FALSE),0) -> 0
A20: =Aggregate_MTCO2e!A17 -> Row 9 | B20: (select) | D20: =IFERROR(C20*(6139/1000000)*VLOOKUP(B20,ElectricityEFs!$B$5:$L$56,11,FALSE),0) -> 0
A21: =Aggregate_MTCO2e!A18 -> Row 10 | B21: (select) | D21: =IFERROR(C21*(6139/1000000)*VLOOKUP(B21,ElectricityEFs!$B$5:$L$56,11,FALSE),0) -> 0
A22: =Aggregate_MTCO2e!A19 -> Row 11 | B22: (select) | D22: =IFERROR(C22*(6139/1000000)*VLOOKUP(B22,ElectricityEFs!$B$5:$L$56,11,FALSE),0) -> 0
A24: Color Key
A25: User enters value
A26: User selects option from drop-down menu
A27: Do not change- calculation
A30: Sources:
A32: NON-HEATED WATER | C32: (a) Source 8: EPRI & Water Research Foundation. Electricity Use and Management in the Municipal Water Supply and Wastewater Industries. November 2013. (b) Source 1: U.S. EPA, eGRID2018v2

Sheet Solvent Remanufacturing
B1: Solvent Remanufacturing
B2: This tab is for chemical manufacturing facilities that remanufacture (reclaim) solvents under one of three exclusions listed in the 2014 Definition of Solid Waste rule. The three exclusions are the remanufacturing exclusion, the same-generator exclusion, and the transfer-based exclusion (40 CFR § 261.4(a) (23), (24), and (27)). Remanufacturing involves distilling used solvents to regenerate them back to commercial-grade, thereby extending their useful life. This prevents pollution by reducing the amount of virgin solvent used, reducing the transport of spent solvents to disposal, and avoiding emissions from the manufacture of specialty solvents. This sheet calculates the hazardous materials not used and the hazardous emissions avoided by remanufacturing certain spent solvents.
A4: Type of Reduction | B4: Solvent Remanufacturing
A5: How to use this tab | B5: Enter the quantity of solvent sent offsite for reclamation (remanufacturing) consistent with the terms described above. To learn about the Definition of Solid Waste "Solvent Remanufacturing" exclusion and the related Generator-controlled and Certified Recycler exclusions, please click the button to the right.
A6: Calculation Description | B6: Amount of virgin solvent produced = 92% recovery from the solvent distillation process. GEMM emission models are then applied to calculate GHG emission reductions. To learn more about the data and methodologies behind the GEMM emission models, please click the button to the right.
A7: PLACE CURSOR OVER CELL FOR MORE INFORMATION → | B7: Solvent (select) | C7: Solvent Input for Remanufacturing | D7: Units (select) | E7: Solvent Input for Remanufacturing (pounds) | F7: Remanufactured Solvent (pounds) | G7: GHG Reduction (MTCO2e)
A8: Example | B8: Rainbow Co., a paint manufacturer, sends 1,000 gallons of acetonitrile for remanufacturing every month for an entire year.
B9: Acetonitrile | C9: 12000 | D9: gallons | E9: 78140.80242 | F9: 71889.53823 | G9: 292.7452528
A10: Totals - All Rows | E10: =SUM(E12:E22) -> 0 | F10: =SUM(F12:F22) -> 0 | G10: =SUM(G12:G22) -> 0
A12: =Aggregate_MTCO2e!A9 -> Row 1 | B12: (select) | D12: (select) | E12: =IFERROR(IF(OR(D12="gallons",D12="liters"),C12*VLOOKUP(B12,densities,3,FALSE)*VLOOKUP(D12,volConvert,2,FALSE),C12*VLOOKUP(D12,massConvert,2,FALSE)),0) -> 0 | F12: =E12*recycleEffDouble -> 0 | G12: =IFERROR(F12*VLOOKUP(B12,emissionsSum,2,FALSE),0)/lbsPerTonne -> 0
A13: =Aggregate_MTCO2e!A10 -> Row 2 | B13: (select) | D13: (select) | E13: 0 | F13: 0 | G13: =IFERROR(F13*VLOOKUP(B13,emissionsSum,2,FALSE),0)/lbsPerTonne -> 0
A14: =Aggregate_MTCO2e!A11 -> Row 3 | B14: (select) | D14: (select) | E14: 0 | F14: 0 | G14: 0
A15: =Aggregate_MTCO2e!A12 -> Row 4 | B15: (select) | D15: (select) | E15: 0 | F15: 0 | G15: 0
A16: =Aggregate_MTCO2e!A13 -> Row 5 | B16: (select) | D16: (select) | E16: 0 | F16: 0 | G16: 0
A17: =Aggregate_MTCO2e!A14 -> Row 6 | B17: (select) | D17: (select) | E17: 0 | F17: 0 | G17: 0
A18: =Aggregate_MTCO2e!A15 -> Row 7 | B18: (select) | D18: (select) | E18: 0 | F18: 0 | G18: 0
A19: =Aggregate_MTCO2e!A16 -> Row 8 | B19: (select) | D19: (select) | E19: 0 | F19: 0 | G19: 0
A20: =Aggregate_MTCO2e!A17 -> Row 9 | B20: (select) | D20: (select) | E20: 0 | F20: 0 | G20: 0
A21: =Aggregate_MTCO2e!A18 -> Row 10 | B21: (select) | D21: (select) | E21: 0 | F21: 0 | G21: 0
A22: =Aggregate_MTCO2e!A19 -> Row 11 | B22: (select) | D22: (select) | E22: 0 | F22: =E22*recycleEffDouble -> 0 | G22: 0
A24: Color Key
A25: User enters value
A26: User selects option from drop-down menu
A27: Do not change- calculation
B57: Sources: | C57: GEMM (2011) for solvent flow percentages.
C58: GEMM (2013) for hazardous feedstocks.
C59: GEMM (2013 and 2011) for air and water emissions.

Sheet References & Justification
A1: References & Justification
A2: Source # | B2: Reference | C2: Website | D2: Last Updated/ Next Update | E2: Justification
A3: 1 | B3: U.S. EPA, Clean Energy. eGRID 2018. Revised Release (v2): 3/9/2020. Downloadable file: eGRID2018 Data File v2 (XLS); worksheet eGRID2018_data_v2, tabs ST18 and US18. | C3: https://www.epa.gov/egrid/emissions-generation-resource-integrated-database-egrid | D3: 2020/2022 | E3: The emission factors for electricity consumption by state are obtained from eGRID's emissions factors from 2018. These data represent the generation mix, and thus the emissions, of U.S. electricity in 2018.
A4: 2 | B4: Energy Star Program, 'Savings Calculator,' 2019. | C4: https://www.energystar.gov/products/lighting_fans/light_bulbs | D4: September 2019/NA | E4: EPA's best estimate for electricity savings from an LED light bulb are published at the Energy Star Website, on the 'Savings Calculator' (http://www.energystar.gov/ia/business/bulk_purchasing/bpsavings_calc/Calc_Exit_Signs.xls?3c2a-bf03). A 9 watt, 15,000-hour LED bulb is compared to an equivalent 60 watt, 1,000-hour conventional bulb in the calculation. Assuming the bulb is used on average 3 hours a day, this results in an annual 56 kwh savings per light bulb. This savings is converted to a savings in MTCO2e with the state's emissions factor for electricity, as listed in eGRID. While savings will differ across different power intensity light bulbs, 60 watts was deemed by EPA to be the most common for residential settings.
A5: 3 | B5: The Climate Registry, "General Reporting Protocol Version 2.0" March 2013. | C5: http://www.theclimateregistry.org/wp-content/uploads/2014/11/TCR_GRP_Version_2.0-1.pdf | D5: March 2013/NA | E5: The Climate Registry provides the most comprehensive, user-friendly source for emission factors for a variety of GHG-emitting fossil fuels. Emissions factor data from The Climate Registry is obtained primarily from US Inventory of Greenhouse Gas Emissions and Sinks, which in turn was derived directly from the IPCC (noted as a source in this workbook).
A6: 4 | B6: 2020 Climate Registry Default Emission Factors | C6: https://www.theclimateregistry.org/wp-content/uploads/2020/04/The-Climate-Registry-2020-Default-Emission-Factor-Document.pdf | D6: April 2020/unspecified
A7: 5 | B7: EIA. Glossary. 2020. | C7: http://www.eia.gov/tools/glossary/ | D7: 2020/NA | E7: Fuel definitions from the EIA glossary are used in the 'Fuel Use' tab.
A8: 6 | B8: EPA Climate Leaders. "Emission Factors for Greenhouse Gas Inventories." 2018. | C8: https://www.epa.gov/sites/production/files/2020-04/documents/ghg-emission-factors-hub.pdf | D8: March 2020/unspecified | E8: The EPA Climate Leaders program combines multiple sources of publicly available emissions factors in writing guidance to its members. It also provides average emissions factors for business travel.
A9: 7 | B9: IPCC Fifth Assessment Report, 2013. | C9: http://www.ipcc.ch/pdf/assessment-report/ar5/wg1/WG1AR5_Chapter08_FINAL.pdf | D9: 2013/NA | E9: IPCC provides a list of GHG, and their global warming potentials, relative to CO2, which facilitates a calculation of MTCO2e reduced. Both the gases and their global warming potentials are liable to change as versions of the IPCC report are updated.
A10: 8 | B10: EPRI & Water Research Foundation. Electricity Use and Management in the Municipal Water Supply and Wastewater Industries. November 2013. 3002001433. | C10: https://www.waterrf.org/research/projects/electricity-use-and-management-municipal-water-supply-and-wastewater-industries | D10: 2013/NA | E10: This publication captures a general water conversion factors based on a national survey that calculates the national average of the energy required to pump raw water to the treatment plant as well as energy required to treat and distribute the water. The publication cites a range of energy intensities for water supply, with 3,618 kWh per million gallons of water supplied being a weighted average across water sources (Table 4-6). This includes the pumping of raw water to the treatment plant, the treatment of water, and the pumping of water for distribution. The publication also cites a range of energy intensities for wastewater treatment, with 2521 kWh per million gallons of water treated being a weighted average across types of treatment (Table 5-5). Therefore, a total of 6,139 kwh per million gallons of water is used as an emission factor in this tool for water conservation practices.
A11: 9 | B11: EPA Climate Leaders GHG Inventory Protocol report "Direct Emissions from Mobile Combustion Sources". Table A-2. | C11: https://www.epa.gov/sites/production/files/2016-03/documents/mobileemissions_3_2016.pdf | D11: January 2016/NA | E11: EPA's Climate Leaders GHG Inventory Protocol report "Direct Emissions from Mobile Combustion Sources" provides the percentage of the different control technologies installed by model year of vehicle. This data is used to calculate a weighted average emission factor for CH4 and N2O for gasoline passenger vehicles, weighted by percent of gasoline passenger vehicles that are classified as Low Emission Vehicles (LEV) and Tier 2 vehicles. Distribution for 2009-2013 is used.
A12: 10 | B12: U.S. Department of Energy. Alternative Fuels Data Center: Data Sources and Assumptions for the Electricity Sources and Emissions Tool. | C12: https://afdc.energy.gov/vehicles/electric_emissions_sources.html | D12: unspecified | E12: Alternative Fuels Data Center calculates average electric vehicle efficiency based on sales of 2016 model year vehicles and mpg ratings from the 2016 Fuel Economy Guide
A13: 11 | B13: EIA. Energy Explained: Coal Explained. 2016. | C13: http://www.eia.gov/energyexplained/index.cfm?page=coal_home | D13: 2016 | E13: Descriptions of coal types are used to supplement EIA Glossary definitions of fuel types in the 'Fuel Use' tab.
A15: GEMM References
A16: Source # | B16: Reference | C16: Website | D16: Date | E16: Use
A17: 1 | B17: Toxics Release Inventory (TRI) Database | C17: http://www2.epa.gov/toxics-release-inventory-tri-program | D17: 2008 | E17: Emissions and transfers used to estimate the distribution of waste management activities.
A18: 2 | B18: Chemical Economics Handbook, SRI Consulting, Menlo Park, CA | C18: http://chemical.ihs.com/IHS/Public/Aboutus.html | D18: THF- October 2010, Ethanol - April 2009 | E18: Production data on THF and ethanol.
A19: 3 | B19: GlaxoSmithKline - Life Cycle Assessment Waste Treatment Module (as modified by EPA) | C19: http://us.gsk.com/ | E19: Formula Calculations: rates of distillation recovery; energy use for disposal, re-manufacturing, and manufacturing; distribution of releases to air, land, and water from disposal, re-manufacturing, and manufacturing; emission-reduction benefits from avoided disposal of spent solvents and avoided manufacturing of virgin solvents; and, life-cycle emission reductions from the use of natural gas.
A20: 4 | B20: GlaxoSmithKline - technical experts | C20: http://us.gsk.com/ | E20: Consultation on chemical synthesis pathways
A21: 5 | B21: U.S. Department of Energy - Energy Information Administration | C21: http://www.eia.gov/ | E21: Consultation on factors affecting avoided manufacturing and energy values for chemical feedstocks
A22: 6 | B22: Per Jimenez-Gonzalez et al. | E22: Distillation energy requirements
A23: 7 | B23: Capello et al. 2007 | D23: 2007 | E23: Manufacturing energy requirements
A24: 8 | B24: International Panel on Climate Change (IPCC) | C24: https://www.ipcc.ch/publications_and_data/ar4/wg1/en/ch2s2-10-2.html | E24: Global warming potentials
A25: 9 | B25: Kirk-Othmer Encyclopedia of Chemical Technology | C25: http://onlinelibrary.wiley.com/book/10.1002/0471238961 | D25: 2003 | E25: Synthesis pathways and feedstocks
A27: Density References & Justification
A28: Source # | B28: Reference | C28: Website | D28: Last Updated | E28: Justification
A29: 1 | B29: EPA CompTox Chemical Dashboard | C29: https://comptox.epa.gov/dashboard | E29: EPA's CompTox Chemical Dashboard was used to obtain densities of common chemicals. The Dashboard includes predicted physical properties from multiple models, as well as experimental data where available. Experimental median was used where available; otherwise, predicted median was used.
A30: 2 | B30: PubChem | C30: https://pubchem.ncbi.nlm.nih.gov/ | E30: PubChem was used to obtain densities of refrigerant chemicals not available from the CompTox dashboard.
A31: 3 | B31: The Engineering ToolBox, "Liquids-Densities" Copyright 2005. | C31: http://www.engineeringtoolbox.com/liquids-densities-d_743.html | E31: A list of common liquids and their densities were obtained from this website and incorporated into our list of chemicals.
A32: 4 | B32: SImetric, Walker and Gibson Publishing Limited. | C32: https://www.simetric.co.uk/ | E32: A list of common materials and their densities were obtained from this source and incorporated into the liquids, materials, and solvents lists.
A33: 5 | B33: - Draft Report: 2002 Survey of Automotive Refinish Coatings, California Air Resources Board, March 2005 - OECD Environmental Health and Safety Publications: Emission Scenario Document on Coating Application via Spray Painting in the Automotive Refinishing Industry, Draft Final, October 2008. - DfE Emission Reduction calculator for the Autorefinish project. - A sampling of MSDSs | C33: http://www.arb.ca.gov/coatings/autorefin/scm/draftrpt.pdf Other sources provided by EPA | E33: The four values were as follows: - CARB Value: 9.26 lbs/gal - OECD Value: 9.13 lbs/gal - DfE Value: 9.4 lbs/gal - MSDS Value: 9.04 lbs/gal
A34: 6 | B34: OECD Environmental Health and Safety Publications: Emission Scenario Document on the Use of Metalworking Fluids, Revised Draft, July 2008. | C34: Source provided by EPA | E34: Assumed to be equivalent to the density of water
A35: 7 | B35: MSDS sheets and Paints and Coatings Resource Center, Ask the Expert | C35: http://www.paintcenter.org/rj/sep06d.cfm | E35: An average of seven different types of interior and exterior paint products was taken from MSDS sheets. This average (10.06 lbs/gal) matched the number offered by the Paints and Coatings Resource Center (10 lbs/gal).

Sheet GEMM Information
A1: Solvent Remanufacturing & GEMM
A2: Background and Methodology
A4: Background
A5: The 'Solvent Remanufacturing' tab was created for manufacturers who send spent solvents offsite in a manner that conforms to the chemical, industry sector, and solvent use function limitations of the Remanufacturing Exclusion, whether the parties involved are operating under the Remanufacturing Exclusion, the Under the Control of the Generator Exclusion, or the Certified Recycler Exclusion to the 2015 Definition of Solid Waste.
A6: For briefing materials on these three 2015 exclusions, use the following link: https://www.epa.gov/sites/production/files/2015-08/documents/dsw_fnl_rul_brfng_012215.pdf
A7: Remanufacturing is defined by EPA in §260.10 as:
B8: processing a higher-value hazardous secondary material in order to manufacture a product that serves a similar functional purpose as the original commercial-grade material. For the purpose of this definition, a hazardous secondary material is considered higher-value if it was generated from the use of a commercial-grade material in a manufacturing process and can be remanufactured into a similar commercial-grade material.
A9: The Remanufacturing Exclusion is limited to solvents used in the following sectors:
B10: Pharmaceutical manufacturing (NAICS 325412)
B11: Basic organic chemical manufacturing (NAICS 325199)
B12: Plastics and resins manufacturing (NAICS 325211)
B13: Paints and coatings manufacturing (NAICS 325510)
B14: where NAICS = North American Industry Classification Code
A15: The Remanufacturing Exlcusion covers the following solvents:
B16: 1,2,4-Trimethylbenzene | C16: Methanol
B17: Acetonitrile | C17: Methyl isobutyl ketone
B18: Chlorobenzene | C18: Methyl tert-butyl ether
B19: Chloroform | C19: n-Butyl alcohol
B20: Chloromethane* | C20: n-Hexane
B21: Cyclohexane | C21: N,N-dimethylformamide
B22: Dichloromethane | C22: Tetrahydrofuran
B23: Ethanol | C23: Toluene
B24: Ethylbenzene | C24: Xylenes
A25: As of 2016, the Remanufacturing Exclusion is limited to the above-listed solvents used only for the following purposes: Reacting, extracting, blending, or purifying chemicals. Use of the petition process could expand the scope of the Remanufacturing Exclusion in the future.
A26: GEMM Emission Models
A27: EPA developed the Green Engineering Materials Management tool (GEMM) to model the benefits associated with sustainable materials management practices in the chemical industry sector. The tool shows the benefits by comparing the emission models for solvent remanufacturing/reclamation practices and avoided solvent manufacturing with the emission models for energy recovery and disposal practices. EPA used GEMM as the basis for the technical benefits document (on greenhoues gas and pollutant emission reductions) supporting the Remanufacturing Exclusion in the DSW rulemaking docket. EPA is using the GEMM emission models in this P2 GHG Calculator. Environmental benefits are quantified as follows:
B28: Step 1: Collection of emissions data for manufacturing and processing of solvents. This includes emissions from fossil fuel burning to power the manufacturing processes, emissions from solvent waste incineration, distillation, and incineration with energy recovery.
B29: Manufacturing Emissions - Calculated using emission factors from fossil fuel burning used to generate electricity for solvent production.
B30: Solvent Waste Incineration Emissions- Calculated based on the carbon content of the solvent and the energy required to combust the solvent.
B31: Solvent Recovery Emissions - Based on the amount of energy required to distill the solvent to generate clean solvent.
B32: Step 2: Collection of feedstock data - the upstream materials used to manufacture each solvent. The hazardous feedstocks are grouped and summed by mass to determine a quantity of hazardous feedstock used to manufacture each solvent.
B33: Step 3: Creation of emission models for each solvent. This brings together the emission data to reveal total emissions for the life cycle of each solvent. The emission quantities calculated for this tool include:
B34: CO2 - | C34: Carbon Dioxide
B35: CH4 - | C35: Methane
B36: N2O - | C36: Nitrous Oxide
B37: Step 4: Calculation of CO2 equivalents for each solvent. The above chemicals are greenhouse gases that contribute to global warming and their emission quantities can be summed together using their global warming potentials (provided by the Intergovernmental Panel on Climate Change - IPCC).
B38: Step 5: Final determination of avoided GHG emissions. The emission quantities from Step 4 are calculated on a per-pound of solvent basis and are multiplied by the user input quantity of solvent sent for remanufacturing. In addition, a 92% factor is applied since solvent remanufacturing converts 92% of the solvent waste into clean solvent.
A39: Each solvent is classified as either a specialty chemical or a commodity chemical.
B40: Commodity Chemicals - These are chemicals that are manufactured as part of a greater production stream of chemicals from petroleum. Remanufacturing of these chemicals from spent solvent will not reduce the overall quantity produced. Therefore, a facility cannot claim the environmental benefits from the avoided manufacturing of commodity chemicals.
B41: Specialty Chemicals - These chemicals are produced because of a specific demand rather than as part of a greater production stream of commodity chemicals. If facilities begin to remanufacture spent solvents, the demand for newly produced solvent will decrease, and the production will also decreases. Therefore, a facility can claim environmental benefits from the avoided manufacturing of specialty chemicals.
A42: To see a summary of the emission models for all specialty and commodity chemicals included in this calculator please click the button on the left or return to the Solvent Remanufacturing tab by clicking on the button on the right.

Sheet GEMM Emission Summary
A1: Emission Model Type | B1: Chemical | C1: GHG Reduction (pound/pound)* | D1: Specialty/Commodity Chemical
A3: GEMM (June 22, 2011) Emission Models | B3: 1,2,4-Trimethylbenzene | C3: =-'GEMM (2011) Models'!AA506*lbsPerTonne -> 2.886685298 | D3: Commodity
B4: Chlorobenzene | C4: =-'GEMM (2011) Models'!AA128*lbsPerTonne -> 3.789370113 | D4: Commodity
B5: Chloroform | C5: =-'GEMM (2011) Models'!AA155*lbsPerTonne -> 0.4010074328 | D5: Commodity
B6: Ethanol | C6: =-'GEMM (2011) Models'!AA290*lbsPerTonne -> 3.333137249 | D6: Commodity
B7: Methyl Isobutyl Ketone | C7: =-'GEMM (2011) Models'!AA425*lbsPerTonne -> 2.886759186 | D7: Commodity
B8: Methyl Tert-Butyl Ether | C8: =-'GEMM (2011) Models'!AA398*lbsPerTonne -> 2.413833976 | D8: Commodity
B9: N,N-Dimethylformamide | C9: =-'GEMM (2011) Models'!AA263*lbsPerTonne -> 1.465678356 | D9: Commodity
B10: n-Butanol | C10: =-'GEMM (2011) Models'!AA101*lbsPerTonne -> 1.962589984 | D10: Commodity
B11: Xylenes | C11: =-'GEMM (2011) Models'!AA533*lbsPerTonne -> 2.906949533 | D11: Commodity
A12: GEMM (Aug. 7, 2013) Emission Models | B12: Cyclohexane | C12: ='GEMM (2013) Models'!I149 -> 3.424733757 | D12: Commodity
B13: Ethylbenzene | C13: ='GEMM (2013) Models'!I179 -> 3.629582738 | D13: Commodity
B14: Hexanes | C14: ='GEMM (2013) Models'!I209 -> 3.343117657 | D14: Commodity
B15: Methanol | C15: ='GEMM (2013) Models'!I89 -> 1.320332884 | D15: Commodity
B16: Toluene | C16: ='GEMM (2013) Models'!I119 -> 3.659687311 | D16: Commodity
B17: Acetonitrile | C17: ='GEMM (2013) Models'!I29 -> 8.977551603 | D17: Specialty
B18: Dichloromethane | C18: ='GEMM (2013) Models'!I59 -> 2.646927997 | D18: Specialty
B19: Tetrahydrofuran | C19: ='GEMM (2013) Models'!I239 -> 14.78984009 | D19: Specialty
A20: Not Yet Available | B20: Chloromethane | D20: Commodity
A21: * Pound of CO2 equivalent per pound of remanufactured solvent
A23: Notes
A24: GEMM - Green Engineering Materials Management; see the background on this tool described in the 'GEMM Information' tab of this calculator. A 2013 version of GEMM updated 8 chemicals.
A25: Greenhouse Gases (GHG)
A26: CO2 - carbon dioxide (1 CO2 equivalent)
A27: CH4 - methane (21 CO2 equivalents)
A28: N2O - nitrous oxide (310 CO2 equivalents)

Sheet GEMM (2011) Models
A1: **This sheet was modified from GEMM (2011)**
B2: Remanufacturing Exclusion - Benefits Summary
B3: All 4 Sectors, 16 of the 18 Chemicals k (2008 TRI)
A4: Column: | C4: c | D4: d | E4: e | F4: f | G4: g | H4: h | I4: I | J4: j | K4: k | L4: l | M4: m | N4: n | P4: p | Q4: q | R4: r | S4: s | T4: t | U4: u | V4: v | W4: w | X4: x | Y4: y | Z4: z | AA4: aa
E5: BASELINE: 2008 TRI Reported OFFSITE Energy Recovery (ER) and Incineration (I) and Offsite Remanufacturing (ME) | P5: Process Change: New Remanufacturing (Assumes all other reported waste offsite and onsite are Recycled. Add THF
A6: Row | E6: End of Life (EOL) Energy Recovery | H6: End of Life (EOL) Incineration | L6: ER&I | M6: Beginning of Life (BOL) ME | P6: (Other reported waste: U, L, Offsite ER&I, Remanufacturing, & Total Other Management & Disposal; Onsite: ER & Treatment Go To Zero)
B7: Emission Type a, b | C7: 2008 Land | E7: Offsite Reported Mass to Energy Recovery (EOL/ER) Cement Kiln | G7: ER EOL | H7: Offsite Reported Mass to Thermal Treatment (EOL/I) Incineration (GSK Model) | K7: I EOL | L7: Baseline EOL ER&I | M7: Distillation @ 75% recovery (25% mass to EOL (ER&I) | P7: Distillation @ 92% recovery (worst case scenario, 8% mass to EOL (ER&I) and double steam required for primary / secondary distillation: 75%*75%=92%) | X7: NEW ER&I | Y7: NEW BOL | AA7: New EOL/BOL - Baseline EOL/BOL
G8: Cement kiln | K8: Incinerator | M8: STEAM Offsite Primary Distillation Steamf | N8: Baseline Beginning of Life (BOL) Manufacturing Emissions (ME) | P8: STEAM New Solvent Mass going to Steamf | Q8: 75% x 8% Mass to Energy Recovery (ER) Cement Kiln | S8: NEW ER EOL | T8: 25% x 8% Mass to Thermal Treatment (I) Incineration | W8: NEW Incin EOL | X8: New EOL ER&I | Y8: Recovered Solvent (92% j of Distilled Mass) | Z8: New Beginning of Life (BOL) Mnfctring Emissions (ME)
C9: Under ground Injection | D9: Land -fill | E9: Solvent used as Fuel e | F9: Manufacturing Emissions of Solvents | G9: Offsite ER EOL (end of life) | H9: Solvents Combusted c | I9: Manufacturing Emissions of Solvents | J9: Natural Gas Fuel d | K9: Offsite I EOL (end of life) | Q9: Solvent used as Fuel e | R9: Mnfcting Emissions of Solvents | S9: Cement kiln | T9: Solvents Combusted c | U9: Mnfcting Emissions of Solvents | V9: Natural Gas Fuel d | W9: Incinerator | AA9: Process Change Benefits
B10: 2008 Solvent Mass (tonne)
A11: 11 | B11: Mass | C11: =SUM(C56,C83,C110,C137,C164,C191,C218,C245,C272,C299,C326,C353,C380,C407,C434,C461,C488,C515) -> 0 | D11: 0 | E11: 0.005304352753 | F11: 0.005304352753 | G11: 0.005304352753 | H11: 0.002405397814 | I11: 0.002405397814 | J11: 0.001189303674 | K11: 0.002405397814 | L11: 0.007709750567 | M11: 0 | N11: 0 | P11: =SUM(P56,P83,P110,P137,P164,P191,P218,P245,P272,P299,P326,P353,P380,P407,P434,P461,P488,P515) -> 0.007709750567 | Q11: 0.000462585034 | R11: 0.000462585034 | S11: 0.000462585034 | T11: 0.0001541950113 | U11: 0.0001541950113 | V11: 8.849143798e-05 | W11: 0.0001541950113 | X11: 0.0006167800454 | Y11: 0.007092970522 | Z11: 0.007092970522 | AA11: 0
B13: Air emission (tonne)
A14: 14 | B14: CO2 | C14: -- | D14: -- | E14: =SUM(E58,E85,E112,E139,E166,E193,E220,E247,E274,E301,E328,E355,E382,E409,E436,E463,E490,E517) -> 0.01355684134 | F14: 0.02195476663 | G14: 0.03551160797 | H14: 0.004983574803 | I14: 0.01270810201 | J14: 0.004037754132 | K14: 0.02172943095 | L14: 0.05724103892 | M14: 0 | N14: 0 | P14: =SUM(P58,P85,P112,P139,P166,P193,P220,P247,P274,P301,P328,P355,P382,P409,P436,P463,P490,P517) -> 0.0006991029909 | Q14: 0.001112424968 | R14: 0.002079772119 | S14: 0.003192197087 | T14: 0.0003708083228 | U14: 0.0006932573729 | V14: 0.0003004335034 | W14: 0.001364499199 | X14: 0.004556696286 | Y14: -- | Z14: =SUM(Z58,Z85,Z112,Z139,Z166,Z193,Z220,Z247,Z274,Z301,Z328,Z355,Z382,Z409,Z436,Z463,Z490,Z517) -> 
A15: 15 | B15: CH4 | C15: -- | D15: -- | E15: =SUM(E59,E86,E113,E140,E167,E194,E221,E248,E275,E302,E329,E356,E383,E410,E437,E464,E491,E518) -> 0 | F15: 9.963250196e-05 | G15: 9.963250196e-05 | H15: 0 | I15: 4.495513159e-05 | J15: 1.990952667e-05 | K15: 6.486465826e-05 | L15: 0.0001644971602 | M15: 0 | N15: 0 | P15: =SUM(P59,P86,P113,P140,P167,P194,P221,P248,P275,P302,P329,P356,P383,P410,P437,P464,P491,P518) -> 1.278302077e-06 | Q15: 0 | R15: 8.675258013e-06 | S15: 8.675258013e-06 | T15: 0 | U15: 2.891752671e-06 | V15: 1.481390063e-06 | W15: 4.373142734e-06 | X15: 1.304840075e-05 | Y15: --
A16: 16 | B16: N2O | C16: -- | D16: -- | E16: =SUM(E60,E87,E114,E141,E168,E195,E222,E249,E276,E303,E330,E357,E384,E411,E438,E465,E492,E519) -> 0 | F16: 2.889785221e-07 | G16: 2.889785221e-07 | H16: 0 | I16: 1.174434843e-07 | J16: 7.269573878e-08 | K16: 1.901392231e-07 | L16: 4.791177452e-07 | M16: 0 | N16: 0 | P16: =SUM(P60,P87,P114,P141,P168,P195,P222,P249,P276,P303,P330,P357,P384,P411,P438,P465,P492,P519) -> 0 | Q16: 0 | R16: 2.438532038e-08 | S16: 2.438532038e-08 | T16: 0 | U16: 8.128440128e-09 | V16: 5.409005791e-09 | W16: 1.353744592e-08 | X16: 3.79227663e-08 | Y16: --
A17: 17 | B17: CO | C17: -- | D17: -- | E17: =SUM(E61,E88,E115,E142,E169,E196,E223,E250,E277,E304,E331,E358,E385,E412,E439,E466,E493,E520) -> 5.975467256e-06 | F17: 8.45486776e-05 | G17: 9.052414485e-05 | H17: 2.196616993e-06 | I17: 0.0001424086516 | J17: 2.535938193e-06 | K17: 0.0001471412067 | L17: 0.0002376653516 | M17: 0 | N17: 0 | P17: =SUM(P61,P88,P115,P142,P169,P196,P223,P250,P277,P304,P331,P358,P385,P412,P439,P466,P493,P520) -> 4.890873267e-07 | Q17: 4.903250549e-07 | R17: 1.361743975e-05 | S17: 1.41077648e-05 | T17: 1.63441685e-07 | U17: 4.539146583e-06 | V17: 1.886892492e-07 | W17: 4.891277517e-06 | X17: 1.899904232e-05 | Y17: --
A18: 18 | B18: NMVOC | C18: -- | D18: -- | E18: =SUM(E62,E89,E116,E143,E170,E197,E224,E251,E278,E305,E332,E359,E386,E413,E440,E467,E494,E521) -> 5.975467256e-07 | F18: 3.476435179e-05 | G18: 3.536189852e-05 | H18: 2.196616993e-07 | I18: 2.575506974e-05 | J18: 1.243108174e-09 | K18: 2.597597455e-05 | L18: 6.133787307e-05 | M18: 0 | N18: 0 | P18: =SUM(P62,P89,P116,P143,P170,P197,P224,P251,P278,P305,P332,P359,P386,P413,P440,P467,P494,P521) -> 3.553099693e-06 | Q18: 4.903250549e-08 | R18: 3.631165292e-06 | S18: 3.680197797e-06 | T18: 1.63441685e-08 | U18: 1.210388431e-06 | V18: 9.249482051e-11 | W18: 1.226825094e-06 | X18: 4.907022891e-06 | Y18: --
A19: 19 | B19: NOx | C19: -- | D19: -- | E19: =SUM(E63,E90,E117,E144,E171,E198,E225,E252,E279,E306,E333,E360,E387,E414,E441,E468,E495,E522) -> 0 | F19: 3.588184679e-05 | G19: 3.588184679e-05 | H19: 0 | I19: 2.980637106e-05 | J19: 2.655232723e-06 | K19: 3.246160378e-05 | L19: 6.834345057e-05 | M19: 0 | N19: 0 | P19: =SUM(P63,P90,P117,P144,P171,P198,P225,P252,P279,P306,P333,P360,P387,P414,P441,P468,P495,P522) -> 2.301228252e-06 | Q19: 0 | R19: 3.941293071e-06 | S19: 3.941293071e-06 | T19: 0 | U19: 1.313764357e-06 | V19: 1.97565489e-07 | W19: 1.511329846e-06 | X19: 5.452622917e-06 | Y19: --
A20: 20 | B20: SOx | C20: -- | D20: -- | E20: =SUM(E64,E91,E118,E145,E172,E199,E226,E253,E280,E307,E334,E361,E388,E415,E442,E469,E496,E523) -> 0 | F20: 0.0001609390797 | G20: 0.0001609390797 | H20: 0 | I20: 8.244469287e-05 | J20: 3.423236074e-05 | K20: 0.0001166770536 | L20: 0.0002776161333 | M20: 0 | N20: 0 | P20: =SUM(P64,P91,P118,P145,P172,P199,P226,P253,P280,P307,P334,P361,P388,P415,P442,P469,P496,P523) -> 3.060908862e-06 | Q20: 0 | R20: 1.460302635e-05 | S20: 1.460302635e-05 | T20: 0 | U20: 4.867675451e-06 | V20: 2.547096166e-06 | W20: 7.414771617e-06 | X20: 2.201779797e-05 | Y20: --
B21: Water emission (tonne)
A22: 22 | B22: TOC | C22: -- | D22: -- | E22: =SUM(E66,E93,E120,E147,E174,E201,E228,E255,E282,E309,E336,E363,E390,E417,E444,E471,E498,E525) -> 0 | F22: 2.779800134e-05 | G22: 2.779800134e-05 | H22: 0 | I22: 1.526119547e-05 | J22: 6.243224863e-07 | K22: 1.588551795e-05 | L22: 4.368351929e-05 | M22: 0 | N22: 0 | P22: =SUM(P66,P93,P120,P147,P174,P201,P228,P255,P282,P309,P336,P363,P390,P417,P444,P471,P498,P525) -> 1.922096013e-08 | Q22: 0 | R22: 2.583551808e-06 | S22: 2.583551808e-06 | T22: 0 | U22: 8.611839362e-07 | V22: 4.645339604e-08 | W22: 9.076373322e-07 | X22: 3.491189141e-06 | Y22: -- | Z22: =SUM(Z66,Z93,Z120,Z147,Z174,Z201,Z228,Z255,Z282,Z309,Z336,Z363,Z390,Z417,Z444,Z471,Z498,Z525) -> 
A23: 23 | B23: BOD | C23: -- | D23: -- | E23: =SUM(E67,E94,E121,E148,E175,E202,E229,E256,E283,E310,E337,E364,E391,E418,E445,E472,E499,E526) -> 0 | F23: 4.847654153e-06 | G23: 4.847654153e-06 | H23: 0 | I23: 2.179971853e-06 | J23: 1.079250364e-06 | K23: 3.259222217e-06 | L23: 8.10687637e-06 | M23: 0 | N23: 0 | P23: =SUM(P67,P94,P121,P148,P175,P202,P229,P256,P283,P310,P337,P364,P391,P418,P445,P472,P499,P526) -> 1.710110415e-07 | Q23: 0 | R23: 4.216575604e-07 | S23: 4.216575604e-07 | T23: 0 | U23: 1.405525201e-07 | V23: 8.030280134e-08 | W23: 2.208553215e-07 | X23: 6.425128818e-07 | Y23: --
A24: 24 | B24: COD | C24: -- | D24: -- | E24: =SUM(E68,E95,E122,E149,E176,E203,E230,E257,E284,E311,E338,E365,E392,E419,E446,E473,E500,E527) -> 0 | F24: 0.0001082973543 | G24: 0.0001082973543 | H24: 0 | I24: 5.921312774e-05 | J24: 1.785562311e-06 | K24: 6.099869005e-05 | L24: 0.0001692960443 | M24: 0 | N24: 0 | P24: =SUM(P68,P95,P122,P149,P176,P203,P230,P257,P284,P311,P338,P365,P392,P419,P446,P473,P500,P527) -> 5.497194598e-08 | Q24: 0 | R24: 1.005062892e-05 | S24: 1.005062892e-05 | T24: 0 | U24: 3.35020964e-06 | V24: 1.328567127e-07 | W24: 3.483066353e-06 | X24: 1.353369527e-05 | Y24: --
A25: 25 | B25: TDS | C25: -- | D25: -- | E25: =SUM(E69,E96,E123,E150,E177,E204,E231,E258,E285,E312,E339,E366,E393,E420,E447,E474,E501,E528) -> 0 | F25: 0.001115752232 | G25: 0.001115752232 | H25: 0 | I25: 0.0004660979931 | J25: 0.0002761050738 | K25: 0.0007422030669 | L25: 0.001857955299 | M25: 0 | N25: 0 | P25: =SUM(P69,P96,P123,P150,P177,P204,P231,P258,P285,P312,P339,P366,P393,P420,P447,P474,P501,P528) -> 3.17980146e-06 | Q25: 0 | R25: 9.491101352e-05 | S25: 9.491101352e-05 | T25: 0 | U25: 3.163700451e-05 | V25: 2.054389939e-05 | W25: 5.21809039e-05 | X25: 0.0001470919174 | Y25: --
B26: Solid waste (tonne)
A27: 27 | B27: Solid waste | C27: -- | D27: -- | E27: =SUM(E71,E98,E125,E152,E179,E206,E233,E260,E287,E314,E341,E368,E395,E422,E449,E476,E503,E530) -> 0 | F27: 0.0002765490687 | G27: 0.0002765490687 | H27: 0 | I27: 0.00012879581 | J27: 4.653847268e-05 | K27: 0.0001753342827 | L27: 0.0004518833513 | M27: 0 | N27: 0 | P27: =SUM(P71,P98,P125,P152,P179,P206,P233,P260,P287,P314,P341,P368,P395,P422,P449,P476,P503,P530) -> 1.500601288e-06 | Q27: 0 | R27: 2.432069272e-05 | S27: 2.432069272e-05 | T27: 0 | U27: 8.106897573e-06 | V27: 3.462745857e-06 | W27: 1.156964343e-05 | X27: 3.589033615e-05 | Y27: -- | Z27: =SUM(Z71,Z98,Z125,Z152,Z179,Z206,Z233,Z260,Z287,Z314,Z341,Z368,Z395,Z422,Z449,Z476,Z503,Z530) ->  | AA27: =SUM(AA71,AA98,AA125,AA152,AA179,AA206,AA233,AA260,AA287,AA314,AA341,AA368,AA395,AA422,AA449,AA476,AA503,AA530) -> 
B28: Energy / Carbon
A29: 29 | B29: MMBTU | C29: -- | D29: -- | E29: =SUM(E73,E100,E127,E154,E181,E208,E235,E262,E289,E316,E343,E370,E397,E424,E451,E478,E505,E532) -> 0.1486425501 | F29: =SUM(F73,F100,F127,F154,F181,F208,F235,F262,F289,F316,F343,F370,F397,F424,F451,F478,F505,F532) -> 0.2838593229 | G29: =SUM(G73,G100,G127,G154,G181,G208,G235,G262,G289,G316,G343,G370,G397,G424,G451,G478,G505,G532) -> 0.432501873 | H29: -- | I29: =SUM(I73,I100,I127,I154,I181,I208,I235,I262,I289,I316,I343,I370,I397,I424,I451,I478,I505,I532) -> 0.15278301 | J29: 0.05639892209 | K29: 0.2091819321 | L29: 0.6416838051 | M29: 0 | N29: 0 | P29: =SUM(P73,P100,P127,P154,P181,P208,P235,P262,P289,P316,P343,P370,P397,P424,P451,P478,P505,P532) -> 0.0083808879 | Q29: =SUM(Q73,Q100,Q127,Q154,Q181,Q208,Q235,Q262,Q289,Q316,Q343,Q370,Q397,Q424,Q451,Q478,Q505,Q532) -> 0.01212510992 | R29: =SUM(R73,R100,R127,R154,R181,R208,R235,R262,R289,R316,R343,R370,R397,R424,R451,R478,R505,R532) -> 0.02619853997 | S29: =SUM(S73,S100,S127,S154,S181,S208,S235,S262,S289,S316,S343,S370,S397,S424,S451,S478,S505,S532) -> 0.03832364989 | T29: -- | U29: =SUM(U73,U100,U127,U154,U181,U208,U235,U262,U289,U316,U343,U370,U397,U424,U451,U478,U505,U532) -> 0.008732846658 | V29: =SUM(V73,V100,V127,V154,V181,V208,V235,V262,V289,V316,V343,V370,V397,V424,V451,V478,V505,V532) -> 0.004196423357 | W29: =SUM(W73,W100,W127,W154,W181,W208,W235,W262,W289,W316,W343,W370,W397,W424,W451,W478,W505,W532) -> 0.01292927002 | X29: =SUM(X73,X100,X127,X154,X181,X208,X235,X262,X289,X316,X343,X370,X397,X424,X451,X478,X505,X532) -> 0.05125291991 | Y29: -- | Z29: =SUM(Z73,Z100,Z127,Z154,Z181,Z208,Z235,Z262,Z289,Z316,Z343,Z370,Z397,Z424,Z451,Z478,Z505,Z532) ->  | AA29: =SUM(AA73,AA100,AA127,AA154,AA181,AA208,AA235,AA262,AA289,AA316,AA343,AA370,AA397,AA424,AA451,AA478,AA505,AA532) -> 
A30: 30 | B30: MTCO2e | C30: =IF(C14="--","--",(1*C14)+(21*C15)+(310*C16)) -> -- | D30: -- | E30: 0.01355684134 | F30: 0.02413663252 | G30: 0.03769347385 | H30: 0.004983574803 | I30: 0.01368856726 | J30: 0.004478389871 | K30: 0.02315053193 | L30: 0.06084400578 | M30: 0 | N30: 0 | P30: =IF(P14="--","--",(1*P14)+(21*P15)+(310*P16)) -> 0.0007259473345 | Q30: 0.001112424968 | R30: 0.002269511986 | S30: 0.003381936955 | T30: 0.0003708083228 | U30: 0.0007565039955 | V30: 0.0003332194865 | W30: 0.001460531805 | X30: 0.00484246876 | Y30: --
W32: Total: | Y32: Price Range per Pound | AA32: Cost Savings
U33: Solent Recovered (tonne): | W33: 451470 | X33: X | Y33: $0.13 - $1.55 | Z33: Total Costs: | AA33: =SUM(AA76,AA103,AA130,AA157,AA184,AA211,AA238,AA265,AA292,AA319,AA346,AA373,AA400,AA427,AA454,AA481,AA508,AA535) -> 337261493.7
A34: a | B34: CO2 equivalents are made up of CO2, CH4, and N2O air emissions in this formula: (1 x CO2) + (21 x CH4) + (310 x N2O).
A35: b | B35: "N2O emissions" data are limited to those from natural gas fuel.
A36: c | B36: "Combustion of solvents" -- emissions from combusting / burning solvents (not cradle-to-gate emissions of solvents).
A37: d | B37: "Natural gas fuel" -- cradle-to-gate emissions of natural gas burned as incinerator fuel. Source - ERG inhouse LCI analysis (please expand)
A38: e | B38: "Solvent fuel" -- emissions from burning a solvent as cement kiln fuel (calculations use the lower heating value of a solvent) plus the solvent manufacturing emissions.
A39: f | B39: "Steam" -- cradle-to-gate emissions of average fuel mix used in steam production for evaporation and recondensation activities. (worst case assumption - 1/2 distillation). | S39: Remanufacturing Parameters
A40: g | B40: "Bottoms incinerated" -- emissions from incinerating the least-volatile residue (mass not recovered as condensed vapor), plus cradle-to-gate emissions of natural gas (incinerator fuel). | S40: On-site Remanufacturing Recovery (fraction) | V40: ='GEMM Parameters'!B3 -> 0.92
A41: h | B41: "Bottoms recovered for energy"-- emissions from burning distillation bottoms as cement kiln fuel plus the solvent manufacturing emissions. | S41: Off-site Remanufacturing Recovery (fraction) | V41: ='GEMM Parameters'!B2 -> 0.75
A42: I | B42: "Avoided manufacturing" -- avoided emissions from producing an amount of virgin solvent equal to that recovered from distillation. | S42: On-site Remanufacturing Steam Multiplier | V42: =1+(1-'GEMM Parameters'!B2) -> 1.25
A43: j | B43: A 92% recovery rate is achieved by distilling twice (1st yields 75%; 2nd yields 75% of first residue bottoms). Due to lower payback, methanol/ethanol are usually distilled once (75%). No avoided manufacturing emissions for commodity chemicals are incl | S43: Off-site Remanufacturing Steam Multiplier | V43: 1
A44: k | B44: Tetrahydrofuran and ethanol are not on TRI. Other sources and assumptions were used to obtain THF flows. Ethanol was not included in modeling. Retaing ethanol due to miscilbility. | S44: On-site Remanufacturing Bottoms Split to ER | V44: ='GEMM Parameters'!B4 -> 0.75
A45: l | B45: chloromethane was not modeled. Though on TRI, (expand - not a liquid solvent, not used as others. Recommend removing from chemical list. | S45: Off-site Remanufacturing Bottoms Split to ER | V45: ='GEMM Parameters'!B4 -> 0.75
A46: m | B46: does not include releases and exposures from processing activities, such as distillation or fuel blending. These are incorproated in the tranportation / mixing / storage (local impacts) of sector analysis.
B48: Individual Chemicals
B50: Acetonitrile
B52: Emission Type a, b | C52: 2008 Land | E52: Offsite Reported Energy Recovery (ER) Cement Kiln (Adapted GSK Model) | G52: ER EOL | H52: Offsite Reported Thermal Treatment (I) Incineration (GSK Model) | K52: I EOL | L52: Baseline EOL ER&I | M52: GSK Solvent Recovery (Distillation) Model & Adapted Zurich | P52: 92% recovery, 8% of Mass (worst case scenario of steam required for primary / secondary distillation) (75% recovery rate*2=92%, doubled steam) | X52: New EOL ER&I | Y52: Recovered Solvent (92% j of Distilled Mass) | Z52: New Beginning of Life (BOL) Mnfctring Emissions (ME) | AA52: New EOL/BOL - Baseline EOL/BOL
G53: Cement kiln | K53: Incinerator | M53: Offsite Reported Remanufacturing Mass to steamf | N53: Baseline Beginning of Life (BOL) Mnfctring Emissions (ME) | P53: STEAM New Solvent Mass going to Steamf | Q53: Energy Recovery (ER) Cement Kiln | S53: NEW ER EOL | T53: Thermal Treatment (I) Incineration | W53: INEW EOL
C54: Underground Injection | D54: Landfill | E54: Solvent used as Fuel e | F54: Manufacturing Emissions of Solvents | G54: Offsite ER EOL (end of life) | H54: Combustion of Solvents c | I54: Manufacturing Emissions of Solvents | J54: Natural Gas Fuel d | K54: Offsite I EOL (end of life) | Q54: Solvent used as Fuel e | R54: Mnfcting Emissions of Solvents | S54: Cement kiln | T54: Solvents Combusted c | U54: Mnfcting Emissions of Solvents | V54: Natural Gas Fuel d | W54: Incinerator | AA54: Process Change Benefits
B55: Solvent Mass (tonne)
B56: Solvent Mass | C56: =SUM('GEMM (2011) Before'!C6,'GEMM (2011) Before'!J6)/2.205/1000 -> 0 | D56: =SUM('GEMM (2011) Before'!D6,'GEMM (2011) Before'!K6)/2.205/1000 -> 0 | E56: =(SUM('GEMM (2011) Before'!G6)/2.205/1000)+(M56*(1-$V$41)*$V$45) -> 0.0002570169232 | F56: =E56 -> 0.0002570169232 | G56: =E56 -> 0.0002570169232 | H56: =SUM('GEMM (2011) Before'!H6)/2.205/1000+(M56*(1-$V$41)*(1-$V$45)) -> 0.0001964978161 | I56: =H56 -> 0.0001964978161 | J56: =J73*1055/'GEMM (2011) LCA Data'!$I$22/1000 -> 9.9642248e-05 | K56: =H56 -> 0.0001964978161 | L56: =G56+K56 -> 0.0004535147392 | M56: =SUM('GEMM (2011) Before'!F6)/2.205/1000 -> 0 | N56: =M56*$V$41 -> 0 | P56: ='GEMM (2011) After'!$O6/2.205/1000 -> 0.0004535147392 | Q56: =(1-$V$40)*P56*$V$44 -> 2.721088435e-05 | R56: =Q56 -> 2.721088435e-05 | S56: =Q56 -> 2.721088435e-05 | T56: =(1-$V$40)*P56*(1-$V$44) -> 9.070294785e-06 | U56: =T56 -> 9.070294785e-06 | V56: =V73*1055/'GEMM (2011) LCA Data'!$I$22/1000 -> 4.59946365e-06 | W56: =T56 -> 9.070294785e-06 | X56: =S56+W56 -> 3.628117914e-05 | Y56: =P56*$V$40 -> 0.0004172335601 | Z56: =Y56 -> 0.0004172335601
B57: Air emission (tonne)
B58: CO2 | C58: -- | D58: -- | E58: =3.63*(E56*2*12/41) -> 0.0005461296182 | F58: =F73*1055*'GEMM (2011) LCA Data'!$P$7/1000/1000 -> 0.001543553183 | G58: =E58+F58 -> 0.002089682802 | H58: =3.63*(H56*2*12/41) -> 0.000417533896 | I58: =I73*1055*'GEMM (2011) LCA Data'!$P$7/1000/1000 -> 0.001180096726 | J58: =J73*1055*'GEMM (2011) LCA Data'!$P$7/1000000 -> 0.0003382911425 | K58: =SUM(H58:J58) -> 0.001935921764 | L58: =G58+K58 -> 0.004025604566 | M58: =M73*79.0676204311955*1055/1000000 -> 0 | N58: =N73*1055*'GEMM (2011) LCA Data'!$P$7/1000/1000 -> 0 | P58: =P73*79.0676204311955*1055/1000000 -> 4.428503911e-05 | Q58: =3.63*(Q56*2*12/41) -> 5.781981085e-05 | R58: =R73*1055*'GEMM (2011) LCA Data'!$P$7/1000/1000 -> 0.0001634189946 | S58: =Q58+R58 -> 0.0002212388054 | T58: =3.63*(T56*2*12/41) -> 1.927327028e-05 | U58: =U73*1055*'GEMM (2011) LCA Data'!$P$7/1000/1000 -> 5.447299819e-05 | V58: =V73*1055*'GEMM (2011) LCA Data'!$P$7/1000000 -> 1.561544269e-05 | W58: =SUM(T58:V58) -> 8.936171116e-05 | X58: =S58+W58 -> 0.0003106005166 | Y58: -- | Z58: =Z73*1055*'GEMM (2011) LCA Data'!$P$7/1000/1000 -> 0.002505757917 | AA58: =(Q58+T58+W58+P58-Z58)-(E58+H58+J58) -> -0.003596972742
B59: CH4 | C59: -- | D59: -- | E59: 0 | F59: =F73*1055*'GEMM (2011) LCA Data'!$P$5/1000/1000 -> 7.611016489e-06 | G59: 7.611016489e-06 | H59: 0 | I59: =I73*1055*'GEMM (2011) LCA Data'!$P$5/1000/1000 -> 5.818870212e-06 | J59: =J73*1055*'GEMM (2011) LCA Data'!$P$5/1000000 -> 1.668060091e-06 | K59: 7.486930303e-06 | L59: 1.509794679e-05 | M59: =M73*0.144574268396226*1055/1000000 -> 0 | N59: =N73*1055*'GEMM (2011) LCA Data'!$P$5/1000/1000 -> 0 | P59: =P73*0.144574268396226*1055/1000000 -> 8.097470361e-08 | Q59: 0 | R59: =R73*1055*'GEMM (2011) LCA Data'!$P$5/1000/1000 -> 8.057932021e-07 | S59: 8.057932021e-07 | T59: 0 | U59: =U73*1055*'GEMM (2011) LCA Data'!$P$5/1000/1000 -> 2.68597734e-07 | V59: =V73*1055*'GEMM (2011) LCA Data'!$P$5/1000000 -> 7.699727684e-08 | W59: 3.455950109e-07 | X59: 1.151388213e-06 | Y59: -- | Z59: =Z73*1055*'GEMM (2011) LCA Data'!$P$5/1000/1000 -> 1.235549577e-05 | AA59: -1.359698614e-05
B60: N2O | C60: -- | D60: -- | E60: 0 | F60: =F73*1055*'GEMM (2011) LCA Data'!$P$11/1000/1000 -> 2.779013663e-08 | G60: 2.779013663e-08 | H60: 0 | I60: =I73*1055*'GEMM (2011) LCA Data'!$P$11/1000/1000 -> 2.124646537e-08 | J60: =J73*1055*'GEMM (2011) LCA Data'!$P$11/1000000 -> 6.090594851e-09 | K60: 2.733706022e-08 | L60: 5.512719685e-08 | M60: 0 | N60: =N73*1055*'GEMM (2011) LCA Data'!$P$11/1000/1000 -> 0 | P60: 0 | Q60: 0 | R60: =R73*1055*'GEMM (2011) LCA Data'!$P$11/1000/1000 -> 2.94219612e-09 | S60: 2.94219612e-09 | T60: 0 | U60: =U73*1055*'GEMM (2011) LCA Data'!$P$11/1000/1000 -> 9.8073204e-10 | V60: =V73*1055*'GEMM (2011) LCA Data'!$P$11/1000000 -> 2.811404819e-10 | W60: 1.261872522e-09 | X60: 4.204068642e-09 | Y60: -- | Z60: =Z73*1055*'GEMM (2011) LCA Data'!$P$11/1000/1000 -> 4.511367384e-08 | AA60: -4.994239617e-08
B61: CO | C61: -- | D61: -- | E61: =0.0016*(E56*2*12/41) -> 2.40718289e-07 | F61: =F73*1055*'GEMM (2011) LCA Data'!$P$6/1000/1000 -> 9.694387879e-07 | G61: 1.210157077e-06 | H61: =0.0016*(H56*2*12/41) -> 1.84036979e-07 | I61: =I73*1055*'GEMM (2011) LCA Data'!$P$6/1000/1000 -> 7.411675554e-07 | J61: =J73*1055*'GEMM (2011) LCA Data'!$P$6/1000000 -> 2.124659899e-07 | K61: 1.137670524e-06 | L61: 2.347827601e-06 | M61: =M73*0.0553151275443457*1055/1000000 -> 0 | N61: =N73*1055*'GEMM (2011) LCA Data'!$P$6/1000/1000 -> 0 | P61: =P73*0.0553151275443457*1055/1000000 -> 3.098148867e-08 | Q61: =0.0016*(Q56*2*12/41) -> 2.548531608e-08 | R61: =R73*1055*'GEMM (2011) LCA Data'!$P$6/1000/1000 -> 1.026363806e-07 | S61: 1.281216967e-07 | T61: =0.0016*(T56*2*12/41) -> 8.495105359e-09 | U61: =U73*1055*'GEMM (2011) LCA Data'!$P$6/1000/1000 -> 3.421212686e-08 | V61: =V73*1055*'GEMM (2011) LCA Data'!$P$6/1000000 -> 9.807382081e-09 | W61: 5.25146143e-08 | X61: 1.80636311e-07 | Y61: -- | Z61: =Z73*1055*'GEMM (2011) LCA Data'!$P$6/1000/1000 -> 1.573757836e-06 | AA61: -2.093502569e-06
B62: NMVOC | C62: -- | D62: -- | E62: =0.00016*(E56*2*12/41) -> 2.40718289e-08 | F62: =F73*1055*'GEMM (2011) LCA Data'!$P$8/1000/1000 -> 4.75215557e-10 | G62: 2.454704446e-08 | H62: =0.00016*(H56*2*12/41) -> 1.84036979e-08 | I62: =I73*1055*'GEMM (2011) LCA Data'!$P$8/1000/1000 -> 3.633177845e-10 | J62: =J73*1055*'GEMM (2011) LCA Data'!$P$8/1000000 -> 1.041500969e-10 | K62: 1.887116578e-08 | L62: 4.341821023e-08 | M62: =M73*0.401850859732704*1055/1000000 -> 0 | N62: =N73*1055*'GEMM (2011) LCA Data'!$P$8/1000/1000 -> 0 | P62: =P73*0.401850859732704*1055/1000000 -> 2.250729305e-07 | Q62: =0.00016*(Q56*2*12/41) -> 2.548531608e-09 | R62: =R73*1055*'GEMM (2011) LCA Data'!$P$8/1000/1000 -> 5.031200049e-11 | S62: 2.598843608e-09 | T62: =0.00016*(T56*2*12/41) -> 8.495105359e-10 | U62: =U73*1055*'GEMM (2011) LCA Data'!$P$8/1000/1000 -> 1.677066683e-11 | V62: =V73*1055*'GEMM (2011) LCA Data'!$P$8/1000000 -> 4.807544939e-12 | W62: 8.710887477e-10 | X62: 3.469932356e-09 | Y62: -- | Z62: =Z73*1055*'GEMM (2011) LCA Data'!$P$8/1000/1000 -> 7.714506742e-10 | AA62: 1.859909338e-07
B63: NOx | C63: -- | D63: -- | E63: 0 | F63: =F73*1055*'GEMM (2011) LCA Data'!$P$9/1000/1000 -> 1.015042717e-06 | G63: 1.015042717e-06 | H63: 0 | I63: =I73*1055*'GEMM (2011) LCA Data'!$P$9/1000/1000 -> 7.760332455e-07 | J63: =J73*1055*'GEMM (2011) LCA Data'!$P$9/1000000 -> 2.22460725e-07 | K63: 9.984939705e-07 | L63: 2.013536687e-06 | M63: =M73*0.260265861210973*1055/1000000 -> 0 | N63: =N73*1055*'GEMM (2011) LCA Data'!$P$9/1000/1000 -> 0 | P63: =P73*0.260265861210973*1055/1000000 -> 1.457724892e-07 | Q63: 0 | R63: =R73*1055*'GEMM (2011) LCA Data'!$P$9/1000/1000 -> 1.074645577e-07 | S63: 1.074645577e-07 | T63: 0 | U63: =U73*1055*'GEMM (2011) LCA Data'!$P$9/1000/1000 -> 3.582151924e-08 | V63: =V73*1055*'GEMM (2011) LCA Data'!$P$9/1000000 -> 1.026873679e-08 | W63: 4.609025604e-08 | X63: 1.535548138e-07 | Y63: -- | Z63: =Z73*1055*'GEMM (2011) LCA Data'!$P$9/1000/1000 -> 1.647789885e-06 | AA63: -1.678387865e-06
B64: SOx | C64: -- | D64: -- | E64: 0 | F64: =F73*1055*'GEMM (2011) LCA Data'!$P$10/1000/1000 -> 1.308635139e-05 | G64: 1.308635139e-05 | H64: 0 | I64: =I73*1055*'GEMM (2011) LCA Data'!$P$10/1000/1000 -> 1.000494223e-05 | J64: =J73*1055*'GEMM (2011) LCA Data'!$P$10/1000000 -> 2.868055866e-06 | K64: 1.28729981e-05 | L64: 2.595934949e-05 | M64: =M73*0.346184729976483*1055/1000000 -> 0 | N64: =N73*1055*'GEMM (2011) LCA Data'!$P$10/1000/1000 -> 0 | P64: =P73*0.346184729976483*1055/1000000 -> 1.938948488e-07 | Q64: 0 | R64: =R73*1055*'GEMM (2011) LCA Data'!$P$10/1000/1000 -> 1.385477617e-06 | S64: 1.385477617e-06 | T64: 0 | U64: =U73*1055*'GEMM (2011) LCA Data'!$P$10/1000/1000 -> 4.618258724e-07 | V64: =V73*1055*'GEMM (2011) LCA Data'!$P$10/1000000 -> 1.323888107e-07 | W64: 5.942146831e-07 | X64: 1.9796923e-06 | Y64: -- | Z64: =Z73*1055*'GEMM (2011) LCA Data'!$P$10/1000/1000 -> 2.124399013e-05 | AA64: -2.332393647e-05
B65: Water emission (tonne)
B66: TOC | C66: -- | D66: -- | E66: 0 | F66: =F68/2.86 -> 2.386660826e-07 | G66: =E66+F66 -> 2.386660826e-07 | H66: 0 | I66: =I68/2.86 -> 1.824680003e-07 | J66: =J68/2.86 -> 5.230699053e-08 | K66: =SUM(H66:J66) -> 2.347749908e-07 | L66: =G66+K66 -> 4.734410734e-07 | M66: =M68/2.86 -> 0 | N66: =N68/2.86 -> 0 | P66: =P68/2.86 -> 1.217561622e-09 | Q66: 0 | R66: =R68/2.86 -> 2.526804497e-08 | S66: =Q66+R66 -> 2.526804497e-08 | T66: 0 | U66: =U68/2.86 -> 8.422681658e-09 | V66: =V68/2.86 -> 2.414478863e-09 | W66: =SUM(T66:V66) -> 1.083716052e-08 | X66: =S66+W66 -> 3.610520549e-08 | Y66: -- | Z66: =Z68/2.86 -> 3.874433563e-07 | AA66: =(Q66+T66+W66+P66-Z66)-(E66+H66+J66) -> -4.276956246e-07
B67: BOD | C67: -- | D67: -- | E67: 0 | F67: =F73*1055*'GEMM (2011) LCA Data'!$P$13/1000/1000 -> 4.125759719e-07 | G67: =E67+F67 -> 4.125759719e-07 | H67: 0 | I67: =I73*1055*'GEMM (2011) LCA Data'!$P$13/1000/1000 -> 3.154277798e-07 | J67: =J73*1055*'GEMM (2011) LCA Data'!$P$13/1000000 -> 9.04217609e-08 | K67: =SUM(H67:J67) -> 4.058495407e-07 | L67: =G67+K67 -> 8.184255126e-07 | M67: =M73*0.0193411218363402*1055/1000000 -> 0 | N67: =N73*1055*'GEMM (2011) LCA Data'!$P$13/1000/1000 -> 0 | P67: =P73*0.0193411218363402*1055/1000000 -> 1.083278253e-08 | Q67: 0 | R67: =R73*1055*'GEMM (2011) LCA Data'!$P$13/1000/1000 -> 4.36802251e-08 | S67: =Q67+R67 -> 4.36802251e-08 | T67: 0 | U67: =U73*1055*'GEMM (2011) LCA Data'!$P$13/1000/1000 -> 1.456007503e-08 | V67: =V73*1055*'GEMM (2011) LCA Data'!$P$13/1000000 -> 4.173848049e-09 | W67: =SUM(T67:V67) -> 1.873392308e-08 | X67: =S67+W67 -> 6.241414818e-08 | Y67: -- | Z67: =Z73*1055*'GEMM (2011) LCA Data'!$P$13/1000/1000 -> 6.697634515e-07 | AA67: =(Q67+T67+W67+P67-Z67)-(E67+H67+J67) -> -7.306185068e-07
B68: COD | C68: -- | D68: -- | E68: 0 | F68: =F73*1055*'GEMM (2011) LCA Data'!$P$14/1000/1000 -> 6.825849963e-07 | G68: =E68+F68 -> 6.825849963e-07 | H68: 0 | I68: =I73*1055*'GEMM (2011) LCA Data'!$P$14/1000/1000 -> 5.218584808e-07 | J68: =J73*1055*'GEMM (2011) LCA Data'!$P$14/1000000 -> 1.495979929e-07 | K68: =SUM(H68:J68) -> 6.714564737e-07 | L68: =G68+K68 -> 1.35404147e-06 | M68: =M73*0.00621725413258714*1055/1000000 -> 0 | N68: =N73*1055*'GEMM (2011) LCA Data'!$P$14/1000/1000 -> 0 | P68: =P73*0.00621725413258714*1055/1000000 -> 3.482226238e-09 | Q68: 0 | R68: =R73*1055*'GEMM (2011) LCA Data'!$P$14/1000/1000 -> 7.226660862e-08 | S68: =Q68+R68 -> 7.226660862e-08 | T68: 0 | U68: =U73*1055*'GEMM (2011) LCA Data'!$P$14/1000/1000 -> 2.408886954e-08 | V68: =V73*1055*'GEMM (2011) LCA Data'!$P$14/1000000 -> 6.905409547e-09 | W68: =SUM(T68:V68) -> 3.099427909e-08 | X68: =S68+W68 -> 1.032608877e-07 | Y68: -- | Z68: =Z73*1055*'GEMM (2011) LCA Data'!$P$14/1000/1000 -> 1.108087999e-06 | AA68: =(Q68+T68+W68+P68-Z68)-(E68+H68+J68) -> -1.223209486e-06
B69: TDS | C69: -- | D69: -- | E69: 0 | F69: =F73*1055*'GEMM (2011) LCA Data'!$P$15/1000/1000 -> 0.0001055494841 | G69: =E69+F69 -> 0.0001055494841 | H69: 0 | I69: =I73*1055*'GEMM (2011) LCA Data'!$P$15/1000/1000 -> 8.069602136e-05 | J69: =J73*1055*'GEMM (2011) LCA Data'!$P$15/1000000 -> 2.313263706e-05 | K69: =SUM(H69:J69) -> 0.0001038286584 | L69: =G69+K69 -> 0.0002093781426 | M69: =M73*0.359631325*1055/1000000 -> 0 | N69: =N73*1055*'GEMM (2011) LCA Data'!$P$15/1000/1000 -> 0 | P69: =P73*0.359631325*1055/1000000 -> 2.014261616e-07 | Q69: 0 | R69: =R73*1055*'GEMM (2011) LCA Data'!$P$15/1000/1000 -> 1.117473033e-05 | S69: =Q69+R69 -> 1.117473033e-05 | T69: 0 | U69: =U73*1055*'GEMM (2011) LCA Data'!$P$15/1000/1000 -> 3.72491011e-06 | V69: =V73*1055*'GEMM (2011) LCA Data'!$P$15/1000000 -> 1.067797299e-06 | W69: =SUM(T69:V69) -> 4.792707409e-06 | X69: =S69+W69 -> 1.596743774e-05 | Y69: -- | Z69: =Z73*1055*'GEMM (2011) LCA Data'!$P$15/1000/1000 -> 0.0001713458651 | AA69: =(Q69+T69+W69+P69-Z69)-(E69+H69+J69) -> -0.0001894843685
B70: Solid waste (tonne)
B71: Solid waste | C71: -- | D71: -- | E71: 0 | F71: =F73*1055*'GEMM (2011) LCA Data'!$P$17/1000/1000 -> 1.779073349e-05 | G71: =E71+F71 -> 1.779073349e-05 | H71: 0 | I71: =I73*1055*'GEMM (2011) LCA Data'!$P$17/1000/1000 -> 1.36015957e-05 | J71: =J73*1055*'GEMM (2011) LCA Data'!$P$17/1000000 -> 3.899086615e-06 | K71: =SUM(H71:J71) -> 1.750068232e-05 | L71: =G71+K71 -> 3.529141581e-05 | M71: =M73*0.169716014150943*1055/1000000 -> 0 | N71: =N73*1055*'GEMM (2011) LCA Data'!$P$17/1000/1000 -> 0 | P71: =P73*0.169716014150943*1055/1000000 -> 9.505636167e-08 | Q71: 0 | R71: =R73*1055*'GEMM (2011) LCA Data'!$P$17/1000/1000 -> 1.883539751e-06 | S71: =Q71+R71 -> 1.883539751e-06 | T71: 0 | U71: =U73*1055*'GEMM (2011) LCA Data'!$P$17/1000/1000 -> 6.278465838e-07 | V71: =V73*1055*'GEMM (2011) LCA Data'!$P$17/1000000 -> 1.79980957e-07 | W71: =SUM(T71:V71) -> 8.078275409e-07 | X71: =S71+W71 -> 2.691367292e-06 | Y71: -- | Z71: =Z73*1055*'GEMM (2011) LCA Data'!$P$17/1000/1000 -> 2.888094286e-05
B72: Energy / Carbon
B73: MMBTU | C73: -- | D73: -- | E73: =ABS('GEMM (2011) LCA Data'!$D$4*'GEMM (2011) Models'!E56*1000) -> 0.006263147295 | F73: =88.5*1000/1055*F56 -> 0.02156018739 | G73: =E73+F73 -> 0.02782333469 | H73: -- | I73: =88.5*1000/1055*I56 -> 0.01648346609 | J73: =43.34*(H56*1000*2*12/41)/1055 -> 0.004725214851 | K73: =SUM(H73:J73) -> 0.02120868094 | L73: =G73+K73 -> 0.04903201563 | M73: =(($V$43*VLOOKUP($B50,'GEMM (2011) LCA Data'!$B$50:$G$67,4,FALSE))-(VLOOKUP('GEMM (2011) Models'!$B50,'GEMM (2011) LCA Data'!$B$50:$G$67,5,FALSE)*VLOOKUP('GEMM (2011) Models'!$B50,'GEMM (2011) LCA Data'!$B$50:$G$67,6,FALSE)))*M56*1000/1055 -> 0 | N73: =88.5*1000/1055*N56 -> 0 | P73: =(($V$42*VLOOKUP($B50,'GEMM (2011) LCA Data'!$B$50:$G$67,4,FALSE))-(VLOOKUP('GEMM (2011) Models'!$B50,'GEMM (2011) LCA Data'!$B$50:$G$67,5,FALSE)*VLOOKUP('GEMM (2011) Models'!$B50,'GEMM (2011) LCA Data'!$B$50:$G$67,6,FALSE)))*P56*1000/1055 -> 0.0005308916616 | Q73: =ABS('GEMM (2011) LCA Data'!$D$4*'GEMM (2011) Models'!Q56*1000) -> 0.0006630916542 | R73: =88.5*1000/1055*R56 -> 0.002282619209 | S73: =Q73+R73 -> 0.002945710863 | T73: -- | U73: =88.5*1000/1055*U56 -> 0.0007608730696 | V73: =43.34*(T56*1000*2*12/41)/1055 -> 0.0002181148497 | W73: =SUM(T73:V73) -> 0.0009789879193 | X73: =S73+W73 -> 0.003924698782 | Y73: -- | Z73: =88.5*1000/1055*Z56 -> 0.0350001612
B74: MTCO2e | C74: =IF(C58="--","--",(1*C58)+(21*C59)+(310*C60)) -> -- | D74: -- | E74: 0.0005461296182 | F74: 0.001711999472 | G74: 0.00225812909 | H74: 0.000417533896 | I74: 0.001308879405 | J74: 0.0003752084888 | K74: 0.002101621789 | L74: 0.00435975088 | M74: 0 | N74: 0 | P74: =IF(P58="--","--",(1*P58)+(21*P59)+(310*P60)) -> 4.598550788e-05 | Q74: 5.781981085e-05 | R74: 0.0001812527326 | S74: 0.0002390725435 | T74: 1.927327028e-05 | U74: 6.041757753e-05 | V74: 1.731953905e-05 | W74: 9.701038687e-05 | X74: 0.0003360829303 | Y74: -- | Z74: 0.002779208567 | AA74: =(Q74+T74+W74+P74-Z74)-(E74+H74+J74) -> -0.003897991594
Y75: Cost per Pound | AA75: Cost Savings
U76: Solent Recovered (tonne): | W76: 16295 | X76: X | Y76: 0.65 | AA76: =W76*2204.6*Y76 -> 23350572.05
B77: n-Butanol
B79: Emission Type a, b | C79: 2008 Land | E79: Offsite Reported Energy Recovery (ER) Cement Kiln (Adapted GSK Model) | G79: ER EOL | H79: Offsite Reported Thermal Treatment (I) Incineration (GSK Model) | K79: I EOL | L79: Baseline EOL ER&I | M79: GSK Solvent Recovery (Distillation) Model & Adapted Zurich | P79: 92% recovery, 8% of Mass (worst case scenario of steam required for primary / secondary distillation) (75% recovery rate*2=92%, doubled steam) | X79: New EOL ER&I | Y79: Recovered Solvent (92% j of Distilled Mass) | Z79: New Beginning of Life (BOL) Mnfctring Emissions (ME) | AA79: New EOL/BOL - Baseline EOL/BOL
G80: Cement kiln | K80: Incinerator | M80: Offsite Reported Remanufacturing Mass to steamf | N80: Baseline Beginning of Life (BOL) Mnfctring Emissions (ME) | P80: STEAM New Solvent Mass going to Steamf | Q80: Energy Recovery (ER) Cement Kiln | S80: NEW ER EOL | T80: Thermal Treatment (I) Incineration | W80: INEW EOL
C81: Underground Injection | D81: Landfill | E81: Solvent used as Fuel e | F81: Manufacturing Emissions of Solvents | G81: Offsite ER EOL (end of life) | H81: Combustion of Solvents c | I81: Manufacturing Emissions of Solvents | J81: Natural Gas Fuel d | K81: Offsite I EOL (end of life) | Q81: Solvent used as Fuel e | R81: Mnfcting Emissions of Solvents | S81: Cement kiln | T81: Solvents Combusted c | U81: Mnfcting Emissions of Solvents | V81: Natural Gas Fuel d | W81: Incinerator | AA81: Process Change Benefits
B82: Solvent Mass (tonne)
B83: Solvent Mass | C83: =SUM('GEMM (2011) Before'!C18,'GEMM (2011) Before'!J18)/2.205/1000 -> 0 | D83: =SUM('GEMM (2011) Before'!D18,'GEMM (2011) Before'!K18)/2.205/1000 -> 0 | E83: =SUM('GEMM (2011) Before'!G18)/2.205/1000+(M83*(1-$V$41)*$V$45) -> 0.0004151730967 | F83: =E83 -> 0.0004151730967 | G83: =E83 -> 0.0004151730967 | H83: =SUM('GEMM (2011) Before'!H18)/2.205/1000+(M83*(1-$V$41)*(1-$V$45)) -> 3.834164249e-05 | I83: =H83 -> 3.834164249e-05 | J83: =J100*1055/'GEMM (2011) LCA Data'!$I$22/1000 -> 2.150972927e-05 | K83: =H83 -> 3.834164249e-05 | L83: =G83+K83 -> 0.0004535147392 | M83: =SUM('GEMM (2011) Before'!F18)/2.205/1000 -> 0 | N83: =M83*$V$41 -> 0 | P83: ='GEMM (2011) After'!$O18/2.205/1000 -> 0.0004535147392 | Q83: =(1-$V$40)*P83*$V$44 -> 2.721088435e-05 | R83: =Q83 -> 2.721088435e-05 | S83: =Q83 -> 2.721088435e-05 | T83: =(1-$V$40)*P83*(1-$V$44) -> 9.070294785e-06 | U83: =T83 -> 9.070294785e-06 | V83: =V100*1055/'GEMM (2011) LCA Data'!$I$22/1000 -> 5.088451421e-06 | W83: =T83 -> 9.070294785e-06 | X83: =S83+W83 -> 3.628117914e-05 | Y83: =P83*$V$40 -> 0.0004172335601 | Z83: =Y83 -> 0.0004172335601
B84: Air emission (tonne)
B85: CO2 | C85: -- | D85: -- | E85: =3.63*(E83*4*12/74.12) -> 0.0009759816564 | F85: =F100*1055*'GEMM (2011) LCA Data'!$P$7/1000/1000 -> 0.002741313158 | G85: =E85+F85 -> 0.003717294814 | H85: =3.63*(H83*4*12/74.12) -> 9.013286276e-05 | I85: =I100*1055*'GEMM (2011) LCA Data'!$P$7/1000/1000 -> 0.0002531629575 | J85: =J100*1055*'GEMM (2011) LCA Data'!$P$7/1000000 -> 7.30267636e-05 | K85: =SUM(H85:J85) -> 0.0004163225839 | L85: =G85+K85 -> 0.004133617398 | M85: =M100*79.0676204311955*1055/1000000 -> 0 | N85: =N100*1055*'GEMM (2011) LCA Data'!$P$7/1000/1000 -> 0 | P85: =P100*79.0676204311955*1055/1000000 -> 6.230385057e-05 | Q85: =3.63*(Q83*4*12/74.12) -> 6.396687115e-05 | R85: =R100*1055*'GEMM (2011) LCA Data'!$P$7/1000/1000 -> 0.0001796685669 | S85: =Q85+R85 -> 0.0002436354381 | T85: =3.63*(T83*4*12/74.12) -> 2.132229038e-05 | U85: =U100*1055*'GEMM (2011) LCA Data'!$P$7/1000/1000 -> 5.98895223e-05 | V85: =V100*1055*'GEMM (2011) LCA Data'!$P$7/1000000 -> 1.727558419e-05 | W85: =SUM(T85:V85) -> 9.848739688e-05 | X85: =S85+W85 -> 0.0003421228349 | Y85: -- | Z85: =Z100*1055*'GEMM (2011) LCA Data'!$P$7/1000/1000 -> 0.002754918026 | AA85: =(Q85+T85+W85+P85)-(E85+H85+J85) -> -0.0008930608738
B86: CH4 | C86: -- | D86: -- | E86: 0 | F86: =F100*1055*'GEMM (2011) LCA Data'!$P$5/1000/1000 -> 1.351698138e-05 | G86: 1.351698138e-05 | H86: 0 | I86: =I100*1055*'GEMM (2011) LCA Data'!$P$5/1000/1000 -> 1.248306482e-06 | J86: =J100*1055*'GEMM (2011) LCA Data'!$P$5/1000000 -> 3.600834152e-07 | K86: 1.608389897e-06 | L86: 1.512537128e-05 | M86: =M100*0.144574268396226*1055/1000000 -> 0 | N86: =N100*1055*'GEMM (2011) LCA Data'!$P$5/1000/1000 -> 0 | P86: =P100*0.144574268396226*1055/1000000 -> 1.139219008e-07 | Q86: 0 | R86: =R100*1055*'GEMM (2011) LCA Data'!$P$5/1000/1000 -> 8.859172719e-07 | S86: 8.859172719e-07 | T86: 0 | U86: =U100*1055*'GEMM (2011) LCA Data'!$P$5/1000/1000 -> 2.953057573e-07 | V86: =V100*1055*'GEMM (2011) LCA Data'!$P$5/1000000 -> 8.51831719e-08 | W86: 3.804889292e-07 | X86: 1.266406201e-06 | Y86: -- | Z86: =Z100*1055*'GEMM (2011) LCA Data'!$P$5/1000/1000 -> 1.358406484e-05 | AA86: 1.343274148e-07
B87: N2O | C87: -- | D87: -- | E87: 0 | F87: =F100*1055*'GEMM (2011) LCA Data'!$P$11/1000/1000 -> 4.935461118e-08 | G87: 4.935461118e-08 | H87: 0 | I87: =I100*1055*'GEMM (2011) LCA Data'!$P$11/1000/1000 -> 4.557946726e-09 | J87: =J100*1055*'GEMM (2011) LCA Data'!$P$11/1000000 -> 1.314774094e-09 | K87: 5.87272082e-09 | L87: 5.5227332e-08 | M87: 0 | N87: =N100*1055*'GEMM (2011) LCA Data'!$P$11/1000/1000 -> 0 | P87: 0 | Q87: 0 | R87: =R100*1055*'GEMM (2011) LCA Data'!$P$11/1000/1000 -> 3.234753474e-09 | S87: 3.234753474e-09 | T87: 0 | U87: =U100*1055*'GEMM (2011) LCA Data'!$P$11/1000/1000 -> 1.078251158e-09 | V87: =V100*1055*'GEMM (2011) LCA Data'!$P$11/1000000 -> 3.110296751e-10 | W87: 1.389280833e-09 | X87: 4.624034307e-09 | Y87: -- | Z87: =Z100*1055*'GEMM (2011) LCA Data'!$P$11/1000/1000 -> 4.959955327e-08 | AA87: 7.450673923e-11
B88: CO | C88: -- | D88: -- | E88: =0.0016*(E83*4*12/74.12) -> 4.301847522e-07 | F88: =F100*1055*'GEMM (2011) LCA Data'!$P$6/1000/1000 -> 1.721699863e-06 | G88: 2.151884615e-06 | H88: =0.0016*(H83*4*12/74.12) -> 3.972798359e-08 | I88: =I100*1055*'GEMM (2011) LCA Data'!$P$6/1000/1000 -> 1.590006702e-07 | J88: =J100*1055*'GEMM (2011) LCA Data'!$P$6/1000000 -> 4.586494197e-08 | K88: 2.445935958e-07 | L88: 2.396478211e-06 | M88: =M100*0.0553151275443457*1055/1000000 -> 0 | N88: =N100*1055*'GEMM (2011) LCA Data'!$P$6/1000/1000 -> 0 | P88: =P100*0.0553151275443457*1055/1000000 -> 4.358731706e-08 | Q88: =0.0016*(Q83*4*12/74.12) -> 2.819476414e-08 | R88: =R100*1055*'GEMM (2011) LCA Data'!$P$6/1000/1000 -> 1.12842032e-07 | S88: 1.410367961e-07 | T88: =0.0016*(T83*4*12/74.12) -> 9.398254715e-09 | U88: =U100*1055*'GEMM (2011) LCA Data'!$P$6/1000/1000 -> 3.761401067e-08 | V88: =V100*1055*'GEMM (2011) LCA Data'!$P$6/1000000 -> 1.085004494e-08 | W88: 5.786231032e-08 | X88: 1.988991065e-07 | Y88: -- | Z88: =Z100*1055*'GEMM (2011) LCA Data'!$P$6/1000/1000 -> 1.730244491e-06 | AA88: -3.767350315e-07
B89: NMVOC | C89: -- | D89: -- | E89: =0.00016*(E83*4*12/74.12) -> 4.301847522e-08 | F89: =F100*1055*'GEMM (2011) LCA Data'!$P$8/1000/1000 -> 8.439713468e-10 | G89: 4.386244656e-08 | H89: =0.00016*(H83*4*12/74.12) -> 3.972798359e-09 | I89: =I100*1055*'GEMM (2011) LCA Data'!$P$8/1000/1000 -> 7.794158125e-11 | J89: =J100*1055*'GEMM (2011) LCA Data'!$P$8/1000000 -> 2.248283669e-11 | K89: 4.073222777e-09 | L89: 4.793566934e-08 | M89: =M100*0.401850859732704*1055/1000000 -> 0 | N89: =N100*1055*'GEMM (2011) LCA Data'!$P$8/1000/1000 -> 0 | P89: =P100*0.401850859732704*1055/1000000 -> 3.166511877e-07 | Q89: =0.00016*(Q83*4*12/74.12) -> 2.819476414e-09 | R89: =R100*1055*'GEMM (2011) LCA Data'!$P$8/1000/1000 -> 5.531477568e-11 | S89: 2.87479119e-09 | T89: =0.00016*(T83*4*12/74.12) -> 9.398254715e-10 | U89: =U100*1055*'GEMM (2011) LCA Data'!$P$8/1000/1000 -> 1.843825856e-11 | V89: =V100*1055*'GEMM (2011) LCA Data'!$P$8/1000000 -> 5.318654682e-12 | W89: 9.635823847e-10 | X89: 3.838373575e-09 | Y89: -- | Z89: =Z100*1055*'GEMM (2011) LCA Data'!$P$8/1000/1000 -> 8.481598938e-10 | AA89: 2.743603155e-07
B90: NOx | C90: -- | D90: -- | E90: 0 | F90: =F100*1055*'GEMM (2011) LCA Data'!$P$9/1000/1000 -> 1.802691339e-06 | G90: 1.802691339e-06 | H90: 0 | I90: =I100*1055*'GEMM (2011) LCA Data'!$P$9/1000/1000 -> 1.664803124e-07 | J90: =J100*1055*'GEMM (2011) LCA Data'!$P$9/1000000 -> 4.802250114e-08 | K90: 2.145028135e-07 | L90: 2.017194152e-06 | M90: =M100*0.260265861210973*1055/1000000 -> 0 | N90: =N100*1055*'GEMM (2011) LCA Data'!$P$9/1000/1000 -> 0 | P90: =P100*0.260265861210973*1055/1000000 -> 2.050847773e-07 | Q90: 0 | R90: =R100*1055*'GEMM (2011) LCA Data'!$P$9/1000/1000 -> 1.181502991e-07 | S90: 1.181502991e-07 | T90: 0 | U90: =U100*1055*'GEMM (2011) LCA Data'!$P$9/1000/1000 -> 3.938343302e-08 | V90: =V100*1055*'GEMM (2011) LCA Data'!$P$9/1000000 -> 1.136044815e-08 | W90: 5.074388117e-08 | X90: 1.688941802e-07 | Y90: -- | Z90: =Z100*1055*'GEMM (2011) LCA Data'!$P$9/1000/1000 -> 1.811637919e-06 | AA90: 2.078061573e-07
B91: SOx | C91: -- | D91: -- | E91: 0 | F91: =F100*1055*'GEMM (2011) LCA Data'!$P$10/1000/1000 -> 2.324104387e-05 | G91: 2.324104387e-05 | H91: 0 | I91: =I100*1055*'GEMM (2011) LCA Data'!$P$10/1000/1000 -> 2.146333185e-06 | J91: =J100*1055*'GEMM (2011) LCA Data'!$P$10/1000000 -> 6.191259878e-07 | K91: 2.765459173e-06 | L91: 2.600650304e-05 | M91: =M100*0.346184729976483*1055/1000000 -> 0 | N91: =N100*1055*'GEMM (2011) LCA Data'!$P$10/1000/1000 -> 0 | P91: =P100*0.346184729976483*1055/1000000 -> 2.727872872e-07 | Q91: 0 | R91: =R100*1055*'GEMM (2011) LCA Data'!$P$10/1000/1000 -> 1.523242623e-06 | S91: 1.523242623e-06 | T91: 0 | U91: =U100*1055*'GEMM (2011) LCA Data'!$P$10/1000/1000 -> 5.077475411e-07 | V91: =V100*1055*'GEMM (2011) LCA Data'!$P$10/1000000 -> 1.46463606e-07 | W91: 6.542111471e-07 | X91: 2.17745377e-06 | Y91: -- | Z91: =Z100*1055*'GEMM (2011) LCA Data'!$P$10/1000/1000 -> 2.335638689e-05 | AA91: 3.078724465e-07
B92: Water emission (tonne)
B93: TOC | C93: -- | D93: -- | E93: 0 | F93: =F95/2.86 -> 4.238651959e-07 | G93: =E93+F93 -> 4.238651959e-07 | H93: 0 | I93: =I95/2.86 -> 3.914436637e-08 | J93: =J95/2.86 -> 1.129148758e-08 | K93: =SUM(H93:J93) -> 5.043585395e-08 | L93: =G93+K93 -> 4.743010499e-07 | M93: =M95/2.86 -> 0 | N93: =N95/2.86 -> 0 | P93: =P95/2.86 -> 1.712966249e-09 | Q93: 0 | R93: =R95/2.86 -> 2.778057374e-08 | S93: =Q93+R93 -> 2.778057374e-08 | T93: 0 | U93: =U95/2.86 -> 9.260191246e-09 | V93: =V95/2.86 -> 2.671171974e-09 | W93: =SUM(T93:V93) -> 1.193136322e-08 | X93: =S93+W93 -> 3.971193696e-08 | Y93: -- | Z93: =Z95/2.86 -> 4.259687973e-07 | AA93: =(Q93+T93+W93+P93)-(E93+H93+J93) -> 2.352841893e-09
B94: BOD | C94: -- | D94: -- | E94: 0 | F94: =F100*1055*'GEMM (2011) LCA Data'!$P$13/1000/1000 -> 7.327249572e-07 | G94: =E94+F94 -> 7.327249572e-07 | H94: 0 | I94: =I100*1055*'GEMM (2011) LCA Data'!$P$13/1000/1000 -> 6.766786811e-08 | J94: =J100*1055*'GEMM (2011) LCA Data'!$P$13/1000000 -> 1.951930668e-08 | K94: =SUM(H94:J94) -> 8.718717479e-08 | L94: =G94+K94 -> 8.19912132e-07 | M94: =M100*0.0193411218363402*1055/1000000 -> 0 | N94: =N100*1055*'GEMM (2011) LCA Data'!$P$13/1000/1000 -> 0 | P94: =P100*0.0193411218363402*1055/1000000 -> 1.524045315e-08 | Q94: 0 | R94: =R100*1055*'GEMM (2011) LCA Data'!$P$13/1000/1000 -> 4.802356952e-08 | S94: =Q94+R94 -> 4.802356952e-08 | T94: 0 | U94: =U100*1055*'GEMM (2011) LCA Data'!$P$13/1000/1000 -> 1.600785651e-08 | V94: =V100*1055*'GEMM (2011) LCA Data'!$P$13/1000000 -> 4.617586887e-09 | W94: =SUM(T94:V94) -> 2.062544339e-08 | X94: =S94+W94 -> 6.864901291e-08 | Y94: -- | Z94: =Z100*1055*'GEMM (2011) LCA Data'!$P$13/1000/1000 -> 7.363613993e-07 | AA94: =(Q94+T94+W94+P94)-(E94+H94+J94) -> 1.634658986e-08
B95: COD | C95: -- | D95: -- | E95: 0 | F95: =F100*1055*'GEMM (2011) LCA Data'!$P$14/1000/1000 -> 1.21225446e-06 | G95: =E95+F95 -> 1.21225446e-06 | H95: 0 | I95: =I100*1055*'GEMM (2011) LCA Data'!$P$14/1000/1000 -> 1.119528878e-07 | J95: =J100*1055*'GEMM (2011) LCA Data'!$P$14/1000000 -> 3.229365447e-08 | K95: =SUM(H95:J95) -> 1.442465423e-07 | L95: =G95+K95 -> 1.356501003e-06 | M95: =M100*0.00621725413258714*1055/1000000 -> 0 | N95: =N100*1055*'GEMM (2011) LCA Data'!$P$14/1000/1000 -> 0 | P95: =P100*0.00621725413258714*1055/1000000 -> 4.899083472e-09 | Q95: 0 | R95: =R100*1055*'GEMM (2011) LCA Data'!$P$14/1000/1000 -> 7.945244089e-08 | S95: =Q95+R95 -> 7.945244089e-08 | T95: 0 | U95: =U100*1055*'GEMM (2011) LCA Data'!$P$14/1000/1000 -> 2.648414696e-08 | V95: =V100*1055*'GEMM (2011) LCA Data'!$P$14/1000000 -> 7.639551846e-09 | W95: =SUM(T95:V95) -> 3.412369881e-08 | X95: =S95+W95 -> 1.135761397e-07 | Y95: -- | Z95: =Z100*1055*'GEMM (2011) LCA Data'!$P$14/1000/1000 -> 1.21827076e-06 | AA95: =(Q95+T95+W95+P95)-(E95+H95+J95) -> 6.729127814e-09
B96: TDS | C96: -- | D96: -- | E96: 0 | F96: =F100*1055*'GEMM (2011) LCA Data'!$P$15/1000/1000 -> 0.0001874533335 | G96: =E96+F96 -> 0.0001874533335 | H96: 0 | I96: =I100*1055*'GEMM (2011) LCA Data'!$P$15/1000/1000 -> 1.731149911e-05 | J96: =J100*1055*'GEMM (2011) LCA Data'!$P$15/1000000 -> 4.993632425e-06 | K96: =SUM(H96:J96) -> 2.230513154e-05 | L96: =G96+K96 -> 0.000209758465 | M96: =M100*0.359631325*1055/1000000 -> 0 | N96: =N100*1055*'GEMM (2011) LCA Data'!$P$15/1000/1000 -> 0 | P96: =P100*0.359631325*1055/1000000 -> 2.833829602e-07 | Q96: 0 | R96: =R100*1055*'GEMM (2011) LCA Data'!$P$15/1000/1000 -> 1.228588996e-05 | S96: =Q96+R96 -> 1.228588996e-05 | T96: 0 | U96: =U100*1055*'GEMM (2011) LCA Data'!$P$15/1000/1000 -> 4.095296652e-06 | V96: =V100*1055*'GEMM (2011) LCA Data'!$P$15/1000000 -> 1.181319192e-06 | W96: =SUM(T96:V96) -> 5.276615844e-06 | X96: =S96+W96 -> 1.75625058e-05 | Y96: -- | Z96: =Z100*1055*'GEMM (2011) LCA Data'!$P$15/1000/1000 -> 0.000188383646 | AA96: =(Q96+T96+W96+P96)-(E96+H96+J96) -> 5.663663796e-07
B97: Solid waste (tonne)
B98: Solid waste | C98: -- | D98: -- | E98: 0 | F98: =F100*1055*'GEMM (2011) LCA Data'!$P$17/1000/1000 -> 3.159591281e-05 | G98: =E98+F98 -> 3.159591281e-05 | H98: 0 | I98: =I100*1055*'GEMM (2011) LCA Data'!$P$17/1000/1000 -> 2.917913522e-06 | J98: =J100*1055*'GEMM (2011) LCA Data'!$P$17/1000000 -> 8.416941527e-07 | K98: =SUM(H98:J98) -> 3.759607675e-06 | L98: =G98+K98 -> 3.535552048e-05 | M98: =M100*0.169716014150943*1055/1000000 -> 0 | N98: =N100*1055*'GEMM (2011) LCA Data'!$P$17/1000/1000 -> 0 | P98: =P100*0.169716014150943*1055/1000000 -> 1.337331404e-07 | Q98: 0 | R98: =R100*1055*'GEMM (2011) LCA Data'!$P$17/1000/1000 -> 2.07082958e-06 | S98: =Q98+R98 -> 2.07082958e-06 | T98: 0 | U98: =U100*1055*'GEMM (2011) LCA Data'!$P$17/1000/1000 -> 6.902765266e-07 | V98: =V100*1055*'GEMM (2011) LCA Data'!$P$17/1000000 -> 1.991154679e-07 | W98: =SUM(T98:V98) -> 8.893919945e-07 | X98: =S98+W98 -> 2.960221574e-06 | Y98: -- | Z98: =Z100*1055*'GEMM (2011) LCA Data'!$P$17/1000/1000 -> 3.175272022e-05
B99: Energy / Carbon
B100: MMBTU | C100: -- | D100: -- | E100: =ABS('GEMM (2011) LCA Data'!$D$5*'GEMM (2011) Models'!E83*1000) -> 0.01121170225 | F100: =97.3*1000/1055*F83 -> 0.03829037186 | G100: =E100+F100 -> 0.04950207411 | H100: -- | I100: =97.3*1000/1055*I83 -> 0.003536153379 | J100: =43.34*(H83*1000*4*12/74.12)/1055 -> 0.0010200301 | K100: =SUM(H100:J100) -> 0.004556183479 | L100: =G100+K100 -> 0.05405825759 | M100: =(($V$43*VLOOKUP($B77,'GEMM (2011) LCA Data'!$B$50:$G$67,4,FALSE))-(VLOOKUP('GEMM (2011) Models'!$B77,'GEMM (2011) LCA Data'!$B$50:$G$67,5,FALSE)*VLOOKUP('GEMM (2011) Models'!$B77,'GEMM (2011) LCA Data'!$B$50:$G$67,6,FALSE)))*M83*1000/1055 -> 0 | N100: =97.3*1000/1055*N83 -> 0 | P100: =(($V$42*VLOOKUP($B77,'GEMM (2011) LCA Data'!$B$50:$G$67,4,FALSE))-(VLOOKUP('GEMM (2011) Models'!$B77,'GEMM (2011) LCA Data'!$B$50:$G$67,5,FALSE)*VLOOKUP('GEMM (2011) Models'!$B77,'GEMM (2011) LCA Data'!$B$50:$G$67,6,FALSE)))*P83*1000/1055 -> 0.0007469022364 | Q100: =ABS('GEMM (2011) LCA Data'!$D$5*'GEMM (2011) Models'!Q83*1000) -> 0.0007348268367 | R100: =97.3*1000/1055*R83 -> 0.002509591514 | S100: =Q100+R100 -> 0.003244418351 | T100: -- | U100: =97.3*1000/1055*U83 -> 0.0008365305048 | V100: =43.34*(T83*1000*4*12/74.12)/1055 -> 0.0002413035304 | W100: =SUM(T100:V100) -> 0.001077834035 | X100: =S100+W100 -> 0.004322252386 | Y100: -- | Z100: =97.3*1000/1055*Z83 -> 0.03848040322
B101: MTCO2e | C101: =IF(C85="--","--",(1*C85)+(21*C86)+(310*C87)) -> -- | D101: -- | E101: 0.0009759816564 | F101: 0.003040469696 | G101: 0.004016451353 | H101: 9.013286276e-05 | I101: 0.0002807903571 | J101: 8.099609529e-05 | K101: 0.0004519193152 | L101: 0.004468370668 | M101: 0 | N101: 0 | P101: =IF(P85="--","--",(1*P85)+(21*P86)+(310*P87)) -> 6.469621048e-05 | Q101: 6.396687115e-05 | R101: 0.0001992756032 | S101: 0.0002632424743 | T101: 2.132229038e-05 | U101: 6.642520106e-05 | V101: 1.916085e-05 | W101: 0.0001069083415 | X101: 0.0003701508158 | Y101: -- | Z101: 0.003055559249 | AA101: =(Q101+T101+W101+P101)-(E101+H101+J101) -> -0.000890216901
Y102: Cost per Pound | AA102: Cost Savings
U103: Solent Recovered (tonne): | W103: 13028 | X103: X | Y103: 0.54 | AA103: =W103*2204.6*Y103 -> 15509625.55
B104: Chlorobenzene
B106: Emission Type a, b | C106: 2008 Land | E106: Offsite Reported Energy Recovery (ER) Cement Kiln (Adapted GSK Model) | G106: ER EOL | H106: Offsite Reported Thermal Treatment (I) Incineration (GSK Model) | K106: I EOL | L106: Baseline EOL ER&I | M106: GSK Solvent Recovery (Distillation) Model & Adapted Zurich | P106: 92% recovery, 8% of Mass (worst case scenario of steam required for primary / secondary distillation) (75% recovery rate*2=92%, doubled steam) | X106: New EOL ER&I | Y106: Recovered Solvent (92% j of Distilled Mass) | Z106: New Beginning of Life (BOL) Mnfctring Emissions (ME) | AA106: New EOL/BOL - Baseline EOL/BOL
G107: Cement kiln | K107: Incinerator | M107: Offsite Reported Remanufacturing Mass to steamf | N107: Baseline Beginning of Life (BOL) Mnfctring Emissions (ME) | P107: STEAM New Solvent Mass going to Steamf | Q107: Energy Recovery (ER) Cement Kiln | S107: NEW ER EOL | T107: Thermal Treatment (I) Incineration | W107: INEW EOL
C108: Underground Injection | D108: Landfill | E108: Solvent used as Fuel e | F108: Manufacturing Emissions of Solvents | G108: Offsite ER EOL (end of life) | H108: Combustion of Solvents c | I108: Manufacturing Emissions of Solvents | J108: Natural Gas Fuel d | K108: Offsite I EOL (end of life) | Q108: Solvent used as Fuel e | R108: Mnfcting Emissions of Solvents | S108: Cement kiln | T108: Solvents Combusted c | U108: Mnfcting Emissions of Solvents | V108: Natural Gas Fuel d | W108: Incinerator | AA108: Process Change Benefits
B109: Solvent Mass (tonne)
B110: Solvent Mass | C110: =SUM('GEMM (2011) Before'!C7,'GEMM (2011) Before'!J7)/2.205/1000 -> 0 | D110: =SUM('GEMM (2011) Before'!D7,'GEMM (2011) Before'!K7)/2.205/1000 -> 0 | E110: =SUM('GEMM (2011) Before'!G7)/2.205/1000+(M110*(1-$V$41)*$V$45) -> 2.833912067e-05 | F110: =E110 -> 2.833912067e-05 | G110: =E110 -> 2.833912067e-05 | H110: =SUM('GEMM (2011) Before'!H7)/2.205/1000+(M110*(1-$V$41)*(1-$V$45)) -> 0.0004251756186 | I110: =H110 -> 0.0004251756186 | J110: =J127*1055/'GEMM (2011) LCA Data'!$I$22/1000 -> 0.0002355999361 | K110: =H110 -> 0.0004251756186 | L110: =G110+K110 -> 0.0004535147392 | M110: =SUM('GEMM (2011) Before'!F7)/2.205/1000 -> 0 | N110: =M110*$V$41 -> 0 | P110: ='GEMM (2011) After'!$O7/2.205/1000 -> 0.0004535147392 | Q110: =(1-$V$40)*P110*$V$44 -> 2.721088435e-05 | R110: =Q110 -> 2.721088435e-05 | S110: =Q110 -> 2.721088435e-05 | T110: =(1-$V$40)*P110*(1-$V$44) -> 9.070294785e-06 | U110: =T110 -> 9.070294785e-06 | V110: =V127*1055/'GEMM (2011) LCA Data'!$I$22/1000 -> 5.026066355e-06 | W110: =T110 -> 9.070294785e-06 | X110: =S110+W110 -> 3.628117914e-05 | Y110: =P110*$V$40 -> 0.0004172335601 | Z110: =Y110 -> 0.0004172335601
B111: Air emission (tonne)
B112: CO2 | C112: -- | D112: -- | E112: =3.63*(E110*6*12/112.56) -> 6.580235056e-05 | F112: =F127*1055*'GEMM (2011) LCA Data'!$P$7/1000/1000 -> 0.0001636562281 | G112: =E112+F112 -> 0.0002294585787 | H112: =3.63*(H110*6*12/112.56) -> 0.0009872414682 | I112: =I127*1055*'GEMM (2011) LCA Data'!$P$7/1000/1000 -> 0.002455356284 | J112: =J127*1055*'GEMM (2011) LCA Data'!$P$7/1000000 -> 0.0007998752853 | K112: =SUM(H112:J112) -> 0.004242473037 | L112: =G112+K112 -> 0.004471931616 | M112: =M127*79.0676204311955*1055/1000000 -> 0 | N112: =N127*1055*'GEMM (2011) LCA Data'!$P$7/1000/1000 -> 0 | P112: =P127*79.0676204311955*1055/1000000 -> 3.760642491e-05 | Q112: =3.63*(Q110*6*12/112.56) -> 6.318262913e-05 | R112: =R127*1055*'GEMM (2011) LCA Data'!$P$7/1000/1000 -> 0.0001571407507 | S112: =Q112+R112 -> 0.0002203233798 | T112: =3.63*(T110*6*12/112.56) -> 2.106087638e-05 | U112: =U127*1055*'GEMM (2011) LCA Data'!$P$7/1000/1000 -> 5.238025023e-05 | V112: =V127*1055*'GEMM (2011) LCA Data'!$P$7/1000000 -> 1.706378332e-05 | W112: =SUM(T112:V112) -> 9.050490993e-05 | X112: =S112+W112 -> 0.0003108282898 | Y112: -- | Z112: =Z127*1055*'GEMM (2011) LCA Data'!$P$7/1000/1000 -> 0.002409491511 | AA112: =(Q112+T112+W112+P112)-(E112+H112+J112) -> -0.001640564264
B113: CH4 | C113: -- | D113: -- | E113: 0 | F113: =F127*1055*'GEMM (2011) LCA Data'!$P$5/1000/1000 -> 8.069629632e-07 | G113: 8.069629632e-07 | H113: 0 | I113: =I127*1055*'GEMM (2011) LCA Data'!$P$5/1000/1000 -> 1.210697329e-05 | J113: =J127*1055*'GEMM (2011) LCA Data'!$P$5/1000000 -> 3.944058456e-06 | K113: 1.605103175e-05 | L113: 1.685799471e-05 | M113: =M127*0.144574268396226*1055/1000000 -> 0 | N113: =N127*1055*'GEMM (2011) LCA Data'!$P$5/1000/1000 -> 0 | P113: =P127*0.144574268396226*1055/1000000 -> 6.876293151e-08 | Q113: 0 | R113: =R127*1055*'GEMM (2011) LCA Data'!$P$5/1000/1000 -> 7.748361751e-07 | S113: 7.748361751e-07 | T113: 0 | U113: =U127*1055*'GEMM (2011) LCA Data'!$P$5/1000/1000 -> 2.58278725e-07 | V113: =V127*1055*'GEMM (2011) LCA Data'!$P$5/1000000 -> 8.413881531e-08 | W113: 3.424175404e-07 | X113: 1.117253715e-06 | Y113: -- | Z113: =Z127*1055*'GEMM (2011) LCA Data'!$P$5/1000/1000 -> 1.188082135e-05 | AA113: -3.532877984e-06
B114: N2O | C114: -- | D114: -- | E114: 0 | F114: =F127*1055*'GEMM (2011) LCA Data'!$P$11/1000/1000 -> 2.946467274e-09 | G114: 2.946467274e-09 | H114: 0 | I114: =I127*1055*'GEMM (2011) LCA Data'!$P$11/1000/1000 -> 4.420624267e-08 | J114: =J127*1055*'GEMM (2011) LCA Data'!$P$11/1000000 -> 1.440095729e-08 | K114: 5.860719996e-08 | L114: 6.155366723e-08 | M114: 0 | N114: =N127*1055*'GEMM (2011) LCA Data'!$P$11/1000/1000 -> 0 | P114: 0 | Q114: 0 | R114: =R127*1055*'GEMM (2011) LCA Data'!$P$11/1000/1000 -> 2.829162597e-09 | S114: 2.829162597e-09 | T114: 0 | U114: =U127*1055*'GEMM (2011) LCA Data'!$P$11/1000/1000 -> 9.430541989e-10 | V114: =V127*1055*'GEMM (2011) LCA Data'!$P$11/1000000 -> 3.072164115e-10 | W114: 1.25027061e-09 | X114: 4.079433207e-09 | Y114: -- | Z114: =Z127*1055*'GEMM (2011) LCA Data'!$P$11/1000/1000 -> 4.338049315e-08 | AA114: -1.315068668e-08
B115: CO | C115: -- | D115: -- | E115: =0.0016*(E110*6*12/112.56) -> 2.900379088e-08 | F115: =F127*1055*'GEMM (2011) LCA Data'!$P$6/1000/1000 -> 1.027853767e-07 | G115: 1.317891676e-07 | H115: =0.0016*(H110*6*12/112.56) -> 4.351477546e-07 | I115: =I127*1055*'GEMM (2011) LCA Data'!$P$6/1000/1000 -> 1.542102757e-06 | J115: =J127*1055*'GEMM (2011) LCA Data'!$P$6/1000000 -> 5.023669643e-07 | K115: 2.479617476e-06 | L115: 2.611406643e-06 | M115: =M127*0.0553151275443457*1055/1000000 -> 0 | N115: =N127*1055*'GEMM (2011) LCA Data'!$P$6/1000/1000 -> 0 | P115: =P127*0.0553151275443457*1055/1000000 -> 2.630917914e-08 | Q115: =0.0016*(Q110*6*12/112.56) -> 2.784909273e-08 | R115: =R127*1055*'GEMM (2011) LCA Data'!$P$6/1000/1000 -> 9.869328801e-08 | S115: 1.265423807e-07 | T115: =0.0016*(T110*6*12/112.56) -> 9.28303091e-09 | U115: =U127*1055*'GEMM (2011) LCA Data'!$P$6/1000/1000 -> 3.289776267e-08 | V115: =V127*1055*'GEMM (2011) LCA Data'!$P$6/1000000 -> 1.0717022e-08 | W115: 5.289781557e-08 | X115: 1.794401963e-07 | Y115: -- | Z115: =Z127*1055*'GEMM (2011) LCA Data'!$P$6/1000/1000 -> 1.513297083e-06 | AA115: -8.501793914e-07
B116: NMVOC | C116: -- | D116: -- | E116: =0.00016*(E110*6*12/112.56) -> 2.900379088e-09 | F116: =F127*1055*'GEMM (2011) LCA Data'!$P$8/1000/1000 -> 5.038503787e-11 | G116: 2.950764126e-09 | H116: =0.00016*(H110*6*12/112.56) -> 4.351477546e-08 | I116: =I127*1055*'GEMM (2011) LCA Data'!$P$8/1000/1000 -> 7.559334634e-10 | J116: =J127*1055*'GEMM (2011) LCA Data'!$P$8/1000000 -> 2.462585568e-10 | K116: 4.451696748e-08 | L116: 4.746773161e-08 | M116: =M127*0.401850859732704*1055/1000000 -> 0 | N116: =N127*1055*'GEMM (2011) LCA Data'!$P$8/1000/1000 -> 0 | P116: =P127*0.401850859732704*1055/1000000 -> 1.911297456e-07 | Q116: =0.00016*(Q110*6*12/112.56) -> 2.784909273e-09 | R116: =R127*1055*'GEMM (2011) LCA Data'!$P$8/1000/1000 -> 4.837911008e-11 | S116: 2.833288383e-09 | T116: =0.00016*(T110*6*12/112.56) -> 9.28303091e-10 | U116: =U127*1055*'GEMM (2011) LCA Data'!$P$8/1000/1000 -> 1.612637003e-11 | V116: =V127*1055*'GEMM (2011) LCA Data'!$P$8/1000000 -> 5.253447295e-12 | W116: 9.496829083e-10 | X116: 3.782971291e-09 | Y116: -- | Z116: =Z127*1055*'GEMM (2011) LCA Data'!$P$8/1000/1000 -> 7.418130212e-10 | AA116: 1.491312278e-07
B117: NOx | C117: -- | D117: -- | E117: 0 | F117: =F127*1055*'GEMM (2011) LCA Data'!$P$9/1000/1000 -> 1.076205628e-07 | G117: 1.076205628e-07 | H117: 0 | I117: =I127*1055*'GEMM (2011) LCA Data'!$P$9/1000/1000 -> 1.614645701e-06 | J117: =J127*1055*'GEMM (2011) LCA Data'!$P$9/1000000 -> 5.259990982e-07 | K117: 2.1406448e-06 | L117: 2.248265362e-06 | M117: =M127*0.260265861210973*1055/1000000 -> 0 | N117: =N127*1055*'GEMM (2011) LCA Data'!$P$9/1000/1000 -> 0 | P117: =P127*0.260265861210973*1055/1000000 -> 1.237885814e-07 | Q117: 0 | R117: =R127*1055*'GEMM (2011) LCA Data'!$P$9/1000/1000 -> 1.033359758e-07 | S117: 1.033359758e-07 | T117: 0 | U117: =U127*1055*'GEMM (2011) LCA Data'!$P$9/1000/1000 -> 3.444532528e-08 | V117: =V127*1055*'GEMM (2011) LCA Data'!$P$9/1000000 -> 1.12211676e-08 | W117: 4.566649289e-08 | X117: 1.490024687e-07 | Y117: -- | Z117: =Z127*1055*'GEMM (2011) LCA Data'!$P$9/1000/1000 -> 1.584484963e-06 | AA117: -3.56544024e-07
B118: SOx | C118: -- | D118: -- | E118: 0 | F118: =F127*1055*'GEMM (2011) LCA Data'!$P$10/1000/1000 -> 1.3874889e-06 | G118: 1.3874889e-06 | H118: 0 | I118: =I127*1055*'GEMM (2011) LCA Data'!$P$10/1000/1000 -> 2.081668158e-05 | J118: =J127*1055*'GEMM (2011) LCA Data'!$P$10/1000000 -> 6.781398377e-06 | K118: 2.759807995e-05 | L118: 2.898556885e-05 | M118: =M127*0.346184729976483*1055/1000000 -> 0 | N118: =N127*1055*'GEMM (2011) LCA Data'!$P$10/1000/1000 -> 0 | P118: =P127*0.346184729976483*1055/1000000 -> 1.646536216e-07 | Q118: 0 | R118: =R127*1055*'GEMM (2011) LCA Data'!$P$10/1000/1000 -> 1.332250229e-06 | S118: 1.332250229e-06 | T118: 0 | U118: =U127*1055*'GEMM (2011) LCA Data'!$P$10/1000/1000 -> 4.440834096e-07 | V118: =V127*1055*'GEMM (2011) LCA Data'!$P$10/1000000 -> 1.446679434e-07 | W118: 5.88751353e-07 | X118: 1.921001582e-06 | Y118: -- | Z118: =Z127*1055*'GEMM (2011) LCA Data'!$P$10/1000/1000 -> 2.042783684e-05 | AA118: -6.027993402e-06
B119: Water emission (tonne)
B120: TOC | C120: -- | D120: -- | E120: 0 | F120: =F122/2.86 -> 2.530472632e-08 | G120: =E120+F120 -> 2.530472632e-08 | H120: 0 | I120: =I122/2.86 -> 3.796501941e-07 | J120: =J122/2.86 -> 1.236776957e-07 | K120: =SUM(H120:J120) -> 5.033278898e-07 | L120: =G120+K120 -> 5.286326161e-07 | M120: =M122/2.86 -> 0 | N120: =N122/2.86 -> 0 | P120: =P122/2.86 -> 1.033941498e-09 | Q120: 0 | R120: =R122/2.86 -> 2.429729522e-08 | S120: =Q120+R120 -> 2.429729522e-08 | T120: 0 | U120: =U122/2.86 -> 8.099098407e-09 | V120: =V122/2.86 -> 2.638423064e-09 | W120: =SUM(T120:V120) -> 1.073752147e-08 | X120: =S120+W120 -> 3.503481669e-08 | Y120: -- | Z120: =Z122/2.86 -> 3.725585267e-07 | AA120: =(Q120+T120+W120+P120)-(E120+H120+J120) -> -1.119062327e-07
B121: BOD | C121: -- | D121: -- | E121: 0 | F121: =F127*1055*'GEMM (2011) LCA Data'!$P$13/1000/1000 -> 4.37436352e-08 | G121: =E121+F121 -> 4.37436352e-08 | H121: 0 | I121: =I127*1055*'GEMM (2011) LCA Data'!$P$13/1000/1000 -> 6.562916108e-07 | J121: =J127*1055*'GEMM (2011) LCA Data'!$P$13/1000000 -> 2.137984792e-07 | K121: =SUM(H121:J121) -> 8.7009009e-07 | L121: =G121+K121 -> 9.138337252e-07 | M121: =M127*0.0193411218363402*1055/1000000 -> 0 | N121: =N127*1055*'GEMM (2011) LCA Data'!$P$13/1000/1000 -> 0 | P121: =P127*0.0193411218363402*1055/1000000 -> 9.199093663e-09 | Q121: 0 | R121: =R127*1055*'GEMM (2011) LCA Data'!$P$13/1000/1000 -> 4.200211476e-08 | S121: =Q121+R121 -> 4.200211476e-08 | T121: 0 | U121: =U127*1055*'GEMM (2011) LCA Data'!$P$13/1000/1000 -> 1.400070492e-08 | V121: =V127*1055*'GEMM (2011) LCA Data'!$P$13/1000000 -> 4.560974681e-09 | W121: =SUM(T121:V121) -> 1.85616796e-08 | X121: =S121+W121 -> 6.056379436e-08 | Y121: -- | Z121: =Z127*1055*'GEMM (2011) LCA Data'!$P$13/1000/1000 -> 6.440324263e-07 | AA121: =(Q121+T121+W121+P121)-(E121+H121+J121) -> -1.86037706e-07
B122: COD | C122: -- | D122: -- | E122: 0 | F122: =F127*1055*'GEMM (2011) LCA Data'!$P$14/1000/1000 -> 7.237151726e-08 | G122: =E122+F122 -> 7.237151726e-08 | H122: 0 | I122: =I127*1055*'GEMM (2011) LCA Data'!$P$14/1000/1000 -> 1.085799555e-06 | J122: =J127*1055*'GEMM (2011) LCA Data'!$P$14/1000000 -> 3.537182097e-07 | K122: =SUM(H122:J122) -> 1.439517765e-06 | L122: =G122+K122 -> 1.511889282e-06 | M122: =M127*0.00621725413258714*1055/1000000 -> 0 | N122: =N127*1055*'GEMM (2011) LCA Data'!$P$14/1000/1000 -> 0 | P122: =P127*0.00621725413258714*1055/1000000 -> 2.957072686e-09 | Q122: 0 | R122: =R127*1055*'GEMM (2011) LCA Data'!$P$14/1000/1000 -> 6.949026434e-08 | S122: =Q122+R122 -> 6.949026434e-08 | T122: 0 | U122: =U127*1055*'GEMM (2011) LCA Data'!$P$14/1000/1000 -> 2.316342145e-08 | V122: =V127*1055*'GEMM (2011) LCA Data'!$P$14/1000000 -> 7.545889963e-09 | W122: =SUM(T122:V122) -> 3.070931141e-08 | X122: =S122+W122 -> 1.001995757e-07 | Y122: -- | Z122: =Z127*1055*'GEMM (2011) LCA Data'!$P$14/1000/1000 -> 1.065517386e-06 | AA122: =(Q122+T122+W122+P122)-(E122+H122+J122) -> -3.200518256e-07
B123: TDS | C123: -- | D123: -- | E123: 0 | F123: =F127*1055*'GEMM (2011) LCA Data'!$P$15/1000/1000 -> 1.119095256e-05 | G123: =E123+F123 -> 1.119095256e-05 | H123: 0 | I123: =I127*1055*'GEMM (2011) LCA Data'!$P$15/1000/1000 -> 0.0001678993584 | J123: =J127*1055*'GEMM (2011) LCA Data'!$P$15/1000000 -> 5.469615472e-05 | K123: =SUM(H123:J123) -> 0.0002225955131 | L123: =G123+K123 -> 0.0002337864657 | M123: =M127*0.359631325*1055/1000000 -> 0 | N123: =N127*1055*'GEMM (2011) LCA Data'!$P$15/1000/1000 -> 0 | P123: =P127*0.359631325*1055/1000000 -> 1.710491393e-07 | Q123: 0 | R123: =R127*1055*'GEMM (2011) LCA Data'!$P$15/1000/1000 -> 1.074541866e-05 | S123: =Q123+R123 -> 1.074541866e-05 | T123: 0 | U123: =U127*1055*'GEMM (2011) LCA Data'!$P$15/1000/1000 -> 3.581806219e-06 | V123: =V127*1055*'GEMM (2011) LCA Data'!$P$15/1000000 -> 1.166836068e-06 | W123: =SUM(T123:V123) -> 4.748642286e-06 | X123: =S123+W123 -> 1.549406094e-05 | Y123: -- | Z123: =Z127*1055*'GEMM (2011) LCA Data'!$P$15/1000/1000 -> 0.0001647630861 | AA123: =(Q123+T123+W123+P123)-(E123+H123+J123) -> -4.977646329e-05
B124: Solid waste (tonne)
B125: Solid waste | C125: -- | D125: -- | E125: 0 | F125: =F127*1055*'GEMM (2011) LCA Data'!$P$17/1000/1000 -> 1.886274065e-06 | G125: =E125+F125 -> 1.886274065e-06 | H125: 0 | I125: =I127*1055*'GEMM (2011) LCA Data'!$P$17/1000/1000 -> 2.830002214e-05 | J125: =J127*1055*'GEMM (2011) LCA Data'!$P$17/1000000 -> 9.219227545e-06 | K125: =SUM(H125:J125) -> 3.751924968e-05 | L125: =G125+K125 -> 3.940552375e-05 | M125: =M127*0.169716014150943*1055/1000000 -> 0 | N125: =N127*1055*'GEMM (2011) LCA Data'!$P$17/1000/1000 -> 0 | P125: =P127*0.169716014150943*1055/1000000 -> 8.07209387e-08 | Q125: 0 | R125: =R127*1055*'GEMM (2011) LCA Data'!$P$17/1000/1000 -> 1.811177772e-06 | S125: =Q125+R125 -> 1.811177772e-06 | T125: 0 | U125: =U127*1055*'GEMM (2011) LCA Data'!$P$17/1000/1000 -> 6.037259241e-07 | V125: =V127*1055*'GEMM (2011) LCA Data'!$P$17/1000000 -> 1.966742867e-07 | W125: =SUM(T125:V125) -> 8.004002108e-07 | X125: =S125+W125 -> 2.611577983e-06 | Y125: -- | Z125: =Z127*1055*'GEMM (2011) LCA Data'!$P$17/1000/1000 -> 2.777139251e-05
B126: Energy / Carbon
B127: MMBTU | C127: -- | D127: -- | E127: =ABS('GEMM (2011) LCA Data'!$D$6*'GEMM (2011) Models'!E110*1000) -> 0.000634716289 | F127: =85.1*1000/1055*F110 -> 0.002285932862 | G127: =E127+F127 -> 0.002920649151 | H127: -- | I127: =85.1*1000/1055*I110 -> 0.03429615653 | J127: =43.34*(H110*1000*6*12/112.56)/1055 -> 0.01117257327 | K127: =SUM(H127:J127) -> 0.0454687298 | L127: =G127+K127 -> 0.04838937895 | M127: =(($V$43*VLOOKUP($B104,'GEMM (2011) LCA Data'!$B$50:$G$67,4,FALSE))-(VLOOKUP('GEMM (2011) Models'!$B104,'GEMM (2011) LCA Data'!$B$50:$G$67,5,FALSE)*VLOOKUP('GEMM (2011) Models'!$B104,'GEMM (2011) LCA Data'!$B$50:$G$67,6,FALSE)))*M110*1000/1055 -> 0 | N127: =85.1*1000/1055*N110 -> 0 | P127: =(($V$42*VLOOKUP($B104,'GEMM (2011) LCA Data'!$B$50:$G$67,4,FALSE))-(VLOOKUP('GEMM (2011) Models'!$B104,'GEMM (2011) LCA Data'!$B$50:$G$67,5,FALSE)*VLOOKUP('GEMM (2011) Models'!$B104,'GEMM (2011) LCA Data'!$B$50:$G$67,6,FALSE)))*P110*1000/1055 -> 0.0004508280405 | Q127: =ABS('GEMM (2011) LCA Data'!$D$6*'GEMM (2011) Models'!Q110*1000) -> 0.0006094469809 | R127: =85.1*1000/1055*R110 -> 0.002194925364 | S127: =Q127+R127 -> 0.002804372344 | T127: -- | U127: =85.1*1000/1055*U110 -> 0.0007316417878 | V127: =43.34*(T110*1000*6*12/112.56)/1055 -> 0.0002383451183 | W127: =SUM(T127:V127) -> 0.0009699869061 | X127: =S127+W127 -> 0.003774359251 | Y127: -- | Z127: =85.1*1000/1055*Z110 -> 0.03365552224
B128: MTCO2e | C128: =IF(C112="--","--",(1*C112)+(21*C113)+(310*C114)) -> -- | D128: -- | E128: 6.580235056e-05 | F128: 0.0001815158552 | G128: 0.0002473182058 | H128: 0.0009872414682 | I128: 0.002723306658 | J128: 0.0008871648096 | K128: 0.004597712936 | L128: 0.004845031142 | M128: 0 | N128: 0 | P128: =IF(P112="--","--",(1*P112)+(21*P113)+(310*P114)) -> 3.905044647e-05 | Q128: 6.318262913e-05 | R128: 0.0001742893508 | S128: 0.0002374719799 | T128: 2.106087638e-05 | U128: 5.809645026e-05 | V128: 1.892593553e-05 | W128: 9.808326217e-05 | X128: 0.0003355552421 | Y128: -- | Z128: 0.002672436712 | AA128: =(Q128+T128+W128+P128)-(E128+H128+J128) -> -0.001718831414
Y129: Cost per Pound | AA129: Cost Savings
U130: Solent Recovered (tonne): | W130: 5702 | X130: X | Y130: 0.67 | AA130: =W130*2204.6*Y130 -> 8422321.564
B131: Chloroform
B133: Emission Type a, b | C133: 2008 Land | E133: Offsite Reported Energy Recovery (ER) Cement Kiln (Adapted GSK Model) | G133: ER EOL | H133: Offsite Reported Thermal Treatment (I) Incineration (GSK Model) | K133: I EOL | L133: Baseline EOL ER&I | M133: GSK Solvent Recovery (Distillation) Model & Adapted Zurich | P133: 92% recovery, 8% of Mass (worst case scenario of steam required for primary / secondary distillation) (75% recovery rate*2=92%, doubled steam) | X133: New EOL ER&I | Y133: Recovered Solvent (92% j of Distilled Mass) | Z133: New Beginning of Life (BOL) Mnfctring Emissions (ME) | AA133: New EOL/BOL - Baseline EOL/BOL
G134: Cement kiln | K134: Incinerator | M134: Offsite Reported Remanufacturing Mass to steamf | N134: Baseline Beginning of Life (BOL) Mnfctring Emissions (ME) | P134: STEAM New Solvent Mass going to Steamf | Q134: Energy Recovery (ER) Cement Kiln | S134: NEW ER EOL | T134: Thermal Treatment (I) Incineration | W134: INEW EOL
C135: Underground Injection | D135: Landfill | E135: Solvent used as Fuel e | F135: Manufacturing Emissions of Solvents | G135: Offsite ER EOL (end of life) | H135: Combustion of Solvents c | I135: Manufacturing Emissions of Solvents | J135: Natural Gas Fuel d | K135: Offsite I EOL (end of life) | Q135: Solvent used as Fuel e | R135: Mnfcting Emissions of Solvents | S135: Cement kiln | T135: Solvents Combusted c | U135: Mnfcting Emissions of Solvents | V135: Natural Gas Fuel d | W135: Incinerator | AA135: Process Change Benefits
B136: Solvent Mass (tonne)
B137: Solvent Mass | C137: =SUM('GEMM (2011) Before'!C8,'GEMM (2011) Before'!J8)/2.205/1000 -> 0 | D137: =SUM('GEMM (2011) Before'!D8,'GEMM (2011) Before'!K8)/2.205/1000 -> 0 | E137: =SUM('GEMM (2011) Before'!G8)/2.205/1000+(M137*(1-$V$41)*$V$45) -> 0.0002103594201 | F137: =E137 -> 0.0002103594201 | G137: =E137 -> 0.0002103594201 | H137: =SUM('GEMM (2011) Before'!H8)/2.205/1000+(M137*(1-$V$41)*(1-$V$45)) -> 0.0002431553191 | I137: =H137 -> 0.0002431553191 | J137: =J154*1055/'GEMM (2011) LCA Data'!$I$22/1000 -> 2.117346084e-05 | K137: =H137 -> 0.0002431553191 | L137: =G137+K137 -> 0.0004535147392 | M137: =SUM('GEMM (2011) Before'!F8)/2.205/1000 -> 0 | N137: =M137*$V$41 -> 0 | P137: ='GEMM (2011) After'!$O$8/2.205/1000 -> 0.0004535147392 | Q137: =(1-$V$40)*P137*$V$44 -> 2.721088435e-05 | R137: =Q137 -> 2.721088435e-05 | S137: =Q137 -> 2.721088435e-05 | T137: =(1-$V$40)*P137*(1-$V$44) -> 9.070294785e-06 | U137: =T137 -> 9.070294785e-06 | V137: =V154*1055/'GEMM (2011) LCA Data'!$I$22/1000 -> 7.898224563e-07 | W137: =T137 -> 9.070294785e-06 | X137: =S137+W137 -> 3.628117914e-05 | Y137: =P137*$V$40 -> 0.0004172335601 | Z137: =Y137 -> 0.0004172335601
B138: Air emission (tonne)
B139: CO2 | C139: -- | D139: -- | E139: =3.63*(E137*1*12/119.38) -> 7.675704758e-05 | F139: ='GEMM (2011) LCA Data'!$G32*F$137 -> 0.0004543763474 | G139: =E139+F139 -> 0.000531133395 | H139: =3.63*(H137*1*12/119.38) -> 8.872378707e-05 | I139: ='GEMM (2011) LCA Data'!$G32*I$137 -> 0.0005252154893 | J139: =J154*1055*'GEMM (2011) LCA Data'!$P$7/1000000 -> 7.1885113e-05 | K139: =SUM(H139:J139) -> 0.0006858243894 | L139: =G139+K139 -> 0.001216957784 | M139: =M154*79.0676204311955*1055/1000000 -> 0 | N139: ='GEMM (2011) LCA Data'!$G32*N$137 -> 0 | P139: =P154*79.0676204311955*1055/1000000 -> 2.205287373e-05 | Q139: =3.63*(Q137*1*12/119.38) -> 9.928850079e-06 | R139: ='GEMM (2011) LCA Data'!$G32*R$137 -> 5.87755102e-05 | S139: =Q139+R139 -> 6.870436028e-05 | T139: =3.63*(T137*1*12/119.38) -> 3.309616693e-06 | U139: ='GEMM (2011) LCA Data'!$G32*U$137 -> 1.959183673e-05 | V139: =V154*1055*'GEMM (2011) LCA Data'!$P$7/1000000 -> 2.681492504e-06 | W139: =SUM(T139:V139) -> 2.558294593e-05 | X139: =S139+W139 -> 9.428730621e-05 | Y139: -- | Z139: ='GEMM (2011) LCA Data'!$G32*Z$137 -> 0.0009012244898 | AA139: =(Q139+T139+W139+P139)-(E139+H139+J139) -> -0.0001764916612
B140: CH4 | C140: -- | D140: -- | E140: 0 | F140: ='GEMM (2011) LCA Data'!$G33*F$137 -> 1.438858434e-06 | G140: 1.438858434e-06 | H140: 0 | I140: ='GEMM (2011) LCA Data'!$G33*I$137 -> 1.663182383e-06 | J140: =J154*1055*'GEMM (2011) LCA Data'!$P$5/1000000 -> 3.544541168e-07 | K140: 2.0176365e-06 | L140: 3.456494933e-06 | M140: =M154*0.144574268396226*1055/1000000 -> 0 | N140: ='GEMM (2011) LCA Data'!$G33*N$137 -> 0 | P140: =P154*0.144574268396226*1055/1000000 -> 4.03234354e-08 | Q140: 0 | R140: ='GEMM (2011) LCA Data'!$G33*R$137 -> 1.86122449e-07 | S140: 1.86122449e-07 | T140: 0 | U140: ='GEMM (2011) LCA Data'!$G33*U$137 -> 6.204081633e-08 | V140: =V154*1055*'GEMM (2011) LCA Data'!$P$5/1000000 -> 1.322201521e-08 | W140: 7.526283153e-08 | X140: 2.613852805e-07 | Y140: -- | Z140: ='GEMM (2011) LCA Data'!$G33*Z$137 -> 2.853877551e-06 | AA140: -2.388678498e-07
B141: N2O | C141: -- | D141: -- | E141: 0 | F141: ='GEMM (2011) LCA Data'!$G34*F$137 -> 0 | G141: 0 | H141: 0 | I141: ='GEMM (2011) LCA Data'!$G34*I$137 -> 0 | J141: =J154*1055*'GEMM (2011) LCA Data'!$P$11/1000000 -> 1.294219813e-09 | K141: 1.294219813e-09 | L141: 1.294219813e-09 | M141: 0 | N141: ='GEMM (2011) LCA Data'!$G34*N$137 -> 0 | P141: 0 | Q141: 0 | R141: ='GEMM (2011) LCA Data'!$G34*R$137 -> 0 | S141: 0 | T141: 0 | U141: ='GEMM (2011) LCA Data'!$G34*U$137 -> 0 | V141: =V154*1055*'GEMM (2011) LCA Data'!$P$11/1000000 -> 4.827759993e-11 | W141: 4.827759993e-11 | X141: 4.827759993e-11 | Y141: -- | Z141: ='GEMM (2011) LCA Data'!$G34*Z$137 -> 0 | AA141: -1.245942213e-09
B142: CO | C142: -- | D142: -- | E142: =0.0016*(E137*1*12/119.38) -> 3.383230747e-08 | F142: ='GEMM (2011) LCA Data'!$G35*F$137 -> 8.414376804e-07 | G142: 8.752699879e-07 | H142: =0.0016*(H137*1*12/119.38) -> 3.910690339e-08 | I142: ='GEMM (2011) LCA Data'!$G35*I$137 -> 9.726212765e-07 | J142: =J154*1055*'GEMM (2011) LCA Data'!$P$6/1000000 -> 4.514792076e-08 | K142: 1.056876101e-06 | L142: 1.932146089e-06 | M142: =M154*0.0553151275443457*1055/1000000 -> 0 | N142: ='GEMM (2011) LCA Data'!$G35*N$137 -> 0 | P142: =P154*0.0553151275443457*1055/1000000 -> 1.542802877e-08 | Q142: =0.0016*(Q137*1*12/119.38) -> 4.376352652e-09 | R142: ='GEMM (2011) LCA Data'!$G35*R$137 -> 1.088435374e-07 | S142: 1.132198901e-07 | T142: =0.0016*(T137*1*12/119.38) -> 1.458784217e-09 | U142: ='GEMM (2011) LCA Data'!$G35*U$137 -> 3.628117914e-08 | V142: =V154*1055*'GEMM (2011) LCA Data'!$P$6/1000000 -> 1.684129106e-09 | W142: 3.942409246e-08 | X142: 1.526439825e-07 | Y142: -- | Z142: ='GEMM (2011) LCA Data'!$G35*Z$137 -> 1.66893424e-06 | AA142: -5.739987352e-08
B143: NMVOC | C143: -- | D143: -- | E143: =0.00016*(E137*1*12/119.38) -> 3.383230747e-09 | F143: ='GEMM (2011) LCA Data'!$G36*F$137 -> 2.271881737e-06 | G143: 2.275264968e-06 | H143: =0.00016*(H137*1*12/119.38) -> 3.910690339e-09 | I143: ='GEMM (2011) LCA Data'!$G36*I$137 -> 2.626077446e-06 | J143: =J154*1055*'GEMM (2011) LCA Data'!$P$8/1000000 -> 2.213135536e-11 | K143: 2.630010268e-06 | L143: 4.905275236e-06 | M143: =M154*0.401850859732704*1055/1000000 -> 0 | N143: ='GEMM (2011) LCA Data'!$G36*N$137 -> 0 | P143: =P154*0.401850859732704*1055/1000000 -> 1.12080852e-07 | Q143: =0.00016*(Q137*1*12/119.38) -> 4.376352652e-10 | R143: ='GEMM (2011) LCA Data'!$G36*R$137 -> 2.93877551e-07 | S143: 2.943151863e-07 | T143: =0.00016*(T137*1*12/119.38) -> 1.458784217e-10 | U143: ='GEMM (2011) LCA Data'!$G36*U$137 -> 9.795918367e-08 | V143: =V154*1055*'GEMM (2011) LCA Data'!$P$8/1000000 -> 8.255542909e-13 | W143: 9.810588765e-08 | X143: 3.924210739e-07 | Y143: -- | Z143: ='GEMM (2011) LCA Data'!$G36*Z$137 -> 4.506122449e-06 | AA143: 2.034542009e-07
B144: NOx | C144: -- | D144: -- | E144: 0 | F144: ='GEMM (2011) LCA Data'!$G37*F$137 -> 1.716532868e-06 | G144: 1.716532868e-06 | H144: 0 | I144: ='GEMM (2011) LCA Data'!$G37*I$137 -> 1.984147404e-06 | J144: =J154*1055*'GEMM (2011) LCA Data'!$P$9/1000000 -> 4.727175012e-08 | K144: 2.031419154e-06 | L144: 3.747952022e-06 | M144: =M154*0.260265861210973*1055/1000000 -> 0 | N144: ='GEMM (2011) LCA Data'!$G37*N$137 -> 0 | P144: =P154*0.260265861210973*1055/1000000 -> 7.259115857e-08 | Q144: 0 | R144: ='GEMM (2011) LCA Data'!$G37*R$137 -> 2.220408163e-07 | S144: 2.220408163e-07 | T144: 0 | U144: ='GEMM (2011) LCA Data'!$G37*U$137 -> 7.401360544e-08 | V144: =V154*1055*'GEMM (2011) LCA Data'!$P$9/1000000 -> 1.763353194e-09 | W144: 7.577695864e-08 | X144: 2.97817775e-07 | Y144: -- | Z144: ='GEMM (2011) LCA Data'!$G37*Z$137 -> 3.40462585e-06 | AA144: 1.010963671e-07
B145: SOx | C145: -- | D145: -- | E145: 0 | F145: ='GEMM (2011) LCA Data'!$G38*F$137 -> 1.720740056e-06 | G145: 1.720740056e-06 | H145: 0 | I145: ='GEMM (2011) LCA Data'!$G38*I$137 -> 1.98901051e-06 | J145: =J154*1055*'GEMM (2011) LCA Data'!$P$10/1000000 -> 6.094469945e-07 | K145: 2.598457505e-06 | L145: 4.319197561e-06 | M145: =M154*0.346184729976483*1055/1000000 -> 0 | N145: ='GEMM (2011) LCA Data'!$G38*N$137 -> 0 | P145: =P154*0.346184729976483*1055/1000000 -> 9.655492469e-08 | Q145: 0 | R145: ='GEMM (2011) LCA Data'!$G38*R$137 -> 2.22585034e-07 | S145: 2.22585034e-07 | T145: 0 | U145: ='GEMM (2011) LCA Data'!$G38*U$137 -> 7.419501134e-08 | V145: =V154*1055*'GEMM (2011) LCA Data'!$P$10/1000000 -> 2.27338802e-08 | W145: 9.692889154e-08 | X145: 3.195139256e-07 | Y145: -- | Z145: ='GEMM (2011) LCA Data'!$G38*Z$137 -> 3.412970522e-06 | AA145: -4.159631782e-07
B146: Water emission (tonne)
B147: TOC | C147: -- | D147: -- | E147: 0 | F147: ='GEMM (2011) LCA Data'!$G40*F$137 -> 3.87061333e-06 | G147: =E147+F147 -> 3.87061333e-06 | H147: 0 | I147: ='GEMM (2011) LCA Data'!$G40*I$137 -> 4.474057872e-06 | J147: =J149/2.86 -> 1.111496416e-08 | K147: =SUM(H147:J147) -> 4.485172836e-06 | L147: =G147+K147 -> 8.355786166e-06 | M147: =M149/2.86 -> 0 | N147: ='GEMM (2011) LCA Data'!$G40*N$137 -> 0 | P147: =P149/2.86 -> 6.063161111e-10 | Q147: 0 | R147: ='GEMM (2011) LCA Data'!$G40*R$137 -> 5.006802721e-07 | S147: =Q147+R147 -> 5.006802721e-07 | T147: 0 | U147: ='GEMM (2011) LCA Data'!$G40*U$137 -> 1.66893424e-07 | V147: =V149/2.86 -> 4.146156532e-10 | W147: =SUM(T147:V147) -> 1.673080397e-07 | X147: =S147+W147 -> 6.679883118e-07 | Y147: -- | Z147: ='GEMM (2011) LCA Data'!$G40*Z$137 -> 7.677097506e-06 | AA147: =(Q147+T147+W147+P147)-(E147+H147+J147) -> 1.567993916e-07
B148: BOD | C148: -- | D148: -- | E148: 0 | F148: ='GEMM (2011) LCA Data'!$G41*F$137 -> 3.807505504e-08 | G148: =E148+F148 -> 3.807505504e-08 | H148: 0 | I148: ='GEMM (2011) LCA Data'!$G41*I$137 -> 4.401111276e-08 | J148: =J154*1055*'GEMM (2011) LCA Data'!$P$13/1000000 -> 1.921415516e-08 | K148: =SUM(H148:J148) -> 6.322526792e-08 | L148: =G148+K148 -> 1.01300323e-07 | M148: =M154*0.0193411218363402*1055/1000000 -> 0 | N148: ='GEMM (2011) LCA Data'!$G41*N$137 -> 0 | P148: =P154*0.0193411218363402*1055/1000000 -> 5.394462553e-09 | Q148: 0 | R148: ='GEMM (2011) LCA Data'!$G41*R$137 -> 4.925170068e-09 | S148: =Q148+R148 -> 4.925170068e-09 | T148: 0 | U148: ='GEMM (2011) LCA Data'!$G41*U$137 -> 1.641723356e-09 | V148: =V154*1055*'GEMM (2011) LCA Data'!$P$13/1000000 -> 7.167355086e-10 | W148: =SUM(T148:V148) -> 2.358458865e-09 | X148: =S148+W148 -> 7.283628933e-09 | Y148: -- | Z148: ='GEMM (2011) LCA Data'!$G41*Z$137 -> 7.551927438e-08 | AA148: =(Q148+T148+W148+P148)-(E148+H148+J148) -> -1.146123374e-08
B149: COD | C149: -- | D149: -- | E149: 0 | F149: ='GEMM (2011) LCA Data'!$G42*F$137 -> 1.588213622e-05 | G149: =E149+F149 -> 1.588213622e-05 | H149: 0 | I149: ='GEMM (2011) LCA Data'!$G42*I$137 -> 1.835822659e-05 | J149: =J154*1055*'GEMM (2011) LCA Data'!$P$14/1000000 -> 3.178879751e-08 | K149: =SUM(H149:J149) -> 1.839001539e-05 | L149: =G149+K149 -> 3.427215161e-05 | M149: =M154*0.00621725413258714*1055/1000000 -> 0 | N149: ='GEMM (2011) LCA Data'!$G42*N$137 -> 0 | P149: =P154*0.00621725413258714*1055/1000000 -> 1.734064078e-09 | Q149: 0 | R149: ='GEMM (2011) LCA Data'!$G42*R$137 -> 2.054421769e-06 | S149: =Q149+R149 -> 2.054421769e-06 | T149: 0 | U149: ='GEMM (2011) LCA Data'!$G42*U$137 -> 6.848072562e-07 | V149: =V154*1055*'GEMM (2011) LCA Data'!$P$14/1000000 -> 1.185800768e-09 | W149: =SUM(T149:V149) -> 6.85993057e-07 | X149: =S149+W149 -> 2.740414826e-06 | Y149: -- | Z149: ='GEMM (2011) LCA Data'!$G42*Z$137 -> 3.150113379e-05 | AA149: =(Q149+T149+W149+P149)-(E149+H149+J149) -> 6.559383236e-07
B150: TDS | C150: -- | D150: -- | E150: 0 | F150: ='GEMM (2011) LCA Data'!$G43*F$137 -> 1.647114259e-06 | G150: =E150+F150 -> 1.647114259e-06 | H150: 0 | I150: ='GEMM (2011) LCA Data'!$G43*I$137 -> 1.903906149e-06 | J150: =J154*1055*'GEMM (2011) LCA Data'!$P$15/1000000 -> 4.915565382e-06 | K150: =SUM(H150:J150) -> 6.819471531e-06 | L150: =G150+K150 -> 8.46658579e-06 | M150: =M154*0.359631325*1055/1000000 -> 0 | N150: ='GEMM (2011) LCA Data'!$G43*N$137 -> 0 | P150: =P154*0.359631325*1055/1000000 -> 1.003053355e-07 | Q150: 0 | R150: ='GEMM (2011) LCA Data'!$G43*R$137 -> 2.130612245e-07 | S150: =Q150+R150 -> 2.130612245e-07 | T150: 0 | U150: ='GEMM (2011) LCA Data'!$G43*U$137 -> 7.102040816e-08 | V150: =V154*1055*'GEMM (2011) LCA Data'!$P$15/1000000 -> 1.833627461e-07 | W150: =SUM(T150:V150) -> 2.543831543e-07 | X150: =S150+W150 -> 4.674443788e-07 | Y150: -- | Z150: ='GEMM (2011) LCA Data'!$G43*Z$137 -> 3.266938776e-06 | AA150: =(Q150+T150+W150+P150)-(E150+H150+J150) -> -4.560876892e-06
B151: Solid waste (tonne)
B152: Solid waste | C152: -- | D152: -- | E152: 0 | F152: ='GEMM (2011) LCA Data'!$G45*F$137 -> 7.783298544e-06 | G152: =E152+F152 -> 7.783298544e-06 | H152: 0 | I152: ='GEMM (2011) LCA Data'!$G45*I$137 -> 8.996746807e-06 | J152: =J154*1055*'GEMM (2011) LCA Data'!$P$17/1000000 -> 8.285356805e-07 | K152: =SUM(H152:J152) -> 9.825282488e-06 | L152: =G152+K152 -> 1.760858103e-05 | M152: =M154*0.169716014150943*1055/1000000 -> 0 | N152: ='GEMM (2011) LCA Data'!$G45*N$137 -> 0 | P152: =P154*0.169716014150943*1055/1000000 -> 4.733575905e-08 | Q152: 0 | R152: ='GEMM (2011) LCA Data'!$G45*R$137 -> 1.006802721e-06 | S152: =Q152+R152 -> 1.006802721e-06 | T152: 0 | U152: ='GEMM (2011) LCA Data'!$G45*U$137 -> 3.35600907e-07 | V152: =V154*1055*'GEMM (2011) LCA Data'!$P$17/1000000 -> 3.090643005e-08 | W152: =SUM(T152:V152) -> 3.665073371e-07 | X152: =S152+W152 -> 1.373310058e-06 | Y152: -- | Z152: ='GEMM (2011) LCA Data'!$G45*Z$137 -> 1.543764172e-05
B153: Energy / Carbon
B154: MMBTU | C154: -- | D154: -- | E154: =ABS('GEMM (2011) LCA Data'!$D$7*'GEMM (2011) Models'!E137*1000) -> 0.0006535629021 | F154: ='GEMM (2011) LCA Data'!$G47*1000/1055*F137 -> 0.004632188605 | G154: =E154+F154 -> 0.005285751507 | H154: -- | I154: ='GEMM (2011) LCA Data'!$G47*1000/1055*I137 -> 0.005354365865 | J154: =43.34*(H137*1000*1*12/119.38)/1055 -> 0.001004083645 | K154: =SUM(H154:J154) -> 0.00635844951 | L154: =G154+K154 -> 0.01164420102 | M154: =(($V$43*VLOOKUP($B131,'GEMM (2011) LCA Data'!$B$50:$G$67,4,FALSE))-(VLOOKUP('GEMM (2011) Models'!$B131,'GEMM (2011) LCA Data'!$B$50:$G$67,5,FALSE)*VLOOKUP('GEMM (2011) Models'!$B131,'GEMM (2011) LCA Data'!$B$50:$G$67,6,FALSE)))*M137*1000/1055 -> 0 | N154: ='GEMM (2011) LCA Data'!$G47*1000/1055*N137 -> 0 | P154: =(($V$42*VLOOKUP($B131,'GEMM (2011) LCA Data'!$B$50:$G$67,4,FALSE))-(VLOOKUP('GEMM (2011) Models'!$B131,'GEMM (2011) LCA Data'!$B$50:$G$67,5,FALSE)*VLOOKUP('GEMM (2011) Models'!$B131,'GEMM (2011) LCA Data'!$B$50:$G$67,6,FALSE)))*P137*1000/1055 -> 0.0002643711513 | Q154: =ABS('GEMM (2011) LCA Data'!$D$7*'GEMM (2011) Models'!Q137*1000) -> 8.454113697e-05 | R154: ='GEMM (2011) LCA Data'!$G47*1000/1055*R137 -> 0.0005991932682 | S154: =Q154+R154 -> 0.0006837344052 | T154: -- | U154: ='GEMM (2011) LCA Data'!$G47*1000/1055*U137 -> 0.0001997310894 | V154: =43.34*(T137*1000*1*12/119.38)/1055 -> 3.74548033e-05 | W154: =SUM(T154:V154) -> 0.0002371858927 | X154: =S154+W154 -> 0.0009209202979 | Y154: -- | Z154: ='GEMM (2011) LCA Data'!$G47*1000/1055*Z137 -> 0.009187630113
B155: MTCO2e | C155: =IF(C139="--","--",(1*C139)+(21*C140)+(310*C141)) -> -- | D155: -- | E155: 7.675704758e-05 | F155: 0.0004845923745 | G155: 0.0005613494221 | H155: 8.872378707e-05 | I155: 0.0005601423193 | J155: 7.972985759e-05 | K155: 0.000728595964 | L155: 0.001289945386 | M155: 0 | N155: 0 | P155: =IF(P139="--","--",(1*P139)+(21*P140)+(310*P141)) -> 2.289966587e-05 | Q155: 9.928850079e-06 | R155: 6.268408163e-05 | S155: 7.261293171e-05 | T155: 3.309616693e-06 | U155: 2.089469388e-05 | V155: 2.974120879e-06 | W155: 2.717843145e-05 | X155: 9.979136316e-05 | Y155: -- | Z155: 0.0009611559184 | AA155: =(Q155+T155+W155+P155)-(E155+H155+J155) -> -0.0001818941282
Y156: Cost per Pound | AA156: Cost Savings
U157: Solent Recovered (tonne): | W157: 6043 | X157: X | Y157: 0.34 | AA157: =W157*2204.6*Y157 -> 4529615.252
B158: Chloromethane
B160: Emission Type a, b | C160: 2008 Land | E160: Offsite Reported Energy Recovery (ER) Cement Kiln (Adapted GSK Model) | G160: ER EOL | H160: Offsite Reported Thermal Treatment (I) Incineration (GSK Model) | K160: I EOL | L160: Baseline EOL ER&I | M160: GSK Solvent Recovery (Distillation) Model & Adapted Zurich | P160: 92% recovery, 8% of Mass (worst case scenario of steam required for primary / secondary distillation) (75% recovery rate*2=92%, doubled steam) | X160: New EOL ER&I | Y160: Recovered Solvent (92% j of Distilled Mass) | Z160: New Beginning of Life (BOL) Mnfctring Emissions (ME) | AA160: New EOL/BOL - Baseline EOL/BOL
G161: Cement kiln | K161: Incinerator | M161: Offsite Reported Remanufacturing Mass to steamf | N161: Baseline Beginning of Life (BOL) Mnfctring Emissions (ME) | P161: STEAM New Solvent Mass going to Steamf | Q161: Energy Recovery (ER) Cement Kiln | S161: NEW ER EOL | T161: Thermal Treatment (I) Incineration | W161: INEW EOL
C162: Underground Injection | D162: Landfill | E162: Solvent used as Fuel e | F162: Manufacturing Emissions of Solvents | G162: Offsite ER EOL (end of life) | H162: Combustion of Solvents c | I162: Manufacturing Emissions of Solvents | J162: Natural Gas Fuel d | K162: Offsite I EOL (end of life) | Q162: Solvent used as Fuel e | R162: Mnfcting Emissions of Solvents | S162: Cement kiln | T162: Solvents Combusted c | U162: Mnfcting Emissions of Solvents | V162: Natural Gas Fuel d | W162: Incinerator | AA162: Process Change Benefits
B163: Solvent Mass (tonne)
B164: Solvent Mass | C164: 0 | D164: 0 | E164: 0 | F164: =D164+E164 -> 0 | G164: =E164+F164 -> 0 | H164: 0 | I164: 0 | J164: =J181*1055/'GEMM (2011) LCA Data'!$I$22/1000 -> 0 | K164: =H164+I164 -> 0 | L164: =G164+K164 -> 0 | M164: 0 | N164: 0 | P164: =Y164*0.92 -> 0 | Q164: ='GEMM (2011) After'!H113/2.205/1000 -> 0 | R164: =Q164 -> 0 | S164: =Q164+R164 -> 0 | T164: ='GEMM (2011) After'!I113/2.205/1000 -> 0 | U164: =T164 -> 0 | V164: =V181*1055/'GEMM (2011) LCA Data'!$I$22/1000 -> 0 | W164: =T164+U164 -> 0 | X164: =S164+W164 -> 0 | Y164: 0 | Z164: 0 | AA164: =SUM(X164,Z164)-SUM(L164,N164,C164,D164) -> 0
B165: Air emission (tonne)
B166: CO2 | C166: -- | D166: -- | E166: 0 | F166: 0 | G166: =E166+F166 -> 0 | H166: 0 | I166: 0 | J166: 0 | K166: =SUM(H166:J166) -> 0 | L166: =G166+K166 -> 0 | M166: 0 | N166: 0 | P166: 0 | Q166: =E166*(Q$56/E$56) -> 0 | R166: 0 | S166: =Q166+R166 -> 0 | T166: =H166*(T$56/H$56) -> 0 | U166: 0 | V166: 0 | W166: =SUM(T166:V166) -> 0 | X166: =S166+W166 -> 0 | Y166: -- | Z166: =N166*(Z$56/N$56) ->  | AA166: =(X166+P166+Z166-Z166)-(L166+M166+N166-N166) -> 
B167: CH4 | C167: -- | D167: -- | E167: 0 | F167: 0 | G167: 0 | H167: 0 | I167: 0 | J167: 0 | K167: 0 | L167: 0 | M167: 0 | N167: 0 | P167: 0 | Q167: 0 | R167: 0 | S167: 0 | T167: 0 | U167: 0 | V167: 0 | W167: 0 | X167: 0 | Y167: --
B168: N2O | C168: -- | D168: -- | E168: 0 | F168: 0 | G168: 0 | H168: 0 | I168: 0 | J168: 0 | K168: 0 | L168: 0 | M168: 0 | N168: 0 | P168: 0 | Q168: 0 | R168: 0 | S168: 0 | T168: 0 | U168: 0 | V168: 0 | W168: 0 | X168: 0 | Y168: --
B169: CO | C169: -- | D169: -- | E169: 0 | F169: 0 | G169: 0 | H169: 0 | I169: 0 | J169: 0 | K169: 0 | L169: 0 | M169: 0 | N169: 0 | P169: 0 | Q169: 0 | R169: 0 | S169: 0 | T169: 0 | U169: 0 | V169: 0 | W169: 0 | X169: 0 | Y169: --
B170: NMVOC | C170: -- | D170: -- | E170: 0 | F170: 0 | G170: 0 | H170: 0 | I170: 0 | J170: 0 | K170: 0 | L170: 0 | M170: 0 | N170: 0 | P170: 0 | Q170: 0 | R170: 0 | S170: 0 | T170: 0 | U170: 0 | V170: 0 | W170: 0 | X170: 0 | Y170: --
B171: NOx | C171: -- | D171: -- | E171: 0 | F171: 0 | G171: 0 | H171: 0 | I171: 0 | J171: 0 | K171: 0 | L171: 0 | M171: 0 | N171: 0 | P171: 0 | Q171: 0 | R171: 0 | S171: 0 | T171: 0 | U171: 0 | V171: 0 | W171: 0 | X171: 0 | Y171: --
B172: SOx | C172: -- | D172: -- | E172: 0 | F172: 0 | G172: 0 | H172: 0 | I172: 0 | J172: 0 | K172: 0 | L172: 0 | M172: 0 | N172: 0 | P172: 0 | Q172: 0 | R172: 0 | S172: 0 | T172: 0 | U172: 0 | V172: 0 | W172: 0 | X172: 0 | Y172: --
B173: Water emission (tonne)
B174: TOC | C174: -- | D174: -- | E174: 0 | F174: 0 | G174: =E174+F174 -> 0 | H174: 0 | I174: 0 | J174: 0 | K174: =SUM(H174:J174) -> 0 | L174: =G174+K174 -> 0 | M174: 0 | N174: 0 | P174: 0 | Q174: =E174*(Q$56/E$56) -> 0 | R174: 0 | S174: =Q174+R174 -> 0 | T174: =H174*(T$56/H$56) -> 0 | U174: 0 | V174: 0 | W174: =SUM(T174:V174) -> 0 | X174: =S174+W174 -> 0 | Y174: -- | Z174: =N174*(Z$56/N$56) ->  | AA174: =(X174+P174+Z174-Z174)-(L174+M174+N174-N174) -> 
B175: BOD | C175: -- | D175: -- | E175: 0 | F175: 0 | G175: =E175+F175 -> 0 | H175: 0 | I175: 0 | J175: 0 | K175: =SUM(H175:J175) -> 0 | L175: =G175+K175 -> 0 | M175: 0 | N175: 0 | P175: 0 | Q175: 0 | R175: 0 | S175: =Q175+R175 -> 0 | T175: 0 | U175: 0 | V175: 0 | W175: =SUM(T175:V175) -> 0 | X175: =S175+W175 -> 0 | Y175: -- | Z175: =N175*(Z$56/N$56) ->  | AA175: =(X175+P175+Z175-Z175)-(L175+M175+N175-N175) -> 
B176: COD | C176: -- | D176: -- | E176: 0 | F176: 0 | G176: =E176+F176 -> 0 | H176: 0 | I176: 0 | J176: 0 | K176: =SUM(H176:J176) -> 0 | L176: =G176+K176 -> 0 | M176: 0 | N176: 0 | P176: 0 | Q176: 0 | R176: 0 | S176: =Q176+R176 -> 0 | T176: 0 | U176: 0 | V176: 0 | W176: =SUM(T176:V176) -> 0 | X176: =S176+W176 -> 0 | Y176: -- | Z176: =N176*(Z$56/N$56) ->  | AA176: =(X176+P176+Z176-Z176)-(L176+M176+N176-N176) -> 
B177: TDS | C177: -- | D177: -- | E177: 0 | F177: 0 | G177: =E177+F177 -> 0 | H177: 0 | I177: 0 | J177: 0 | K177: =SUM(H177:J177) -> 0 | L177: =G177+K177 -> 0 | M177: 0 | N177: 0 | P177: 0 | Q177: 0 | R177: 0 | S177: =Q177+R177 -> 0 | T177: 0 | U177: 0 | V177: 0 | W177: =SUM(T177:V177) -> 0 | X177: =S177+W177 -> 0 | Y177: -- | Z177: =N177*(Z$56/N$56) ->  | AA177: =(X177+P177+Z177-Z177)-(L177+M177+N177-N177) -> 
B178: Solid waste (tonne)
B179: Solid waste | C179: -- | D179: -- | E179: 0 | F179: 0 | G179: =E179+F179 -> 0 | H179: 0 | I179: 0 | J179: 0 | K179: =SUM(H179:J179) -> 0 | L179: =G179+K179 -> 0 | M179: 0 | N179: 0 | P179: 0 | Q179: =E179*(Q$56/E$56) -> 0 | R179: =F179*(R$56/F$56) -> 0 | S179: =Q179+R179 -> 0 | T179: =H179*(T$56/H$56) -> 0 | U179: =I179*(U$56/I$56) -> 0 | V179: =J179*(V$56/J$56) -> 0 | W179: =SUM(T179:V179) -> 0 | X179: =S179+W179 -> 0 | Y179: -- | Z179: =N179*(Z$56/N$56) ->  | AA179: =(X179+P179+Z179-Z179)-(L179+M179+N179-N179) -> 
B180: Energy / Carbon
B181: MMBTU | C181: -- | D181: -- | E181: 0 | F181: 0 | G181: =E181+F181 -> 0 | H181: -- | I181: 0 | J181: 0 | K181: =SUM(H181:J181) -> 0 | L181: =G181+K181 -> 0 | M181: 0 | N181: 0 | P181: 0 | Q181: =E181*(Q$56/E$56) -> 0 | R181: =F181*(R$56/F$56) -> 0 | S181: =Q181+R181 -> 0 | T181: -- | U181: =I181*(U$56/I$56) -> 0 | V181: =J181*(V$56/J$56) -> 0 | W181: =SUM(T181:V181) -> 0 | X181: =S181+W181 -> 0 | Y181: -- | Z181: =N181*(Z$56/N$56) ->  | AA181: =(X181+P181+Z181-Z181)-(L181+M181+N181-N181) -> 
B182: MTCO2e | C182: =IF(C166="--","--",(1*C166)+(21*C167)+(310*C168)) -> -- | D182: =IF(D166="--","--",(1*D166)+(21*D167)+(310*D168)) -> -- | E182: =IF(E166="--","--",(1*E166)+(21*E167)+(310*E168)) -> 0 | F182: 0 | G182: =IF(G166="--","--",(1*G166)+(21*G167)+(310*G168)) -> 0 | H182: 0 | I182: 0 | J182: 0 | K182: 0 | L182: 0 | M182: 0 | N182: 0 | P182: =IF(P166="--","--",(1*P166)+(21*P167)+(310*P168)) -> 0 | Q182: 0 | R182: 0 | S182: 0 | T182: 0 | U182: 0 | V182: 0 | W182: 0 | X182: 0 | Y182: --
Y183: Cost per Pound | AA183: Cost Savings
U184: Solent Recovered (tonne): | W184: 0 | X184: X | Y184: 0.42 | AA184: =W184*2204.6*Y184 -> 0
B185: Cyclohexane
B187: Emission Type a, b | C187: 2008 Land | E187: Offsite Reported Energy Recovery (ER) Cement Kiln (Adapted GSK Model) | G187: ER EOL | H187: Offsite Reported Thermal Treatment (I) Incineration (GSK Model) | K187: I EOL | L187: Baseline EOL ER&I | M187: GSK Solvent Recovery (Distillation) Model & Adapted Zurich | P187: 92% recovery, 8% of Mass (worst case scenario of steam required for primary / secondary distillation) (75% recovery rate*2=92%, doubled steam) | X187: New EOL ER&I | Y187: Recovered Solvent (92% j of Distilled Mass) | Z187: New Beginning of Life (BOL) Mnfctring Emissions (ME) | AA187: New EOL/BOL - Baseline EOL/BOL
G188: Cement kiln | K188: Incinerator | M188: Offsite Reported Remanufacturing Mass to steamf | N188: Baseline Beginning of Life (BOL) Mnfctring Emissions (ME) | P188: STEAM New Solvent Mass going to Steamf | Q188: Energy Recovery (ER) Cement Kiln | S188: NEW ER EOL | T188: Thermal Treatment (I) Incineration | W188: INEW EOL
C189: Underground Injection | D189: Landfill | E189: Solvent used as Fuel e | F189: Manufacturing Emissions of Solvents | G189: Offsite ER EOL (end of life) | H189: Combustion of Solvents c | I189: Manufacturing Emissions of Solvents | J189: Natural Gas Fuel d | K189: Offsite I EOL (end of life) | Q189: Solvent used as Fuel e | R189: Mnfcting Emissions of Solvents | S189: Cement kiln | T189: Solvents Combusted c | U189: Mnfcting Emissions of Solvents | V189: Natural Gas Fuel d | W189: Incinerator | AA189: Process Change Benefits
B190: Solvent Mass (tonne)
B191: Solvent Mass | C191: =SUM('GEMM (2011) Before'!C10,'GEMM (2011) Before'!J10)/2.205/1000 -> 0 | D191: =SUM('GEMM (2011) Before'!D10,'GEMM (2011) Before'!K10)/2.205/1000 -> 0 | E191: =SUM('GEMM (2011) Before'!G10)/2.205/1000+(M191*(1-$V$41)*$V$45) -> 0.0003173807306 | F191: =E191 -> 0.0003173807306 | G191: =E191 -> 0.0003173807306 | H191: =SUM('GEMM (2011) Before'!H10)/2.205/1000+(M191*(1-$V$41)*(1-$V$45)) -> 0.0001361340086 | I191: =H191 -> 0.0001361340086 | J191: =J208*1055/'GEMM (2011) LCA Data'!$I$22/1000 -> 0.000100890856 | K191: =H191 -> 0.0001361340086 | L191: =G191+K191 -> 0.0004535147392 | M191: ='GEMM (2011) Before'!F10/2.205/1000 -> 0 | N191: =M191*$V$41 -> 0 | P191: ='GEMM (2011) After'!$O10/2.205/1000 -> 0.0004535147392 | Q191: =(1-$V$40)*P191*$V$44 -> 2.721088435e-05 | R191: =Q191 -> 2.721088435e-05 | S191: =Q191 -> 2.721088435e-05 | T191: =(1-$V$40)*P191*(1-$V$44) -> 9.070294785e-06 | U191: =T191 -> 9.070294785e-06 | V191: =V208*1055/'GEMM (2011) LCA Data'!$I$22/1000 -> 6.722124869e-06 | W191: =T191 -> 9.070294785e-06 | X191: =S191+W191 -> 3.628117914e-05 | Y191: =P191*$V$40 -> 0.0004172335601 | Z191: =Y191 -> 0.0004172335601
B192: Air emission (tonne)
B193: CO2 | C193: -- | D193: -- | E193: =3.63*(E191*6*12/84.16) -> 0.0009856300825 | F193: =F208*1055*'GEMM (2011) LCA Data'!$P$7/1000/1000 -> 0.001791927724 | G193: =E193+F193 -> 0.002777557806 | H193: =3.63*(H191*6*12/84.16) -> 0.0004227659755 | I193: =I208*1055*'GEMM (2011) LCA Data'!$P$7/1000/1000 -> 0.0007686109481 | J193: =J208*1055*'GEMM (2011) LCA Data'!$P$7/1000000 -> 0.0003425302382 | K193: =SUM(H193:J193) -> 0.001533907162 | L193: =G193+K193 -> 0.004311464968 | M193: =M208*79.0676204311955*1055/1000000 -> 0 | N193: =N208*1055*'GEMM (2011) LCA Data'!$P$7/1000/1000 -> 0 | P193: =P208*79.0676204311955*1055/1000000 -> 3.240696688e-05 | Q193: =3.63*(Q191*6*12/84.16) -> 8.450376348e-05 | R193: =R208*1055*'GEMM (2011) LCA Data'!$P$7/1000/1000 -> 0.0001536323203 | S193: =Q193+R193 -> 0.0002381360838 | T193: =3.63*(T191*6*12/84.16) -> 2.816792116e-05 | U193: =U208*1055*'GEMM (2011) LCA Data'!$P$7/1000/1000 -> 5.121077344e-05 | V193: =V208*1055*'GEMM (2011) LCA Data'!$P$7/1000000 -> 2.282199918e-05 | W193: =SUM(T193:V193) -> 0.0001022006938 | X193: =S193+W193 -> 0.0003403367776 | Y193: -- | Z193: =Z208*1055*'GEMM (2011) LCA Data'!$P$7/1000/1000 -> 0.002355695578 | AA193: =(Q193+T193+W193+P193)-(E193+H193+J193) -> -0.001503646951
B194: CH4 | C194: -- | D194: -- | E194: 0 | F194: =F208*1055*'GEMM (2011) LCA Data'!$P$5/1000/1000 -> 8.835712044e-06 | G194: 8.835712044e-06 | H194: 0 | I194: =I208*1055*'GEMM (2011) LCA Data'!$P$5/1000/1000 -> 3.789898957e-06 | J194: =J208*1055*'GEMM (2011) LCA Data'!$P$5/1000000 -> 1.688962401e-06 | K194: 5.478861358e-06 | L194: 1.43145734e-05 | M194: =M208*0.144574268396226*1055/1000000 -> 0 | N194: =N208*1055*'GEMM (2011) LCA Data'!$P$5/1000/1000 -> 0 | P194: =P208*0.144574268396226*1055/1000000 -> 5.925578007e-08 | Q194: 0 | R194: =R208*1055*'GEMM (2011) LCA Data'!$P$5/1000/1000 -> 7.5753666e-07 | S194: 7.5753666e-07 | T194: 0 | U194: =U208*1055*'GEMM (2011) LCA Data'!$P$5/1000/1000 -> 2.5251222e-07 | V194: =V208*1055*'GEMM (2011) LCA Data'!$P$5/1000000 -> 1.125316665e-07 | W194: 3.650438865e-07 | X194: 1.122580547e-06 | Y194: -- | Z194: =Z208*1055*'GEMM (2011) LCA Data'!$P$5/1000/1000 -> 1.161556212e-05 | AA194: -1.264662735e-06
B195: N2O | C195: -- | D195: -- | E195: 0 | F195: =F208*1055*'GEMM (2011) LCA Data'!$P$11/1000/1000 -> 3.226187268e-08 | G195: 3.226187268e-08 | H195: 0 | I195: =I208*1055*'GEMM (2011) LCA Data'!$P$11/1000/1000 -> 1.383807406e-08 | J195: =J208*1055*'GEMM (2011) LCA Data'!$P$11/1000000 -> 6.166915544e-09 | K195: 2.00049896e-08 | L195: 5.226686228e-08 | M195: 0 | N195: =N208*1055*'GEMM (2011) LCA Data'!$P$11/1000/1000 -> 0 | P195: 0 | Q195: 0 | R195: =R208*1055*'GEMM (2011) LCA Data'!$P$11/1000/1000 -> 2.765996804e-09 | S195: 2.765996804e-09 | T195: 0 | U195: =U208*1055*'GEMM (2011) LCA Data'!$P$11/1000/1000 -> 9.219989348e-10 | V195: =V208*1055*'GEMM (2011) LCA Data'!$P$11/1000000 -> 4.108873488e-10 | W195: 1.332886284e-09 | X195: 4.098883088e-09 | Y195: -- | Z195: =Z208*1055*'GEMM (2011) LCA Data'!$P$11/1000/1000 -> 4.2411951e-08 | AA195: -4.834029261e-09
B196: CO | C196: -- | D196: -- | E196: =0.0016*(E191*6*12/84.16) -> 4.344375019e-07 | F196: =F208*1055*'GEMM (2011) LCA Data'!$P$6/1000/1000 -> 1.125432061e-06 | G196: 1.559869563e-06 | H196: =0.0016*(H191*6*12/84.16) -> 1.863431297e-07 | I196: =I208*1055*'GEMM (2011) LCA Data'!$P$6/1000/1000 -> 4.827311905e-07 | J196: =J208*1055*'GEMM (2011) LCA Data'!$P$6/1000000 -> 2.15128382e-07 | K196: 8.842027022e-07 | L196: 2.444072265e-06 | M196: =M208*0.0553151275443457*1055/1000000 -> 0 | N196: =N208*1055*'GEMM (2011) LCA Data'!$P$6/1000/1000 -> 0 | P196: =P208*0.0553151275443457*1055/1000000 -> 2.267167643e-08 | Q196: =0.0016*(Q191*6*12/84.16) -> 3.72468379e-08 | R196: =R208*1055*'GEMM (2011) LCA Data'!$P$6/1000/1000 -> 9.648979509e-08 | S196: 1.33736633e-07 | T196: =0.0016*(T191*6*12/84.16) -> 1.241561263e-08 | U196: =U208*1055*'GEMM (2011) LCA Data'!$P$6/1000/1000 -> 3.216326503e-08 | V196: =V208*1055*'GEMM (2011) LCA Data'!$P$6/1000000 -> 1.433350756e-08 | W196: 5.891238522e-08 | X196: 1.926490182e-07 | Y196: -- | Z196: =Z208*1055*'GEMM (2011) LCA Data'!$P$6/1000/1000 -> 1.479510191e-06 | AA196: -7.046625015e-07
B197: NMVOC | C197: -- | D197: -- | E197: =0.00016*(E191*6*12/84.16) -> 4.344375019e-08 | F197: =F208*1055*'GEMM (2011) LCA Data'!$P$8/1000/1000 -> 5.516829226e-10 | G197: 4.399543312e-08 | H197: =0.00016*(H191*6*12/84.16) -> 1.863431297e-08 | I197: =I208*1055*'GEMM (2011) LCA Data'!$P$8/1000/1000 -> 2.36633168e-10 | J197: =J208*1055*'GEMM (2011) LCA Data'!$P$8/1000000 -> 1.054551924e-10 | K197: 1.897640133e-08 | L197: 6.297183445e-08 | M197: =M208*0.401850859732704*1055/1000000 -> 0 | N197: =N208*1055*'GEMM (2011) LCA Data'!$P$8/1000/1000 -> 0 | P197: =P208*0.401850859732704*1055/1000000 -> 1.647041789e-07 | Q197: =0.00016*(Q191*6*12/84.16) -> 3.72468379e-09 | R197: =R208*1055*'GEMM (2011) LCA Data'!$P$8/1000/1000 -> 4.729896544e-11 | S197: 3.771982755e-09 | T197: =0.00016*(T191*6*12/84.16) -> 1.241561263e-09 | U197: =U208*1055*'GEMM (2011) LCA Data'!$P$8/1000/1000 -> 1.576632181e-11 | V197: =V208*1055*'GEMM (2011) LCA Data'!$P$8/1000000 -> 7.026236068e-12 | W197: 1.264353821e-09 | X197: 5.036336576e-09 | Y197: -- | Z197: =Z208*1055*'GEMM (2011) LCA Data'!$P$8/1000/1000 -> 7.252508033e-10 | AA197: 1.087512594e-07
B198: NOx | C198: -- | D198: -- | E198: 0 | F198: =F208*1055*'GEMM (2011) LCA Data'!$P$9/1000/1000 -> 1.178374159e-06 | G198: 1.178374159e-06 | H198: 0 | I198: =I208*1055*'GEMM (2011) LCA Data'!$P$9/1000/1000 -> 5.054396267e-07 | J198: =J208*1055*'GEMM (2011) LCA Data'!$P$9/1000000 -> 2.252483602e-07 | K198: 7.306879869e-07 | L198: 1.909062146e-06 | M198: =M208*0.260265861210973*1055/1000000 -> 0 | N198: =N208*1055*'GEMM (2011) LCA Data'!$P$9/1000/1000 -> 0 | P198: =P208*0.260265861210973*1055/1000000 -> 1.066735928e-07 | Q198: 0 | R198: =R208*1055*'GEMM (2011) LCA Data'!$P$9/1000/1000 -> 1.010288272e-07 | S198: 1.010288272e-07 | T198: 0 | U198: =U208*1055*'GEMM (2011) LCA Data'!$P$9/1000/1000 -> 3.367627572e-08 | V198: =V208*1055*'GEMM (2011) LCA Data'!$P$9/1000000 -> 1.500777835e-08 | W198: 4.868405406e-08 | X198: 1.497128812e-07 | Y198: -- | Z198: =Z208*1055*'GEMM (2011) LCA Data'!$P$9/1000/1000 -> 1.549108683e-06 | AA198: -6.98907134e-08
B199: SOx | C199: -- | D199: -- | E199: 0 | F199: =F208*1055*'GEMM (2011) LCA Data'!$P$10/1000/1000 -> 1.519208804e-05 | G199: 1.519208804e-05 | H199: 0 | I199: =I208*1055*'GEMM (2011) LCA Data'!$P$10/1000/1000 -> 6.516337148e-06 | J199: =J208*1055*'GEMM (2011) LCA Data'!$P$10/1000000 -> 2.903995215e-06 | K199: 9.420332364e-06 | L199: 2.461242041e-05 | M199: =M208*0.346184729976483*1055/1000000 -> 0 | N199: =N208*1055*'GEMM (2011) LCA Data'!$P$10/1000/1000 -> 0 | P199: =P208*0.346184729976483*1055/1000000 -> 1.418886393e-07 | Q199: 0 | R199: =R208*1055*'GEMM (2011) LCA Data'!$P$10/1000/1000 -> 1.302505511e-06 | S199: 1.302505511e-06 | T199: 0 | U199: =U208*1055*'GEMM (2011) LCA Data'!$P$10/1000/1000 -> 4.341685038e-07 | V199: =V208*1055*'GEMM (2011) LCA Data'!$P$10/1000000 -> 1.934864985e-07 | W199: 6.276550023e-07 | X199: 1.930160514e-06 | Y199: -- | Z199: =Z208*1055*'GEMM (2011) LCA Data'!$P$10/1000/1000 -> 1.997175118e-05 | AA199: -2.134451574e-06
B200: Water emission (tonne)
B201: TOC | C201: -- | D201: -- | E201: 0 | F201: =F203/2.86 -> 2.770700581e-07 | G201: =E201+F201 -> 2.770700581e-07 | H201: 0 | I201: =I203/2.86 -> 1.188435656e-07 | J201: =J203/2.86 -> 5.296244471e-08 | K201: =SUM(H201:J201) -> 1.718060103e-07 | L201: =G201+K201 -> 4.488760684e-07 | M201: =M203/2.86 -> 0 | N201: =N203/2.86 -> 0 | P201: =P203/2.86 -> 8.909889194e-10 | Q201: 0 | R201: =R203/2.86 -> 2.375481742e-08 | S201: =Q201+R201 -> 2.375481742e-08 | T201: 0 | U201: =U203/2.86 -> 7.918272474e-09 | V201: =V203/2.86 -> 3.528765448e-09 | W201: =SUM(T201:V201) -> 1.144703792e-08 | X201: =S201+W201 -> 3.520185534e-08 | Y201: -- | Z201: =Z203/2.86 -> 3.642405338e-07 | AA201: =(Q201+T201+W201+P201)-(E201+H201+J201) -> -4.062441787e-08
B202: BOD | C202: -- | D202: -- | E202: 0 | F202: =F208*1055*'GEMM (2011) LCA Data'!$P$13/1000/1000 -> 4.789639451e-07 | G202: =E202+F202 -> 4.789639451e-07 | H202: 0 | I202: =I208*1055*'GEMM (2011) LCA Data'!$P$13/1000/1000 -> 2.054418418e-07 | J202: =J208*1055*'GEMM (2011) LCA Data'!$P$13/1000000 -> 9.155482781e-08 | K202: =SUM(H202:J202) -> 2.969966696e-07 | L202: =G202+K202 -> 7.759606147e-07 | M202: =M208*0.0193411218363402*1055/1000000 -> 0 | N202: =N208*1055*'GEMM (2011) LCA Data'!$P$13/1000/1000 -> 0 | P202: =P208*0.0193411218363402*1055/1000000 -> 7.927228508e-09 | Q202: 0 | R202: =R208*1055*'GEMM (2011) LCA Data'!$P$13/1000/1000 -> 4.106434721e-08 | S202: =Q202+R202 -> 4.106434721e-08 | T202: 0 | U202: =U208*1055*'GEMM (2011) LCA Data'!$P$13/1000/1000 -> 1.368811574e-08 | V202: =V208*1055*'GEMM (2011) LCA Data'!$P$13/1000000 -> 6.100086859e-09 | W202: =SUM(T202:V202) -> 1.97882026e-08 | X202: =S202+W202 -> 6.085254981e-08 | Y202: -- | Z202: =Z208*1055*'GEMM (2011) LCA Data'!$P$13/1000/1000 -> 6.296533239e-07 | AA202: =(Q202+T202+W202+P202)-(E202+H202+J202) -> -6.383939671e-08
B203: COD | C203: -- | D203: -- | E203: 0 | F203: =F208*1055*'GEMM (2011) LCA Data'!$P$14/1000/1000 -> 7.924203661e-07 | G203: =E203+F203 -> 7.924203661e-07 | H203: 0 | I203: =I208*1055*'GEMM (2011) LCA Data'!$P$14/1000/1000 -> 3.398925977e-07 | J203: =J208*1055*'GEMM (2011) LCA Data'!$P$14/1000000 -> 1.514725919e-07 | K203: =SUM(H203:J203) -> 4.913651895e-07 | L203: =G203+K203 -> 1.283785556e-06 | M203: =M208*0.00621725413258714*1055/1000000 -> 0 | N203: =N208*1055*'GEMM (2011) LCA Data'!$P$14/1000/1000 -> 0 | P203: =P208*0.00621725413258714*1055/1000000 -> 2.548228309e-09 | Q203: 0 | R203: =R208*1055*'GEMM (2011) LCA Data'!$P$14/1000/1000 -> 6.793877782e-08 | S203: =Q203+R203 -> 6.793877782e-08 | T203: 0 | U203: =U208*1055*'GEMM (2011) LCA Data'!$P$14/1000/1000 -> 2.264625927e-08 | V203: =V208*1055*'GEMM (2011) LCA Data'!$P$14/1000000 -> 1.009226918e-08 | W203: =SUM(T203:V203) -> 3.273852846e-08 | X203: =S203+W203 -> 1.006773063e-07 | Y203: -- | Z203: =Z208*1055*'GEMM (2011) LCA Data'!$P$14/1000/1000 -> 1.041727927e-06 | AA203: =(Q203+T203+W203+P203)-(E203+H203+J203) -> -1.161858351e-07
B204: TDS | C204: -- | D204: -- | E204: 0 | F204: =F208*1055*'GEMM (2011) LCA Data'!$P$15/1000/1000 -> 0.0001225335472 | G204: =E204+F204 -> 0.0001225335472 | H204: 0 | I204: =I208*1055*'GEMM (2011) LCA Data'!$P$15/1000/1000 -> 5.255827266e-05 | J204: =J208*1055*'GEMM (2011) LCA Data'!$P$15/1000000 -> 2.342251005e-05 | K204: =SUM(H204:J204) -> 7.59807827e-05 | L204: =G204+K204 -> 0.0001985143299 | M204: =M208*0.359631325*1055/1000000 -> 0 | N204: =N208*1055*'GEMM (2011) LCA Data'!$P$15/1000/1000 -> 0 | P204: =P208*0.359631325*1055/1000000 -> 1.473999138e-07 | Q204: 0 | R204: =R208*1055*'GEMM (2011) LCA Data'!$P$15/1000/1000 -> 1.050550919e-05 | S204: =Q204+R204 -> 1.050550919e-05 | T204: 0 | U204: =U208*1055*'GEMM (2011) LCA Data'!$P$15/1000/1000 -> 3.501836397e-06 | V204: =V208*1055*'GEMM (2011) LCA Data'!$P$15/1000000 -> 1.560587783e-06 | W204: =SUM(T204:V204) -> 5.06242418e-06 | X204: =S204+W204 -> 1.556793337e-05 | Y204: -- | Z204: =Z208*1055*'GEMM (2011) LCA Data'!$P$15/1000/1000 -> 0.0001610844743 | AA204: =(Q204+T204+W204+P204)-(E204+H204+J204) -> -1.821268595e-05
B205: Solid waste (tonne)
B206: Solid waste | C206: -- | D206: -- | E206: 0 | F206: =F208*1055*'GEMM (2011) LCA Data'!$P$17/1000/1000 -> 2.065345652e-05 | G206: =E206+F206 -> 2.065345652e-05 | H206: 0 | I206: =I208*1055*'GEMM (2011) LCA Data'!$P$17/1000/1000 -> 8.858880071e-06 | J206: =J208*1055*'GEMM (2011) LCA Data'!$P$17/1000000 -> 3.947945717e-06 | K206: =SUM(H206:J206) -> 1.280682579e-05 | L206: =G206+K206 -> 3.346028231e-05 | M206: =M208*0.169716014150943*1055/1000000 -> 0 | N206: =N208*1055*'GEMM (2011) LCA Data'!$P$17/1000/1000 -> 0 | P206: =P208*0.169716014150943*1055/1000000 -> 6.956047519e-08 | Q206: 0 | R206: =R208*1055*'GEMM (2011) LCA Data'!$P$17/1000/1000 -> 1.770740196e-06 | S206: =Q206+R206 -> 1.770740196e-06 | T206: 0 | U206: =U208*1055*'GEMM (2011) LCA Data'!$P$17/1000/1000 -> 5.902467319e-07 | V206: =V208*1055*'GEMM (2011) LCA Data'!$P$17/1000000 -> 2.630425109e-07 | W206: =SUM(T206:V206) -> 8.532892428e-07 | X206: =S206+W206 -> 2.624029439e-06 | Y206: -- | Z206: =Z208*1055*'GEMM (2011) LCA Data'!$P$17/1000/1000 -> 2.715134967e-05
B207: Energy / Carbon
B208: MMBTU | C208: -- | D208: -- | E208: =ABS('GEMM (2011) LCA Data'!$D$9*'GEMM (2011) Models'!E191*1000) -> 0.01146671646 | F208: =83.2*1000/1055*F191 -> 0.02502945667 | G208: =E208+F208 -> 0.03649617313 | H208: -- | I208: =83.2*1000/1055*I191 -> 0.01073587632 | J208: =43.34*(H191*1000*6*12/84.16)/1055 -> 0.004784426091 | K208: =SUM(H208:J208) -> 0.01552030241 | L208: =G208+K208 -> 0.05201647554 | M208: =(($V$43*VLOOKUP($B185,'GEMM (2011) LCA Data'!$B$50:$G$67,4,FALSE))-(VLOOKUP('GEMM (2011) Models'!$B185,'GEMM (2011) LCA Data'!$B$50:$G$67,5,FALSE)*VLOOKUP('GEMM (2011) Models'!$B185,'GEMM (2011) LCA Data'!$B$50:$G$67,6,FALSE)))*M191*1000/1055 -> 0 | N208: =83.2*1000/1055*N191 -> 0 | P208: =(($V$42*VLOOKUP($B185,'GEMM (2011) LCA Data'!$B$50:$G$67,4,FALSE))-(VLOOKUP('GEMM (2011) Models'!$B185,'GEMM (2011) LCA Data'!$B$50:$G$67,5,FALSE)*VLOOKUP('GEMM (2011) Models'!$B185,'GEMM (2011) LCA Data'!$B$50:$G$67,6,FALSE)))*P191*1000/1055 -> 0.0003884966309 | Q208: =ABS('GEMM (2011) LCA Data'!$D$9*'GEMM (2011) Models'!Q191*1000) -> 0.0009831078751 | R208: =83.2*1000/1055*R191 -> 0.002145919979 | S208: =Q208+R208 -> 0.003129027854 | T208: -- | U208: =83.2*1000/1055*U191 -> 0.0007153066598 | V208: =43.34*(T191*1000*6*12/84.16)/1055 -> 0.0003187752675 | W208: =SUM(T208:V208) -> 0.001034081927 | X208: =S208+W208 -> 0.004163109782 | Y208: -- | Z208: =83.2*1000/1055*Z191 -> 0.03290410635
B209: MTCO2e | C209: =IF(C193="--","--",(1*C193)+(21*C194)+(310*C195)) -> -- | D209: -- | E209: 0.0009856300825 | F209: 0.001987478857 | G209: 0.00297310894 | H209: 0.0004227659755 | I209: 0.0008524886291 | J209: 0.0003799101925 | K209: 0.001655164797 | L209: 0.004628273737 | M209: 0 | N209: 0 | P209: =IF(P193="--","--",(1*P193)+(21*P194)+(310*P195)) -> 3.365133826e-05 | Q209: 8.450376348e-05 | R209: 0.0001703980492 | S209: 0.0002549018127 | T209: 2.816792116e-05 | U209: 5.679934973e-05 | V209: 2.531253925e-05 | W209: 0.0001102798101 | X209: 0.0003651816228 | Y209: -- | Z209: 0.002612770087 | AA209: =(Q209+T209+W209+P209)-(E209+H209+J209) -> -0.001531703417
Y210: Cost per Pound | AA210: Cost Savings
... 314 more rows

Sheet GEMM (2013) Models
A1: **This sheet was modified from GEMM (2013)**
B2: Acetonitrile | D2: C2H3N | E2: Destruct Mass for Energy Recovery | F2: Destruct Mass in Incinerator (I) | H2: No Destruction | I2: TOTAL Reductions
B3: Mass (tonne) | D3: Create C | E3: Destruct ER | F3: NG | G3: Destruct I | H3: Steam
B4: Mass | D4: ='GEMM Parameters'!$B$22 -> 0.92 | E4: ='GEMM Parameters'!$C$22 -> 0.69 | G4: ='GEMM Parameters'!$D$22 -> 0.23 | H4: ='GEMM Parameters'!$E$16 -> -1.25
B5: Feedstock Uses (tonne)
B6: Water | D6: 0.205712
B7: Natural Gas | D7: 0.0821468 | F7: =F28*1055/'GEMM (2013) LCA Data'!$C$43/1000 -> 0.1166308995
B8: Air | D8: 1.8706912
B9: Crude Oil | D9: 1.0346596
B10: Salt | D10: 0.0125028
B11: Sulfur | D11: 0
B12: Air emission (tonne)
B13: CO2 | D13: =HLOOKUP(B2,'GEMM (2013) LCA Data'!$C$2:$AB$23,7,FALSE)*D4 -> 6.437685656 | E13: =E4*HLOOKUP(B2,'GEMM (2013) LCA Data'!$C$2:$AB$23,3,FALSE)/HLOOKUP(B2,'GEMM (2013) LCA Data'!$C$2:$AB$23,2,FALSE)*12*'GEMM (2013) LCA Data'!$C$49 -> 1.466165854 | F13: =F28*1055*'GEMM (2013) LCA Data'!$C$29/1000/1000 -> 0.395968588 | G13: =G4*HLOOKUP(B2,'GEMM (2013) LCA Data'!$C$2:$AB$23,3,FALSE)/HLOOKUP(B2,'GEMM (2013) LCA Data'!$C$2:$AB$23,2,FALSE)*12*'GEMM (2013) LCA Data'!$C$49 -> 0.4887219512 | H13: =H28*1055*'GEMM (2013) LCA Data'!$D$29/1000/1000 -> -0.09764851123 | I13: =SUM(D13:H13) -> 8.690893537
B14: CH4 | D14: =HLOOKUP(B2,'GEMM (2013) LCA Data'!$C$2:$AB$23,8,FALSE)*D4 -> 0.01177123693 | E14: =E4*HLOOKUP(B2,'GEMM (2013) LCA Data'!$C$2:$AB$23,3,FALSE)/HLOOKUP(B2,'GEMM (2013) LCA Data'!$C$2:$AB$23,2,FALSE)*12*'GEMM (2013) LCA Data'!$C$50 -> 0 | F14: =F28*1055*'GEMM (2013) LCA Data'!$C$30/1000/1000 -> 0.001952458448 | G14: =G4*HLOOKUP(B2,'GEMM (2013) LCA Data'!$C$2:$AB$23,3,FALSE)/HLOOKUP(B2,'GEMM (2013) LCA Data'!$C$2:$AB$23,2,FALSE)*12*'GEMM (2013) LCA Data'!$C$50 -> 0 | H14: =H28*1055*'GEMM (2013) LCA Data'!$D$30/1000/1000 -> -0.0001785492215 | I14: 0.01354514616
B15: N2O | D15: =HLOOKUP(B2,'GEMM (2013) LCA Data'!$C$2:$AB$23,9,FALSE)*D4 -> 0 | E15: =E4*HLOOKUP(B2,'GEMM (2013) LCA Data'!$C$2:$AB$23,3,FALSE)/HLOOKUP(B2,'GEMM (2013) LCA Data'!$C$2:$AB$23,2,FALSE)*12*'GEMM (2013) LCA Data'!$C$51 -> 0 | F15: =F28*1055*'GEMM (2013) LCA Data'!$C$31/1000/1000 -> 7.129019771e-06 | G15: =G4*HLOOKUP(B2,'GEMM (2013) LCA Data'!$C$2:$AB$23,3,FALSE)/HLOOKUP(B2,'GEMM (2013) LCA Data'!$C$2:$AB$23,2,FALSE)*12*'GEMM (2013) LCA Data'!$C$51 -> 0 | H15: =H28*1055*'GEMM (2013) LCA Data'!$D$31/1000/1000 -> 0 | I15: 7.129019771e-06
B16: CO | D16: =HLOOKUP(B2,'GEMM (2013) LCA Data'!$C$2:$AB$23,10,FALSE)*D4 -> 0.004503757685 | E16: =E4*HLOOKUP(B2,'GEMM (2013) LCA Data'!$C$2:$AB$23,3,FALSE)/HLOOKUP(B2,'GEMM (2013) LCA Data'!$C$2:$AB$23,2,FALSE)*12*'GEMM (2013) LCA Data'!$C$52 -> 0.0006462439024 | F16: =F28*1055*'GEMM (2013) LCA Data'!$C$32/1000/1000 -> 0.0002486906911 | G16: =G4*HLOOKUP(B2,'GEMM (2013) LCA Data'!$C$2:$AB$23,3,FALSE)/HLOOKUP(B2,'GEMM (2013) LCA Data'!$C$2:$AB$23,2,FALSE)*12*'GEMM (2013) LCA Data'!$C$52 -> 0.0002154146341 | H16: =H28*1055*'GEMM (2013) LCA Data'!$D$32/1000/1000 -> -6.831418252e-05 | I16: 0.00554579273
B17: NMVOC | D17: =HLOOKUP(B2,'GEMM (2013) LCA Data'!$C$2:$AB$23,11,FALSE)*D4 -> 0.032718697 | E17: =E4*HLOOKUP(B2,'GEMM (2013) LCA Data'!$C$2:$AB$23,3,FALSE)/HLOOKUP(B2,'GEMM (2013) LCA Data'!$C$2:$AB$23,2,FALSE)*12*'GEMM (2013) LCA Data'!$C$53 -> 6.462439024e-05 | F17: =F28*1055*'GEMM (2013) LCA Data'!$C$33/1000/1000 -> 1.219073208e-07 | G17: =G4*HLOOKUP(B2,'GEMM (2013) LCA Data'!$C$2:$AB$23,3,FALSE)/HLOOKUP(B2,'GEMM (2013) LCA Data'!$C$2:$AB$23,2,FALSE)*12*'GEMM (2013) LCA Data'!$C$53 -> 2.154146341e-05 | H17: =H28*1055*'GEMM (2013) LCA Data'!$D$33/1000/1000 -> -0.0004962858118 | I17: 0.03230869895
B18: NOx | D18: =HLOOKUP(B2,'GEMM (2013) LCA Data'!$C$2:$AB$23,12,FALSE)*D4 -> 0.02119084642 | E18: =E4*HLOOKUP(B2,'GEMM (2013) LCA Data'!$C$2:$AB$23,3,FALSE)/HLOOKUP(B2,'GEMM (2013) LCA Data'!$C$2:$AB$23,2,FALSE)*12*'GEMM (2013) LCA Data'!$C$54 -> 0 | F18: =F28*1055*'GEMM (2013) LCA Data'!$C$34/1000/1000 -> 0.0002603894932 | G18: =G4*HLOOKUP(B2,'GEMM (2013) LCA Data'!$C$2:$AB$23,3,FALSE)/HLOOKUP(B2,'GEMM (2013) LCA Data'!$C$2:$AB$23,2,FALSE)*12*'GEMM (2013) LCA Data'!$C$54 -> 0 | H18: =H28*1055*'GEMM (2013) LCA Data'!$D$34/1000/1000 -> -0.0003214283386 | I18: 0.02112980757
B19: SOx | D19: =HLOOKUP(B2,'GEMM (2013) LCA Data'!$C$2:$AB$23,13,FALSE)*D4 -> 0.02818636071 | E19: =E4*HLOOKUP(B2,'GEMM (2013) LCA Data'!$C$2:$AB$23,3,FALSE)/HLOOKUP(B2,'GEMM (2013) LCA Data'!$C$2:$AB$23,2,FALSE)*12*'GEMM (2013) LCA Data'!$C$55 -> 0 | F19: =F28*1055*'GEMM (2013) LCA Data'!$C$35/1000/1000 -> 0.003357049266 | G19: =G4*HLOOKUP(B2,'GEMM (2013) LCA Data'!$C$2:$AB$23,3,FALSE)/HLOOKUP(B2,'GEMM (2013) LCA Data'!$C$2:$AB$23,2,FALSE)*12*'GEMM (2013) LCA Data'!$C$55 -> 0 | H19: =H28*1055*'GEMM (2013) LCA Data'!$D$35/1000/1000 -> -0.0004275381415 | I19: 0.03111587184
B20: Water emission (tonne)
B21: TOC | D21: =HLOOKUP(B2,'GEMM (2013) LCA Data'!$C$2:$AB$23,15,FALSE)*D4 -> 0.0001769960949 | E21: =E4*HLOOKUP(B2,'GEMM (2013) LCA Data'!$C$2:$AB$23,3,FALSE)/HLOOKUP(B2,'GEMM (2013) LCA Data'!$C$2:$AB$23,2,FALSE)*12*'GEMM (2013) LCA Data'!$C$57 -> 0 | F21: =F28*1055*'GEMM (2013) LCA Data'!$C$37/1000/1000 -> 6.122514776e-05 | G21: =G4*HLOOKUP(B2,'GEMM (2013) LCA Data'!$C$2:$AB$23,3,FALSE)/HLOOKUP(B2,'GEMM (2013) LCA Data'!$C$2:$AB$23,2,FALSE)*12*'GEMM (2013) LCA Data'!$C$57 -> 0 | H21: =H28*1055*'GEMM (2013) LCA Data'!$D$37/1000/1000 -> -2.684723375e-06 | I21: =SUM(D21:H21) -> 0.0002355365193
B22: BOD | D22: =HLOOKUP(B2,'GEMM (2013) LCA Data'!$C$2:$AB$23,16,FALSE)*D4 -> 0.00157475414 | E22: =E4*HLOOKUP(B2,'GEMM (2013) LCA Data'!$C$2:$AB$23,3,FALSE)/HLOOKUP(B2,'GEMM (2013) LCA Data'!$C$2:$AB$23,2,FALSE)*12*'GEMM (2013) LCA Data'!$C$58 -> 0 | F22: =F28*1055*'GEMM (2013) LCA Data'!$C$38/1000/1000 -> 0.0001058383519 | G22: =G4*HLOOKUP(B2,'GEMM (2013) LCA Data'!$C$2:$AB$23,3,FALSE)/HLOOKUP(B2,'GEMM (2013) LCA Data'!$C$2:$AB$23,2,FALSE)*12*'GEMM (2013) LCA Data'!$C$58 -> 0 | H22: =H28*1055*'GEMM (2013) LCA Data'!$D$38/1000/1000 -> -2.388628547e-05 | I22: =SUM(D22:H22) -> 0.001656706206
B23: COD | D23: =HLOOKUP(B2,'GEMM (2013) LCA Data'!$C$2:$AB$23,17,FALSE)*D4 -> 0.0005062088315 | E23: =E4*HLOOKUP(B2,'GEMM (2013) LCA Data'!$C$2:$AB$23,3,FALSE)/HLOOKUP(B2,'GEMM (2013) LCA Data'!$C$2:$AB$23,2,FALSE)*12*'GEMM (2013) LCA Data'!$C$59 -> 0 | F23: =F28*1055*'GEMM (2013) LCA Data'!$C$39/1000/1000 -> 0.0001751039226 | G23: =G4*HLOOKUP(B2,'GEMM (2013) LCA Data'!$C$2:$AB$23,3,FALSE)/HLOOKUP(B2,'GEMM (2013) LCA Data'!$C$2:$AB$23,2,FALSE)*12*'GEMM (2013) LCA Data'!$C$59 -> 0 | H23: =H28*1055*'GEMM (2013) LCA Data'!$D$39/1000/1000 -> -7.678308854e-06 | I23: =SUM(D23:H23) -> 0.0006736344452
B24: TDS | D24: =HLOOKUP(B2,'GEMM (2013) LCA Data'!$C$2:$AB$23,18,FALSE)*D4 -> 0.02928118248 | E24: =E4*HLOOKUP(B2,'GEMM (2013) LCA Data'!$C$2:$AB$23,3,FALSE)/HLOOKUP(B2,'GEMM (2013) LCA Data'!$C$2:$AB$23,2,FALSE)*12*'GEMM (2013) LCA Data'!$C$60 -> 0 | F24: =F28*1055*'GEMM (2013) LCA Data'!$C$40/1000/1000 -> 0.02707667001 | G24: =G4*HLOOKUP(B2,'GEMM (2013) LCA Data'!$C$2:$AB$23,3,FALSE)/HLOOKUP(B2,'GEMM (2013) LCA Data'!$C$2:$AB$23,2,FALSE)*12*'GEMM (2013) LCA Data'!$C$60 -> 0 | H24: =H28*1055*'GEMM (2013) LCA Data'!$D$40/1000/1000 -> -0.0004441446864 | I24: =SUM(D24:H24) -> 0.05591370781
B25: Solid waste (tonne)
B26: Solid waste | D26: =HLOOKUP(B2,'GEMM (2013) LCA Data'!$C$2:$AB$23,20,FALSE)*D4 -> 0.01381827787 | E26: =E4*HLOOKUP(B2,'GEMM (2013) LCA Data'!$C$2:$AB$23,3,FALSE)/HLOOKUP(B2,'GEMM (2013) LCA Data'!$C$2:$AB$23,2,FALSE)*12*'GEMM (2013) LCA Data'!$C$62 -> 0 | F26: =F28*1055*'GEMM (2013) LCA Data'!$C$42/1000/1000 -> 0.004563867118 | G26: =G4*HLOOKUP(B2,'GEMM (2013) LCA Data'!$C$2:$AB$23,3,FALSE)/HLOOKUP(B2,'GEMM (2013) LCA Data'!$C$2:$AB$23,2,FALSE)*12*'GEMM (2013) LCA Data'!$C$62 -> 0 | H26: =H28*1055*'GEMM (2013) LCA Data'!$D$42/1000/1000 -> -0.0002095992775 | I26: =SUM(D26:H26) -> 0.01817254571
B27: Energy / Carbon
B28: MMBTU | D28: =HLOOKUP(B2,'GEMM (2013) LCA Data'!$C$2:$AB$23,22,FALSE)/1055*1000*D4 -> 77.17535545 | E28: =HLOOKUP(B2,'GEMM (2013) LCA Data'!$C$2:$AB$23,4,FALSE)*1000/1055*E4 -> 16.81434662 | F28: =G4*HLOOKUP(B2,'GEMM (2013) LCA Data'!$C$2:$AB$23,3,FALSE)/HLOOKUP(B2,'GEMM (2013) LCA Data'!$C$2:$AB$23,2,FALSE)*12*'GEMM (2013) LCA Data'!$C$64*1000/1055 -> 5.530847301 | G28: =HLOOKUP(B2,'GEMM (2013) LCA Data'!$C$2:$AB$23,4,FALSE)*1000/1055*G4 -> 5.604782207 | H28: =VLOOKUP(B2,'GEMM (2013) LCA Data'!$B$69:$D$90,3,FALSE)/1055*1000*H4 -> -1.170616114 | I28: =SUM(D28:H28) -> 103.9547155
B29: MTCO2e | D29: =IF(D13="--","--",(1*D13)+(21*D14)+(310*D15)) -> 6.684881631 | E29: =IF(E13="--","--",(1*E13)+(21*E14)+(310*E15)) -> 1.466165854 | F29: =IF(F13="--","--",(1*F13)+(21*F14)+(310*F15)) -> 0.4391802115 | G29: =IF(G13="--","--",(1*G13)+(21*G14)+(310*G15)) -> 0.4887219512 | H29: =IF(H13="--","--",(1*H13)+(21*H14)+(310*H15)) -> -0.1013980449 | I29: =SUM(D29:H29) -> 8.977551603
B32: Dichloromethane | E32: Destruct Mass for Energy Recovery | F32: Destruct Mass in Incinerator | H32: No Destruction | I32: TOTAl Reductions
B33: Mass (tonne) | D33: Create C | E33: Destruct ER | F33: NG | G33: Destruct I | H33: Steam
B34: Mass | D34: ='GEMM Parameters'!$B$22 -> 0.92 | E34: ='GEMM Parameters'!$C$22 -> 0.69 | G34: ='GEMM Parameters'!$D$22 -> 0.23 | H34: ='GEMM Parameters'!$E$16 -> -1.25
B35: Feedstock Uses (tonne)
B36: Water | D36: 2.0203752
B37: Natural Gas | D37: 0.2027404 | F37: =F58*1055/'GEMM (2013) LCA Data'!$C$43/1000 -> 0.02816176019
B38: Air | D38: 0
B39: Crude Oil | D39: 0.0417956
B40: Salt | D40: 0.176364
B41: Sulfur | D41: 0
B42: Air emission (tonne)
B43: CO2 | D43: =HLOOKUP(B32,'GEMM (2013) LCA Data'!$C$2:$AB$23,7,FALSE)*D34 -> 1.9872 | E43: =E34*HLOOKUP(B32,'GEMM (2013) LCA Data'!$C$2:$AB$23,3,FALSE)/HLOOKUP(B32,'GEMM (2013) LCA Data'!$C$2:$AB$23,2,FALSE)*12*'GEMM (2013) LCA Data'!$C$49 -> 0.3540212014 | F43: =F58*1055*'GEMM (2013) LCA Data'!$C$29/1000/1000 -> 0.09561078979 | G43: =G34*HLOOKUP(B32,'GEMM (2013) LCA Data'!$C$2:$AB$23,3,FALSE)/HLOOKUP(B32,'GEMM (2013) LCA Data'!$C$2:$AB$23,2,FALSE)*12*'GEMM (2013) LCA Data'!$C$49 -> 0.1180070671 | H43: =H58*1055*'GEMM (2013) LCA Data'!$D$29/1000/1000 -> -0.04862658657 | I43: =SUM(D43:H43) -> 2.506212472
B44: CH4 | D44: =HLOOKUP(B32,'GEMM (2013) LCA Data'!$C$2:$AB$23,8,FALSE)*D34 -> 0.0062928 | E44: =E34*HLOOKUP(B32,'GEMM (2013) LCA Data'!$C$2:$AB$23,3,FALSE)/HLOOKUP(B32,'GEMM (2013) LCA Data'!$C$2:$AB$23,2,FALSE)*12*'GEMM (2013) LCA Data'!$C$50 -> 0 | F44: =F58*1055*'GEMM (2013) LCA Data'!$C$30/1000/1000 -> 0.0004714416746 | G44: =G34*HLOOKUP(B32,'GEMM (2013) LCA Data'!$C$2:$AB$23,3,FALSE)/HLOOKUP(B32,'GEMM (2013) LCA Data'!$C$2:$AB$23,2,FALSE)*12*'GEMM (2013) LCA Data'!$C$50 -> 0 | H44: =H58*1055*'GEMM (2013) LCA Data'!$D$30/1000/1000 -> -8.891317506e-05 | I44: 0.0066753285
B45: N2O | D45: =HLOOKUP(B32,'GEMM (2013) LCA Data'!$C$2:$AB$23,9,FALSE)*D34 -> 0 | E45: =E34*HLOOKUP(B32,'GEMM (2013) LCA Data'!$C$2:$AB$23,3,FALSE)/HLOOKUP(B32,'GEMM (2013) LCA Data'!$C$2:$AB$23,2,FALSE)*12*'GEMM (2013) LCA Data'!$C$51 -> 0 | F45: =F58*1055*'GEMM (2013) LCA Data'!$C$31/1000/1000 -> 1.721376976e-06 | G45: =G34*HLOOKUP(B32,'GEMM (2013) LCA Data'!$C$2:$AB$23,3,FALSE)/HLOOKUP(B32,'GEMM (2013) LCA Data'!$C$2:$AB$23,2,FALSE)*12*'GEMM (2013) LCA Data'!$C$51 -> 0 | H45: =H58*1055*'GEMM (2013) LCA Data'!$D$31/1000/1000 -> 0 | I45: 1.721376976e-06
B46: CO | D46: =HLOOKUP(B32,'GEMM (2013) LCA Data'!$C$2:$AB$23,10,FALSE)*D34 -> 0.00368 | E46: =E34*HLOOKUP(B32,'GEMM (2013) LCA Data'!$C$2:$AB$23,3,FALSE)/HLOOKUP(B32,'GEMM (2013) LCA Data'!$C$2:$AB$23,2,FALSE)*12*'GEMM (2013) LCA Data'!$C$52 -> 0.0001560424028 | F46: =F58*1055*'GEMM (2013) LCA Data'!$C$32/1000/1000 -> 6.004898902e-05 | G46: =G34*HLOOKUP(B32,'GEMM (2013) LCA Data'!$C$2:$AB$23,3,FALSE)/HLOOKUP(B32,'GEMM (2013) LCA Data'!$C$2:$AB$23,2,FALSE)*12*'GEMM (2013) LCA Data'!$C$52 -> 5.201413428e-05 | H46: =H58*1055*'GEMM (2013) LCA Data'!$D$32/1000/1000 -> -3.401880344e-05 | I46: 0.003914086723
B47: NMVOC | D47: =HLOOKUP(B32,'GEMM (2013) LCA Data'!$C$2:$AB$23,11,FALSE)*D34 -> 0.009936 | E47: =E34*HLOOKUP(B32,'GEMM (2013) LCA Data'!$C$2:$AB$23,3,FALSE)/HLOOKUP(B32,'GEMM (2013) LCA Data'!$C$2:$AB$23,2,FALSE)*12*'GEMM (2013) LCA Data'!$C$53 -> 1.560424028e-05 | F47: =F58*1055*'GEMM (2013) LCA Data'!$C$33/1000/1000 -> 2.943580773e-08 | G47: =G34*HLOOKUP(B32,'GEMM (2013) LCA Data'!$C$2:$AB$23,3,FALSE)/HLOOKUP(B32,'GEMM (2013) LCA Data'!$C$2:$AB$23,2,FALSE)*12*'GEMM (2013) LCA Data'!$C$53 -> 5.201413428e-06 | H47: =H58*1055*'GEMM (2013) LCA Data'!$D$33/1000/1000 -> -0.0002471382787 | I47: 0.009709696811
B48: NOx | D48: =HLOOKUP(B32,'GEMM (2013) LCA Data'!$C$2:$AB$23,12,FALSE)*D34 -> 0.0075072 | E48: =E34*HLOOKUP(B32,'GEMM (2013) LCA Data'!$C$2:$AB$23,3,FALSE)/HLOOKUP(B32,'GEMM (2013) LCA Data'!$C$2:$AB$23,2,FALSE)*12*'GEMM (2013) LCA Data'!$C$54 -> 0 | F48: =F58*1055*'GEMM (2013) LCA Data'!$C$34/1000/1000 -> 6.287378812e-05 | G48: =G34*HLOOKUP(B32,'GEMM (2013) LCA Data'!$C$2:$AB$23,3,FALSE)/HLOOKUP(B32,'GEMM (2013) LCA Data'!$C$2:$AB$23,2,FALSE)*12*'GEMM (2013) LCA Data'!$C$54 -> 0 | H48: =H58*1055*'GEMM (2013) LCA Data'!$D$34/1000/1000 -> -0.0001600635046 | I48: 0.007410010283
B49: SOx | D49: =HLOOKUP(B32,'GEMM (2013) LCA Data'!$C$2:$AB$23,13,FALSE)*D34 -> 0.0075256 | E49: =E34*HLOOKUP(B32,'GEMM (2013) LCA Data'!$C$2:$AB$23,3,FALSE)/HLOOKUP(B32,'GEMM (2013) LCA Data'!$C$2:$AB$23,2,FALSE)*12*'GEMM (2013) LCA Data'!$C$55 -> 0 | F49: =F58*1055*'GEMM (2013) LCA Data'!$C$35/1000/1000 -> 0.0008105949347 | G49: =G34*HLOOKUP(B32,'GEMM (2013) LCA Data'!$C$2:$AB$23,3,FALSE)/HLOOKUP(B32,'GEMM (2013) LCA Data'!$C$2:$AB$23,2,FALSE)*12*'GEMM (2013) LCA Data'!$C$55 -> 0 | H49: =H58*1055*'GEMM (2013) LCA Data'!$D$35/1000/1000 -> -0.0002129036089 | I49: 0.008123291326
B50: Water emission (tonne)
B51: TOC | D51: =HLOOKUP(B32,'GEMM (2013) LCA Data'!$C$2:$AB$23,15,FALSE)*D34 -> 0.016928 | E51: =E34*HLOOKUP(B32,'GEMM (2013) LCA Data'!$C$2:$AB$23,3,FALSE)/HLOOKUP(B32,'GEMM (2013) LCA Data'!$C$2:$AB$23,2,FALSE)*12*'GEMM (2013) LCA Data'!$C$57 -> 0 | F51: =F58*1055*'GEMM (2013) LCA Data'!$C$37/1000/1000 -> 1.478345735e-05 | G51: =G34*HLOOKUP(B32,'GEMM (2013) LCA Data'!$C$2:$AB$23,3,FALSE)/HLOOKUP(B32,'GEMM (2013) LCA Data'!$C$2:$AB$23,2,FALSE)*12*'GEMM (2013) LCA Data'!$C$57 -> 0 | H51: =H58*1055*'GEMM (2013) LCA Data'!$D$37/1000/1000 -> -1.336927025e-06 | I51: =SUM(D51:H51) -> 0.01694144653
B52: BOD | D52: =HLOOKUP(B32,'GEMM (2013) LCA Data'!$C$2:$AB$23,16,FALSE)*D34 -> 0.00016652 | E52: =E34*HLOOKUP(B32,'GEMM (2013) LCA Data'!$C$2:$AB$23,3,FALSE)/HLOOKUP(B32,'GEMM (2013) LCA Data'!$C$2:$AB$23,2,FALSE)*12*'GEMM (2013) LCA Data'!$C$58 -> 0 | F52: =F58*1055*'GEMM (2013) LCA Data'!$C$38/1000/1000 -> 2.55557858e-05 | G52: =G34*HLOOKUP(B32,'GEMM (2013) LCA Data'!$C$2:$AB$23,3,FALSE)/HLOOKUP(B32,'GEMM (2013) LCA Data'!$C$2:$AB$23,2,FALSE)*12*'GEMM (2013) LCA Data'!$C$58 -> 0 | H52: =H58*1055*'GEMM (2013) LCA Data'!$D$38/1000/1000 -> -1.189478993e-05 | I52: =SUM(D52:H52) -> 0.0001801809959
B53: COD | D53: =HLOOKUP(B32,'GEMM (2013) LCA Data'!$C$2:$AB$23,17,FALSE)*D34 -> 0.06946 | E53: =E34*HLOOKUP(B32,'GEMM (2013) LCA Data'!$C$2:$AB$23,3,FALSE)/HLOOKUP(B32,'GEMM (2013) LCA Data'!$C$2:$AB$23,2,FALSE)*12*'GEMM (2013) LCA Data'!$C$59 -> 0 | F53: =F58*1055*'GEMM (2013) LCA Data'!$C$39/1000/1000 -> 4.228068802e-05 | G53: =G34*HLOOKUP(B32,'GEMM (2013) LCA Data'!$C$2:$AB$23,3,FALSE)/HLOOKUP(B32,'GEMM (2013) LCA Data'!$C$2:$AB$23,2,FALSE)*12*'GEMM (2013) LCA Data'!$C$59 -> 0 | H53: =H58*1055*'GEMM (2013) LCA Data'!$D$39/1000/1000 -> -3.823611292e-06 | I53: =SUM(D53:H53) -> 0.06949845708
B54: TDS | D54: =HLOOKUP(B32,'GEMM (2013) LCA Data'!$C$2:$AB$23,18,FALSE)*D34 -> 0.0072036 | E54: =E34*HLOOKUP(B32,'GEMM (2013) LCA Data'!$C$2:$AB$23,3,FALSE)/HLOOKUP(B32,'GEMM (2013) LCA Data'!$C$2:$AB$23,2,FALSE)*12*'GEMM (2013) LCA Data'!$C$60 -> 0 | F54: =F58*1055*'GEMM (2013) LCA Data'!$C$40/1000/1000 -> 0.006537947412 | G54: =G34*HLOOKUP(B32,'GEMM (2013) LCA Data'!$C$2:$AB$23,3,FALSE)/HLOOKUP(B32,'GEMM (2013) LCA Data'!$C$2:$AB$23,2,FALSE)*12*'GEMM (2013) LCA Data'!$C$60 -> 0 | H54: =H58*1055*'GEMM (2013) LCA Data'!$D$40/1000/1000 -> -0.0002211732649 | I54: =SUM(D54:H54) -> 0.01352037415
B55: Solid waste (tonne)
B56: Solid waste | D56: =HLOOKUP(B32,'GEMM (2013) LCA Data'!$C$2:$AB$23,20,FALSE)*D34 -> 0.03404 | E56: =E34*HLOOKUP(B32,'GEMM (2013) LCA Data'!$C$2:$AB$23,3,FALSE)/HLOOKUP(B32,'GEMM (2013) LCA Data'!$C$2:$AB$23,2,FALSE)*12*'GEMM (2013) LCA Data'!$C$62 -> 0 | F56: =F58*1055*'GEMM (2013) LCA Data'!$C$42/1000/1000 -> 0.001101993827 | G56: =G34*HLOOKUP(B32,'GEMM (2013) LCA Data'!$C$2:$AB$23,3,FALSE)/HLOOKUP(B32,'GEMM (2013) LCA Data'!$C$2:$AB$23,2,FALSE)*12*'GEMM (2013) LCA Data'!$C$62 -> 0 | H56: =H58*1055*'GEMM (2013) LCA Data'!$D$42/1000/1000 -> -0.0001043753487 | I56: =SUM(D56:H56) -> 0.03503761848
B57: Energy / Carbon
B58: MMBTU | D58: =HLOOKUP(B32,'GEMM (2013) LCA Data'!$C$2:$AB$23,22,FALSE)/1055*1000*D34 -> 20.2587244 | E58: =HLOOKUP(B32,'GEMM (2013) LCA Data'!$C$2:$AB$23,4,FALSE)*1000/1055*E34 -> 3.714210787 | F58: =G34*HLOOKUP(B32,'GEMM (2013) LCA Data'!$C$2:$AB$23,3,FALSE)/HLOOKUP(B32,'GEMM (2013) LCA Data'!$C$2:$AB$23,2,FALSE)*12*'GEMM (2013) LCA Data'!$C$64*1000/1055 -> 1.335481386 | G58: =HLOOKUP(B32,'GEMM (2013) LCA Data'!$C$2:$AB$23,4,FALSE)*1000/1055*G34 -> 1.238070262 | H58: =VLOOKUP(B32,'GEMM (2013) LCA Data'!$B$69:$D$90,3,FALSE)/1055*1000*H34 -> -0.5829383886 | I58: =SUM(D58:H58) -> 25.96354845
B59: MTCO2e | D59: =IF(D43="--","--",(1*D43)+(21*D44)+(310*D45)) -> 2.1193488 | E59: =IF(E43="--","--",(1*E43)+(21*E44)+(310*E45)) -> 0.3540212014 | F59: =IF(F43="--","--",(1*F43)+(21*F44)+(310*F45)) -> 0.1060446918 | G59: =IF(G43="--","--",(1*G43)+(21*G44)+(310*G45)) -> 0.1180070671 | H59: =IF(H43="--","--",(1*H43)+(21*H44)+(310*H45)) -> -0.05049376324 | I59: =SUM(D59:H59) -> 2.646927997
B62: Methanol | E62: Destruct Mass for Energy Recovery | F62: Destruct Mass in Incinerator | H62: Process | I62: TOTAl Reductions
B63: Mass (tonne) | D63: Create C | E63: Destruct ER | F63: NG | G63: Destruct I | H63: Steam
B64: Mass | D64: ='GEMM Parameters'!$B$16 -> 0 | E64: ='GEMM Parameters'!$C$16 -> 0.69 | G64: ='GEMM Parameters'!$D$16 -> 0.23 | H64: ='GEMM Parameters'!$E$16 -> -1.25
B65: Feedstock Uses (tonne)
B66: Water | D66: 0
B67: Natural Gas | D67: 0 | F67: =F88*1055/'GEMM (2013) LCA Data'!$C$43/1000 -> 0.07471667
B68: Air | D68: 0
B69: Crude Oil | D69: 0
B70: Salt | D70: 0
B71: Sulfur | D71: 0
B72: Air emission (tonne)
B73: CO2 | D73: =HLOOKUP(B62,'GEMM (2013) LCA Data'!$C$2:$AB$23,7,FALSE)*D64 -> 0 | E73: =E64*HLOOKUP(B62,'GEMM (2013) LCA Data'!$C$2:$AB$23,3,FALSE)/HLOOKUP(B62,'GEMM (2013) LCA Data'!$C$2:$AB$23,2,FALSE)*12*'GEMM (2013) LCA Data'!$C$49 -> 0.9392625 | F73: =F88*1055*'GEMM (2013) LCA Data'!$C$29/1000/1000 -> 0.2536673767 | G73: =G64*HLOOKUP(B62,'GEMM (2013) LCA Data'!$C$2:$AB$23,3,FALSE)/HLOOKUP(B62,'GEMM (2013) LCA Data'!$C$2:$AB$23,2,FALSE)*12*'GEMM (2013) LCA Data'!$C$49 -> 0.3130875 | H73: =H88*1055*'GEMM (2013) LCA Data'!$D$29/1000/1000 -> -0.2054769786 | I73: =SUM(D73:H73) -> 1.300540398
B74: CH4 | D74: =HLOOKUP(B62,'GEMM (2013) LCA Data'!$C$2:$AB$23,8,FALSE)*D64 -> 0 | E74: =E64*HLOOKUP(B62,'GEMM (2013) LCA Data'!$C$2:$AB$23,3,FALSE)/HLOOKUP(B62,'GEMM (2013) LCA Data'!$C$2:$AB$23,2,FALSE)*12*'GEMM (2013) LCA Data'!$C$50 -> 0 | F74: =F88*1055*'GEMM (2013) LCA Data'!$C$30/1000/1000 -> 0.001250793693 | G74: =G64*HLOOKUP(B62,'GEMM (2013) LCA Data'!$C$2:$AB$23,3,FALSE)/HLOOKUP(B62,'GEMM (2013) LCA Data'!$C$2:$AB$23,2,FALSE)*12*'GEMM (2013) LCA Data'!$C$50 -> 0 | H74: =H88*1055*'GEMM (2013) LCA Data'!$D$30/1000/1000 -> -0.00037571238 | I74: 0.000875081313
B75: N2O | D75: =HLOOKUP(B62,'GEMM (2013) LCA Data'!$C$2:$AB$23,9,FALSE)*D64 -> 0 | E75: =E64*HLOOKUP(B62,'GEMM (2013) LCA Data'!$C$2:$AB$23,3,FALSE)/HLOOKUP(B62,'GEMM (2013) LCA Data'!$C$2:$AB$23,2,FALSE)*12*'GEMM (2013) LCA Data'!$C$51 -> 0 | F75: =F88*1055*'GEMM (2013) LCA Data'!$C$31/1000/1000 -> 4.567028291e-06 | G75: =G64*HLOOKUP(B62,'GEMM (2013) LCA Data'!$C$2:$AB$23,3,FALSE)/HLOOKUP(B62,'GEMM (2013) LCA Data'!$C$2:$AB$23,2,FALSE)*12*'GEMM (2013) LCA Data'!$C$51 -> 0 | H75: =H88*1055*'GEMM (2013) LCA Data'!$D$31/1000/1000 -> 0 | I75: 4.567028291e-06
B76: CO | D76: =HLOOKUP(B62,'GEMM (2013) LCA Data'!$C$2:$AB$23,10,FALSE)*D64 -> 0 | E76: =E64*HLOOKUP(B62,'GEMM (2013) LCA Data'!$C$2:$AB$23,3,FALSE)/HLOOKUP(B62,'GEMM (2013) LCA Data'!$C$2:$AB$23,2,FALSE)*12*'GEMM (2013) LCA Data'!$C$52 -> 0.000414 | F76: =F88*1055*'GEMM (2013) LCA Data'!$C$32/1000/1000 -> 0.000159317474 | G76: =G64*HLOOKUP(B62,'GEMM (2013) LCA Data'!$C$2:$AB$23,3,FALSE)/HLOOKUP(B62,'GEMM (2013) LCA Data'!$C$2:$AB$23,2,FALSE)*12*'GEMM (2013) LCA Data'!$C$52 -> 0.000138 | H76: =H88*1055*'GEMM (2013) LCA Data'!$D$32/1000/1000 -> -0.0001437501877 | I76: 0.0005675672863
B77: NMVOC | D77: =HLOOKUP(B62,'GEMM (2013) LCA Data'!$C$2:$AB$23,11,FALSE)*D64 -> 0 | E77: =E64*HLOOKUP(B62,'GEMM (2013) LCA Data'!$C$2:$AB$23,3,FALSE)/HLOOKUP(B62,'GEMM (2013) LCA Data'!$C$2:$AB$23,2,FALSE)*12*'GEMM (2013) LCA Data'!$C$53 -> 4.14e-05 | F77: =F88*1055*'GEMM (2013) LCA Data'!$C$33/1000/1000 -> 7.809687738e-08 | G77: =G64*HLOOKUP(B62,'GEMM (2013) LCA Data'!$C$2:$AB$23,3,FALSE)/HLOOKUP(B62,'GEMM (2013) LCA Data'!$C$2:$AB$23,2,FALSE)*12*'GEMM (2013) LCA Data'!$C$53 -> 1.38e-05 | H77: =H88*1055*'GEMM (2013) LCA Data'!$D$33/1000/1000 -> -0.001044309922 | I77: -0.0009890318249
B78: NOx | D78: =HLOOKUP(B62,'GEMM (2013) LCA Data'!$C$2:$AB$23,12,FALSE)*D64 -> 0 | E78: =E64*HLOOKUP(B62,'GEMM (2013) LCA Data'!$C$2:$AB$23,3,FALSE)/HLOOKUP(B62,'GEMM (2013) LCA Data'!$C$2:$AB$23,2,FALSE)*12*'GEMM (2013) LCA Data'!$C$54 -> 0 | F78: =F88*1055*'GEMM (2013) LCA Data'!$C$34/1000/1000 -> 0.0001668120191 | G78: =G64*HLOOKUP(B62,'GEMM (2013) LCA Data'!$C$2:$AB$23,3,FALSE)/HLOOKUP(B62,'GEMM (2013) LCA Data'!$C$2:$AB$23,2,FALSE)*12*'GEMM (2013) LCA Data'!$C$54 -> 0 | H78: =H88*1055*'GEMM (2013) LCA Data'!$D$34/1000/1000 -> -0.0006763659068 | I78: -0.0005095538877
B79: SOx | D79: =HLOOKUP(B62,'GEMM (2013) LCA Data'!$C$2:$AB$23,13,FALSE)*D64 -> 0 | E79: =E64*HLOOKUP(B62,'GEMM (2013) LCA Data'!$C$2:$AB$23,3,FALSE)/HLOOKUP(B62,'GEMM (2013) LCA Data'!$C$2:$AB$23,2,FALSE)*12*'GEMM (2013) LCA Data'!$C$55 -> 0 | F79: =F88*1055*'GEMM (2013) LCA Data'!$C$35/1000/1000 -> 0.002150609686 | G79: =G64*HLOOKUP(B62,'GEMM (2013) LCA Data'!$C$2:$AB$23,3,FALSE)/HLOOKUP(B62,'GEMM (2013) LCA Data'!$C$2:$AB$23,2,FALSE)*12*'GEMM (2013) LCA Data'!$C$55 -> 0 | H79: =H88*1055*'GEMM (2013) LCA Data'!$D$35/1000/1000 -> -0.000899647567 | I79: 0.001250962119
B80: Water emission (tonne)
B81: TOC | D81: =HLOOKUP(B62,'GEMM (2013) LCA Data'!$C$2:$AB$23,15,FALSE)*D64 -> 0 | E81: =E64*HLOOKUP(B62,'GEMM (2013) LCA Data'!$C$2:$AB$23,3,FALSE)/HLOOKUP(B62,'GEMM (2013) LCA Data'!$C$2:$AB$23,2,FALSE)*12*'GEMM (2013) LCA Data'!$C$57 -> 0 | F81: =F88*1055*'GEMM (2013) LCA Data'!$C$37/1000/1000 -> 3.922236028e-05 | G81: =G64*HLOOKUP(B62,'GEMM (2013) LCA Data'!$C$2:$AB$23,3,FALSE)/HLOOKUP(B62,'GEMM (2013) LCA Data'!$C$2:$AB$23,2,FALSE)*12*'GEMM (2013) LCA Data'!$C$57 -> 0 | H81: =H88*1055*'GEMM (2013) LCA Data'!$D$37/1000/1000 -> -5.64933188e-06 | I81: =SUM(D81:H81) -> 3.35730284e-05
B82: BOD | D82: =HLOOKUP(B62,'GEMM (2013) LCA Data'!$C$2:$AB$23,16,FALSE)*D64 -> 0 | E82: =E64*HLOOKUP(B62,'GEMM (2013) LCA Data'!$C$2:$AB$23,3,FALSE)/HLOOKUP(B62,'GEMM (2013) LCA Data'!$C$2:$AB$23,2,FALSE)*12*'GEMM (2013) LCA Data'!$C$58 -> 0 | F82: =F88*1055*'GEMM (2013) LCA Data'!$C$38/1000/1000 -> 6.780269419e-05 | G82: =G64*HLOOKUP(B62,'GEMM (2013) LCA Data'!$C$2:$AB$23,3,FALSE)/HLOOKUP(B62,'GEMM (2013) LCA Data'!$C$2:$AB$23,2,FALSE)*12*'GEMM (2013) LCA Data'!$C$58 -> 0 | H82: =H88*1055*'GEMM (2013) LCA Data'!$D$38/1000/1000 -> -5.026274037e-05 | I82: =SUM(D82:H82) -> 1.753995382e-05
B83: COD | D83: =HLOOKUP(B62,'GEMM (2013) LCA Data'!$C$2:$AB$23,17,FALSE)*D64 -> 0 | E83: =E64*HLOOKUP(B62,'GEMM (2013) LCA Data'!$C$2:$AB$23,3,FALSE)/HLOOKUP(B62,'GEMM (2013) LCA Data'!$C$2:$AB$23,2,FALSE)*12*'GEMM (2013) LCA Data'!$C$59 -> 0 | F83: =F88*1055*'GEMM (2013) LCA Data'!$C$39/1000/1000 -> 0.0001121759504 | G83: =G64*HLOOKUP(B62,'GEMM (2013) LCA Data'!$C$2:$AB$23,3,FALSE)/HLOOKUP(B62,'GEMM (2013) LCA Data'!$C$2:$AB$23,2,FALSE)*12*'GEMM (2013) LCA Data'!$C$59 -> 0 | H83: =H88*1055*'GEMM (2013) LCA Data'!$D$39/1000/1000 -> -1.615708918e-05 | I83: =SUM(D83:H83) -> 9.601886123e-05
B84: TDS | D84: =HLOOKUP(B62,'GEMM (2013) LCA Data'!$C$2:$AB$23,18,FALSE)*D64 -> 0 | E84: =E64*HLOOKUP(B62,'GEMM (2013) LCA Data'!$C$2:$AB$23,3,FALSE)/HLOOKUP(B62,'GEMM (2013) LCA Data'!$C$2:$AB$23,2,FALSE)*12*'GEMM (2013) LCA Data'!$C$60 -> 0 | F84: =F88*1055*'GEMM (2013) LCA Data'!$C$40/1000/1000 -> 0.01734599173 | G84: =G64*HLOOKUP(B62,'GEMM (2013) LCA Data'!$C$2:$AB$23,3,FALSE)/HLOOKUP(B62,'GEMM (2013) LCA Data'!$C$2:$AB$23,2,FALSE)*12*'GEMM (2013) LCA Data'!$C$60 -> 0 | H84: =H88*1055*'GEMM (2013) LCA Data'!$D$40/1000/1000 -> -0.0009345919058 | I84: =SUM(D84:H84) -> 0.01641139982
B85: Solid waste (tonne)
B86: Solid waste | D86: =HLOOKUP(B62,'GEMM (2013) LCA Data'!$C$2:$AB$23,20,FALSE)*D64 -> 0 | E86: =E64*HLOOKUP(B62,'GEMM (2013) LCA Data'!$C$2:$AB$23,3,FALSE)/HLOOKUP(B62,'GEMM (2013) LCA Data'!$C$2:$AB$23,2,FALSE)*12*'GEMM (2013) LCA Data'!$C$62 -> 0 | F86: =F88*1055*'GEMM (2013) LCA Data'!$C$42/1000/1000 -> 0.002923727373 | G86: =G64*HLOOKUP(B62,'GEMM (2013) LCA Data'!$C$2:$AB$23,3,FALSE)/HLOOKUP(B62,'GEMM (2013) LCA Data'!$C$2:$AB$23,2,FALSE)*12*'GEMM (2013) LCA Data'!$C$62 -> 0 | H86: =H88*1055*'GEMM (2013) LCA Data'!$D$42/1000/1000 -> -0.0004410494918 | I86: =SUM(D86:H86) -> 0.002482677881
B87: Energy / Carbon
B88: MMBTU | D88: =HLOOKUP(B62,'GEMM (2013) LCA Data'!$C$2:$AB$23,22,FALSE)/1055*1000*D64 -> 0 | E88: =HLOOKUP(B62,'GEMM (2013) LCA Data'!$C$2:$AB$23,4,FALSE)*1000/1055*E64 -> 10.80077871 | F88: =G64*HLOOKUP(B62,'GEMM (2013) LCA Data'!$C$2:$AB$23,3,FALSE)/HLOOKUP(B62,'GEMM (2013) LCA Data'!$C$2:$AB$23,2,FALSE)*12*'GEMM (2013) LCA Data'!$C$64*1000/1055 -> 3.543199052 | G88: =HLOOKUP(B62,'GEMM (2013) LCA Data'!$C$2:$AB$23,4,FALSE)*1000/1055*G64 -> 3.600259571 | H88: =VLOOKUP(B62,'GEMM (2013) LCA Data'!$B$69:$D$90,3,FALSE)/1055*1000*H64 -> -2.463270142 | I88: =SUM(D88:H88) -> 15.4809672
B89: MTCO2e | D89: =IF(D73="--","--",(1*D73)+(21*D74)+(310*D75)) -> 0 | E89: =IF(E73="--","--",(1*E73)+(21*E74)+(310*E75)) -> 0.9392625 | F89: =IF(F73="--","--",(1*F73)+(21*F74)+(310*F75)) -> 0.281349823 | G89: =IF(G73="--","--",(1*G73)+(21*G74)+(310*G75)) -> 0.3130875 | H89: =IF(H73="--","--",(1*H73)+(21*H74)+(310*H75)) -> -0.2133669386 | I89: =SUM(D89:H89) -> 1.320332884
B92: Toluene | E92: Destruct Mass for Energy Recovery | F92: Destruct Mass in Incinerator | H92: Process | I92: TOTAl Reductions
B93: Mass (tonne) | D93: Create C | E93: Destruct ER | F93: NG | G93: Destruct I | H93: Steam
B94: Mass | D94: ='GEMM Parameters'!$B$16 -> 0 | E94: ='GEMM Parameters'!$C$16 -> 0.69 | G94: ='GEMM Parameters'!$D$16 -> 0.23 | H94: ='GEMM Parameters'!$E$16 -> -1.25
B95: Feedstock Uses (tonne)
B96: Water | D96: 0
B97: Natural Gas | D97: 0 | F97: =F118*1055/'GEMM (2013) LCA Data'!$C$43/1000 -> 0.1816424363
B98: Air | D98: 0
B99: Crude Oil | D99: 0
B100: Salt | D100: 0
B101: Sulfur | D101: 0
B102: Air emission (tonne)
B103: CO2 | D103: =HLOOKUP(B92,'GEMM (2013) LCA Data'!$C$2:$AB$23,7,FALSE)*D94 -> 0 | E103: =E94*HLOOKUP(B92,'GEMM (2013) LCA Data'!$C$2:$AB$23,3,FALSE)/HLOOKUP(B92,'GEMM (2013) LCA Data'!$C$2:$AB$23,2,FALSE)*12*'GEMM (2013) LCA Data'!$C$49 -> 2.283425222 | F103: =F118*1055*'GEMM (2013) LCA Data'!$C$29/1000/1000 -> 0.6166864812 | G103: =G94*HLOOKUP(B92,'GEMM (2013) LCA Data'!$C$2:$AB$23,3,FALSE)/HLOOKUP(B92,'GEMM (2013) LCA Data'!$C$2:$AB$23,2,FALSE)*12*'GEMM (2013) LCA Data'!$C$49 -> 0.7611417408 | H103: =H118*1055*'GEMM (2013) LCA Data'!$D$29/1000/1000 -> -0.06631796664 | I103: =SUM(D103:H103) -> 3.594935478
B104: CH4 | D104: =HLOOKUP(B92,'GEMM (2013) LCA Data'!$C$2:$AB$23,8,FALSE)*D94 -> 0 | E104: =E94*HLOOKUP(B92,'GEMM (2013) LCA Data'!$C$2:$AB$23,3,FALSE)/HLOOKUP(B92,'GEMM (2013) LCA Data'!$C$2:$AB$23,2,FALSE)*12*'GEMM (2013) LCA Data'!$C$50 -> 0 | F104: =F118*1055*'GEMM (2013) LCA Data'!$C$30/1000/1000 -> 0.003040783452 | G104: =G94*HLOOKUP(B92,'GEMM (2013) LCA Data'!$C$2:$AB$23,3,FALSE)/HLOOKUP(B92,'GEMM (2013) LCA Data'!$C$2:$AB$23,2,FALSE)*12*'GEMM (2013) LCA Data'!$C$50 -> 0 | H104: =H118*1055*'GEMM (2013) LCA Data'!$D$30/1000/1000 -> -0.0001212616676 | I104: 0.002919521784
B105: N2O | D105: =HLOOKUP(B92,'GEMM (2013) LCA Data'!$C$2:$AB$23,9,FALSE)*D94 -> 0 | E105: =E94*HLOOKUP(B92,'GEMM (2013) LCA Data'!$C$2:$AB$23,3,FALSE)/HLOOKUP(B92,'GEMM (2013) LCA Data'!$C$2:$AB$23,2,FALSE)*12*'GEMM (2013) LCA Data'!$C$51 -> 0 | F105: =F118*1055*'GEMM (2013) LCA Data'!$C$31/1000/1000 -> 1.110282545e-05 | G105: =G94*HLOOKUP(B92,'GEMM (2013) LCA Data'!$C$2:$AB$23,3,FALSE)/HLOOKUP(B92,'GEMM (2013) LCA Data'!$C$2:$AB$23,2,FALSE)*12*'GEMM (2013) LCA Data'!$C$51 -> 0 | H105: =H118*1055*'GEMM (2013) LCA Data'!$D$31/1000/1000 -> 0 | I105: 1.110282545e-05
B106: CO | D106: =HLOOKUP(B92,'GEMM (2013) LCA Data'!$C$2:$AB$23,10,FALSE)*D94 -> 0 | E106: =E94*HLOOKUP(B92,'GEMM (2013) LCA Data'!$C$2:$AB$23,3,FALSE)/HLOOKUP(B92,'GEMM (2013) LCA Data'!$C$2:$AB$23,2,FALSE)*12*'GEMM (2013) LCA Data'!$C$52 -> 0.001006468418 | F106: =F118*1055*'GEMM (2013) LCA Data'!$C$32/1000/1000 -> 0.000387314024 | G106: =G94*HLOOKUP(B92,'GEMM (2013) LCA Data'!$C$2:$AB$23,3,FALSE)/HLOOKUP(B92,'GEMM (2013) LCA Data'!$C$2:$AB$23,2,FALSE)*12*'GEMM (2013) LCA Data'!$C$52 -> 0.0003354894725 | H106: =H118*1055*'GEMM (2013) LCA Data'!$D$32/1000/1000 -> -4.639556323e-05 | I106: 0.001682876351
B107: NMVOC | D107: =HLOOKUP(B92,'GEMM (2013) LCA Data'!$C$2:$AB$23,11,FALSE)*D94 -> 0 | E107: =E94*HLOOKUP(B92,'GEMM (2013) LCA Data'!$C$2:$AB$23,3,FALSE)/HLOOKUP(B92,'GEMM (2013) LCA Data'!$C$2:$AB$23,2,FALSE)*12*'GEMM (2013) LCA Data'!$C$53 -> 0.0001006468418 | F107: =F118*1055*'GEMM (2013) LCA Data'!$C$33/1000/1000 -> 1.898600014e-07 | G107: =G94*HLOOKUP(B92,'GEMM (2013) LCA Data'!$C$2:$AB$23,3,FALSE)/HLOOKUP(B92,'GEMM (2013) LCA Data'!$C$2:$AB$23,2,FALSE)*12*'GEMM (2013) LCA Data'!$C$53 -> 3.354894725e-05 | H107: =H118*1055*'GEMM (2013) LCA Data'!$D$33/1000/1000 -> -0.0003370524086 | I107: -0.0002026667596
B108: NOx | D108: =HLOOKUP(B92,'GEMM (2013) LCA Data'!$C$2:$AB$23,12,FALSE)*D94 -> 0 | E108: =E94*HLOOKUP(B92,'GEMM (2013) LCA Data'!$C$2:$AB$23,3,FALSE)/HLOOKUP(B92,'GEMM (2013) LCA Data'!$C$2:$AB$23,2,FALSE)*12*'GEMM (2013) LCA Data'!$C$54 -> 0 | F108: =F118*1055*'GEMM (2013) LCA Data'!$C$34/1000/1000 -> 0.0004055338863 | G108: =G94*HLOOKUP(B92,'GEMM (2013) LCA Data'!$C$2:$AB$23,3,FALSE)/HLOOKUP(B92,'GEMM (2013) LCA Data'!$C$2:$AB$23,2,FALSE)*12*'GEMM (2013) LCA Data'!$C$54 -> 0 | H108: =H118*1055*'GEMM (2013) LCA Data'!$D$34/1000/1000 -> -0.0002182979911 | I108: 0.0001872358952
B109: SOx | D109: =HLOOKUP(B92,'GEMM (2013) LCA Data'!$C$2:$AB$23,13,FALSE)*D94 -> 0 | E109: =E94*HLOOKUP(B92,'GEMM (2013) LCA Data'!$C$2:$AB$23,3,FALSE)/HLOOKUP(B92,'GEMM (2013) LCA Data'!$C$2:$AB$23,2,FALSE)*12*'GEMM (2013) LCA Data'!$C$55 -> 0 | F109: =F118*1055*'GEMM (2013) LCA Data'!$C$35/1000/1000 -> 0.005228310937 | G109: =G94*HLOOKUP(B92,'GEMM (2013) LCA Data'!$C$2:$AB$23,3,FALSE)/HLOOKUP(B92,'GEMM (2013) LCA Data'!$C$2:$AB$23,2,FALSE)*12*'GEMM (2013) LCA Data'!$C$55 -> 0 | H109: =H118*1055*'GEMM (2013) LCA Data'!$D$35/1000/1000 -> -0.0002903624423 | I109: 0.004937948495
B110: Water emission (tonne)
B111: TOC | D111: =HLOOKUP(B92,'GEMM (2013) LCA Data'!$C$2:$AB$23,15,FALSE)*D94 -> 0 | E111: =E94*HLOOKUP(B92,'GEMM (2013) LCA Data'!$C$2:$AB$23,3,FALSE)/HLOOKUP(B92,'GEMM (2013) LCA Data'!$C$2:$AB$23,2,FALSE)*12*'GEMM (2013) LCA Data'!$C$57 -> 0 | F111: =F118*1055*'GEMM (2013) LCA Data'!$C$37/1000/1000 -> 9.535281857e-05 | G111: =G94*HLOOKUP(B92,'GEMM (2013) LCA Data'!$C$2:$AB$23,3,FALSE)/HLOOKUP(B92,'GEMM (2013) LCA Data'!$C$2:$AB$23,2,FALSE)*12*'GEMM (2013) LCA Data'!$C$57 -> 0 | H111: =H118*1055*'GEMM (2013) LCA Data'!$D$37/1000/1000 -> -1.823329337e-06 | I111: =SUM(D111:H111) -> 9.352948924e-05
B112: BOD | D112: =HLOOKUP(B92,'GEMM (2013) LCA Data'!$C$2:$AB$23,16,FALSE)*D94 -> 0 | E112: =E94*HLOOKUP(B92,'GEMM (2013) LCA Data'!$C$2:$AB$23,3,FALSE)/HLOOKUP(B92,'GEMM (2013) LCA Data'!$C$2:$AB$23,2,FALSE)*12*'GEMM (2013) LCA Data'!$C$58 -> 0 | F112: =F118*1055*'GEMM (2013) LCA Data'!$C$38/1000/1000 -> 0.0001648339863 | G112: =G94*HLOOKUP(B92,'GEMM (2013) LCA Data'!$C$2:$AB$23,3,FALSE)/HLOOKUP(B92,'GEMM (2013) LCA Data'!$C$2:$AB$23,2,FALSE)*12*'GEMM (2013) LCA Data'!$C$58 -> 0 | H112: =H118*1055*'GEMM (2013) LCA Data'!$D$38/1000/1000 -> -1.622236594e-05 | I112: =SUM(D112:H112) -> 0.0001486116204
B113: COD | D113: =HLOOKUP(B92,'GEMM (2013) LCA Data'!$C$2:$AB$23,17,FALSE)*D94 -> 0 | E113: =E94*HLOOKUP(B92,'GEMM (2013) LCA Data'!$C$2:$AB$23,3,FALSE)/HLOOKUP(B92,'GEMM (2013) LCA Data'!$C$2:$AB$23,2,FALSE)*12*'GEMM (2013) LCA Data'!$C$59 -> 0 | F113: =F118*1055*'GEMM (2013) LCA Data'!$C$39/1000/1000 -> 0.0002727090611 | G113: =G94*HLOOKUP(B92,'GEMM (2013) LCA Data'!$C$2:$AB$23,3,FALSE)/HLOOKUP(B92,'GEMM (2013) LCA Data'!$C$2:$AB$23,2,FALSE)*12*'GEMM (2013) LCA Data'!$C$59 -> 0 | H113: =H118*1055*'GEMM (2013) LCA Data'!$D$39/1000/1000 -> -5.214721904e-06 | I113: =SUM(D113:H113) -> 0.0002674943392
B114: TDS | D114: =HLOOKUP(B92,'GEMM (2013) LCA Data'!$C$2:$AB$23,18,FALSE)*D94 -> 0 | E114: =E94*HLOOKUP(B92,'GEMM (2013) LCA Data'!$C$2:$AB$23,3,FALSE)/HLOOKUP(B92,'GEMM (2013) LCA Data'!$C$2:$AB$23,2,FALSE)*12*'GEMM (2013) LCA Data'!$C$60 -> 0 | F114: =F118*1055*'GEMM (2013) LCA Data'!$C$40/1000/1000 -> 0.04216954794 | G114: =G94*HLOOKUP(B92,'GEMM (2013) LCA Data'!$C$2:$AB$23,3,FALSE)/HLOOKUP(B92,'GEMM (2013) LCA Data'!$C$2:$AB$23,2,FALSE)*12*'GEMM (2013) LCA Data'!$C$60 -> 0 | H114: =H118*1055*'GEMM (2013) LCA Data'!$D$40/1000/1000 -> -0.0003016407738 | I114: =SUM(D114:H114) -> 0.04186790716
B115: Solid waste (tonne)
B116: Solid waste | D116: =HLOOKUP(B92,'GEMM (2013) LCA Data'!$C$2:$AB$23,20,FALSE)*D94 -> 0 | E116: =E94*HLOOKUP(B92,'GEMM (2013) LCA Data'!$C$2:$AB$23,3,FALSE)/HLOOKUP(B92,'GEMM (2013) LCA Data'!$C$2:$AB$23,2,FALSE)*12*'GEMM (2013) LCA Data'!$C$62 -> 0 | F116: =F118*1055*'GEMM (2013) LCA Data'!$C$42/1000/1000 -> 0.007107824305 | G116: =G94*HLOOKUP(B92,'GEMM (2013) LCA Data'!$C$2:$AB$23,3,FALSE)/HLOOKUP(B92,'GEMM (2013) LCA Data'!$C$2:$AB$23,2,FALSE)*12*'GEMM (2013) LCA Data'!$C$62 -> 0 | H116: =H118*1055*'GEMM (2013) LCA Data'!$D$42/1000/1000 -> -0.0001423493069 | I116: =SUM(D116:H116) -> 0.006965474998
B117: Energy / Carbon
B118: MMBTU | D118: =HLOOKUP(B92,'GEMM (2013) LCA Data'!$C$2:$AB$23,22,FALSE)/1055*1000*D94 -> 0 | E118: =HLOOKUP(B92,'GEMM (2013) LCA Data'!$C$2:$AB$23,4,FALSE)*1000/1055*E94 -> 23.48215381 | F118: =G94*HLOOKUP(B92,'GEMM (2013) LCA Data'!$C$2:$AB$23,3,FALSE)/HLOOKUP(B92,'GEMM (2013) LCA Data'!$C$2:$AB$23,2,FALSE)*12*'GEMM (2013) LCA Data'!$C$64*1000/1055 -> 8.613811457 | G118: =HLOOKUP(B92,'GEMM (2013) LCA Data'!$C$2:$AB$23,4,FALSE)*1000/1055*G94 -> 7.827384604 | H118: =VLOOKUP(B92,'GEMM (2013) LCA Data'!$B$69:$D$90,3,FALSE)/1055*1000*H94 -> -0.7950236967 | I118: =SUM(D118:H118) -> 39.12832618
B119: MTCO2e | D119: =IF(D103="--","--",(1*D103)+(21*D104)+(310*D105)) -> 0 | E119: =IF(E103="--","--",(1*E103)+(21*E104)+(310*E105)) -> 2.283425222 | F119: =IF(F103="--","--",(1*F103)+(21*F104)+(310*F105)) -> 0.6839848095 | G119: =IF(G103="--","--",(1*G103)+(21*G104)+(310*G105)) -> 0.7611417408 | H119: =IF(H103="--","--",(1*H103)+(21*H104)+(310*H105)) -> -0.06886446166 | I119: =SUM(D119:H119) -> 3.659687311
B122: Cyclohexane | E122: Destruct Mass for Energy Recovery | F122: Destruct Mass in Incinerator | H122: No Destruction | I122: TOTAl Reductions
B123: Mass (tonne) | D123: Create C | E123: Destruct ER | F123: NG | G123: Destruct I | H123: Steam
B124: Mass | D124: ='GEMM Parameters'!$B$16 -> 0 | E124: ='GEMM Parameters'!$C$16 -> 0.69 | G124: ='GEMM Parameters'!$D$16 -> 0.23 | H124: ='GEMM Parameters'!$E$16 -> -1.25
B125: Feedstock Uses (tonne)
B126: Water | D126: 0
B127: Natural Gas | D127: 0 | F127: =F148*1055/'GEMM (2013) LCA Data'!$C$43/1000 -> 0.1704562814
B128: Air | D128: 0
B129: Crude Oil | D129: 0
B130: Salt | D130: 0
B131: Sulfur | D131: 0
B132: Air emission (tonne)
B133: CO2 | D133: =HLOOKUP(B122,'GEMM (2013) LCA Data'!$C$2:$AB$23,7,FALSE)*D124 -> 0 | E133: =E124*HLOOKUP(B122,'GEMM (2013) LCA Data'!$C$2:$AB$23,3,FALSE)/HLOOKUP(B122,'GEMM (2013) LCA Data'!$C$2:$AB$23,2,FALSE)*12*'GEMM (2013) LCA Data'!$C$49 -> 2.142804183 | F133: =F148*1055*'GEMM (2013) LCA Data'!$C$29/1000/1000 -> 0.5787088441 | G133: =G124*HLOOKUP(B122,'GEMM (2013) LCA Data'!$C$2:$AB$23,3,FALSE)/HLOOKUP(B122,'GEMM (2013) LCA Data'!$C$2:$AB$23,2,FALSE)*12*'GEMM (2013) LCA Data'!$C$49 -> 0.7142680608 | H133: =H148*1055*'GEMM (2013) LCA Data'!$D$29/1000/1000 -> -0.07145736196 | I133: =SUM(D133:H133) -> 3.364323725
B134: CH4 | D134: =HLOOKUP(B122,'GEMM (2013) LCA Data'!$C$2:$AB$23,8,FALSE)*D124 -> 0 | E134: =E124*HLOOKUP(B122,'GEMM (2013) LCA Data'!$C$2:$AB$23,3,FALSE)/HLOOKUP(B122,'GEMM (2013) LCA Data'!$C$2:$AB$23,2,FALSE)*12*'GEMM (2013) LCA Data'!$C$50 -> 0 | F134: =F148*1055*'GEMM (2013) LCA Data'!$C$30/1000/1000 -> 0.002853521733 | G134: =G124*HLOOKUP(B122,'GEMM (2013) LCA Data'!$C$2:$AB$23,3,FALSE)/HLOOKUP(B122,'GEMM (2013) LCA Data'!$C$2:$AB$23,2,FALSE)*12*'GEMM (2013) LCA Data'!$C$50 -> 0 | H134: =H148*1055*'GEMM (2013) LCA Data'!$D$30/1000/1000 -> -0.0001306589951 | I134: 0.002722862738
B135: N2O | D135: =HLOOKUP(B122,'GEMM (2013) LCA Data'!$C$2:$AB$23,9,FALSE)*D124 -> 0 | E135: =E124*HLOOKUP(B122,'GEMM (2013) LCA Data'!$C$2:$AB$23,3,FALSE)/HLOOKUP(B122,'GEMM (2013) LCA Data'!$C$2:$AB$23,2,FALSE)*12*'GEMM (2013) LCA Data'!$C$51 -> 0 | F135: =F148*1055*'GEMM (2013) LCA Data'!$C$31/1000/1000 -> 1.041907595e-05 | G135: =G124*HLOOKUP(B122,'GEMM (2013) LCA Data'!$C$2:$AB$23,3,FALSE)/HLOOKUP(B122,'GEMM (2013) LCA Data'!$C$2:$AB$23,2,FALSE)*12*'GEMM (2013) LCA Data'!$C$51 -> 0 | H135: =H148*1055*'GEMM (2013) LCA Data'!$D$31/1000/1000 -> 0 | I135: 1.041907595e-05
B136: CO | D136: =HLOOKUP(B122,'GEMM (2013) LCA Data'!$C$2:$AB$23,10,FALSE)*D124 -> 0 | E136: =E124*HLOOKUP(B122,'GEMM (2013) LCA Data'!$C$2:$AB$23,3,FALSE)/HLOOKUP(B122,'GEMM (2013) LCA Data'!$C$2:$AB$23,2,FALSE)*12*'GEMM (2013) LCA Data'!$C$52 -> 0.000944486692 | F136: =F148*1055*'GEMM (2013) LCA Data'!$C$32/1000/1000 -> 0.0003634619179 | G136: =G124*HLOOKUP(B122,'GEMM (2013) LCA Data'!$C$2:$AB$23,3,FALSE)/HLOOKUP(B122,'GEMM (2013) LCA Data'!$C$2:$AB$23,2,FALSE)*12*'GEMM (2013) LCA Data'!$C$52 -> 0.0003148288973 | H136: =H148*1055*'GEMM (2013) LCA Data'!$D$32/1000/1000 -> -4.999104652e-05 | I136: 0.001572786461
B137: NMVOC | D137: =HLOOKUP(B122,'GEMM (2013) LCA Data'!$C$2:$AB$23,11,FALSE)*D124 -> 0 | E137: =E124*HLOOKUP(B122,'GEMM (2013) LCA Data'!$C$2:$AB$23,3,FALSE)/HLOOKUP(B122,'GEMM (2013) LCA Data'!$C$2:$AB$23,2,FALSE)*12*'GEMM (2013) LCA Data'!$C$53 -> 9.44486692e-05 | F137: =F148*1055*'GEMM (2013) LCA Data'!$C$33/1000/1000 -> 1.781677811e-07 | G137: =G124*HLOOKUP(B122,'GEMM (2013) LCA Data'!$C$2:$AB$23,3,FALSE)/HLOOKUP(B122,'GEMM (2013) LCA Data'!$C$2:$AB$23,2,FALSE)*12*'GEMM (2013) LCA Data'!$C$53 -> 3.148288973e-05 | H137: =H148*1055*'GEMM (2013) LCA Data'!$D$33/1000/1000 -> -0.0003631727145 | I137: -0.0002370629878
B138: NOx | D138: =HLOOKUP(B122,'GEMM (2013) LCA Data'!$C$2:$AB$23,12,FALSE)*D124 -> 0 | E138: =E124*HLOOKUP(B122,'GEMM (2013) LCA Data'!$C$2:$AB$23,3,FALSE)/HLOOKUP(B122,'GEMM (2013) LCA Data'!$C$2:$AB$23,2,FALSE)*12*'GEMM (2013) LCA Data'!$C$54 -> 0 | F138: =F148*1055*'GEMM (2013) LCA Data'!$C$34/1000/1000 -> 0.0003805597394 | G138: =G124*HLOOKUP(B122,'GEMM (2013) LCA Data'!$C$2:$AB$23,3,FALSE)/HLOOKUP(B122,'GEMM (2013) LCA Data'!$C$2:$AB$23,2,FALSE)*12*'GEMM (2013) LCA Data'!$C$54 -> 0 | H138: =H148*1055*'GEMM (2013) LCA Data'!$D$34/1000/1000 -> -0.0002352152721 | I138: 0.0001453444673
B139: SOx | D139: =HLOOKUP(B122,'GEMM (2013) LCA Data'!$C$2:$AB$23,13,FALSE)*D124 -> 0 | E139: =E124*HLOOKUP(B122,'GEMM (2013) LCA Data'!$C$2:$AB$23,3,FALSE)/HLOOKUP(B122,'GEMM (2013) LCA Data'!$C$2:$AB$23,2,FALSE)*12*'GEMM (2013) LCA Data'!$C$55 -> 0 | F139: =F148*1055*'GEMM (2013) LCA Data'!$C$35/1000/1000 -> 0.004906333885 | G139: =G124*HLOOKUP(B122,'GEMM (2013) LCA Data'!$C$2:$AB$23,3,FALSE)/HLOOKUP(B122,'GEMM (2013) LCA Data'!$C$2:$AB$23,2,FALSE)*12*'GEMM (2013) LCA Data'!$C$55 -> 0 | H139: =H148*1055*'GEMM (2013) LCA Data'!$D$35/1000/1000 -> -0.0003128644497 | I139: 0.004593469435
B140: Water emission (tonne)
B141: TOC | D141: =HLOOKUP(B122,'GEMM (2013) LCA Data'!$C$2:$AB$23,15,FALSE)*D124 -> 0 | E141: =E124*HLOOKUP(B122,'GEMM (2013) LCA Data'!$C$2:$AB$23,3,FALSE)/HLOOKUP(B122,'GEMM (2013) LCA Data'!$C$2:$AB$23,2,FALSE)*12*'GEMM (2013) LCA Data'!$C$57 -> 0 | F141: =F148*1055*'GEMM (2013) LCA Data'!$C$37/1000/1000 -> 8.948066985e-05 | G141: =G124*HLOOKUP(B122,'GEMM (2013) LCA Data'!$C$2:$AB$23,3,FALSE)/HLOOKUP(B122,'GEMM (2013) LCA Data'!$C$2:$AB$23,2,FALSE)*12*'GEMM (2013) LCA Data'!$C$57 -> 0 | H141: =H148*1055*'GEMM (2013) LCA Data'!$D$37/1000/1000 -> -1.964630567e-06 | I141: =SUM(D141:H141) -> 8.751603928e-05
B142: BOD | D142: =HLOOKUP(B122,'GEMM (2013) LCA Data'!$C$2:$AB$23,16,FALSE)*D124 -> 0 | E142: =E124*HLOOKUP(B122,'GEMM (2013) LCA Data'!$C$2:$AB$23,3,FALSE)/HLOOKUP(B122,'GEMM (2013) LCA Data'!$C$2:$AB$23,2,FALSE)*12*'GEMM (2013) LCA Data'!$C$58 -> 0 | F142: =F148*1055*'GEMM (2013) LCA Data'!$C$38/1000/1000 -> 0.0001546829525 | G142: =G124*HLOOKUP(B122,'GEMM (2013) LCA Data'!$C$2:$AB$23,3,FALSE)/HLOOKUP(B122,'GEMM (2013) LCA Data'!$C$2:$AB$23,2,FALSE)*12*'GEMM (2013) LCA Data'!$C$58 -> 0 | H142: =H148*1055*'GEMM (2013) LCA Data'!$D$38/1000/1000 -> -1.747953886e-05 | I142: =SUM(D142:H142) -> 0.0001372034137
B143: COD | D143: =HLOOKUP(B122,'GEMM (2013) LCA Data'!$C$2:$AB$23,17,FALSE)*D124 -> 0 | E143: =E124*HLOOKUP(B122,'GEMM (2013) LCA Data'!$C$2:$AB$23,3,FALSE)/HLOOKUP(B122,'GEMM (2013) LCA Data'!$C$2:$AB$23,2,FALSE)*12*'GEMM (2013) LCA Data'!$C$59 -> 0 | F143: =F148*1055*'GEMM (2013) LCA Data'!$C$39/1000/1000 -> 0.0002559147158 | G143: =G124*HLOOKUP(B122,'GEMM (2013) LCA Data'!$C$2:$AB$23,3,FALSE)/HLOOKUP(B122,'GEMM (2013) LCA Data'!$C$2:$AB$23,2,FALSE)*12*'GEMM (2013) LCA Data'!$C$59 -> 0 | H143: =H148*1055*'GEMM (2013) LCA Data'!$D$39/1000/1000 -> -5.618843422e-06 | I143: =SUM(D143:H143) -> 0.0002502958723
B144: TDS | D144: =HLOOKUP(B122,'GEMM (2013) LCA Data'!$C$2:$AB$23,18,FALSE)*D124 -> 0 | E144: =E124*HLOOKUP(B122,'GEMM (2013) LCA Data'!$C$2:$AB$23,3,FALSE)/HLOOKUP(B122,'GEMM (2013) LCA Data'!$C$2:$AB$23,2,FALSE)*12*'GEMM (2013) LCA Data'!$C$60 -> 0 | F144: =F148*1055*'GEMM (2013) LCA Data'!$C$40/1000/1000 -> 0.0395726047 | G144: =G124*HLOOKUP(B122,'GEMM (2013) LCA Data'!$C$2:$AB$23,3,FALSE)/HLOOKUP(B122,'GEMM (2013) LCA Data'!$C$2:$AB$23,2,FALSE)*12*'GEMM (2013) LCA Data'!$C$60 -> 0 | H144: =H148*1055*'GEMM (2013) LCA Data'!$D$40/1000/1000 -> -0.00032501681 | I144: =SUM(D144:H144) -> 0.03924758789
B145: Solid waste (tonne)
B146: Solid waste | D146: =HLOOKUP(B122,'GEMM (2013) LCA Data'!$C$2:$AB$23,20,FALSE)*D124 -> 0 | E146: =E124*HLOOKUP(B122,'GEMM (2013) LCA Data'!$C$2:$AB$23,3,FALSE)/HLOOKUP(B122,'GEMM (2013) LCA Data'!$C$2:$AB$23,2,FALSE)*12*'GEMM (2013) LCA Data'!$C$62 -> 0 | F146: =F148*1055*'GEMM (2013) LCA Data'!$C$42/1000/1000 -> 0.00667010047 | G146: =G124*HLOOKUP(B122,'GEMM (2013) LCA Data'!$C$2:$AB$23,3,FALSE)/HLOOKUP(B122,'GEMM (2013) LCA Data'!$C$2:$AB$23,2,FALSE)*12*'GEMM (2013) LCA Data'!$C$62 -> 0 | H146: =H148*1055*'GEMM (2013) LCA Data'!$D$42/1000/1000 -> -0.0001533808478 | I146: =SUM(D146:H146) -> 0.006516719622
B147: Energy / Carbon
B148: MMBTU | D148: =HLOOKUP(B122,'GEMM (2013) LCA Data'!$C$2:$AB$23,22,FALSE)/1055*1000*D124 -> 0 | E148: =HLOOKUP(B122,'GEMM (2013) LCA Data'!$C$2:$AB$23,4,FALSE)*1000/1055*E124 -> 24.92915794 | F148: =G124*HLOOKUP(B122,'GEMM (2013) LCA Data'!$C$2:$AB$23,3,FALSE)/HLOOKUP(B122,'GEMM (2013) LCA Data'!$C$2:$AB$23,2,FALSE)*12*'GEMM (2013) LCA Data'!$C$64*1000/1055 -> 8.083343845 | G148: =HLOOKUP(B122,'GEMM (2013) LCA Data'!$C$2:$AB$23,4,FALSE)*1000/1055*G124 -> 8.309719314 | H148: =VLOOKUP(B122,'GEMM (2013) LCA Data'!$B$69:$D$90,3,FALSE)/1055*1000*H124 -> -0.8566350711 | I148: =SUM(D148:H148) -> 40.46558603
B149: MTCO2e | D149: =IF(D133="--","--",(1*D133)+(21*D134)+(310*D135)) -> 0 | E149: =IF(E133="--","--",(1*E133)+(21*E134)+(310*E135)) -> 2.142804183 | F149: =IF(F133="--","--",(1*F133)+(21*F134)+(310*F135)) -> 0.6418627141 | G149: =IF(G133="--","--",(1*G133)+(21*G134)+(310*G135)) -> 0.7142680608 | H149: =IF(H133="--","--",(1*H133)+(21*H134)+(310*H135)) -> -0.07420120086 | I149: =SUM(D149:H149) -> 3.424733757
B152: Ethylbenzene | E152: Destruct Mass for Energy Recovery | F152: Destruct Mass in Incinerator | H152: No Destruction | I152: TOTAl Reductions
B153: Mass (tonne) | D153: Create C | E153: Destruct ER | F153: NG | G153: Destruct I | H153: Steam
B154: Mass | D154: ='GEMM Parameters'!$B$16 -> 0 | E154: ='GEMM Parameters'!$C$16 -> 0.69 | G154: ='GEMM Parameters'!$D$16 -> 0.23 | H154: ='GEMM Parameters'!$E$16 -> -1.25
B155: Feedstock Uses (tonne)
B156: Water | D156: 0
B157: Natural Gas | D157: 0 | F157: =F178*1055/'GEMM (2013) LCA Data'!$C$43/1000 -> 0.1801758433
B158: Air | D158: 0
B159: Crude Oil | D159: 0
B160: Salt | D160: 0
B161: Sulfur | D161: 0
B162: Air emission (tonne)
B163: CO2 | D163: =HLOOKUP(B152,'GEMM (2013) LCA Data'!$C$2:$AB$23,7,FALSE)*D154 -> 0 | E163: =E154*HLOOKUP(B152,'GEMM (2013) LCA Data'!$C$2:$AB$23,3,FALSE)/HLOOKUP(B152,'GEMM (2013) LCA Data'!$C$2:$AB$23,2,FALSE)*12*'GEMM (2013) LCA Data'!$C$49 -> 2.264988696 | F163: =F178*1055*'GEMM (2013) LCA Data'!$C$29/1000/1000 -> 0.6117073137 | G163: =G154*HLOOKUP(B152,'GEMM (2013) LCA Data'!$C$2:$AB$23,3,FALSE)/HLOOKUP(B152,'GEMM (2013) LCA Data'!$C$2:$AB$23,2,FALSE)*12*'GEMM (2013) LCA Data'!$C$49 -> 0.7549962321 | H163: =H178*1055*'GEMM (2013) LCA Data'!$D$29/1000/1000 -> -0.06631796664 | I163: =SUM(D163:H163) -> 3.565374276
B164: CH4 | D164: =HLOOKUP(B152,'GEMM (2013) LCA Data'!$C$2:$AB$23,8,FALSE)*D154 -> 0 | E164: =E154*HLOOKUP(B152,'GEMM (2013) LCA Data'!$C$2:$AB$23,3,FALSE)/HLOOKUP(B152,'GEMM (2013) LCA Data'!$C$2:$AB$23,2,FALSE)*12*'GEMM (2013) LCA Data'!$C$50 -> 0 | F164: =F178*1055*'GEMM (2013) LCA Data'!$C$30/1000/1000 -> 0.003016231965 | G164: =G154*HLOOKUP(B152,'GEMM (2013) LCA Data'!$C$2:$AB$23,3,FALSE)/HLOOKUP(B152,'GEMM (2013) LCA Data'!$C$2:$AB$23,2,FALSE)*12*'GEMM (2013) LCA Data'!$C$50 -> 0 | H164: =H178*1055*'GEMM (2013) LCA Data'!$D$30/1000/1000 -> -0.0001212616676 | I164: 0.002894970297
B165: N2O | D165: =HLOOKUP(B152,'GEMM (2013) LCA Data'!$C$2:$AB$23,9,FALSE)*D154 -> 0 | E165: =E154*HLOOKUP(B152,'GEMM (2013) LCA Data'!$C$2:$AB$23,3,FALSE)/HLOOKUP(B152,'GEMM (2013) LCA Data'!$C$2:$AB$23,2,FALSE)*12*'GEMM (2013) LCA Data'!$C$51 -> 0 | F165: =F178*1055*'GEMM (2013) LCA Data'!$C$31/1000/1000 -> 1.10131805e-05 | G165: =G154*HLOOKUP(B152,'GEMM (2013) LCA Data'!$C$2:$AB$23,3,FALSE)/HLOOKUP(B152,'GEMM (2013) LCA Data'!$C$2:$AB$23,2,FALSE)*12*'GEMM (2013) LCA Data'!$C$51 -> 0 | H165: =H178*1055*'GEMM (2013) LCA Data'!$D$31/1000/1000 -> 0 | I165: 1.10131805e-05
B166: CO | D166: =HLOOKUP(B152,'GEMM (2013) LCA Data'!$C$2:$AB$23,10,FALSE)*D154 -> 0 | E166: =E154*HLOOKUP(B152,'GEMM (2013) LCA Data'!$C$2:$AB$23,3,FALSE)/HLOOKUP(B152,'GEMM (2013) LCA Data'!$C$2:$AB$23,2,FALSE)*12*'GEMM (2013) LCA Data'!$C$52 -> 0.0009983421251 | F166: =F178*1055*'GEMM (2013) LCA Data'!$C$32/1000/1000 -> 0.000384186825 | G166: =G154*HLOOKUP(B152,'GEMM (2013) LCA Data'!$C$2:$AB$23,3,FALSE)/HLOOKUP(B152,'GEMM (2013) LCA Data'!$C$2:$AB$23,2,FALSE)*12*'GEMM (2013) LCA Data'!$C$52 -> 0.0003327807084 | H166: =H178*1055*'GEMM (2013) LCA Data'!$D$32/1000/1000 -> -4.639556323e-05 | I166: 0.001668914095
B167: NMVOC | D167: =HLOOKUP(B152,'GEMM (2013) LCA Data'!$C$2:$AB$23,11,FALSE)*D154 -> 0 | E167: =E154*HLOOKUP(B152,'GEMM (2013) LCA Data'!$C$2:$AB$23,3,FALSE)/HLOOKUP(B152,'GEMM (2013) LCA Data'!$C$2:$AB$23,2,FALSE)*12*'GEMM (2013) LCA Data'!$C$53 -> 9.983421251e-05 | F167: =F178*1055*'GEMM (2013) LCA Data'!$C$33/1000/1000 -> 1.883270592e-07 | G167: =G154*HLOOKUP(B152,'GEMM (2013) LCA Data'!$C$2:$AB$23,3,FALSE)/HLOOKUP(B152,'GEMM (2013) LCA Data'!$C$2:$AB$23,2,FALSE)*12*'GEMM (2013) LCA Data'!$C$53 -> 3.327807084e-05 | H167: =H178*1055*'GEMM (2013) LCA Data'!$D$33/1000/1000 -> -0.0003370524086 | I167: -0.0002037517982
B168: NOx | D168: =HLOOKUP(B152,'GEMM (2013) LCA Data'!$C$2:$AB$23,12,FALSE)*D154 -> 0 | E168: =E154*HLOOKUP(B152,'GEMM (2013) LCA Data'!$C$2:$AB$23,3,FALSE)/HLOOKUP(B152,'GEMM (2013) LCA Data'!$C$2:$AB$23,2,FALSE)*12*'GEMM (2013) LCA Data'!$C$54 -> 0 | F168: =F178*1055*'GEMM (2013) LCA Data'!$C$34/1000/1000 -> 0.0004022595789 | G168: =G154*HLOOKUP(B152,'GEMM (2013) LCA Data'!$C$2:$AB$23,3,FALSE)/HLOOKUP(B152,'GEMM (2013) LCA Data'!$C$2:$AB$23,2,FALSE)*12*'GEMM (2013) LCA Data'!$C$54 -> 0 | H168: =H178*1055*'GEMM (2013) LCA Data'!$D$34/1000/1000 -> -0.0002182979911 | I168: 0.0001839615878
B169: SOx | D169: =HLOOKUP(B152,'GEMM (2013) LCA Data'!$C$2:$AB$23,13,FALSE)*D154 -> 0 | E169: =E154*HLOOKUP(B152,'GEMM (2013) LCA Data'!$C$2:$AB$23,3,FALSE)/HLOOKUP(B152,'GEMM (2013) LCA Data'!$C$2:$AB$23,2,FALSE)*12*'GEMM (2013) LCA Data'!$C$55 -> 0 | F169: =F178*1055*'GEMM (2013) LCA Data'!$C$35/1000/1000 -> 0.005186097209 | G169: =G154*HLOOKUP(B152,'GEMM (2013) LCA Data'!$C$2:$AB$23,3,FALSE)/HLOOKUP(B152,'GEMM (2013) LCA Data'!$C$2:$AB$23,2,FALSE)*12*'GEMM (2013) LCA Data'!$C$55 -> 0 | H169: =H178*1055*'GEMM (2013) LCA Data'!$D$35/1000/1000 -> -0.0002903624423 | I169: 0.004895734766
B170: Water emission (tonne)
B171: TOC | D171: =HLOOKUP(B152,'GEMM (2013) LCA Data'!$C$2:$AB$23,15,FALSE)*D154 -> 0 | E171: =E154*HLOOKUP(B152,'GEMM (2013) LCA Data'!$C$2:$AB$23,3,FALSE)/HLOOKUP(B152,'GEMM (2013) LCA Data'!$C$2:$AB$23,2,FALSE)*12*'GEMM (2013) LCA Data'!$C$57 -> 0 | F171: =F178*1055*'GEMM (2013) LCA Data'!$C$37/1000/1000 -> 9.458293361e-05 | G171: =G154*HLOOKUP(B152,'GEMM (2013) LCA Data'!$C$2:$AB$23,3,FALSE)/HLOOKUP(B152,'GEMM (2013) LCA Data'!$C$2:$AB$23,2,FALSE)*12*'GEMM (2013) LCA Data'!$C$57 -> 0 | H171: =H178*1055*'GEMM (2013) LCA Data'!$D$37/1000/1000 -> -1.823329337e-06 | I171: =SUM(D171:H171) -> 9.275960428e-05
B172: BOD | D172: =HLOOKUP(B152,'GEMM (2013) LCA Data'!$C$2:$AB$23,16,FALSE)*D154 -> 0 | E172: =E154*HLOOKUP(B152,'GEMM (2013) LCA Data'!$C$2:$AB$23,3,FALSE)/HLOOKUP(B152,'GEMM (2013) LCA Data'!$C$2:$AB$23,2,FALSE)*12*'GEMM (2013) LCA Data'!$C$58 -> 0 | F172: =F178*1055*'GEMM (2013) LCA Data'!$C$38/1000/1000 -> 0.0001635031058 | G172: =G154*HLOOKUP(B152,'GEMM (2013) LCA Data'!$C$2:$AB$23,3,FALSE)/HLOOKUP(B152,'GEMM (2013) LCA Data'!$C$2:$AB$23,2,FALSE)*12*'GEMM (2013) LCA Data'!$C$58 -> 0 | H172: =H178*1055*'GEMM (2013) LCA Data'!$D$38/1000/1000 -> -1.622236594e-05 | I172: =SUM(D172:H172) -> 0.0001472807399
B173: COD | D173: =HLOOKUP(B152,'GEMM (2013) LCA Data'!$C$2:$AB$23,17,FALSE)*D154 -> 0 | E173: =E154*HLOOKUP(B152,'GEMM (2013) LCA Data'!$C$2:$AB$23,3,FALSE)/HLOOKUP(B152,'GEMM (2013) LCA Data'!$C$2:$AB$23,2,FALSE)*12*'GEMM (2013) LCA Data'!$C$59 -> 0 | F173: =F178*1055*'GEMM (2013) LCA Data'!$C$39/1000/1000 -> 0.0002705071901 | G173: =G154*HLOOKUP(B152,'GEMM (2013) LCA Data'!$C$2:$AB$23,3,FALSE)/HLOOKUP(B152,'GEMM (2013) LCA Data'!$C$2:$AB$23,2,FALSE)*12*'GEMM (2013) LCA Data'!$C$59 -> 0 | H173: =H178*1055*'GEMM (2013) LCA Data'!$D$39/1000/1000 -> -5.214721904e-06 | I173: =SUM(D173:H173) -> 0.0002652924682
B174: TDS | D174: =HLOOKUP(B152,'GEMM (2013) LCA Data'!$C$2:$AB$23,18,FALSE)*D154 -> 0 | E174: =E154*HLOOKUP(B152,'GEMM (2013) LCA Data'!$C$2:$AB$23,3,FALSE)/HLOOKUP(B152,'GEMM (2013) LCA Data'!$C$2:$AB$23,2,FALSE)*12*'GEMM (2013) LCA Data'!$C$60 -> 0 | F174: =F178*1055*'GEMM (2013) LCA Data'!$C$40/1000/1000 -> 0.04182906822 | G174: =G154*HLOOKUP(B152,'GEMM (2013) LCA Data'!$C$2:$AB$23,3,FALSE)/HLOOKUP(B152,'GEMM (2013) LCA Data'!$C$2:$AB$23,2,FALSE)*12*'GEMM (2013) LCA Data'!$C$60 -> 0 | H174: =H178*1055*'GEMM (2013) LCA Data'!$D$40/1000/1000 -> -0.0003016407738 | I174: =SUM(D174:H174) -> 0.04152742744
B175: Solid waste (tonne)
B176: Solid waste | D176: =HLOOKUP(B152,'GEMM (2013) LCA Data'!$C$2:$AB$23,20,FALSE)*D154 -> 0 | E176: =E154*HLOOKUP(B152,'GEMM (2013) LCA Data'!$C$2:$AB$23,3,FALSE)/HLOOKUP(B152,'GEMM (2013) LCA Data'!$C$2:$AB$23,2,FALSE)*12*'GEMM (2013) LCA Data'!$C$62 -> 0 | F176: =F178*1055*'GEMM (2013) LCA Data'!$C$42/1000/1000 -> 0.007050435262 | G176: =G154*HLOOKUP(B152,'GEMM (2013) LCA Data'!$C$2:$AB$23,3,FALSE)/HLOOKUP(B152,'GEMM (2013) LCA Data'!$C$2:$AB$23,2,FALSE)*12*'GEMM (2013) LCA Data'!$C$62 -> 0 | H176: =H178*1055*'GEMM (2013) LCA Data'!$D$42/1000/1000 -> -0.0001423493069 | I176: =SUM(D176:H176) -> 0.006908085955
B177: Energy / Carbon
B178: MMBTU | D178: =HLOOKUP(B152,'GEMM (2013) LCA Data'!$C$2:$AB$23,22,FALSE)/1055*1000*D154 -> 0 | E178: =HLOOKUP(B152,'GEMM (2013) LCA Data'!$C$2:$AB$23,4,FALSE)*1000/1055*E154 -> 23.6255314 | F178: =G154*HLOOKUP(B152,'GEMM (2013) LCA Data'!$C$2:$AB$23,3,FALSE)/HLOOKUP(B152,'GEMM (2013) LCA Data'!$C$2:$AB$23,2,FALSE)*12*'GEMM (2013) LCA Data'!$C$64*1000/1055 -> 8.544262974 | G178: =HLOOKUP(B152,'GEMM (2013) LCA Data'!$C$2:$AB$23,4,FALSE)*1000/1055*G154 -> 7.875177133 | H178: =VLOOKUP(B152,'GEMM (2013) LCA Data'!$B$69:$D$90,3,FALSE)/1055*1000*H154 -> -0.7950236967 | I178: =SUM(D178:H178) -> 39.24994781
B179: MTCO2e | D179: =IF(D163="--","--",(1*D163)+(21*D164)+(310*D165)) -> 0 | E179: =IF(E163="--","--",(1*E163)+(21*E164)+(310*E165)) -> 2.264988696 | F179: =IF(F163="--","--",(1*F163)+(21*F164)+(310*F165)) -> 0.678462271 | G179: =IF(G163="--","--",(1*G163)+(21*G164)+(310*G165)) -> 0.7549962321 | H179: =IF(H163="--","--",(1*H163)+(21*H164)+(310*H165)) -> -0.06886446166 | I179: =SUM(D179:H179) -> 3.629582738
B182: n-Hexane | E182: Destruct Mass for Energy Recovery | F182: Destruct Mass in Incinerator | H182: No Destruction | I182: TOTAl Reductions
B183: Mass (tonne) | D183: Create C | E183: Destruct ER | F183: NG | G183: Destruct I | H183: Steam
B184: Mass | D184: ='GEMM Parameters'!$B$16 -> 0 | E184: ='GEMM Parameters'!$C$16 -> 0.69 | G184: ='GEMM Parameters'!$D$16 -> 0.23 | H184: ='GEMM Parameters'!$E$16 -> -1.25
B185: Feedstock Uses (tonne)
B186: Water | D186: 0
B187: Natural Gas | D187: 0 | F187: =F208*1055/'GEMM (2013) LCA Data'!$C$43/1000 -> 0.166480221
B188: Air | D188: 0
B189: Crude Oil | D189: 0
B190: Salt | D190: 0
B191: Sulfur | D191: 0
B192: Air emission (tonne)
B193: CO2 | D193: =HLOOKUP(B182,'GEMM (2013) LCA Data'!$C$2:$AB$23,7,FALSE)*D184 -> 0 | E193: =E184*HLOOKUP(B182,'GEMM (2013) LCA Data'!$C$2:$AB$23,3,FALSE)/HLOOKUP(B182,'GEMM (2013) LCA Data'!$C$2:$AB$23,2,FALSE)*12*'GEMM (2013) LCA Data'!$C$49 -> 2.092821167 | F193: =F208*1055*'GEMM (2013) LCA Data'!$C$29/1000/1000 -> 0.5652098912 | G193: =G184*HLOOKUP(B182,'GEMM (2013) LCA Data'!$C$2:$AB$23,3,FALSE)/HLOOKUP(B182,'GEMM (2013) LCA Data'!$C$2:$AB$23,2,FALSE)*12*'GEMM (2013) LCA Data'!$C$49 -> 0.6976070558 | H193: =H208*1055*'GEMM (2013) LCA Data'!$D$29/1000/1000 -> -0.07145736196 | I193: =SUM(D193:H193) -> 3.284180752
B194: CH4 | D194: =HLOOKUP(B182,'GEMM (2013) LCA Data'!$C$2:$AB$23,8,FALSE)*D184 -> 0 | E194: =E184*HLOOKUP(B182,'GEMM (2013) LCA Data'!$C$2:$AB$23,3,FALSE)/HLOOKUP(B182,'GEMM (2013) LCA Data'!$C$2:$AB$23,2,FALSE)*12*'GEMM (2013) LCA Data'!$C$50 -> 0 | F194: =F208*1055*'GEMM (2013) LCA Data'!$C$30/1000/1000 -> 0.002786960532 | G194: =G184*HLOOKUP(B182,'GEMM (2013) LCA Data'!$C$2:$AB$23,3,FALSE)/HLOOKUP(B182,'GEMM (2013) LCA Data'!$C$2:$AB$23,2,FALSE)*12*'GEMM (2013) LCA Data'!$C$50 -> 0 | H194: =H208*1055*'GEMM (2013) LCA Data'!$D$30/1000/1000 -> -0.0001306589951 | I194: 0.002656301537
B195: N2O | D195: =HLOOKUP(B182,'GEMM (2013) LCA Data'!$C$2:$AB$23,9,FALSE)*D184 -> 0 | E195: =E184*HLOOKUP(B182,'GEMM (2013) LCA Data'!$C$2:$AB$23,3,FALSE)/HLOOKUP(B182,'GEMM (2013) LCA Data'!$C$2:$AB$23,2,FALSE)*12*'GEMM (2013) LCA Data'!$C$51 -> 0 | F195: =F208*1055*'GEMM (2013) LCA Data'!$C$31/1000/1000 -> 1.017604075e-05 | G195: =G184*HLOOKUP(B182,'GEMM (2013) LCA Data'!$C$2:$AB$23,3,FALSE)/HLOOKUP(B182,'GEMM (2013) LCA Data'!$C$2:$AB$23,2,FALSE)*12*'GEMM (2013) LCA Data'!$C$51 -> 0 | H195: =H208*1055*'GEMM (2013) LCA Data'!$D$31/1000/1000 -> 0 | I195: 1.017604075e-05
B196: CO | D196: =HLOOKUP(B182,'GEMM (2013) LCA Data'!$C$2:$AB$23,10,FALSE)*D184 -> 0 | E196: =E184*HLOOKUP(B182,'GEMM (2013) LCA Data'!$C$2:$AB$23,3,FALSE)/HLOOKUP(B182,'GEMM (2013) LCA Data'!$C$2:$AB$23,2,FALSE)*12*'GEMM (2013) LCA Data'!$C$52 -> 0.000922455611 | F196: =F208*1055*'GEMM (2013) LCA Data'!$C$32/1000/1000 -> 0.0003549838111 | G196: =G184*HLOOKUP(B182,'GEMM (2013) LCA Data'!$C$2:$AB$23,3,FALSE)/HLOOKUP(B182,'GEMM (2013) LCA Data'!$C$2:$AB$23,2,FALSE)*12*'GEMM (2013) LCA Data'!$C$52 -> 0.0003074852037 | H196: =H208*1055*'GEMM (2013) LCA Data'!$D$32/1000/1000 -> -4.999104652e-05 | I196: 0.001534933579
B197: NMVOC | D197: =HLOOKUP(B182,'GEMM (2013) LCA Data'!$C$2:$AB$23,11,FALSE)*D184 -> 0 | E197: =E184*HLOOKUP(B182,'GEMM (2013) LCA Data'!$C$2:$AB$23,3,FALSE)/HLOOKUP(B182,'GEMM (2013) LCA Data'!$C$2:$AB$23,2,FALSE)*12*'GEMM (2013) LCA Data'!$C$53 -> 9.22455611e-05 | F197: =F208*1055*'GEMM (2013) LCA Data'!$C$33/1000/1000 -> 1.740118424e-07 | G197: =G184*HLOOKUP(B182,'GEMM (2013) LCA Data'!$C$2:$AB$23,3,FALSE)/HLOOKUP(B182,'GEMM (2013) LCA Data'!$C$2:$AB$23,2,FALSE)*12*'GEMM (2013) LCA Data'!$C$53 -> 3.074852037e-05 | H197: =H208*1055*'GEMM (2013) LCA Data'!$D$33/1000/1000 -> -0.0003631727145 | I197: -0.0002400046212
B198: NOx | D198: =HLOOKUP(B182,'GEMM (2013) LCA Data'!$C$2:$AB$23,12,FALSE)*D184 -> 0 | E198: =E184*HLOOKUP(B182,'GEMM (2013) LCA Data'!$C$2:$AB$23,3,FALSE)/HLOOKUP(B182,'GEMM (2013) LCA Data'!$C$2:$AB$23,2,FALSE)*12*'GEMM (2013) LCA Data'!$C$54 -> 0 | F198: =F208*1055*'GEMM (2013) LCA Data'!$C$34/1000/1000 -> 0.0003716828092 | G198: =G184*HLOOKUP(B182,'GEMM (2013) LCA Data'!$C$2:$AB$23,3,FALSE)/HLOOKUP(B182,'GEMM (2013) LCA Data'!$C$2:$AB$23,2,FALSE)*12*'GEMM (2013) LCA Data'!$C$54 -> 0 | H198: =H208*1055*'GEMM (2013) LCA Data'!$D$34/1000/1000 -> -0.0002352152721 | I198: 0.0001364675371
B199: SOx | D199: =HLOOKUP(B182,'GEMM (2013) LCA Data'!$C$2:$AB$23,13,FALSE)*D184 -> 0 | E199: =E184*HLOOKUP(B182,'GEMM (2013) LCA Data'!$C$2:$AB$23,3,FALSE)/HLOOKUP(B182,'GEMM (2013) LCA Data'!$C$2:$AB$23,2,FALSE)*12*'GEMM (2013) LCA Data'!$C$55 -> 0 | F199: =F208*1055*'GEMM (2013) LCA Data'!$C$35/1000/1000 -> 0.004791888822 | G199: =G184*HLOOKUP(B182,'GEMM (2013) LCA Data'!$C$2:$AB$23,3,FALSE)/HLOOKUP(B182,'GEMM (2013) LCA Data'!$C$2:$AB$23,2,FALSE)*12*'GEMM (2013) LCA Data'!$C$55 -> 0 | H199: =H208*1055*'GEMM (2013) LCA Data'!$D$35/1000/1000 -> -0.0003128644497 | I199: 0.004479024372
B200: Water emission (tonne)
B201: TOC | D201: =HLOOKUP(B182,'GEMM (2013) LCA Data'!$C$2:$AB$23,15,FALSE)*D184 -> 0 | E201: =E184*HLOOKUP(B182,'GEMM (2013) LCA Data'!$C$2:$AB$23,3,FALSE)/HLOOKUP(B182,'GEMM (2013) LCA Data'!$C$2:$AB$23,2,FALSE)*12*'GEMM (2013) LCA Data'!$C$57 -> 0 | F201: =F208*1055*'GEMM (2013) LCA Data'!$C$37/1000/1000 -> 8.739344522e-05 | G201: =G184*HLOOKUP(B182,'GEMM (2013) LCA Data'!$C$2:$AB$23,3,FALSE)/HLOOKUP(B182,'GEMM (2013) LCA Data'!$C$2:$AB$23,2,FALSE)*12*'GEMM (2013) LCA Data'!$C$57 -> 0 | H201: =H208*1055*'GEMM (2013) LCA Data'!$D$37/1000/1000 -> -1.964630567e-06 | I201: =SUM(D201:H201) -> 8.542881465e-05
B202: BOD | D202: =HLOOKUP(B182,'GEMM (2013) LCA Data'!$C$2:$AB$23,16,FALSE)*D184 -> 0 | E202: =E184*HLOOKUP(B182,'GEMM (2013) LCA Data'!$C$2:$AB$23,3,FALSE)/HLOOKUP(B182,'GEMM (2013) LCA Data'!$C$2:$AB$23,2,FALSE)*12*'GEMM (2013) LCA Data'!$C$58 -> 0 | F202: =F208*1055*'GEMM (2013) LCA Data'!$C$38/1000/1000 -> 0.0001510748205 | G202: =G184*HLOOKUP(B182,'GEMM (2013) LCA Data'!$C$2:$AB$23,3,FALSE)/HLOOKUP(B182,'GEMM (2013) LCA Data'!$C$2:$AB$23,2,FALSE)*12*'GEMM (2013) LCA Data'!$C$58 -> 0 | H202: =H208*1055*'GEMM (2013) LCA Data'!$D$38/1000/1000 -> -1.747953886e-05 | I202: =SUM(D202:H202) -> 0.0001335952817
B203: COD | D203: =HLOOKUP(B182,'GEMM (2013) LCA Data'!$C$2:$AB$23,17,FALSE)*D184 -> 0 | E203: =E184*HLOOKUP(B182,'GEMM (2013) LCA Data'!$C$2:$AB$23,3,FALSE)/HLOOKUP(B182,'GEMM (2013) LCA Data'!$C$2:$AB$23,2,FALSE)*12*'GEMM (2013) LCA Data'!$C$59 -> 0 | F203: =F208*1055*'GEMM (2013) LCA Data'!$C$39/1000/1000 -> 0.0002499452533 | G203: =G184*HLOOKUP(B182,'GEMM (2013) LCA Data'!$C$2:$AB$23,3,FALSE)/HLOOKUP(B182,'GEMM (2013) LCA Data'!$C$2:$AB$23,2,FALSE)*12*'GEMM (2013) LCA Data'!$C$59 -> 0 | H203: =H208*1055*'GEMM (2013) LCA Data'!$D$39/1000/1000 -> -5.618843422e-06 | I203: =SUM(D203:H203) -> 0.0002443264099
B204: TDS | D204: =HLOOKUP(B182,'GEMM (2013) LCA Data'!$C$2:$AB$23,18,FALSE)*D184 -> 0 | E204: =E184*HLOOKUP(B182,'GEMM (2013) LCA Data'!$C$2:$AB$23,3,FALSE)/HLOOKUP(B182,'GEMM (2013) LCA Data'!$C$2:$AB$23,2,FALSE)*12*'GEMM (2013) LCA Data'!$C$60 -> 0 | F204: =F208*1055*'GEMM (2013) LCA Data'!$C$40/1000/1000 -> 0.03864953478 | G204: =G184*HLOOKUP(B182,'GEMM (2013) LCA Data'!$C$2:$AB$23,3,FALSE)/HLOOKUP(B182,'GEMM (2013) LCA Data'!$C$2:$AB$23,2,FALSE)*12*'GEMM (2013) LCA Data'!$C$60 -> 0 | H204: =H208*1055*'GEMM (2013) LCA Data'!$D$40/1000/1000 -> -0.00032501681 | I204: =SUM(D204:H204) -> 0.03832451797
B205: Solid waste (tonne)
B206: Solid waste | D206: =HLOOKUP(B182,'GEMM (2013) LCA Data'!$C$2:$AB$23,20,FALSE)*D184 -> 0 | E206: =E184*HLOOKUP(B182,'GEMM (2013) LCA Data'!$C$2:$AB$23,3,FALSE)/HLOOKUP(B182,'GEMM (2013) LCA Data'!$C$2:$AB$23,2,FALSE)*12*'GEMM (2013) LCA Data'!$C$62 -> 0 | F206: =F208*1055*'GEMM (2013) LCA Data'!$C$42/1000/1000 -> 0.006514513816 | G206: =G184*HLOOKUP(B182,'GEMM (2013) LCA Data'!$C$2:$AB$23,3,FALSE)/HLOOKUP(B182,'GEMM (2013) LCA Data'!$C$2:$AB$23,2,FALSE)*12*'GEMM (2013) LCA Data'!$C$62 -> 0 | H206: =H208*1055*'GEMM (2013) LCA Data'!$D$42/1000/1000 -> -0.0001533808478 | I206: =SUM(D206:H206) -> 0.006361132968
B207: Energy / Carbon
B208: MMBTU | D208: =HLOOKUP(B182,'GEMM (2013) LCA Data'!$C$2:$AB$23,22,FALSE)/1055*1000*D184 -> 0 | E208: =HLOOKUP(B182,'GEMM (2013) LCA Data'!$C$2:$AB$23,4,FALSE)*1000/1055*E184 -> 25.53253659 | F208: =G184*HLOOKUP(B182,'GEMM (2013) LCA Data'!$C$2:$AB$23,3,FALSE)/HLOOKUP(B182,'GEMM (2013) LCA Data'!$C$2:$AB$23,2,FALSE)*12*'GEMM (2013) LCA Data'!$C$64*1000/1055 -> 7.8947919 | G208: =HLOOKUP(B182,'GEMM (2013) LCA Data'!$C$2:$AB$23,4,FALSE)*1000/1055*G184 -> 8.510845529 | H208: =VLOOKUP(B182,'GEMM (2013) LCA Data'!$B$69:$D$90,3,FALSE)/1055*1000*H184 -> -0.8566350711 | I208: =SUM(D208:H208) -> 41.08153894
B209: MTCO2e | D209: =IF(D193="--","--",(1*D193)+(21*D194)+(310*D195)) -> 0 | E209: =IF(E193="--","--",(1*E193)+(21*E194)+(310*E195)) -> 2.092821167 | F209: =IF(F193="--","--",(1*F193)+(21*F194)+(310*F195)) -> 0.626890635 | G209: =IF(G193="--","--",(1*G193)+(21*G194)+(310*G195)) -> 0.6976070558 | H209: =IF(H193="--","--",(1*H193)+(21*H194)+(310*H195)) -> -0.07420120086 | I209: =SUM(D209:H209) -> 3.343117657
B212: Tetrahydrofuran | E212: Destruct Mass for Energy Recovery | F212: Destruct Mass in Incinerator | H212: Process | I212: TOTAl Reductions
B213: Mass (tonne) | D213: Create C | E213: Destruct ER | F213: NG | G213: Destruct I | H213: Steam
B214: Mass | D214: ='GEMM Parameters'!$B$22 -> 0.92 | E214: ='GEMM Parameters'!$C$22 -> 0.69 | G214: ='GEMM Parameters'!$D$22 -> 0.23 | H214: ='GEMM Parameters'!$E$16 -> -1.25
... 25 more rows

Sheet GEMM HazMat Densities (hidden)
A1: Conversion from Gallons to Pounds of Common Solvents
A2: Calculation Description | B2: To convert the density from kg/cubic meter to lbs/kg the following calculation is used: (900 kg/cubic meter x 2.2 lbs/kg)/264.2 gallons/cubic meter.
A3: (select) | B3: Solvents
A4: Material | B4: Density (kg/m3) | C4: Density (lbs/gallon)
A5: 1,2,4-Trimethylbenzene | B5: 876.1 | C5: =(B5*2.2)/264.2 -> 7.295306586
A6: Acetonitrile | B6: 782 | C6: 6.511733535
A7: Chlorobenzene | B7: 1106 | C7: 9.209689629
A8: Chloroform | B8: 1489 | C8: 12.3989402
A9: Chloromethane | B9: 911 | C9: 7.585919758
A10: Cyclohexane | B10: 779 | C10: 6.48675246
A11: Dichloromethane | B11: 1326 | C11: 11.04163512
A12: Ethanol | B12: 789 | C12: 6.57002271
A13: Ethylbenzene | B13: 866.5 | C13: 7.215367146
A14: Hexanes | B14: 654.8 | C14: 5.452535958
A15: Methanol | B15: 791 | C15: =(B15*2.2)/264.2 -> 6.58667676
A16: Methyl isobutyl ketone | B16: 801 | C16: 6.66994701
A17: Methyl tert-butyl ether | B17: 741 | C17: 6.170325511
A18: N,N-Dimethylformamide | B18: 949 | C18: 7.902346707
A19: n-Butanol | B19: 810 | C19: 6.744890235
A20: Tetrahydrofuran | B20: 888 | C20: 7.394398183
A21: Toluene | B21: 867 | C21: 7.219530659
A22: Xylenes | B22: 880.2 | C22: 7.329447388

Sheet Glossary & Conversions
A1: Glossary & Conversion Factors
A2: Abbreviation | E2: Meaning
B3: GHG | E3: Greenhouse Gas
B4: MMTCO2e | E4: Million Metric Tons Carbon Dioxide Equivalent
B5: MTCO2e | E5: Metric Ton Carbon Dioxide Equivalent
B6: MMTCe | E6: Million Metric Tons Carbon Equivalent
B7: MTCe | E7: Metric Tons Carbon Equivalent
B8: CO2eq | E8: Carbon Dioxide Equivalent
B9: kwh | E9: Kilowatt hour
B10: BTU | E10: British thermal unit
B11: MBTU | E11: Thousand BTU
B12: MMBTU | E12: Million BTU
B13: lbs. | E13: Pound
B14: kg | E14: Kilogram
A16: Prefixes | D16: Factor
B17: Kilo | C17: = | D17: 1000
B18: Mega | C18: = | D18: 1000000
B19: Giga | C19: = | D19: 1000000000
B20: Tera | C20: = | D20: 1000000000000
A22: Useful Conversions
A23: 1 | B23: mile | C23: = | D23: 1.609 | E23: kilometers
A24: 1 | B24: lbs. | C24: = | D24: 0.4536 | E24: kg
A25: 1 | B25: kg | C25: = | D25: 2.205 | E25: lbs.
A26: 1 | B26: Metric Ton (tonne) | C26: = | D26: 1000 | E26: kg
A27: 1 | B27: MTCe | C27: = | D27: 1000 | E27: kg Carbon Equivalent
A28: 1 | B28: MMTCe | C28: = | D28: =10^9 -> 1000000000 | E28: kg Carbon Equivalent
A29: 1 | B29: MTCO2e | C29: = | D29: 1000 | E29: kg Carbon Dioxide Equivalent
A30: 1 | B30: MMTCO2e | C30: = | D30: =10^9 -> 1000000000 | E30: kg Carbon Dioxide Equivalent
A31: 1 | B31: MTCE | C31: = | D31: =50/12 -> 4.166666667 | E31: MTCO2e
A32: 1 | B32: short ton | C32: = | D32: 0.9072 | E32: metric tons
A33: 1 | B33: liter | C33: = | D33: 0.2642 | E33: gallons
A34: 1 | B34: gallon | C34: = | D34: 3.7854 | E34: liters
A35: 1 | B35: barrel petroleum | C35: = | D35: 42 | E35: gallons
A37: 1 | B37: kwh | C37: = | D37: 3412 | E37: BTU | F37: = | G37: 1 | H37: kwh
A38: 1 | B38: BTU | C38: = | D38: 1 | E38: BTU | F38: = | G38: =1/3412 -> 0.0002930832356 | H38: kwh
A39: 1 | B39: therms | C39: = | D39: =10^5 -> 100000 | E39: BTU | F39: = | G39: =D39/3412 -> 29.30832356 | H39: kwh
A40: 1 | B40: cubic feet | C40: = | D40: 1027 | E40: BTU
A41: Global Warming Potentials
A42: 1 | B42: CO2 | C42: = | D42: 1 | E42: CO2e
A43: 1 | B43: CH4 | C43: = | D43: 28 | E43: CO2e
A44: 1 | B44: N2O | C44: = | D44: 265 | E44: CO2e

Sheet ElectricityEFs (hidden)
A1: Electricity Emission Factors: eGRID data and emissions factor conversion
C3: Emission Factors from eGrid | F3: Emission factors converted to kg/kwh | I3: Emission factors converted to MTCO2e
B4: State | C4: State annual CO2 non-baseload output emission rate (lb/MWh) | D4: State annual CH4 non-baseload output emission rate (lb/GWh) | E4: State annual N2O non-baseload output emission rate (lb/GWh) | F4: Annual CO2 non-baseload emissions rate (kg/kwh) | G4: Annual CH4 non-baseload emissions rate (kg/kwh) | H4: Annual N2O non-baseload emissions rate (kg/kwh) | I4: Annual CO2 non-baseload emissions rate (MTCO2e/kwh) | J4: Annual CH4 non-baseload emissions rate (MTCO2e/kwh) | K4: Annual N2O non-baseload emissions rate (MTCO2e/kwh) | L4: Annual non-baseload emissions factor, all GHG (MTCO2e/kwh)
B5: U.S. National | C5: 1432.254 | D5: 117 | E5: 17 | F5: =C5*'Glossary & Conversions'!$D$24*1/1000 -> 0.6496704144 | G5: =D5*'Glossary & Conversions'!$D$24*10^-6 -> 5.30712e-05 | H5: =E5*'Glossary & Conversions'!$D$24*10^-6 -> 7.7112e-06 | I5: =F5*1/'Glossary & Conversions'!$D$26*'Glossary & Conversions'!$D$42 -> 0.0006496704144 | J5: =G5*1/'Glossary & Conversions'!$D$26*'Glossary & Conversions'!$D$43 -> 1.4859936e-06 | K5: =H5*1/'Glossary & Conversions'!$D$26*'Glossary & Conversions'!$D$44 -> 2.043468e-06 | L5: =SUM(I5:K5) -> 0.000653199876
B6: AK | C6: 1304.399 | D6: 103 | E6: 14 | F6: =C6*'Glossary & Conversions'!$D$24*1/1000 -> 0.5916753864 | G6: =D6*'Glossary & Conversions'!$D$24*10^-6 -> 4.67208e-05 | H6: =E6*'Glossary & Conversions'!$D$24*10^-6 -> 6.3504e-06 | I6: =F6*1/'Glossary & Conversions'!$D$26*'Glossary & Conversions'!$D$42 -> 0.0005916753864 | J6: =G6*1/'Glossary & Conversions'!$D$26*'Glossary & Conversions'!$D$43 -> 1.3081824e-06 | K6: =H6*1/'Glossary & Conversions'!$D$26*'Glossary & Conversions'!$D$44 -> 1.682856e-06 | L6: =SUM(I6:K6) -> 0.0005946664248
B7: AL | C7: 1264.594 | D7: 77 | E7: 11 | F7: =C7*'Glossary & Conversions'!$D$24*1/1000 -> 0.5736198384 | G7: =D7*'Glossary & Conversions'!$D$24*10^-6 -> 3.49272e-05 | H7: =E7*'Glossary & Conversions'!$D$24*10^-6 -> 4.9896e-06 | I7: =F7*1/'Glossary & Conversions'!$D$26*'Glossary & Conversions'!$D$42 -> 0.0005736198384 | J7: =G7*1/'Glossary & Conversions'!$D$26*'Glossary & Conversions'!$D$43 -> 9.779616e-07 | K7: =H7*1/'Glossary & Conversions'!$D$26*'Glossary & Conversions'!$D$44 -> 1.322244e-06 | L7: =SUM(I7:K7) -> 0.000575920044
B8: AR | C8: 1323.63 | D8: 104 | E8: 15 | F8: =C8*'Glossary & Conversions'!$D$24*1/1000 -> 0.600398568 | G8: =D8*'Glossary & Conversions'!$D$24*10^-6 -> 4.71744e-05 | H8: =E8*'Glossary & Conversions'!$D$24*10^-6 -> 6.804e-06 | I8: =F8*1/'Glossary & Conversions'!$D$26*'Glossary & Conversions'!$D$42 -> 0.000600398568 | J8: =G8*1/'Glossary & Conversions'!$D$26*'Glossary & Conversions'!$D$43 -> 1.3208832e-06 | K8: =H8*1/'Glossary & Conversions'!$D$26*'Glossary & Conversions'!$D$44 -> 1.80306e-06 | L8: 0.0006035225112
B9: AZ | C9: 1439.098 | D9: 96 | E9: 14 | F9: =C9*'Glossary & Conversions'!$D$24*1/1000 -> 0.6527748528 | G9: =D9*'Glossary & Conversions'!$D$24*10^-6 -> 4.35456e-05 | H9: =E9*'Glossary & Conversions'!$D$24*10^-6 -> 6.3504e-06 | I9: =F9*1/'Glossary & Conversions'!$D$26*'Glossary & Conversions'!$D$42 -> 0.0006527748528 | J9: =G9*1/'Glossary & Conversions'!$D$26*'Glossary & Conversions'!$D$43 -> 1.2192768e-06 | K9: =H9*1/'Glossary & Conversions'!$D$26*'Glossary & Conversions'!$D$44 -> 1.682856e-06 | L9: 0.0006556769856
B10: CA | C10: 871.488 | D10: 40 | E10: 5 | F10: =C10*'Glossary & Conversions'!$D$24*1/1000 -> 0.3953069568 | G10: =D10*'Glossary & Conversions'!$D$24*10^-6 -> 1.8144e-05 | H10: =E10*'Glossary & Conversions'!$D$24*10^-6 -> 2.268e-06 | I10: =F10*1/'Glossary & Conversions'!$D$26*'Glossary & Conversions'!$D$42 -> 0.0003953069568 | J10: =G10*1/'Glossary & Conversions'!$D$26*'Glossary & Conversions'!$D$43 -> 5.08032e-07 | K10: =H10*1/'Glossary & Conversions'!$D$26*'Glossary & Conversions'!$D$44 -> 6.0102e-07 | L10: 0.0003964160088
B11: CO | C11: 1534.144 | D11: 120 | E11: 17 | F11: =C11*'Glossary & Conversions'!$D$24*1/1000 -> 0.6958877184 | G11: =D11*'Glossary & Conversions'!$D$24*10^-6 -> 5.4432e-05 | H11: =E11*'Glossary & Conversions'!$D$24*10^-6 -> 7.7112e-06 | I11: =F11*1/'Glossary & Conversions'!$D$26*'Glossary & Conversions'!$D$42 -> 0.0006958877184 | J11: =G11*1/'Glossary & Conversions'!$D$26*'Glossary & Conversions'!$D$43 -> 1.524096e-06 | K11: =H11*1/'Glossary & Conversions'!$D$26*'Glossary & Conversions'!$D$44 -> 2.043468e-06 | L11: 0.0006994552824
B12: CT | C12: 1016.741 | D12: 95 | E12: 12 | F12: =C12*'Glossary & Conversions'!$D$24*1/1000 -> 0.4611937176 | G12: =D12*'Glossary & Conversions'!$D$24*10^-6 -> 4.3092e-05 | H12: =E12*'Glossary & Conversions'!$D$24*10^-6 -> 5.4432e-06 | I12: =F12*1/'Glossary & Conversions'!$D$26*'Glossary & Conversions'!$D$42 -> 0.0004611937176 | J12: =G12*1/'Glossary & Conversions'!$D$26*'Glossary & Conversions'!$D$43 -> 1.206576e-06 | K12: =H12*1/'Glossary & Conversions'!$D$26*'Glossary & Conversions'!$D$44 -> 1.442448e-06 | L12: 0.0004638427416
B13: DC | C13: 472.952 | D13: 22 | E13: 2 | F13: =C13*'Glossary & Conversions'!$D$24*1/1000 -> 0.2145310272 | G13: =D13*'Glossary & Conversions'!$D$24*10^-6 -> 9.9792e-06 | H13: =E13*'Glossary & Conversions'!$D$24*10^-6 -> 9.072e-07 | I13: =F13*1/'Glossary & Conversions'!$D$26*'Glossary & Conversions'!$D$42 -> 0.0002145310272 | J13: =G13*1/'Glossary & Conversions'!$D$26*'Glossary & Conversions'!$D$43 -> 2.794176e-07 | K13: =H13*1/'Glossary & Conversions'!$D$26*'Glossary & Conversions'!$D$44 -> 2.40408e-07 | L13: 0.0002150508528
B14: DE | C14: 987.016 | D14: 40 | E14: 5 | F14: =C14*'Glossary & Conversions'!$D$24*1/1000 -> 0.4477104576 | G14: =D14*'Glossary & Conversions'!$D$24*10^-6 -> 1.8144e-05 | H14: =E14*'Glossary & Conversions'!$D$24*10^-6 -> 2.268e-06 | I14: =F14*1/'Glossary & Conversions'!$D$26*'Glossary & Conversions'!$D$42 -> 0.0004477104576 | J14: =G14*1/'Glossary & Conversions'!$D$26*'Glossary & Conversions'!$D$43 -> 5.08032e-07 | K14: =H14*1/'Glossary & Conversions'!$D$26*'Glossary & Conversions'!$D$44 -> 6.0102e-07 | L14: 0.0004488195096
B15: FL | C15: 1136.321 | D15: 71 | E15: 10 | F15: =C15*'Glossary & Conversions'!$D$24*1/1000 -> 0.5154352056 | G15: =D15*'Glossary & Conversions'!$D$24*10^-6 -> 3.22056e-05 | H15: =E15*'Glossary & Conversions'!$D$24*10^-6 -> 4.536e-06 | I15: =F15*1/'Glossary & Conversions'!$D$26*'Glossary & Conversions'!$D$42 -> 0.0005154352056 | J15: =G15*1/'Glossary & Conversions'!$D$26*'Glossary & Conversions'!$D$43 -> 9.017568e-07 | K15: =H15*1/'Glossary & Conversions'!$D$26*'Glossary & Conversions'!$D$44 -> 1.20204e-06 | L15: 0.0005175390024
